Workbook

Sheet Cover
A1: SJRPP 000897
C4: Economic Decision Making Model
C5: =Assumptions!D3 -> St. Johns Power Park Retirement
C22: Author: | D22: FPL Finance

Sheet Assumptions
A1: GENERAL ASSUMPTIONS | E1: SJRPP 000898
B3: PROJECT TITLE: | D3: St. Johns Power Park Retirement
H4: =Input!I3 -> $ dollars
G5: CPVRR: | H5: =Input!I90 -> -183180075.5 | I5: unfavorable / (favorable)
B8: DATES
B9: Model Start Year | D9: 2016
B10: Discount Date | D10: 2018-01-01
B11: Inflation Base Year | D11: 2017
A14: I) | B14: TAX RATES
B15: State Income Tax Rate | E15: 0.055
B16: Federal Income Tax Rate | E16: 0.35
B17: Blended Income Tax Rate | E17: =((1-E15)*E16)+E15 -> 0.38575
A19: II) | B19: COST OF CAPITAL
D22: ASSETS | E22: WTD COST | F22: UNWTD AFTER | G22: WTD AFTER | H22: WTD PRE
B23: SOURCE | C23: WEIGHT | D23: COST | E23: RATE | F23: TAX RATE | G23: TAX RATE | H23: TAX RATE
B24: DEBT | C24: =1-C25 -> 0.404 | D24: 0.05167057292 | E24: =C24*D24 -> 0.02087491146 | F24: =D24*(1-$E$17) -> 0.03173864941 | G24: =E24*(1-$E$17) -> 0.01282241436 | H24: =+E24 -> 0.02087491146
B25: COMMON | C25: 0.596 | D25: 0.1055 | E25: =C25*D25 -> 0.062878 | F25: =D25 -> 0.1055 | G25: =E25 -> 0.062878 | H25: =+E25/(1-Tax_Rate) -> 0.1023654864
B26: TOTAL | C26: =SUM(C24:C25) -> 1 | G26: =SUM(G24:G25) -> 0.07570041436 | H26: =SUM(H24:H25) -> 0.1232403978
B28: DISCOUNT RATE ("WACC"): | E28: =G26 -> 0.07570041436
A32: III) | B32: PROPERTY TAXES | E32: 0.0184523065
B33: PROPERTY INSURANCE | E33: 0
A36: IV) | B36: FEDERAL TAX INCENTIVES
C38: 2016 | D38: =C38+1 -> 2017 | E38: =D38+1 -> 2018 | F38: 2019 | G38: 2020 | H38: 2021 | I38: 2022 | J38: 2023 | K38: 2024
B39: ITC
B40: Bonus | C40: 0.5 | D40: 0.5 | E40: 0.4 | F40: 0.3 | G40: 0 | H40: 0 | I40: 0 | J40: 0 | K40: 0

Sheet Exhibit_SRB_1
A1: SJRPP 000899 | AS1: Docket No. 170123-EI
AS2: Summary CPVRR Analysis for Retirement of SJRPP
AS3: Exhibit SRB-1 (Amend v1), Page 1 of 1
E4: Nominal | G4: 35-yr
B5: (dollars in millions) | E5: Total | G5: CPVRR | I5: 2018 | J5: =I5+1 -> 2019 | K5: 2020 | L5: 2021 | M5: 2022 | N5: 2023 | O5: 2024 | P5: 2025 | Q5: 2026 | R5: 2027 | S5: 2028 | T5: 2029 | U5: 2030 | V5: 2031 | W5: 2032 | X5: 2033 | Y5: 2034 | Z5: 2035 | AA5: 2036 | AB5: 2037 | AC5: 2038 | AD5: 2039 | AE5: 2040 | AF5: 2041 | AG5: 2042 | AH5: 2043 | AI5: 2044 | AJ5: 2045 | AK5: 2046 | AL5: 2047 | AM5: 2048 | AN5: 2049 | AO5: 2050 | AP5: 2051 | AQ5: 2052 | AS5: 2032-2052
B7: Discount Factor | I7: =RevReq_BaseCase!Q5 -> 0.9642679783 | J7: =RevReq_BaseCase!R5 -> 0.8965886453 | K7: =RevReq_BaseCase!S5 -> 0.8333262703 | L7: =RevReq_BaseCase!T5 -> 0.7746824851 | M7: =RevReq_BaseCase!U5 -> 0.7201656472 | N7: =RevReq_BaseCase!V5 -> 0.6694853303 | O7: =RevReq_BaseCase!W5 -> 0.6222471322 | P7: =RevReq_BaseCase!X5 -> 0.5784576486 | Q7: =RevReq_BaseCase!Y5 -> 0.5377497683 | R7: =RevReq_BaseCase!Z5 -> 0.4999066293 | S7: =RevReq_BaseCase!AA5 -> 0.4646337304 | T7: =RevReq_BaseCase!AB5 -> 0.4319359965 | U7: =RevReq_BaseCase!AC5 -> 0.4015393047 | V7: =RevReq_BaseCase!AD5 -> 0.3732817236 | W7: =RevReq_BaseCase!AE5 -> 0.3469433481 | X7: =RevReq_BaseCase!AF5 -> 0.3225278558 | Y7: =RevReq_BaseCase!AG5 -> 0.2998305583 | Z7: =RevReq_BaseCase!AH5 -> 0.2787305409 | AA7: =RevReq_BaseCase!AI5 -> 0.2590635998 | AB7: =RevReq_BaseCase!AJ5 -> 0.2408324812 | AC7: =RevReq_BaseCase!AK5 -> 0.2238843436 | AD7: =RevReq_BaseCase!AL5 -> 0.2081288997 | AE7: =RevReq_BaseCase!AM5 -> 0.1934435381 | AF7: =RevReq_BaseCase!AN5 -> 0.1798303091 | AG7: =RevReq_BaseCase!AO5 -> 0.1671750859 | AH7: =RevReq_BaseCase!AP5 -> 0.1554104504 | AI7: =RevReq_BaseCase!AQ5 -> 0.1444448484 | AJ7: =RevReq_BaseCase!AR5 -> 0.1342798111 | AK7: =RevReq_BaseCase!AS5 -> 0.1248301193 | AL7: =RevReq_BaseCase!AT5 -> 0.116045432 | AM7: =RevReq_BaseCase!AU5 -> 0.1078573854 | AN7: =RevReq_BaseCase!AV5 -> 0.1002671227 | AO7: =RevReq_BaseCase!AW5 -> 0.09321101056 | AP7: =RevReq_BaseCase!AX5 -> 0.08665145919 | AQ7: =RevReq_BaseCase!AY5 -> 0.08053742113 | AS7: na
B9: Base Rates: Incremental Revenue Requirement(1)
B10: Operations and Maintenance(2) | D10: Base | E10: =SUM(I10:AQ10) -> -591.8455484 | G10: =SUMPRODUCT(I10:AQ10,$I$7:$AQ$7) -> -186.5513098 | I10: =SUMPRODUCT('RevReq_ExitCase_(2021)'!Q$143:Q$162,N('RevReq_ExitCase_(2021)'!$A$143:$A$162=$D10 ))/10^6-SUMPRODUCT(RevReq_BaseCase!Q$143:Q$162,N(RevReq_BaseCase!$A$143:$A$162=$D10 ))/10^6 -> -12.34772614 | J10: =SUMPRODUCT('RevReq_ExitCase_(2021)'!R$143:R$162,N('RevReq_ExitCase_(2021)'!$A$143:$A$162=$D10 ))/10^6-SUMPRODUCT(RevReq_BaseCase!R$143:R$162,N(RevReq_BaseCase!$A$143:$A$162=$D10 ))/10^6 -> -12.26546336 | K10: =SUMPRODUCT('RevReq_ExitCase_(2021)'!S$143:S$162,N('RevReq_ExitCase_(2021)'!$A$143:$A$162=$D10 ))/10^6-SUMPRODUCT(RevReq_BaseCase!S$143:S$162,N(RevReq_BaseCase!$A$143:$A$162=$D10 ))/10^6 -> -12.26546336 | L10: =SUMPRODUCT('RevReq_ExitCase_(2021)'!T$143:T$162,N('RevReq_ExitCase_(2021)'!$A$143:$A$162=$D10 ))/10^6-SUMPRODUCT(RevReq_BaseCase!T$143:T$162,N(RevReq_BaseCase!$A$143:$A$162=$D10 ))/10^6 -> -12.51077262 | M10: =SUMPRODUCT('RevReq_ExitCase_(2021)'!U$143:U$162,N('RevReq_ExitCase_(2021)'!$A$143:$A$162=$D10 ))/10^6-SUMPRODUCT(RevReq_BaseCase!U$143:U$162,N(RevReq_BaseCase!$A$143:$A$162=$D10 ))/10^6 -> -12.76098808 | N10: =SUMPRODUCT('RevReq_ExitCase_(2021)'!V$143:V$162,N('RevReq_ExitCase_(2021)'!$A$143:$A$162=$D10 ))/10^6-SUMPRODUCT(RevReq_BaseCase!V$143:V$162,N(RevReq_BaseCase!$A$143:$A$162=$D10 ))/10^6 -> -13.01620784 | O10: =SUMPRODUCT('RevReq_ExitCase_(2021)'!W$143:W$162,N('RevReq_ExitCase_(2021)'!$A$143:$A$162=$D10 ))/10^6-SUMPRODUCT(RevReq_BaseCase!W$143:W$162,N(RevReq_BaseCase!$A$143:$A$162=$D10 ))/10^6 -> -13.276532 | P10: =SUMPRODUCT('RevReq_ExitCase_(2021)'!X$143:X$162,N('RevReq_ExitCase_(2021)'!$A$143:$A$162=$D10 ))/10^6-SUMPRODUCT(RevReq_BaseCase!X$143:X$162,N(RevReq_BaseCase!$A$143:$A$162=$D10 ))/10^6 -> -13.7628788 | Q10: =SUMPRODUCT('RevReq_ExitCase_(2021)'!Y$143:Y$162,N('RevReq_ExitCase_(2021)'!$A$143:$A$162=$D10 ))/10^6-SUMPRODUCT(RevReq_BaseCase!Y$143:Y$162,N(RevReq_BaseCase!$A$143:$A$162=$D10 ))/10^6 -> -14.03813637 | R10: =SUMPRODUCT('RevReq_ExitCase_(2021)'!Z$143:Z$162,N('RevReq_ExitCase_(2021)'!$A$143:$A$162=$D10 ))/10^6-SUMPRODUCT(RevReq_BaseCase!Z$143:Z$162,N(RevReq_BaseCase!$A$143:$A$162=$D10 ))/10^6 -> -14.08916197 | S10: =SUMPRODUCT('RevReq_ExitCase_(2021)'!AA$143:AA$162,N('RevReq_ExitCase_(2021)'!$A$143:$A$162=$D10 ))/10^6-SUMPRODUCT(RevReq_BaseCase!AA$143:AA$162,N(RevReq_BaseCase!$A$143:$A$162=$D10 ))/10^6 -> -14.3709452 | T10: =SUMPRODUCT('RevReq_ExitCase_(2021)'!AB$143:AB$162,N('RevReq_ExitCase_(2021)'!$A$143:$A$162=$D10 ))/10^6-SUMPRODUCT(RevReq_BaseCase!AB$143:AB$162,N(RevReq_BaseCase!$A$143:$A$162=$D10 ))/10^6 -> -14.65836411 | U10: =SUMPRODUCT('RevReq_ExitCase_(2021)'!AC$143:AC$162,N('RevReq_ExitCase_(2021)'!$A$143:$A$162=$D10 ))/10^6-SUMPRODUCT(RevReq_BaseCase!AC$143:AC$162,N(RevReq_BaseCase!$A$143:$A$162=$D10 ))/10^6 -> -14.95153139 | V10: =SUMPRODUCT('RevReq_ExitCase_(2021)'!AD$143:AD$162,N('RevReq_ExitCase_(2021)'!$A$143:$A$162=$D10 ))/10^6-SUMPRODUCT(RevReq_BaseCase!AD$143:AD$162,N(RevReq_BaseCase!$A$143:$A$162=$D10 ))/10^6 -> -15.25056202 | W10: =SUMPRODUCT('RevReq_ExitCase_(2021)'!AE$143:AE$162,N('RevReq_ExitCase_(2021)'!$A$143:$A$162=$D10 ))/10^6-SUMPRODUCT(RevReq_BaseCase!AE$143:AE$162,N(RevReq_BaseCase!$A$143:$A$162=$D10 ))/10^6 -> -15.55557326 | X10: =SUMPRODUCT('RevReq_ExitCase_(2021)'!AF$143:AF$162,N('RevReq_ExitCase_(2021)'!$A$143:$A$162=$D10 ))/10^6-SUMPRODUCT(RevReq_BaseCase!AF$143:AF$162,N(RevReq_BaseCase!$A$143:$A$162=$D10 ))/10^6 -> -15.86668472 | Y10: =SUMPRODUCT('RevReq_ExitCase_(2021)'!AG$143:AG$162,N('RevReq_ExitCase_(2021)'!$A$143:$A$162=$D10 ))/10^6-SUMPRODUCT(RevReq_BaseCase!AG$143:AG$162,N(RevReq_BaseCase!$A$143:$A$162=$D10 ))/10^6 -> -16.18401842 | Z10: =SUMPRODUCT('RevReq_ExitCase_(2021)'!AH$143:AH$162,N('RevReq_ExitCase_(2021)'!$A$143:$A$162=$D10 ))/10^6-SUMPRODUCT(RevReq_BaseCase!AH$143:AH$162,N(RevReq_BaseCase!$A$143:$A$162=$D10 ))/10^6 -> -16.77687245 | AA10: =SUMPRODUCT('RevReq_ExitCase_(2021)'!AI$143:AI$162,N('RevReq_ExitCase_(2021)'!$A$143:$A$162=$D10 ))/10^6-SUMPRODUCT(RevReq_BaseCase!AI$143:AI$162,N(RevReq_BaseCase!$A$143:$A$162=$D10 ))/10^6 -> -17.1124099 | AB10: =SUMPRODUCT('RevReq_ExitCase_(2021)'!AJ$143:AJ$162,N('RevReq_ExitCase_(2021)'!$A$143:$A$162=$D10 ))/10^6-SUMPRODUCT(RevReq_BaseCase!AJ$143:AJ$162,N(RevReq_BaseCase!$A$143:$A$162=$D10 ))/10^6 -> -17.17460982 | AC10: =SUMPRODUCT('RevReq_ExitCase_(2021)'!AK$143:AK$162,N('RevReq_ExitCase_(2021)'!$A$143:$A$162=$D10 ))/10^6-SUMPRODUCT(RevReq_BaseCase!AK$143:AK$162,N(RevReq_BaseCase!$A$143:$A$162=$D10 ))/10^6 -> -17.51810201 | AD10: =SUMPRODUCT('RevReq_ExitCase_(2021)'!AL$143:AL$162,N('RevReq_ExitCase_(2021)'!$A$143:$A$162=$D10 ))/10^6-SUMPRODUCT(RevReq_BaseCase!AL$143:AL$162,N(RevReq_BaseCase!$A$143:$A$162=$D10 ))/10^6 -> -17.86846405 | AE10: =SUMPRODUCT('RevReq_ExitCase_(2021)'!AM$143:AM$162,N('RevReq_ExitCase_(2021)'!$A$143:$A$162=$D10 ))/10^6-SUMPRODUCT(RevReq_BaseCase!AM$143:AM$162,N(RevReq_BaseCase!$A$143:$A$162=$D10 ))/10^6 -> -18.22583334 | AF10: =SUMPRODUCT('RevReq_ExitCase_(2021)'!AN$143:AN$162,N('RevReq_ExitCase_(2021)'!$A$143:$A$162=$D10 ))/10^6-SUMPRODUCT(RevReq_BaseCase!AN$143:AN$162,N(RevReq_BaseCase!$A$143:$A$162=$D10 ))/10^6 -> -18.59035 | AG10: =SUMPRODUCT('RevReq_ExitCase_(2021)'!AO$143:AO$162,N('RevReq_ExitCase_(2021)'!$A$143:$A$162=$D10 ))/10^6-SUMPRODUCT(RevReq_BaseCase!AO$143:AO$162,N(RevReq_BaseCase!$A$143:$A$162=$D10 ))/10^6 -> -18.962157 | AH10: =SUMPRODUCT('RevReq_ExitCase_(2021)'!AP$143:AP$162,N('RevReq_ExitCase_(2021)'!$A$143:$A$162=$D10 ))/10^6-SUMPRODUCT(RevReq_BaseCase!AP$143:AP$162,N(RevReq_BaseCase!$A$143:$A$162=$D10 ))/10^6 -> -19.34140014 | AI10: =SUMPRODUCT('RevReq_ExitCase_(2021)'!AQ$143:AQ$162,N('RevReq_ExitCase_(2021)'!$A$143:$A$162=$D10 ))/10^6-SUMPRODUCT(RevReq_BaseCase!AQ$143:AQ$162,N(RevReq_BaseCase!$A$143:$A$162=$D10 ))/10^6 -> -19.72822815 | AJ10: =SUMPRODUCT('RevReq_ExitCase_(2021)'!AR$143:AR$162,N('RevReq_ExitCase_(2021)'!$A$143:$A$162=$D10 ))/10^6-SUMPRODUCT(RevReq_BaseCase!AR$143:AR$162,N(RevReq_BaseCase!$A$143:$A$162=$D10 ))/10^6 -> -20.45091391 | AK10: =SUMPRODUCT('RevReq_ExitCase_(2021)'!AS$143:AS$162,N('RevReq_ExitCase_(2021)'!$A$143:$A$162=$D10 ))/10^6-SUMPRODUCT(RevReq_BaseCase!AS$143:AS$162,N(RevReq_BaseCase!$A$143:$A$162=$D10 ))/10^6 -> -20.85993219 | AL10: =SUMPRODUCT('RevReq_ExitCase_(2021)'!AT$143:AT$162,N('RevReq_ExitCase_(2021)'!$A$143:$A$162=$D10 ))/10^6-SUMPRODUCT(RevReq_BaseCase!AT$143:AT$162,N(RevReq_BaseCase!$A$143:$A$162=$D10 ))/10^6 -> -20.93575353 | AM10: =SUMPRODUCT('RevReq_ExitCase_(2021)'!AU$143:AU$162,N('RevReq_ExitCase_(2021)'!$A$143:$A$162=$D10 ))/10^6-SUMPRODUCT(RevReq_BaseCase!AU$143:AU$162,N(RevReq_BaseCase!$A$143:$A$162=$D10 ))/10^6 -> -21.3544686 | AN10: =SUMPRODUCT('RevReq_ExitCase_(2021)'!AV$143:AV$162,N('RevReq_ExitCase_(2021)'!$A$143:$A$162=$D10 ))/10^6-SUMPRODUCT(RevReq_BaseCase!AV$143:AV$162,N(RevReq_BaseCase!$A$143:$A$162=$D10 ))/10^6 -> -21.78155798 | AO10: =SUMPRODUCT('RevReq_ExitCase_(2021)'!AW$143:AW$162,N('RevReq_ExitCase_(2021)'!$A$143:$A$162=$D10 ))/10^6-SUMPRODUCT(RevReq_BaseCase!AW$143:AW$162,N(RevReq_BaseCase!$A$143:$A$162=$D10 ))/10^6 -> -22.21718914 | AP10: =SUMPRODUCT('RevReq_ExitCase_(2021)'!AX$143:AX$162,N('RevReq_ExitCase_(2021)'!$A$143:$A$162=$D10 ))/10^6-SUMPRODUCT(RevReq_BaseCase!AX$143:AX$162,N(RevReq_BaseCase!$A$143:$A$162=$D10 ))/10^6 -> -22.66153292 | AQ10: =SUMPRODUCT('RevReq_ExitCase_(2021)'!AY$143:AY$162,N('RevReq_ExitCase_(2021)'!$A$143:$A$162=$D10 ))/10^6-SUMPRODUCT(RevReq_BaseCase!AY$143:AY$162,N(RevReq_BaseCase!$A$143:$A$162=$D10 ))/10^6 -> -23.11476358 | AS10: =SUM(W10:AQ10) -> -402.2808151
B11: Property Tax | D11: Base | E11: =SUM(I11:AQ11) -> -92.7330673 | G11: =SUMPRODUCT(I11:AQ11,$I$7:$AQ$7) -> -26.91070522 | I11: =SUMPRODUCT('RevReq_ExitCase_(2021)'!Q$767:Q$791,N('RevReq_ExitCase_(2021)'!$A$767:$A$791=$D11 ))/10^6-SUMPRODUCT(RevReq_BaseCase!Q$767:Q$791,N(RevReq_BaseCase!$A$767:$A$791=$D11 ))/10^6 -> 0 | J11: =SUMPRODUCT('RevReq_ExitCase_(2021)'!R$767:R$791,N('RevReq_ExitCase_(2021)'!$A$767:$A$791=$D11 ))/10^6-SUMPRODUCT(RevReq_BaseCase!R$767:R$791,N(RevReq_BaseCase!$A$767:$A$791=$D11 ))/10^6 -> -1.832959396 | K11: =SUMPRODUCT('RevReq_ExitCase_(2021)'!S$767:S$791,N('RevReq_ExitCase_(2021)'!$A$767:$A$791=$D11 ))/10^6-SUMPRODUCT(RevReq_BaseCase!S$767:S$791,N(RevReq_BaseCase!$A$767:$A$791=$D11 ))/10^6 -> -1.827268023 | L11: =SUMPRODUCT('RevReq_ExitCase_(2021)'!T$767:T$791,N('RevReq_ExitCase_(2021)'!$A$767:$A$791=$D11 ))/10^6-SUMPRODUCT(RevReq_BaseCase!T$767:T$791,N(RevReq_BaseCase!$A$767:$A$791=$D11 ))/10^6 -> -1.818371982 | M11: =SUMPRODUCT('RevReq_ExitCase_(2021)'!U$767:U$791,N('RevReq_ExitCase_(2021)'!$A$767:$A$791=$D11 ))/10^6-SUMPRODUCT(RevReq_BaseCase!U$767:U$791,N(RevReq_BaseCase!$A$767:$A$791=$D11 ))/10^6 -> -1.820411581 | N11: =SUMPRODUCT('RevReq_ExitCase_(2021)'!V$767:V$791,N('RevReq_ExitCase_(2021)'!$A$767:$A$791=$D11 ))/10^6-SUMPRODUCT(RevReq_BaseCase!V$767:V$791,N(RevReq_BaseCase!$A$767:$A$791=$D11 ))/10^6 -> -1.816975368 | O11: =SUMPRODUCT('RevReq_ExitCase_(2021)'!W$767:W$791,N('RevReq_ExitCase_(2021)'!$A$767:$A$791=$D11 ))/10^6-SUMPRODUCT(RevReq_BaseCase!W$767:W$791,N(RevReq_BaseCase!$A$767:$A$791=$D11 ))/10^6 -> -1.81230899 | P11: =SUMPRODUCT('RevReq_ExitCase_(2021)'!X$767:X$791,N('RevReq_ExitCase_(2021)'!$A$767:$A$791=$D11 ))/10^6-SUMPRODUCT(RevReq_BaseCase!X$767:X$791,N(RevReq_BaseCase!$A$767:$A$791=$D11 ))/10^6 -> -1.950234951 | Q11: =SUMPRODUCT('RevReq_ExitCase_(2021)'!Y$767:Y$791,N('RevReq_ExitCase_(2021)'!$A$767:$A$791=$D11 ))/10^6-SUMPRODUCT(RevReq_BaseCase!Y$767:Y$791,N(RevReq_BaseCase!$A$767:$A$791=$D11 ))/10^6 -> -1.974586581 | R11: =SUMPRODUCT('RevReq_ExitCase_(2021)'!Z$767:Z$791,N('RevReq_ExitCase_(2021)'!$A$767:$A$791=$D11 ))/10^6-SUMPRODUCT(RevReq_BaseCase!Z$767:Z$791,N(RevReq_BaseCase!$A$767:$A$791=$D11 ))/10^6 -> -2.090086044 | S11: =SUMPRODUCT('RevReq_ExitCase_(2021)'!AA$767:AA$791,N('RevReq_ExitCase_(2021)'!$A$767:$A$791=$D11 ))/10^6-SUMPRODUCT(RevReq_BaseCase!AA$767:AA$791,N(RevReq_BaseCase!$A$767:$A$791=$D11 ))/10^6 -> -2.205881351 | T11: =SUMPRODUCT('RevReq_ExitCase_(2021)'!AB$767:AB$791,N('RevReq_ExitCase_(2021)'!$A$767:$A$791=$D11 ))/10^6-SUMPRODUCT(RevReq_BaseCase!AB$767:AB$791,N(RevReq_BaseCase!$A$767:$A$791=$D11 ))/10^6 -> -2.243581264 | U11: =SUMPRODUCT('RevReq_ExitCase_(2021)'!AC$767:AC$791,N('RevReq_ExitCase_(2021)'!$A$767:$A$791=$D11 ))/10^6-SUMPRODUCT(RevReq_BaseCase!AC$767:AC$791,N(RevReq_BaseCase!$A$767:$A$791=$D11 ))/10^6 -> -2.318306811 | V11: =SUMPRODUCT('RevReq_ExitCase_(2021)'!AD$767:AD$791,N('RevReq_ExitCase_(2021)'!$A$767:$A$791=$D11 ))/10^6-SUMPRODUCT(RevReq_BaseCase!AD$767:AD$791,N(RevReq_BaseCase!$A$767:$A$791=$D11 ))/10^6 -> -2.365073064 | W11: =SUMPRODUCT('RevReq_ExitCase_(2021)'!AE$767:AE$791,N('RevReq_ExitCase_(2021)'!$A$767:$A$791=$D11 ))/10^6-SUMPRODUCT(RevReq_BaseCase!AE$767:AE$791,N(RevReq_BaseCase!$A$767:$A$791=$D11 ))/10^6 -> -2.452073839 | X11: =SUMPRODUCT('RevReq_ExitCase_(2021)'!AF$767:AF$791,N('RevReq_ExitCase_(2021)'!$A$767:$A$791=$D11 ))/10^6-SUMPRODUCT(RevReq_BaseCase!AF$767:AF$791,N(RevReq_BaseCase!$A$767:$A$791=$D11 ))/10^6 -> -2.513858144 | Y11: =SUMPRODUCT('RevReq_ExitCase_(2021)'!AG$767:AG$791,N('RevReq_ExitCase_(2021)'!$A$767:$A$791=$D11 ))/10^6-SUMPRODUCT(RevReq_BaseCase!AG$767:AG$791,N(RevReq_BaseCase!$A$767:$A$791=$D11 ))/10^6 -> -2.600206484 | Z11: =SUMPRODUCT('RevReq_ExitCase_(2021)'!AH$767:AH$791,N('RevReq_ExitCase_(2021)'!$A$767:$A$791=$D11 ))/10^6-SUMPRODUCT(RevReq_BaseCase!AH$767:AH$791,N(RevReq_BaseCase!$A$767:$A$791=$D11 ))/10^6 -> -2.736796541 | AA11: =SUMPRODUCT('RevReq_ExitCase_(2021)'!AI$767:AI$791,N('RevReq_ExitCase_(2021)'!$A$767:$A$791=$D11 ))/10^6-SUMPRODUCT(RevReq_BaseCase!AI$767:AI$791,N(RevReq_BaseCase!$A$767:$A$791=$D11 ))/10^6 -> -2.839747903 | AB11: =SUMPRODUCT('RevReq_ExitCase_(2021)'!AJ$767:AJ$791,N('RevReq_ExitCase_(2021)'!$A$767:$A$791=$D11 ))/10^6-SUMPRODUCT(RevReq_BaseCase!AJ$767:AJ$791,N(RevReq_BaseCase!$A$767:$A$791=$D11 ))/10^6 -> -2.882402896 | AC11: =SUMPRODUCT('RevReq_ExitCase_(2021)'!AK$767:AK$791,N('RevReq_ExitCase_(2021)'!$A$767:$A$791=$D11 ))/10^6-SUMPRODUCT(RevReq_BaseCase!AK$767:AK$791,N(RevReq_BaseCase!$A$767:$A$791=$D11 ))/10^6 -> -2.948243577 | AD11: =SUMPRODUCT('RevReq_ExitCase_(2021)'!AL$767:AL$791,N('RevReq_ExitCase_(2021)'!$A$767:$A$791=$D11 ))/10^6-SUMPRODUCT(RevReq_BaseCase!AL$767:AL$791,N(RevReq_BaseCase!$A$767:$A$791=$D11 ))/10^6 -> -2.997654011 | AE11: =SUMPRODUCT('RevReq_ExitCase_(2021)'!AM$767:AM$791,N('RevReq_ExitCase_(2021)'!$A$767:$A$791=$D11 ))/10^6-SUMPRODUCT(RevReq_BaseCase!AM$767:AM$791,N(RevReq_BaseCase!$A$767:$A$791=$D11 ))/10^6 -> -3.083794948 | AF11: =SUMPRODUCT('RevReq_ExitCase_(2021)'!AN$767:AN$791,N('RevReq_ExitCase_(2021)'!$A$767:$A$791=$D11 ))/10^6-SUMPRODUCT(RevReq_BaseCase!AN$767:AN$791,N(RevReq_BaseCase!$A$767:$A$791=$D11 ))/10^6 -> -3.177072912 | AG11: =SUMPRODUCT('RevReq_ExitCase_(2021)'!AO$767:AO$791,N('RevReq_ExitCase_(2021)'!$A$767:$A$791=$D11 ))/10^6-SUMPRODUCT(RevReq_BaseCase!AO$767:AO$791,N(RevReq_BaseCase!$A$767:$A$791=$D11 ))/10^6 -> -3.277639598 | AH11: =SUMPRODUCT('RevReq_ExitCase_(2021)'!AP$767:AP$791,N('RevReq_ExitCase_(2021)'!$A$767:$A$791=$D11 ))/10^6-SUMPRODUCT(RevReq_BaseCase!AP$767:AP$791,N(RevReq_BaseCase!$A$767:$A$791=$D11 ))/10^6 -> -3.363245249 | AI11: =SUMPRODUCT('RevReq_ExitCase_(2021)'!AQ$767:AQ$791,N('RevReq_ExitCase_(2021)'!$A$767:$A$791=$D11 ))/10^6-SUMPRODUCT(RevReq_BaseCase!AQ$767:AQ$791,N(RevReq_BaseCase!$A$767:$A$791=$D11 ))/10^6 -> -3.403980911 | AJ11: =SUMPRODUCT('RevReq_ExitCase_(2021)'!AR$767:AR$791,N('RevReq_ExitCase_(2021)'!$A$767:$A$791=$D11 ))/10^6-SUMPRODUCT(RevReq_BaseCase!AR$767:AR$791,N(RevReq_BaseCase!$A$767:$A$791=$D11 ))/10^6 -> -3.506536819 | AK11: =SUMPRODUCT('RevReq_ExitCase_(2021)'!AS$767:AS$791,N('RevReq_ExitCase_(2021)'!$A$767:$A$791=$D11 ))/10^6-SUMPRODUCT(RevReq_BaseCase!AS$767:AS$791,N(RevReq_BaseCase!$A$767:$A$791=$D11 ))/10^6 -> -3.519210749 | AL11: =SUMPRODUCT('RevReq_ExitCase_(2021)'!AT$767:AT$791,N('RevReq_ExitCase_(2021)'!$A$767:$A$791=$D11 ))/10^6-SUMPRODUCT(RevReq_BaseCase!AT$767:AT$791,N(RevReq_BaseCase!$A$767:$A$791=$D11 ))/10^6 -> -3.545917418 | AM11: =SUMPRODUCT('RevReq_ExitCase_(2021)'!AU$767:AU$791,N('RevReq_ExitCase_(2021)'!$A$767:$A$791=$D11 ))/10^6-SUMPRODUCT(RevReq_BaseCase!AU$767:AU$791,N(RevReq_BaseCase!$A$767:$A$791=$D11 ))/10^6 -> -3.556709971 | AN11: =SUMPRODUCT('RevReq_ExitCase_(2021)'!AV$767:AV$791,N('RevReq_ExitCase_(2021)'!$A$767:$A$791=$D11 ))/10^6-SUMPRODUCT(RevReq_BaseCase!AV$767:AV$791,N(RevReq_BaseCase!$A$767:$A$791=$D11 ))/10^6 -> -3.558709259 | AO11: =SUMPRODUCT('RevReq_ExitCase_(2021)'!AW$767:AW$791,N('RevReq_ExitCase_(2021)'!$A$767:$A$791=$D11 ))/10^6-SUMPRODUCT(RevReq_BaseCase!AW$767:AW$791,N(RevReq_BaseCase!$A$767:$A$791=$D11 ))/10^6 -> -3.565404898 | AP11: =SUMPRODUCT('RevReq_ExitCase_(2021)'!AX$767:AX$791,N('RevReq_ExitCase_(2021)'!$A$767:$A$791=$D11 ))/10^6-SUMPRODUCT(RevReq_BaseCase!AX$767:AX$791,N(RevReq_BaseCase!$A$767:$A$791=$D11 ))/10^6 -> -3.563030315 | AQ11: =SUMPRODUCT('RevReq_ExitCase_(2021)'!AY$767:AY$791,N('RevReq_ExitCase_(2021)'!$A$767:$A$791=$D11 ))/10^6-SUMPRODUCT(RevReq_BaseCase!AY$767:AY$791,N(RevReq_BaseCase!$A$767:$A$791=$D11 ))/10^6 -> -3.564785452 | AS11: =SUM(W11:AQ11) -> -66.65702189
B12: System Impact(3) | D12: Base | E12: 677.1175168 | G12: =SUMPRODUCT(I12:AQ12,$I$7:$AQ$7) -> 120.7708945 | I12: =SUMPRODUCT('RevReq_ExitCase_(2021)'!Q$163:Q$167,N('RevReq_ExitCase_(2021)'!$A$163:$A$167=$D12 ))/10^6-SUMPRODUCT(RevReq_BaseCase!Q$163:Q$167,N(RevReq_BaseCase!$A$163:$A$167=$D12 ))/10^6 -> 0 | J12: =SUMPRODUCT('RevReq_ExitCase_(2021)'!R$163:R$167,N('RevReq_ExitCase_(2021)'!$A$163:$A$167=$D12 ))/10^6-SUMPRODUCT(RevReq_BaseCase!R$163:R$167,N(RevReq_BaseCase!$A$163:$A$167=$D12 ))/10^6 -> 0 | K12: =SUMPRODUCT('RevReq_ExitCase_(2021)'!S$163:S$167,N('RevReq_ExitCase_(2021)'!$A$163:$A$167=$D12 ))/10^6-SUMPRODUCT(RevReq_BaseCase!S$163:S$167,N(RevReq_BaseCase!$A$163:$A$167=$D12 ))/10^6 -> 0 | L12: =SUMPRODUCT('RevReq_ExitCase_(2021)'!T$163:T$167,N('RevReq_ExitCase_(2021)'!$A$163:$A$167=$D12 ))/10^6-SUMPRODUCT(RevReq_BaseCase!T$163:T$167,N(RevReq_BaseCase!$A$163:$A$167=$D12 ))/10^6 -> 0 | M12: =SUMPRODUCT('RevReq_ExitCase_(2021)'!U$163:U$167,N('RevReq_ExitCase_(2021)'!$A$163:$A$167=$D12 ))/10^6-SUMPRODUCT(RevReq_BaseCase!U$163:U$167,N(RevReq_BaseCase!$A$163:$A$167=$D12 ))/10^6 -> 0 | N12: =SUMPRODUCT('RevReq_ExitCase_(2021)'!V$163:V$167,N('RevReq_ExitCase_(2021)'!$A$163:$A$167=$D12 ))/10^6-SUMPRODUCT(RevReq_BaseCase!V$163:V$167,N(RevReq_BaseCase!$A$163:$A$167=$D12 ))/10^6 -> 0 | O12: =SUMPRODUCT('RevReq_ExitCase_(2021)'!W$163:W$167,N('RevReq_ExitCase_(2021)'!$A$163:$A$167=$D12 ))/10^6-SUMPRODUCT(RevReq_BaseCase!W$163:W$167,N(RevReq_BaseCase!$A$163:$A$167=$D12 ))/10^6 -> 0 | P12: =SUMPRODUCT('RevReq_ExitCase_(2021)'!X$163:X$167,N('RevReq_ExitCase_(2021)'!$A$163:$A$167=$D12 ))/10^6-SUMPRODUCT(RevReq_BaseCase!X$163:X$167,N(RevReq_BaseCase!$A$163:$A$167=$D12 ))/10^6 -> 0 | Q12: =SUMPRODUCT('RevReq_ExitCase_(2021)'!Y$163:Y$167,N('RevReq_ExitCase_(2021)'!$A$163:$A$167=$D12 ))/10^6-SUMPRODUCT(RevReq_BaseCase!Y$163:Y$167,N(RevReq_BaseCase!$A$163:$A$167=$D12 ))/10^6 -> 0 | R12: =SUMPRODUCT('RevReq_ExitCase_(2021)'!Z$163:Z$167,N('RevReq_ExitCase_(2021)'!$A$163:$A$167=$D12 ))/10^6-SUMPRODUCT(RevReq_BaseCase!Z$163:Z$167,N(RevReq_BaseCase!$A$163:$A$167=$D12 ))/10^6 -> 0 | S12: =SUMPRODUCT('RevReq_ExitCase_(2021)'!AA$163:AA$167,N('RevReq_ExitCase_(2021)'!$A$163:$A$167=$D12 ))/10^6-SUMPRODUCT(RevReq_BaseCase!AA$163:AA$167,N(RevReq_BaseCase!$A$163:$A$167=$D12 ))/10^6 -> 0 | T12: =SUMPRODUCT('RevReq_ExitCase_(2021)'!AB$163:AB$167,N('RevReq_ExitCase_(2021)'!$A$163:$A$167=$D12 ))/10^6-SUMPRODUCT(RevReq_BaseCase!AB$163:AB$167,N(RevReq_BaseCase!$A$163:$A$167=$D12 ))/10^6 -> 0 | U12: =SUMPRODUCT('RevReq_ExitCase_(2021)'!AC$163:AC$167,N('RevReq_ExitCase_(2021)'!$A$163:$A$167=$D12 ))/10^6-SUMPRODUCT(RevReq_BaseCase!AC$163:AC$167,N(RevReq_BaseCase!$A$163:$A$167=$D12 ))/10^6 -> 0 | V12: =SUMPRODUCT('RevReq_ExitCase_(2021)'!AD$163:AD$167,N('RevReq_ExitCase_(2021)'!$A$163:$A$167=$D12 ))/10^6-SUMPRODUCT(RevReq_BaseCase!AD$163:AD$167,N(RevReq_BaseCase!$A$163:$A$167=$D12 ))/10^6 -> 0 | W12: =SUMPRODUCT('RevReq_ExitCase_(2021)'!AE$163:AE$167,N('RevReq_ExitCase_(2021)'!$A$163:$A$167=$D12 ))/10^6-SUMPRODUCT(RevReq_BaseCase!AE$163:AE$167,N(RevReq_BaseCase!$A$163:$A$167=$D12 ))/10^6 -> 0 | X12: =SUMPRODUCT('RevReq_ExitCase_(2021)'!AF$163:AF$167,N('RevReq_ExitCase_(2021)'!$A$163:$A$167=$D12 ))/10^6-SUMPRODUCT(RevReq_BaseCase!AF$163:AF$167,N(RevReq_BaseCase!$A$163:$A$167=$D12 ))/10^6 -> 25.80758385 | Y12: =SUMPRODUCT('RevReq_ExitCase_(2021)'!AG$163:AG$167,N('RevReq_ExitCase_(2021)'!$A$163:$A$167=$D12 ))/10^6-SUMPRODUCT(RevReq_BaseCase!AG$163:AG$167,N(RevReq_BaseCase!$A$163:$A$167=$D12 ))/10^6 -> 38.81265911 | Z12: =SUMPRODUCT('RevReq_ExitCase_(2021)'!AH$163:AH$167,N('RevReq_ExitCase_(2021)'!$A$163:$A$167=$D12 ))/10^6-SUMPRODUCT(RevReq_BaseCase!AH$163:AH$167,N(RevReq_BaseCase!$A$163:$A$167=$D12 ))/10^6 -> 37.50875464 | AA12: =SUMPRODUCT('RevReq_ExitCase_(2021)'!AI$163:AI$167,N('RevReq_ExitCase_(2021)'!$A$163:$A$167=$D12 ))/10^6-SUMPRODUCT(RevReq_BaseCase!AI$163:AI$167,N(RevReq_BaseCase!$A$163:$A$167=$D12 ))/10^6 -> 38.16385566 | AB12: =SUMPRODUCT('RevReq_ExitCase_(2021)'!AJ$163:AJ$167,N('RevReq_ExitCase_(2021)'!$A$163:$A$167=$D12 ))/10^6-SUMPRODUCT(RevReq_BaseCase!AJ$163:AJ$167,N(RevReq_BaseCase!$A$163:$A$167=$D12 ))/10^6 -> 36.38904064 | AC12: =SUMPRODUCT('RevReq_ExitCase_(2021)'!AK$163:AK$167,N('RevReq_ExitCase_(2021)'!$A$163:$A$167=$D12 ))/10^6-SUMPRODUCT(RevReq_BaseCase!AK$163:AK$167,N(RevReq_BaseCase!$A$163:$A$167=$D12 ))/10^6 -> 36.21793377 | AD12: =SUMPRODUCT('RevReq_ExitCase_(2021)'!AL$163:AL$167,N('RevReq_ExitCase_(2021)'!$A$163:$A$167=$D12 ))/10^6-SUMPRODUCT(RevReq_BaseCase!AL$163:AL$167,N(RevReq_BaseCase!$A$163:$A$167=$D12 ))/10^6 -> 35.44489899 | AE12: =SUMPRODUCT('RevReq_ExitCase_(2021)'!AM$163:AM$167,N('RevReq_ExitCase_(2021)'!$A$163:$A$167=$D12 ))/10^6-SUMPRODUCT(RevReq_BaseCase!AM$163:AM$167,N(RevReq_BaseCase!$A$163:$A$167=$D12 ))/10^6 -> 35.41990784 | AF12: =SUMPRODUCT('RevReq_ExitCase_(2021)'!AN$163:AN$167,N('RevReq_ExitCase_(2021)'!$A$163:$A$167=$D12 ))/10^6-SUMPRODUCT(RevReq_BaseCase!AN$163:AN$167,N(RevReq_BaseCase!$A$163:$A$167=$D12 ))/10^6 -> 33.72084459 | AG12: =SUMPRODUCT('RevReq_ExitCase_(2021)'!AO$163:AO$167,N('RevReq_ExitCase_(2021)'!$A$163:$A$167=$D12 ))/10^6-SUMPRODUCT(RevReq_BaseCase!AO$163:AO$167,N(RevReq_BaseCase!$A$163:$A$167=$D12 ))/10^6 -> 35.25561783 | AH12: =SUMPRODUCT('RevReq_ExitCase_(2021)'!AP$163:AP$167,N('RevReq_ExitCase_(2021)'!$A$163:$A$167=$D12 ))/10^6-SUMPRODUCT(RevReq_BaseCase!AP$163:AP$167,N(RevReq_BaseCase!$A$163:$A$167=$D12 ))/10^6 -> 34.87988082 | AI12: =SUMPRODUCT('RevReq_ExitCase_(2021)'!AQ$163:AQ$167,N('RevReq_ExitCase_(2021)'!$A$163:$A$167=$D12 ))/10^6-SUMPRODUCT(RevReq_BaseCase!AQ$163:AQ$167,N(RevReq_BaseCase!$A$163:$A$167=$D12 ))/10^6 -> 35.64925309 | AJ12: =SUMPRODUCT('RevReq_ExitCase_(2021)'!AR$163:AR$167,N('RevReq_ExitCase_(2021)'!$A$163:$A$167=$D12 ))/10^6-SUMPRODUCT(RevReq_BaseCase!AR$163:AR$167,N(RevReq_BaseCase!$A$163:$A$167=$D12 ))/10^6 -> 32.58104002 | AK12: =SUMPRODUCT('RevReq_ExitCase_(2021)'!AS$163:AS$167,N('RevReq_ExitCase_(2021)'!$A$163:$A$167=$D12 ))/10^6-SUMPRODUCT(RevReq_BaseCase!AS$163:AS$167,N(RevReq_BaseCase!$A$163:$A$167=$D12 ))/10^6 -> 33.08703757 | AL12: =SUMPRODUCT('RevReq_ExitCase_(2021)'!AT$163:AT$167,N('RevReq_ExitCase_(2021)'!$A$163:$A$167=$D12 ))/10^6-SUMPRODUCT(RevReq_BaseCase!AT$163:AT$167,N(RevReq_BaseCase!$A$163:$A$167=$D12 ))/10^6 -> 31.3632014 | AM12: =SUMPRODUCT('RevReq_ExitCase_(2021)'!AU$163:AU$167,N('RevReq_ExitCase_(2021)'!$A$163:$A$167=$D12 ))/10^6-SUMPRODUCT(RevReq_BaseCase!AU$163:AU$167,N(RevReq_BaseCase!$A$163:$A$167=$D12 ))/10^6 -> 31.3632014 | AN12: =SUMPRODUCT('RevReq_ExitCase_(2021)'!AV$163:AV$167,N('RevReq_ExitCase_(2021)'!$A$163:$A$167=$D12 ))/10^6-SUMPRODUCT(RevReq_BaseCase!AV$163:AV$167,N(RevReq_BaseCase!$A$163:$A$167=$D12 ))/10^6 -> 31.3632014 | AO12: =SUMPRODUCT('RevReq_ExitCase_(2021)'!AW$163:AW$167,N('RevReq_ExitCase_(2021)'!$A$163:$A$167=$D12 ))/10^6-SUMPRODUCT(RevReq_BaseCase!AW$163:AW$167,N(RevReq_BaseCase!$A$163:$A$167=$D12 ))/10^6 -> 31.3632014 | AP12: =SUMPRODUCT('RevReq_ExitCase_(2021)'!AX$163:AX$167,N('RevReq_ExitCase_(2021)'!$A$163:$A$167=$D12 ))/10^6-SUMPRODUCT(RevReq_BaseCase!AX$163:AX$167,N(RevReq_BaseCase!$A$163:$A$167=$D12 ))/10^6 -> 31.3632014 | AQ12: =SUMPRODUCT('RevReq_ExitCase_(2021)'!AY$163:AY$167,N('RevReq_ExitCase_(2021)'!$A$163:$A$167=$D12 ))/10^6-SUMPRODUCT(RevReq_BaseCase!AY$163:AY$167,N(RevReq_BaseCase!$A$163:$A$167=$D12 ))/10^6 -> 31.3632014 | AS12: =SUM(W12:AQ12) -> 677.1175168
B13: Depreciation and Amortization(4) | D13: Base | E13: =SUM(I13:AQ13) -> -102.7601925 | G13: =SUMPRODUCT(I13:AQ13,$I$7:$AQ$7) -> -11.63854327 | I13: =SUMPRODUCT('RevReq_ExitCase_(2021)'!Q$232:Q$256,N('RevReq_ExitCase_(2021)'!$A$232:$A$256=$D13 ))/10^6-SUMPRODUCT(RevReq_BaseCase!Q$232:Q$256,N(RevReq_BaseCase!$A$232:$A$256=$D13 ))/10^6 -> -7.666476028 | J13: =SUMPRODUCT('RevReq_ExitCase_(2021)'!R$232:R$256,N('RevReq_ExitCase_(2021)'!$A$232:$A$256=$D13 ))/10^6-SUMPRODUCT(RevReq_BaseCase!R$232:R$256,N(RevReq_BaseCase!$A$232:$A$256=$D13 ))/10^6 -> -7.699797162 | K13: =SUMPRODUCT('RevReq_ExitCase_(2021)'!S$232:S$256,N('RevReq_ExitCase_(2021)'!$A$232:$A$256=$D13 ))/10^6-SUMPRODUCT(RevReq_BaseCase!S$232:S$256,N(RevReq_BaseCase!$A$232:$A$256=$D13 ))/10^6 -> -7.748389702 | L13: =SUMPRODUCT('RevReq_ExitCase_(2021)'!T$232:T$256,N('RevReq_ExitCase_(2021)'!$A$232:$A$256=$D13 ))/10^6-SUMPRODUCT(RevReq_BaseCase!T$232:T$256,N(RevReq_BaseCase!$A$232:$A$256=$D13 ))/10^6 -> 7.030941983 | M13: =SUMPRODUCT('RevReq_ExitCase_(2021)'!U$232:U$256,N('RevReq_ExitCase_(2021)'!$A$232:$A$256=$D13 ))/10^6-SUMPRODUCT(RevReq_BaseCase!U$232:U$256,N(RevReq_BaseCase!$A$232:$A$256=$D13 ))/10^6 -> 6.965385252 | N13: =SUMPRODUCT('RevReq_ExitCase_(2021)'!V$232:V$256,N('RevReq_ExitCase_(2021)'!$A$232:$A$256=$D13 ))/10^6-SUMPRODUCT(RevReq_BaseCase!V$232:V$256,N(RevReq_BaseCase!$A$232:$A$256=$D13 ))/10^6 -> 6.896830918 | O13: =SUMPRODUCT('RevReq_ExitCase_(2021)'!W$232:W$256,N('RevReq_ExitCase_(2021)'!$A$232:$A$256=$D13 ))/10^6-SUMPRODUCT(RevReq_BaseCase!W$232:W$256,N(RevReq_BaseCase!$A$232:$A$256=$D13 ))/10^6 -> 6.827699559 | P13: =SUMPRODUCT('RevReq_ExitCase_(2021)'!X$232:X$256,N('RevReq_ExitCase_(2021)'!$A$232:$A$256=$D13 ))/10^6-SUMPRODUCT(RevReq_BaseCase!X$232:X$256,N(RevReq_BaseCase!$A$232:$A$256=$D13 ))/10^6 -> 6.675183163 | Q13: =SUMPRODUCT('RevReq_ExitCase_(2021)'!Y$232:Y$256,N('RevReq_ExitCase_(2021)'!$A$232:$A$256=$D13 ))/10^6-SUMPRODUCT(RevReq_BaseCase!Y$232:Y$256,N(RevReq_BaseCase!$A$232:$A$256=$D13 ))/10^6 -> 6.511164366 | R13: =SUMPRODUCT('RevReq_ExitCase_(2021)'!Z$232:Z$256,N('RevReq_ExitCase_(2021)'!$A$232:$A$256=$D13 ))/10^6-SUMPRODUCT(RevReq_BaseCase!Z$232:Z$256,N(RevReq_BaseCase!$A$232:$A$256=$D13 ))/10^6 -> 6.379818421 | S13: =SUMPRODUCT('RevReq_ExitCase_(2021)'!AA$232:AA$256,N('RevReq_ExitCase_(2021)'!$A$232:$A$256=$D13 ))/10^6-SUMPRODUCT(RevReq_BaseCase!AA$232:AA$256,N(RevReq_BaseCase!$A$232:$A$256=$D13 ))/10^6 -> 6.166320477 | T13: =SUMPRODUCT('RevReq_ExitCase_(2021)'!AB$232:AB$256,N('RevReq_ExitCase_(2021)'!$A$232:$A$256=$D13 ))/10^6-SUMPRODUCT(RevReq_BaseCase!AB$232:AB$256,N(RevReq_BaseCase!$A$232:$A$256=$D13 ))/10^6 -> 6.023921525 | U13: =SUMPRODUCT('RevReq_ExitCase_(2021)'!AC$232:AC$256,N('RevReq_ExitCase_(2021)'!$A$232:$A$256=$D13 ))/10^6-SUMPRODUCT(RevReq_BaseCase!AC$232:AC$256,N(RevReq_BaseCase!$A$232:$A$256=$D13 ))/10^6 -> 5.87394474 | V13: =SUMPRODUCT('RevReq_ExitCase_(2021)'!AD$232:AD$256,N('RevReq_ExitCase_(2021)'!$A$232:$A$256=$D13 ))/10^6-SUMPRODUCT(RevReq_BaseCase!AD$232:AD$256,N(RevReq_BaseCase!$A$232:$A$256=$D13 ))/10^6 -> -9.113789071 | W13: =SUMPRODUCT('RevReq_ExitCase_(2021)'!AE$232:AE$256,N('RevReq_ExitCase_(2021)'!$A$232:$A$256=$D13 ))/10^6-SUMPRODUCT(RevReq_BaseCase!AE$232:AE$256,N(RevReq_BaseCase!$A$232:$A$256=$D13 ))/10^6 -> -7.830875294 | X13: =SUMPRODUCT('RevReq_ExitCase_(2021)'!AF$232:AF$256,N('RevReq_ExitCase_(2021)'!$A$232:$A$256=$D13 ))/10^6-SUMPRODUCT(RevReq_BaseCase!AF$232:AF$256,N(RevReq_BaseCase!$A$232:$A$256=$D13 ))/10^6 -> -7.762372595 | Y13: =SUMPRODUCT('RevReq_ExitCase_(2021)'!AG$232:AG$256,N('RevReq_ExitCase_(2021)'!$A$232:$A$256=$D13 ))/10^6-SUMPRODUCT(RevReq_BaseCase!AG$232:AG$256,N(RevReq_BaseCase!$A$232:$A$256=$D13 ))/10^6 -> -7.846850387 | Z13: =SUMPRODUCT('RevReq_ExitCase_(2021)'!AH$232:AH$256,N('RevReq_ExitCase_(2021)'!$A$232:$A$256=$D13 ))/10^6-SUMPRODUCT(RevReq_BaseCase!AH$232:AH$256,N(RevReq_BaseCase!$A$232:$A$256=$D13 ))/10^6 -> -6.791208138 | AA13: =SUMPRODUCT('RevReq_ExitCase_(2021)'!AI$232:AI$256,N('RevReq_ExitCase_(2021)'!$A$232:$A$256=$D13 ))/10^6-SUMPRODUCT(RevReq_BaseCase!AI$232:AI$256,N(RevReq_BaseCase!$A$232:$A$256=$D13 ))/10^6 -> -6.637905737 | AB13: =SUMPRODUCT('RevReq_ExitCase_(2021)'!AJ$232:AJ$256,N('RevReq_ExitCase_(2021)'!$A$232:$A$256=$D13 ))/10^6-SUMPRODUCT(RevReq_BaseCase!AJ$232:AJ$256,N(RevReq_BaseCase!$A$232:$A$256=$D13 ))/10^6 -> -6.069367432 | AC13: =SUMPRODUCT('RevReq_ExitCase_(2021)'!AK$232:AK$256,N('RevReq_ExitCase_(2021)'!$A$232:$A$256=$D13 ))/10^6-SUMPRODUCT(RevReq_BaseCase!AK$232:AK$256,N(RevReq_BaseCase!$A$232:$A$256=$D13 ))/10^6 -> -5.816425375 | AD13: =SUMPRODUCT('RevReq_ExitCase_(2021)'!AL$232:AL$256,N('RevReq_ExitCase_(2021)'!$A$232:$A$256=$D13 ))/10^6-SUMPRODUCT(RevReq_BaseCase!AL$232:AL$256,N(RevReq_BaseCase!$A$232:$A$256=$D13 ))/10^6 -> -5.484717761 | AE13: =SUMPRODUCT('RevReq_ExitCase_(2021)'!AM$232:AM$256,N('RevReq_ExitCase_(2021)'!$A$232:$A$256=$D13 ))/10^6-SUMPRODUCT(RevReq_BaseCase!AM$232:AM$256,N(RevReq_BaseCase!$A$232:$A$256=$D13 ))/10^6 -> -5.273122417 | AF13: =SUMPRODUCT('RevReq_ExitCase_(2021)'!AN$232:AN$256,N('RevReq_ExitCase_(2021)'!$A$232:$A$256=$D13 ))/10^6-SUMPRODUCT(RevReq_BaseCase!AN$232:AN$256,N(RevReq_BaseCase!$A$232:$A$256=$D13 ))/10^6 -> -5.384614178 | AG13: =SUMPRODUCT('RevReq_ExitCase_(2021)'!AO$232:AO$256,N('RevReq_ExitCase_(2021)'!$A$232:$A$256=$D13 ))/10^6-SUMPRODUCT(RevReq_BaseCase!AO$232:AO$256,N(RevReq_BaseCase!$A$232:$A$256=$D13 ))/10^6 -> -5.462244346 | AH13: =SUMPRODUCT('RevReq_ExitCase_(2021)'!AP$232:AP$256,N('RevReq_ExitCase_(2021)'!$A$232:$A$256=$D13 ))/10^6-SUMPRODUCT(RevReq_BaseCase!AP$232:AP$256,N(RevReq_BaseCase!$A$232:$A$256=$D13 ))/10^6 -> -5.578321352 | AI13: =SUMPRODUCT('RevReq_ExitCase_(2021)'!AQ$232:AQ$256,N('RevReq_ExitCase_(2021)'!$A$232:$A$256=$D13 ))/10^6-SUMPRODUCT(RevReq_BaseCase!AQ$232:AQ$256,N(RevReq_BaseCase!$A$232:$A$256=$D13 ))/10^6 -> -5.618579741 | AJ13: =SUMPRODUCT('RevReq_ExitCase_(2021)'!AR$232:AR$256,N('RevReq_ExitCase_(2021)'!$A$232:$A$256=$D13 ))/10^6-SUMPRODUCT(RevReq_BaseCase!AR$232:AR$256,N(RevReq_BaseCase!$A$232:$A$256=$D13 ))/10^6 -> -5.673465501 | AK13: =SUMPRODUCT('RevReq_ExitCase_(2021)'!AS$232:AS$256,N('RevReq_ExitCase_(2021)'!$A$232:$A$256=$D13 ))/10^6-SUMPRODUCT(RevReq_BaseCase!AS$232:AS$256,N(RevReq_BaseCase!$A$232:$A$256=$D13 ))/10^6 -> -5.770825899 | AL13: =SUMPRODUCT('RevReq_ExitCase_(2021)'!AT$232:AT$256,N('RevReq_ExitCase_(2021)'!$A$232:$A$256=$D13 ))/10^6-SUMPRODUCT(RevReq_BaseCase!AT$232:AT$256,N(RevReq_BaseCase!$A$232:$A$256=$D13 ))/10^6 -> -5.716205538 | AM13: =SUMPRODUCT('RevReq_ExitCase_(2021)'!AU$232:AU$256,N('RevReq_ExitCase_(2021)'!$A$232:$A$256=$D13 ))/10^6-SUMPRODUCT(RevReq_BaseCase!AU$232:AU$256,N(RevReq_BaseCase!$A$232:$A$256=$D13 ))/10^6 -> -5.767433785 | AN13: =SUMPRODUCT('RevReq_ExitCase_(2021)'!AV$232:AV$256,N('RevReq_ExitCase_(2021)'!$A$232:$A$256=$D13 ))/10^6-SUMPRODUCT(RevReq_BaseCase!AV$232:AV$256,N(RevReq_BaseCase!$A$232:$A$256=$D13 ))/10^6 -> -5.760775395 | AO13: =SUMPRODUCT('RevReq_ExitCase_(2021)'!AW$232:AW$256,N('RevReq_ExitCase_(2021)'!$A$232:$A$256=$D13 ))/10^6-SUMPRODUCT(RevReq_BaseCase!AW$232:AW$256,N(RevReq_BaseCase!$A$232:$A$256=$D13 ))/10^6 -> -5.787490289 | AP13: =SUMPRODUCT('RevReq_ExitCase_(2021)'!AX$232:AX$256,N('RevReq_ExitCase_(2021)'!$A$232:$A$256=$D13 ))/10^6-SUMPRODUCT(RevReq_BaseCase!AX$232:AX$256,N(RevReq_BaseCase!$A$232:$A$256=$D13 ))/10^6 -> -5.79455058 | AQ13: =SUMPRODUCT('RevReq_ExitCase_(2021)'!AY$232:AY$256,N('RevReq_ExitCase_(2021)'!$A$232:$A$256=$D13 ))/10^6-SUMPRODUCT(RevReq_BaseCase!AY$232:AY$256,N(RevReq_BaseCase!$A$232:$A$256=$D13 ))/10^6 -> -14.05559922 | AS13: =SUM(W13:AQ13) -> -135.882951
B14: Interest Expense(5) | D14: Base | E14: =SUM(I14:AQ14) -> -37.81552923 | G14: =SUMPRODUCT(I14:AQ14,$I$7:$AQ$7) -> -7.962582798 | I14: =SUMPRODUCT('RevReq_ExitCase_(2021)'!Q$409:Q$433,N('RevReq_ExitCase_(2021)'!$A$409:$A$433=$D14 ))/10^6-SUMPRODUCT(RevReq_BaseCase!Q$409:Q$433,N(RevReq_BaseCase!$A$409:$A$433=$D14 ))/10^6 -> -0.08214722425 | J14: =SUMPRODUCT('RevReq_ExitCase_(2021)'!R$409:R$433,N('RevReq_ExitCase_(2021)'!$A$409:$A$433=$D14 ))/10^6-SUMPRODUCT(RevReq_BaseCase!R$409:R$433,N(RevReq_BaseCase!$A$409:$A$433=$D14 ))/10^6 -> 0.4056842048 | K14: =SUMPRODUCT('RevReq_ExitCase_(2021)'!S$409:S$433,N('RevReq_ExitCase_(2021)'!$A$409:$A$433=$D14 ))/10^6-SUMPRODUCT(RevReq_BaseCase!S$409:S$433,N(RevReq_BaseCase!$A$409:$A$433=$D14 ))/10^6 -> 0.7715555289 | L14: =SUMPRODUCT('RevReq_ExitCase_(2021)'!T$409:T$433,N('RevReq_ExitCase_(2021)'!$A$409:$A$433=$D14 ))/10^6-SUMPRODUCT(RevReq_BaseCase!T$409:T$433,N(RevReq_BaseCase!$A$409:$A$433=$D14 ))/10^6 -> 0.1340295906 | M14: =SUMPRODUCT('RevReq_ExitCase_(2021)'!U$409:U$433,N('RevReq_ExitCase_(2021)'!$A$409:$A$433=$D14 ))/10^6-SUMPRODUCT(RevReq_BaseCase!U$409:U$433,N(RevReq_BaseCase!$A$409:$A$433=$D14 ))/10^6 -> 0.07054793497 | N14: =SUMPRODUCT('RevReq_ExitCase_(2021)'!V$409:V$433,N('RevReq_ExitCase_(2021)'!$A$409:$A$433=$D14 ))/10^6-SUMPRODUCT(RevReq_BaseCase!V$409:V$433,N(RevReq_BaseCase!$A$409:$A$433=$D14 ))/10^6 -> -0.05196011217 | O14: =SUMPRODUCT('RevReq_ExitCase_(2021)'!W$409:W$433,N('RevReq_ExitCase_(2021)'!$A$409:$A$433=$D14 ))/10^6-SUMPRODUCT(RevReq_BaseCase!W$409:W$433,N(RevReq_BaseCase!$A$409:$A$433=$D14 ))/10^6 -> -0.1698544619 | P14: =SUMPRODUCT('RevReq_ExitCase_(2021)'!X$409:X$433,N('RevReq_ExitCase_(2021)'!$A$409:$A$433=$D14 ))/10^6-SUMPRODUCT(RevReq_BaseCase!X$409:X$433,N(RevReq_BaseCase!$A$409:$A$433=$D14 ))/10^6 -> -0.3654824626 | Q14: =SUMPRODUCT('RevReq_ExitCase_(2021)'!Y$409:Y$433,N('RevReq_ExitCase_(2021)'!$A$409:$A$433=$D14 ))/10^6-SUMPRODUCT(RevReq_BaseCase!Y$409:Y$433,N(RevReq_BaseCase!$A$409:$A$433=$D14 ))/10^6 -> -0.5743462697 | R14: =SUMPRODUCT('RevReq_ExitCase_(2021)'!Z$409:Z$433,N('RevReq_ExitCase_(2021)'!$A$409:$A$433=$D14 ))/10^6-SUMPRODUCT(RevReq_BaseCase!Z$409:Z$433,N(RevReq_BaseCase!$A$409:$A$433=$D14 ))/10^6 -> -0.7688605865 | S14: =SUMPRODUCT('RevReq_ExitCase_(2021)'!AA$409:AA$433,N('RevReq_ExitCase_(2021)'!$A$409:$A$433=$D14 ))/10^6-SUMPRODUCT(RevReq_BaseCase!AA$409:AA$433,N(RevReq_BaseCase!$A$409:$A$433=$D14 ))/10^6 -> -1.012865174 | T14: =SUMPRODUCT('RevReq_ExitCase_(2021)'!AB$409:AB$433,N('RevReq_ExitCase_(2021)'!$A$409:$A$433=$D14 ))/10^6-SUMPRODUCT(RevReq_BaseCase!AB$409:AB$433,N(RevReq_BaseCase!$A$409:$A$433=$D14 ))/10^6 -> -1.212422924 | U14: =SUMPRODUCT('RevReq_ExitCase_(2021)'!AC$409:AC$433,N('RevReq_ExitCase_(2021)'!$A$409:$A$433=$D14 ))/10^6-SUMPRODUCT(RevReq_BaseCase!AC$409:AC$433,N(RevReq_BaseCase!$A$409:$A$433=$D14 ))/10^6 -> -1.3913022 | V14: =SUMPRODUCT('RevReq_ExitCase_(2021)'!AD$409:AD$433,N('RevReq_ExitCase_(2021)'!$A$409:$A$433=$D14 ))/10^6-SUMPRODUCT(RevReq_BaseCase!AD$409:AD$433,N(RevReq_BaseCase!$A$409:$A$433=$D14 ))/10^6 -> -1.498107458 | W14: =SUMPRODUCT('RevReq_ExitCase_(2021)'!AE$409:AE$433,N('RevReq_ExitCase_(2021)'!$A$409:$A$433=$D14 ))/10^6-SUMPRODUCT(RevReq_BaseCase!AE$409:AE$433,N(RevReq_BaseCase!$A$409:$A$433=$D14 ))/10^6 -> -1.499640105 | X14: =SUMPRODUCT('RevReq_ExitCase_(2021)'!AF$409:AF$433,N('RevReq_ExitCase_(2021)'!$A$409:$A$433=$D14 ))/10^6-SUMPRODUCT(RevReq_BaseCase!AF$409:AF$433,N(RevReq_BaseCase!$A$409:$A$433=$D14 ))/10^6 -> -1.476579938 | Y14: =SUMPRODUCT('RevReq_ExitCase_(2021)'!AG$409:AG$433,N('RevReq_ExitCase_(2021)'!$A$409:$A$433=$D14 ))/10^6-SUMPRODUCT(RevReq_BaseCase!AG$409:AG$433,N(RevReq_BaseCase!$A$409:$A$433=$D14 ))/10^6 -> -1.454481025 | Z14: =SUMPRODUCT('RevReq_ExitCase_(2021)'!AH$409:AH$433,N('RevReq_ExitCase_(2021)'!$A$409:$A$433=$D14 ))/10^6-SUMPRODUCT(RevReq_BaseCase!AH$409:AH$433,N(RevReq_BaseCase!$A$409:$A$433=$D14 ))/10^6 -> -1.482455025 | AA14: =SUMPRODUCT('RevReq_ExitCase_(2021)'!AI$409:AI$433,N('RevReq_ExitCase_(2021)'!$A$409:$A$433=$D14 ))/10^6-SUMPRODUCT(RevReq_BaseCase!AI$409:AI$433,N(RevReq_BaseCase!$A$409:$A$433=$D14 ))/10^6 -> -1.527948808 | AB14: =SUMPRODUCT('RevReq_ExitCase_(2021)'!AJ$409:AJ$433,N('RevReq_ExitCase_(2021)'!$A$409:$A$433=$D14 ))/10^6-SUMPRODUCT(RevReq_BaseCase!AJ$409:AJ$433,N(RevReq_BaseCase!$A$409:$A$433=$D14 ))/10^6 -> -1.525838412 | AC14: =SUMPRODUCT('RevReq_ExitCase_(2021)'!AK$409:AK$433,N('RevReq_ExitCase_(2021)'!$A$409:$A$433=$D14 ))/10^6-SUMPRODUCT(RevReq_BaseCase!AK$409:AK$433,N(RevReq_BaseCase!$A$409:$A$433=$D14 ))/10^6 -> -1.509748794 | AD14: =SUMPRODUCT('RevReq_ExitCase_(2021)'!AL$409:AL$433,N('RevReq_ExitCase_(2021)'!$A$409:$A$433=$D14 ))/10^6-SUMPRODUCT(RevReq_BaseCase!AL$409:AL$433,N(RevReq_BaseCase!$A$409:$A$433=$D14 ))/10^6 -> -1.502450236 | AE14: =SUMPRODUCT('RevReq_ExitCase_(2021)'!AM$409:AM$433,N('RevReq_ExitCase_(2021)'!$A$409:$A$433=$D14 ))/10^6-SUMPRODUCT(RevReq_BaseCase!AM$409:AM$433,N(RevReq_BaseCase!$A$409:$A$433=$D14 ))/10^6 -> -1.51102751 | AF14: =SUMPRODUCT('RevReq_ExitCase_(2021)'!AN$409:AN$433,N('RevReq_ExitCase_(2021)'!$A$409:$A$433=$D14 ))/10^6-SUMPRODUCT(RevReq_BaseCase!AN$409:AN$433,N(RevReq_BaseCase!$A$409:$A$433=$D14 ))/10^6 -> -1.545963961 | AG14: =SUMPRODUCT('RevReq_ExitCase_(2021)'!AO$409:AO$433,N('RevReq_ExitCase_(2021)'!$A$409:$A$433=$D14 ))/10^6-SUMPRODUCT(RevReq_BaseCase!AO$409:AO$433,N(RevReq_BaseCase!$A$409:$A$433=$D14 ))/10^6 -> -1.588868368 | AH14: =SUMPRODUCT('RevReq_ExitCase_(2021)'!AP$409:AP$433,N('RevReq_ExitCase_(2021)'!$A$409:$A$433=$D14 ))/10^6-SUMPRODUCT(RevReq_BaseCase!AP$409:AP$433,N(RevReq_BaseCase!$A$409:$A$433=$D14 ))/10^6 -> -1.627560939 | AI14: =SUMPRODUCT('RevReq_ExitCase_(2021)'!AQ$409:AQ$433,N('RevReq_ExitCase_(2021)'!$A$409:$A$433=$D14 ))/10^6-SUMPRODUCT(RevReq_BaseCase!AQ$409:AQ$433,N(RevReq_BaseCase!$A$409:$A$433=$D14 ))/10^6 -> -1.633367378 | AJ14: =SUMPRODUCT('RevReq_ExitCase_(2021)'!AR$409:AR$433,N('RevReq_ExitCase_(2021)'!$A$409:$A$433=$D14 ))/10^6-SUMPRODUCT(RevReq_BaseCase!AR$409:AR$433,N(RevReq_BaseCase!$A$409:$A$433=$D14 ))/10^6 -> -1.650771915 | AK14: =SUMPRODUCT('RevReq_ExitCase_(2021)'!AS$409:AS$433,N('RevReq_ExitCase_(2021)'!$A$409:$A$433=$D14 ))/10^6-SUMPRODUCT(RevReq_BaseCase!AS$409:AS$433,N(RevReq_BaseCase!$A$409:$A$433=$D14 ))/10^6 -> -1.654679042 | AL14: =SUMPRODUCT('RevReq_ExitCase_(2021)'!AT$409:AT$433,N('RevReq_ExitCase_(2021)'!$A$409:$A$433=$D14 ))/10^6-SUMPRODUCT(RevReq_BaseCase!AT$409:AT$433,N(RevReq_BaseCase!$A$409:$A$433=$D14 ))/10^6 -> -1.61963788 | AM14: =SUMPRODUCT('RevReq_ExitCase_(2021)'!AU$409:AU$433,N('RevReq_ExitCase_(2021)'!$A$409:$A$433=$D14 ))/10^6-SUMPRODUCT(RevReq_BaseCase!AU$409:AU$433,N(RevReq_BaseCase!$A$409:$A$433=$D14 ))/10^6 -> -1.588173553 | AN14: =SUMPRODUCT('RevReq_ExitCase_(2021)'!AV$409:AV$433,N('RevReq_ExitCase_(2021)'!$A$409:$A$433=$D14 ))/10^6-SUMPRODUCT(RevReq_BaseCase!AV$409:AV$433,N(RevReq_BaseCase!$A$409:$A$433=$D14 ))/10^6 -> -1.546856426 | AO14: =SUMPRODUCT('RevReq_ExitCase_(2021)'!AW$409:AW$433,N('RevReq_ExitCase_(2021)'!$A$409:$A$433=$D14 ))/10^6-SUMPRODUCT(RevReq_BaseCase!AW$409:AW$433,N(RevReq_BaseCase!$A$409:$A$433=$D14 ))/10^6 -> -1.506913416 | AP14: =SUMPRODUCT('RevReq_ExitCase_(2021)'!AX$409:AX$433,N('RevReq_ExitCase_(2021)'!$A$409:$A$433=$D14 ))/10^6-SUMPRODUCT(RevReq_BaseCase!AX$409:AX$433,N(RevReq_BaseCase!$A$409:$A$433=$D14 ))/10^6 -> -1.465923578 | AQ14: =SUMPRODUCT('RevReq_ExitCase_(2021)'!AY$409:AY$433,N('RevReq_ExitCase_(2021)'!$A$409:$A$433=$D14 ))/10^6-SUMPRODUCT(RevReq_BaseCase!AY$409:AY$433,N(RevReq_BaseCase!$A$409:$A$433=$D14 ))/10^6 -> -1.151111305 | AS14: =SUM(W14:AQ14) -> -32.06999761
B15: Return on Equity(6) | D15: Base | E15: =SUM(I15:AQ15) -> -113.905386 | G15: =SUMPRODUCT(I15:AQ15,$I$7:$AQ$7) -> -23.98435472 | I15: =SUMPRODUCT('RevReq_ExitCase_(2021)'!Q$438:Q$462,N('RevReq_ExitCase_(2021)'!$A$438:$A$462=$D15 ))/10^6-SUMPRODUCT(RevReq_BaseCase!Q$438:Q$462,N(RevReq_BaseCase!$A$438:$A$462=$D15 ))/10^6 -> -0.247438327 | J15: =SUMPRODUCT('RevReq_ExitCase_(2021)'!R$438:R$462,N('RevReq_ExitCase_(2021)'!$A$438:$A$462=$D15 ))/10^6-SUMPRODUCT(RevReq_BaseCase!R$438:R$462,N(RevReq_BaseCase!$A$438:$A$462=$D15 ))/10^6 -> 1.221974593 | K15: =SUMPRODUCT('RevReq_ExitCase_(2021)'!S$438:S$462,N('RevReq_ExitCase_(2021)'!$A$438:$A$462=$D15 ))/10^6-SUMPRODUCT(RevReq_BaseCase!S$438:S$462,N(RevReq_BaseCase!$A$438:$A$462=$D15 ))/10^6 -> 2.324027512 | L15: =SUMPRODUCT('RevReq_ExitCase_(2021)'!T$438:T$462,N('RevReq_ExitCase_(2021)'!$A$438:$A$462=$D15 ))/10^6-SUMPRODUCT(RevReq_BaseCase!T$438:T$462,N(RevReq_BaseCase!$A$438:$A$462=$D15 ))/10^6 -> 0.4037148906 | M15: =SUMPRODUCT('RevReq_ExitCase_(2021)'!U$438:U$462,N('RevReq_ExitCase_(2021)'!$A$438:$A$462=$D15 ))/10^6-SUMPRODUCT(RevReq_BaseCase!U$438:U$462,N(RevReq_BaseCase!$A$438:$A$462=$D15 ))/10^6 -> 0.2124997303 | N15: =SUMPRODUCT('RevReq_ExitCase_(2021)'!V$438:V$462,N('RevReq_ExitCase_(2021)'!$A$438:$A$462=$D15 ))/10^6-SUMPRODUCT(RevReq_BaseCase!V$438:V$462,N(RevReq_BaseCase!$A$438:$A$462=$D15 ))/10^6 -> -0.1565107445 | O15: =SUMPRODUCT('RevReq_ExitCase_(2021)'!W$438:W$462,N('RevReq_ExitCase_(2021)'!$A$438:$A$462=$D15 ))/10^6-SUMPRODUCT(RevReq_BaseCase!W$438:W$462,N(RevReq_BaseCase!$A$438:$A$462=$D15 ))/10^6 -> -0.5116241513 | P15: =SUMPRODUCT('RevReq_ExitCase_(2021)'!X$438:X$462,N('RevReq_ExitCase_(2021)'!$A$438:$A$462=$D15 ))/10^6-SUMPRODUCT(RevReq_BaseCase!X$438:X$462,N(RevReq_BaseCase!$A$438:$A$462=$D15 ))/10^6 -> -1.100881617 | Q15: =SUMPRODUCT('RevReq_ExitCase_(2021)'!Y$438:Y$462,N('RevReq_ExitCase_(2021)'!$A$438:$A$462=$D15 ))/10^6-SUMPRODUCT(RevReq_BaseCase!Y$438:Y$462,N(RevReq_BaseCase!$A$438:$A$462=$D15 ))/10^6 -> -1.730007086 | R15: =SUMPRODUCT('RevReq_ExitCase_(2021)'!Z$438:Z$462,N('RevReq_ExitCase_(2021)'!$A$438:$A$462=$D15 ))/10^6-SUMPRODUCT(RevReq_BaseCase!Z$438:Z$462,N(RevReq_BaseCase!$A$438:$A$462=$D15 ))/10^6 -> -2.315909989 | S15: =SUMPRODUCT('RevReq_ExitCase_(2021)'!AA$438:AA$462,N('RevReq_ExitCase_(2021)'!$A$438:$A$462=$D15 ))/10^6-SUMPRODUCT(RevReq_BaseCase!AA$438:AA$462,N(RevReq_BaseCase!$A$438:$A$462=$D15 ))/10^6 -> -3.050884147 | T15: =SUMPRODUCT('RevReq_ExitCase_(2021)'!AB$438:AB$462,N('RevReq_ExitCase_(2021)'!$A$438:$A$462=$D15 ))/10^6-SUMPRODUCT(RevReq_BaseCase!AB$438:AB$462,N(RevReq_BaseCase!$A$438:$A$462=$D15 ))/10^6 -> -3.651978538 | U15: =SUMPRODUCT('RevReq_ExitCase_(2021)'!AC$438:AC$462,N('RevReq_ExitCase_(2021)'!$A$438:$A$462=$D15 ))/10^6-SUMPRODUCT(RevReq_BaseCase!AC$438:AC$462,N(RevReq_BaseCase!$A$438:$A$462=$D15 ))/10^6 -> -4.190786624 | V15: =SUMPRODUCT('RevReq_ExitCase_(2021)'!AD$438:AD$462,N('RevReq_ExitCase_(2021)'!$A$438:$A$462=$D15 ))/10^6-SUMPRODUCT(RevReq_BaseCase!AD$438:AD$462,N(RevReq_BaseCase!$A$438:$A$462=$D15 ))/10^6 -> -4.512498218 | W15: =SUMPRODUCT('RevReq_ExitCase_(2021)'!AE$438:AE$462,N('RevReq_ExitCase_(2021)'!$A$438:$A$462=$D15 ))/10^6-SUMPRODUCT(RevReq_BaseCase!AE$438:AE$462,N(RevReq_BaseCase!$A$438:$A$462=$D15 ))/10^6 -> -4.517114754 | X15: =SUMPRODUCT('RevReq_ExitCase_(2021)'!AF$438:AF$462,N('RevReq_ExitCase_(2021)'!$A$438:$A$462=$D15 ))/10^6-SUMPRODUCT(RevReq_BaseCase!AF$438:AF$462,N(RevReq_BaseCase!$A$438:$A$462=$D15 ))/10^6 -> -4.447654475 | Y15: =SUMPRODUCT('RevReq_ExitCase_(2021)'!AG$438:AG$462,N('RevReq_ExitCase_(2021)'!$A$438:$A$462=$D15 ))/10^6-SUMPRODUCT(RevReq_BaseCase!AG$438:AG$462,N(RevReq_BaseCase!$A$438:$A$462=$D15 ))/10^6 -> -4.381089618 | Z15: =SUMPRODUCT('RevReq_ExitCase_(2021)'!AH$438:AH$462,N('RevReq_ExitCase_(2021)'!$A$438:$A$462=$D15 ))/10^6-SUMPRODUCT(RevReq_BaseCase!AH$438:AH$462,N(RevReq_BaseCase!$A$438:$A$462=$D15 ))/10^6 -> -4.465351015 | AA15: =SUMPRODUCT('RevReq_ExitCase_(2021)'!AI$438:AI$462,N('RevReq_ExitCase_(2021)'!$A$438:$A$462=$D15 ))/10^6-SUMPRODUCT(RevReq_BaseCase!AI$438:AI$462,N(RevReq_BaseCase!$A$438:$A$462=$D15 ))/10^6 -> -4.60238432 | AB15: =SUMPRODUCT('RevReq_ExitCase_(2021)'!AJ$438:AJ$462,N('RevReq_ExitCase_(2021)'!$A$438:$A$462=$D15 ))/10^6-SUMPRODUCT(RevReq_BaseCase!AJ$438:AJ$462,N(RevReq_BaseCase!$A$438:$A$462=$D15 ))/10^6 -> -4.596027527 | AC15: =SUMPRODUCT('RevReq_ExitCase_(2021)'!AK$438:AK$462,N('RevReq_ExitCase_(2021)'!$A$438:$A$462=$D15 ))/10^6-SUMPRODUCT(RevReq_BaseCase!AK$438:AK$462,N(RevReq_BaseCase!$A$438:$A$462=$D15 ))/10^6 -> -4.547563463 | AD15: =SUMPRODUCT('RevReq_ExitCase_(2021)'!AL$438:AL$462,N('RevReq_ExitCase_(2021)'!$A$438:$A$462=$D15 ))/10^6-SUMPRODUCT(RevReq_BaseCase!AL$438:AL$462,N(RevReq_BaseCase!$A$438:$A$462=$D15 ))/10^6 -> -4.52557924 | AE15: =SUMPRODUCT('RevReq_ExitCase_(2021)'!AM$438:AM$462,N('RevReq_ExitCase_(2021)'!$A$438:$A$462=$D15 ))/10^6-SUMPRODUCT(RevReq_BaseCase!AM$438:AM$462,N(RevReq_BaseCase!$A$438:$A$462=$D15 ))/10^6 -> -4.551415127 | AF15: =SUMPRODUCT('RevReq_ExitCase_(2021)'!AN$438:AN$462,N('RevReq_ExitCase_(2021)'!$A$438:$A$462=$D15 ))/10^6-SUMPRODUCT(RevReq_BaseCase!AN$438:AN$462,N(RevReq_BaseCase!$A$438:$A$462=$D15 ))/10^6 -> -4.656648348 | AG15: =SUMPRODUCT('RevReq_ExitCase_(2021)'!AO$438:AO$462,N('RevReq_ExitCase_(2021)'!$A$438:$A$462=$D15 ))/10^6-SUMPRODUCT(RevReq_BaseCase!AO$438:AO$462,N(RevReq_BaseCase!$A$438:$A$462=$D15 ))/10^6 -> -4.785882108 | AH15: =SUMPRODUCT('RevReq_ExitCase_(2021)'!AP$438:AP$462,N('RevReq_ExitCase_(2021)'!$A$438:$A$462=$D15 ))/10^6-SUMPRODUCT(RevReq_BaseCase!AP$438:AP$462,N(RevReq_BaseCase!$A$438:$A$462=$D15 ))/10^6 -> -4.90242926 | AI15: =SUMPRODUCT('RevReq_ExitCase_(2021)'!AQ$438:AQ$462,N('RevReq_ExitCase_(2021)'!$A$438:$A$462=$D15 ))/10^6-SUMPRODUCT(RevReq_BaseCase!AQ$438:AQ$462,N(RevReq_BaseCase!$A$438:$A$462=$D15 ))/10^6 -> -4.919919025 | AJ15: =SUMPRODUCT('RevReq_ExitCase_(2021)'!AR$438:AR$462,N('RevReq_ExitCase_(2021)'!$A$438:$A$462=$D15 ))/10^6-SUMPRODUCT(RevReq_BaseCase!AR$438:AR$462,N(RevReq_BaseCase!$A$438:$A$462=$D15 ))/10^6 -> -4.972343796 | AK15: =SUMPRODUCT('RevReq_ExitCase_(2021)'!AS$438:AS$462,N('RevReq_ExitCase_(2021)'!$A$438:$A$462=$D15 ))/10^6-SUMPRODUCT(RevReq_BaseCase!AS$438:AS$462,N(RevReq_BaseCase!$A$438:$A$462=$D15 ))/10^6 -> -4.984112581 | AL15: =SUMPRODUCT('RevReq_ExitCase_(2021)'!AT$438:AT$462,N('RevReq_ExitCase_(2021)'!$A$438:$A$462=$D15 ))/10^6-SUMPRODUCT(RevReq_BaseCase!AT$438:AT$462,N(RevReq_BaseCase!$A$438:$A$462=$D15 ))/10^6 -> -4.878563955 | AM15: =SUMPRODUCT('RevReq_ExitCase_(2021)'!AU$438:AU$462,N('RevReq_ExitCase_(2021)'!$A$438:$A$462=$D15 ))/10^6-SUMPRODUCT(RevReq_BaseCase!AU$438:AU$462,N(RevReq_BaseCase!$A$438:$A$462=$D15 ))/10^6 -> -4.783789232 | AN15: =SUMPRODUCT('RevReq_ExitCase_(2021)'!AV$438:AV$462,N('RevReq_ExitCase_(2021)'!$A$438:$A$462=$D15 ))/10^6-SUMPRODUCT(RevReq_BaseCase!AV$438:AV$462,N(RevReq_BaseCase!$A$438:$A$462=$D15 ))/10^6 -> -4.659336569 | AO15: =SUMPRODUCT('RevReq_ExitCase_(2021)'!AW$438:AW$462,N('RevReq_ExitCase_(2021)'!$A$438:$A$462=$D15 ))/10^6-SUMPRODUCT(RevReq_BaseCase!AW$438:AW$462,N(RevReq_BaseCase!$A$438:$A$462=$D15 ))/10^6 -> -4.53902293 | AP15: =SUMPRODUCT('RevReq_ExitCase_(2021)'!AX$438:AX$462,N('RevReq_ExitCase_(2021)'!$A$438:$A$462=$D15 ))/10^6-SUMPRODUCT(RevReq_BaseCase!AX$438:AX$462,N(RevReq_BaseCase!$A$438:$A$462=$D15 ))/10^6 -> -4.415556105 | AQ15: =SUMPRODUCT('RevReq_ExitCase_(2021)'!AY$438:AY$462,N('RevReq_ExitCase_(2021)'!$A$438:$A$462=$D15 ))/10^6-SUMPRODUCT(RevReq_BaseCase!AY$438:AY$462,N(RevReq_BaseCase!$A$438:$A$462=$D15 ))/10^6 -> -3.467299815 | AS15: =SUM(W15:AQ15) -> -96.59908326
B16: Income Tax(7) | D16: Base | E16: =SUM(I16:AQ16) -> -71.53276783 | G16: =SUMPRODUCT(I16:AQ16,$I$7:$AQ$7) -> -15.06221381 | I16: =SUMPRODUCT('RevReq_ExitCase_(2021)'!Q$467:Q$491,N('RevReq_ExitCase_(2021)'!$A$467:$A$491=$D16 ))/10^6-SUMPRODUCT(RevReq_BaseCase!Q$467:Q$491,N(RevReq_BaseCase!$A$467:$A$491=$D16 ))/10^6 -> -0.1553916722 | J16: =SUMPRODUCT('RevReq_ExitCase_(2021)'!R$467:R$491,N('RevReq_ExitCase_(2021)'!$A$467:$A$491=$D16 ))/10^6-SUMPRODUCT(RevReq_BaseCase!R$467:R$491,N(RevReq_BaseCase!$A$467:$A$491=$D16 ))/10^6 -> 0.7674020336 | K16: =SUMPRODUCT('RevReq_ExitCase_(2021)'!S$467:S$491,N('RevReq_ExitCase_(2021)'!$A$467:$A$491=$D16 ))/10^6-SUMPRODUCT(RevReq_BaseCase!S$467:S$491,N(RevReq_BaseCase!$A$467:$A$491=$D16 ))/10^6 -> 1.459493061 | L16: =SUMPRODUCT('RevReq_ExitCase_(2021)'!T$467:T$491,N('RevReq_ExitCase_(2021)'!$A$467:$A$491=$D16 ))/10^6-SUMPRODUCT(RevReq_BaseCase!T$467:T$491,N(RevReq_BaseCase!$A$467:$A$491=$D16 ))/10^6 -> 0.2535336085 | M16: =SUMPRODUCT('RevReq_ExitCase_(2021)'!U$467:U$491,N('RevReq_ExitCase_(2021)'!$A$467:$A$491=$D16 ))/10^6-SUMPRODUCT(RevReq_BaseCase!U$467:U$491,N(RevReq_BaseCase!$A$467:$A$491=$D16 ))/10^6 -> 0.1334501766 | N16: =SUMPRODUCT('RevReq_ExitCase_(2021)'!V$467:V$491,N('RevReq_ExitCase_(2021)'!$A$467:$A$491=$D16 ))/10^6-SUMPRODUCT(RevReq_BaseCase!V$467:V$491,N(RevReq_BaseCase!$A$467:$A$491=$D16 ))/10^6 -> -0.09828900233 | O16: =SUMPRODUCT('RevReq_ExitCase_(2021)'!W$467:W$491,N('RevReq_ExitCase_(2021)'!$A$467:$A$491=$D16 ))/10^6-SUMPRODUCT(RevReq_BaseCase!W$467:W$491,N(RevReq_BaseCase!$A$467:$A$491=$D16 ))/10^6 -> -0.3213007999 | P16: =SUMPRODUCT('RevReq_ExitCase_(2021)'!X$467:X$491,N('RevReq_ExitCase_(2021)'!$A$467:$A$491=$D16 ))/10^6-SUMPRODUCT(RevReq_BaseCase!X$467:X$491,N(RevReq_BaseCase!$A$467:$A$491=$D16 ))/10^6 -> -0.6913554479 | Q16: =SUMPRODUCT('RevReq_ExitCase_(2021)'!Y$467:Y$491,N('RevReq_ExitCase_(2021)'!$A$467:$A$491=$D16 ))/10^6-SUMPRODUCT(RevReq_BaseCase!Y$467:Y$491,N(RevReq_BaseCase!$A$467:$A$491=$D16 ))/10^6 -> -1.086447267 | R16: =SUMPRODUCT('RevReq_ExitCase_(2021)'!Z$467:Z$491,N('RevReq_ExitCase_(2021)'!$A$467:$A$491=$D16 ))/10^6-SUMPRODUCT(RevReq_BaseCase!Z$467:Z$491,N(RevReq_BaseCase!$A$467:$A$491=$D16 ))/10^6 -> -1.454395243 | S16: =SUMPRODUCT('RevReq_ExitCase_(2021)'!AA$467:AA$491,N('RevReq_ExitCase_(2021)'!$A$467:$A$491=$D16 ))/10^6-SUMPRODUCT(RevReq_BaseCase!AA$467:AA$491,N(RevReq_BaseCase!$A$467:$A$491=$D16 ))/10^6 -> -1.915960211 | T16: =SUMPRODUCT('RevReq_ExitCase_(2021)'!AB$467:AB$491,N('RevReq_ExitCase_(2021)'!$A$467:$A$491=$D16 ))/10^6-SUMPRODUCT(RevReq_BaseCase!AB$467:AB$491,N(RevReq_BaseCase!$A$467:$A$491=$D16 ))/10^6 -> -2.293448467 | U16: =SUMPRODUCT('RevReq_ExitCase_(2021)'!AC$467:AC$491,N('RevReq_ExitCase_(2021)'!$A$467:$A$491=$D16 ))/10^6-SUMPRODUCT(RevReq_BaseCase!AC$467:AC$491,N(RevReq_BaseCase!$A$467:$A$491=$D16 ))/10^6 -> -2.631820823 | V16: =SUMPRODUCT('RevReq_ExitCase_(2021)'!AD$467:AD$491,N('RevReq_ExitCase_(2021)'!$A$467:$A$491=$D16 ))/10^6-SUMPRODUCT(RevReq_BaseCase!AD$467:AD$491,N(RevReq_BaseCase!$A$467:$A$491=$D16 ))/10^6 -> -2.833856227 | W16: =SUMPRODUCT('RevReq_ExitCase_(2021)'!AE$467:AE$491,N('RevReq_ExitCase_(2021)'!$A$467:$A$491=$D16 ))/10^6-SUMPRODUCT(RevReq_BaseCase!AE$467:AE$491,N(RevReq_BaseCase!$A$467:$A$491=$D16 ))/10^6 -> -2.836755419 | X16: =SUMPRODUCT('RevReq_ExitCase_(2021)'!AF$467:AF$491,N('RevReq_ExitCase_(2021)'!$A$467:$A$491=$D16 ))/10^6-SUMPRODUCT(RevReq_BaseCase!AF$467:AF$491,N(RevReq_BaseCase!$A$467:$A$491=$D16 ))/10^6 -> -2.793134251 | Y16: =SUMPRODUCT('RevReq_ExitCase_(2021)'!AG$467:AG$491,N('RevReq_ExitCase_(2021)'!$A$467:$A$491=$D16 ))/10^6-SUMPRODUCT(RevReq_BaseCase!AG$467:AG$491,N(RevReq_BaseCase!$A$467:$A$491=$D16 ))/10^6 -> -2.751331412 | Z16: =SUMPRODUCT('RevReq_ExitCase_(2021)'!AH$467:AH$491,N('RevReq_ExitCase_(2021)'!$A$467:$A$491=$D16 ))/10^6-SUMPRODUCT(RevReq_BaseCase!AH$467:AH$491,N(RevReq_BaseCase!$A$467:$A$491=$D16 ))/10^6 -> -2.804247707 | AA16: =SUMPRODUCT('RevReq_ExitCase_(2021)'!AI$467:AI$491,N('RevReq_ExitCase_(2021)'!$A$467:$A$491=$D16 ))/10^6-SUMPRODUCT(RevReq_BaseCase!AI$467:AI$491,N(RevReq_BaseCase!$A$467:$A$491=$D16 ))/10^6 -> -2.890304846 | AB16: =SUMPRODUCT('RevReq_ExitCase_(2021)'!AJ$467:AJ$491,N('RevReq_ExitCase_(2021)'!$A$467:$A$491=$D16 ))/10^6-SUMPRODUCT(RevReq_BaseCase!AJ$467:AJ$491,N(RevReq_BaseCase!$A$467:$A$491=$D16 ))/10^6 -> -2.886312769 | AC16: =SUMPRODUCT('RevReq_ExitCase_(2021)'!AK$467:AK$491,N('RevReq_ExitCase_(2021)'!$A$467:$A$491=$D16 ))/10^6-SUMPRODUCT(RevReq_BaseCase!AK$467:AK$491,N(RevReq_BaseCase!$A$467:$A$491=$D16 ))/10^6 -> -2.855877258 | AD16: =SUMPRODUCT('RevReq_ExitCase_(2021)'!AL$467:AL$491,N('RevReq_ExitCase_(2021)'!$A$467:$A$491=$D16 ))/10^6-SUMPRODUCT(RevReq_BaseCase!AL$467:AL$491,N(RevReq_BaseCase!$A$467:$A$491=$D16 ))/10^6 -> -2.84207113 | AE16: =SUMPRODUCT('RevReq_ExitCase_(2021)'!AM$467:AM$491,N('RevReq_ExitCase_(2021)'!$A$467:$A$491=$D16 ))/10^6-SUMPRODUCT(RevReq_BaseCase!AM$467:AM$491,N(RevReq_BaseCase!$A$467:$A$491=$D16 ))/10^6 -> -2.858296109 | AF16: =SUMPRODUCT('RevReq_ExitCase_(2021)'!AN$467:AN$491,N('RevReq_ExitCase_(2021)'!$A$467:$A$491=$D16 ))/10^6-SUMPRODUCT(RevReq_BaseCase!AN$467:AN$491,N(RevReq_BaseCase!$A$467:$A$491=$D16 ))/10^6 -> -2.924382744 | AG16: =SUMPRODUCT('RevReq_ExitCase_(2021)'!AO$467:AO$491,N('RevReq_ExitCase_(2021)'!$A$467:$A$491=$D16 ))/10^6-SUMPRODUCT(RevReq_BaseCase!AO$467:AO$491,N(RevReq_BaseCase!$A$467:$A$491=$D16 ))/10^6 -> -3.005541755 | AH16: =SUMPRODUCT('RevReq_ExitCase_(2021)'!AP$467:AP$491,N('RevReq_ExitCase_(2021)'!$A$467:$A$491=$D16 ))/10^6-SUMPRODUCT(RevReq_BaseCase!AP$467:AP$491,N(RevReq_BaseCase!$A$467:$A$491=$D16 ))/10^6 -> -3.078733556 | AI16: =SUMPRODUCT('RevReq_ExitCase_(2021)'!AQ$467:AQ$491,N('RevReq_ExitCase_(2021)'!$A$467:$A$491=$D16 ))/10^6-SUMPRODUCT(RevReq_BaseCase!AQ$467:AQ$491,N(RevReq_BaseCase!$A$467:$A$491=$D16 ))/10^6 -> -3.089717157 | AJ16: =SUMPRODUCT('RevReq_ExitCase_(2021)'!AR$467:AR$491,N('RevReq_ExitCase_(2021)'!$A$467:$A$491=$D16 ))/10^6-SUMPRODUCT(RevReq_BaseCase!AR$467:AR$491,N(RevReq_BaseCase!$A$467:$A$491=$D16 ))/10^6 -> -3.122639999 | AK16: =SUMPRODUCT('RevReq_ExitCase_(2021)'!AS$467:AS$491,N('RevReq_ExitCase_(2021)'!$A$467:$A$491=$D16 ))/10^6-SUMPRODUCT(RevReq_BaseCase!AS$467:AS$491,N(RevReq_BaseCase!$A$467:$A$491=$D16 ))/10^6 -> -3.130030815 | AL16: =SUMPRODUCT('RevReq_ExitCase_(2021)'!AT$467:AT$491,N('RevReq_ExitCase_(2021)'!$A$467:$A$491=$D16 ))/10^6-SUMPRODUCT(RevReq_BaseCase!AT$467:AT$491,N(RevReq_BaseCase!$A$467:$A$491=$D16 ))/10^6 -> -3.063746106 | AM16: =SUMPRODUCT('RevReq_ExitCase_(2021)'!AU$467:AU$491,N('RevReq_ExitCase_(2021)'!$A$467:$A$491=$D16 ))/10^6-SUMPRODUCT(RevReq_BaseCase!AU$467:AU$491,N(RevReq_BaseCase!$A$467:$A$491=$D16 ))/10^6 -> -3.004227426 | AN16: =SUMPRODUCT('RevReq_ExitCase_(2021)'!AV$467:AV$491,N('RevReq_ExitCase_(2021)'!$A$467:$A$491=$D16 ))/10^6-SUMPRODUCT(RevReq_BaseCase!AV$467:AV$491,N(RevReq_BaseCase!$A$467:$A$491=$D16 ))/10^6 -> -2.926070951 | AO16: =SUMPRODUCT('RevReq_ExitCase_(2021)'!AW$467:AW$491,N('RevReq_ExitCase_(2021)'!$A$467:$A$491=$D16 ))/10^6-SUMPRODUCT(RevReq_BaseCase!AW$467:AW$491,N(RevReq_BaseCase!$A$467:$A$491=$D16 ))/10^6 -> -2.850513789 | AP16: =SUMPRODUCT('RevReq_ExitCase_(2021)'!AX$467:AX$491,N('RevReq_ExitCase_(2021)'!$A$467:$A$491=$D16 ))/10^6-SUMPRODUCT(RevReq_BaseCase!AX$467:AX$491,N(RevReq_BaseCase!$A$467:$A$491=$D16 ))/10^6 -> -2.772976423 | AQ16: =SUMPRODUCT('RevReq_ExitCase_(2021)'!AY$467:AY$491,N('RevReq_ExitCase_(2021)'!$A$467:$A$491=$D16 ))/10^6-SUMPRODUCT(RevReq_BaseCase!AY$467:AY$491,N(RevReq_BaseCase!$A$467:$A$491=$D16 ))/10^6 -> -2.177469929 | AS16: =SUM(W16:AQ16) -> -60.66438155
B17: Base Revenue Requirement | E17: =SUM(I17:AQ17) -> -333.4749744 | G17: =SUM(G10:G16) -> -151.3388151 | I17: =SUM(I10:I16) -> -20.49917939 | J17: -19.40315908 | K17: -17.28604498 | L17: -6.506924534 | M17: -7.199516564 | N17: -8.243112148 | O17: -9.263920839 | P17: -11.19565011 | Q17: -12.89235921 | R17: -14.33859541 | S17: -16.39021561 | T17: -18.03587378 | U17: -19.60980311 | V17: -35.57388606 | W17: -34.69203267 | X17: -9.052700275 | Y17: 3.594681767 | Z17: 2.451823755 | AA17: 2.553154146 | AB17: 1.25448179 | AC17: 1.021973288 | AD17: 0.223962559 | AE17: -0.08358160693 | AF17: -2.558187558 | AG17: -1.826715352 | AH17: -3.011809681 | AI17: -2.744539266 | AJ17: -6.795631918 | AK17: -6.831753702 | AL17: -8.396623035 | AM17: -8.691601176 | AN17: -8.870105181 | AO17: -9.103333063 | AP17: -9.310368524 | AQ17: -16.1678279 | AS17: =SUM(W17:AQ17) -> -117.0367336
B19: Clause: Incremental Revenue Requirement(1)
B20: PPA Payments, Operations and Maintenance(8) | D20: Clause | E20: =SUM(I20:AQ20) -> -105.6677524 | G20: =SUMPRODUCT(I20:AQ20,$I$7:$AQ$7) -> -93.80467048 | I20: =SUMPRODUCT('RevReq_ExitCase_(2021)'!Q$143:Q$162,N('RevReq_ExitCase_(2021)'!$A$143:$A$162=$D20 ))/10^6-SUMPRODUCT(RevReq_BaseCase!Q$143:Q$162,N(RevReq_BaseCase!$A$143:$A$162=$D20 ))/10^6-+('RevReq_ExitCase_(2021)'!Q154-RevReq_BaseCase!Q154)/10^6 -> -53.38312652 | J20: =SUMPRODUCT('RevReq_ExitCase_(2021)'!R$143:R$162,N('RevReq_ExitCase_(2021)'!$A$143:$A$162=$D20 ))/10^6-SUMPRODUCT(RevReq_BaseCase!R$143:R$162,N(RevReq_BaseCase!$A$143:$A$162=$D20 ))/10^6-+('RevReq_ExitCase_(2021)'!R154-RevReq_BaseCase!R154)/10^6 -> -44.80424834 | K20: =SUMPRODUCT('RevReq_ExitCase_(2021)'!S$143:S$162,N('RevReq_ExitCase_(2021)'!$A$143:$A$162=$D20 ))/10^6-SUMPRODUCT(RevReq_BaseCase!S$143:S$162,N(RevReq_BaseCase!$A$143:$A$162=$D20 ))/10^6-+('RevReq_ExitCase_(2021)'!S154-RevReq_BaseCase!S154)/10^6 -> -0.16222344 | L20: =SUMPRODUCT('RevReq_ExitCase_(2021)'!T$143:T$162,N('RevReq_ExitCase_(2021)'!$A$143:$A$162=$D20 ))/10^6-SUMPRODUCT(RevReq_BaseCase!T$143:T$162,N(RevReq_BaseCase!$A$143:$A$162=$D20 ))/10^6-+('RevReq_ExitCase_(2021)'!T154-RevReq_BaseCase!T154)/10^6 -> -0.1654679088 | M20: =SUMPRODUCT('RevReq_ExitCase_(2021)'!U$143:U$162,N('RevReq_ExitCase_(2021)'!$A$143:$A$162=$D20 ))/10^6-SUMPRODUCT(RevReq_BaseCase!U$143:U$162,N(RevReq_BaseCase!$A$143:$A$162=$D20 ))/10^6-+('RevReq_ExitCase_(2021)'!U154-RevReq_BaseCase!U154)/10^6 -> -0.168777267 | N20: =SUMPRODUCT('RevReq_ExitCase_(2021)'!V$143:V$162,N('RevReq_ExitCase_(2021)'!$A$143:$A$162=$D20 ))/10^6-SUMPRODUCT(RevReq_BaseCase!V$143:V$162,N(RevReq_BaseCase!$A$143:$A$162=$D20 ))/10^6-+('RevReq_ExitCase_(2021)'!V154-RevReq_BaseCase!V154)/10^6 -> -0.1721528123 | O20: =SUMPRODUCT('RevReq_ExitCase_(2021)'!W$143:W$162,N('RevReq_ExitCase_(2021)'!$A$143:$A$162=$D20 ))/10^6-SUMPRODUCT(RevReq_BaseCase!W$143:W$162,N(RevReq_BaseCase!$A$143:$A$162=$D20 ))/10^6-+('RevReq_ExitCase_(2021)'!W154-RevReq_BaseCase!W154)/10^6 -> -0.1755958686 | P20: =SUMPRODUCT('RevReq_ExitCase_(2021)'!X$143:X$162,N('RevReq_ExitCase_(2021)'!$A$143:$A$162=$D20 ))/10^6-SUMPRODUCT(RevReq_BaseCase!X$143:X$162,N(RevReq_BaseCase!$A$143:$A$162=$D20 ))/10^6-+('RevReq_ExitCase_(2021)'!X154-RevReq_BaseCase!X154)/10^6 -> -0.1791077859 | Q20: =SUMPRODUCT('RevReq_ExitCase_(2021)'!Y$143:Y$162,N('RevReq_ExitCase_(2021)'!$A$143:$A$162=$D20 ))/10^6-SUMPRODUCT(RevReq_BaseCase!Y$143:Y$162,N(RevReq_BaseCase!$A$143:$A$162=$D20 ))/10^6-+('RevReq_ExitCase_(2021)'!Y154-RevReq_BaseCase!Y154)/10^6 -> -0.1826899417 | R20: =SUMPRODUCT('RevReq_ExitCase_(2021)'!Z$143:Z$162,N('RevReq_ExitCase_(2021)'!$A$143:$A$162=$D20 ))/10^6-SUMPRODUCT(RevReq_BaseCase!Z$143:Z$162,N(RevReq_BaseCase!$A$143:$A$162=$D20 ))/10^6-+('RevReq_ExitCase_(2021)'!Z154-RevReq_BaseCase!Z154)/10^6 -> -0.1863437405 | S20: =SUMPRODUCT('RevReq_ExitCase_(2021)'!AA$143:AA$162,N('RevReq_ExitCase_(2021)'!$A$143:$A$162=$D20 ))/10^6-SUMPRODUCT(RevReq_BaseCase!AA$143:AA$162,N(RevReq_BaseCase!$A$143:$A$162=$D20 ))/10^6-+('RevReq_ExitCase_(2021)'!AA154-RevReq_BaseCase!AA154)/10^6 -> -0.1900706153 | T20: =SUMPRODUCT('RevReq_ExitCase_(2021)'!AB$143:AB$162,N('RevReq_ExitCase_(2021)'!$A$143:$A$162=$D20 ))/10^6-SUMPRODUCT(RevReq_BaseCase!AB$143:AB$162,N(RevReq_BaseCase!$A$143:$A$162=$D20 ))/10^6-+('RevReq_ExitCase_(2021)'!AB154-RevReq_BaseCase!AB154)/10^6 -> -0.1938720276 | U20: =SUMPRODUCT('RevReq_ExitCase_(2021)'!AC$143:AC$162,N('RevReq_ExitCase_(2021)'!$A$143:$A$162=$D20 ))/10^6-SUMPRODUCT(RevReq_BaseCase!AC$143:AC$162,N(RevReq_BaseCase!$A$143:$A$162=$D20 ))/10^6-+('RevReq_ExitCase_(2021)'!AC154-RevReq_BaseCase!AC154)/10^6 -> -0.1977494682 | V20: =SUMPRODUCT('RevReq_ExitCase_(2021)'!AD$143:AD$162,N('RevReq_ExitCase_(2021)'!$A$143:$A$162=$D20 ))/10^6-SUMPRODUCT(RevReq_BaseCase!AD$143:AD$162,N(RevReq_BaseCase!$A$143:$A$162=$D20 ))/10^6-+('RevReq_ExitCase_(2021)'!AD154-RevReq_BaseCase!AD154)/10^6 -> -0.2017044575 | W20: =SUMPRODUCT('RevReq_ExitCase_(2021)'!AE$143:AE$162,N('RevReq_ExitCase_(2021)'!$A$143:$A$162=$D20 ))/10^6-SUMPRODUCT(RevReq_BaseCase!AE$143:AE$162,N(RevReq_BaseCase!$A$143:$A$162=$D20 ))/10^6-+('RevReq_ExitCase_(2021)'!AE154-RevReq_BaseCase!AE154)/10^6 -> -0.2057385467 | X20: =SUMPRODUCT('RevReq_ExitCase_(2021)'!AF$143:AF$162,N('RevReq_ExitCase_(2021)'!$A$143:$A$162=$D20 ))/10^6-SUMPRODUCT(RevReq_BaseCase!AF$143:AF$162,N(RevReq_BaseCase!$A$143:$A$162=$D20 ))/10^6-+('RevReq_ExitCase_(2021)'!AF154-RevReq_BaseCase!AF154)/10^6 -> -0.2098533176 | Y20: =SUMPRODUCT('RevReq_ExitCase_(2021)'!AG$143:AG$162,N('RevReq_ExitCase_(2021)'!$A$143:$A$162=$D20 ))/10^6-SUMPRODUCT(RevReq_BaseCase!AG$143:AG$162,N(RevReq_BaseCase!$A$143:$A$162=$D20 ))/10^6-+('RevReq_ExitCase_(2021)'!AG154-RevReq_BaseCase!AG154)/10^6 -> -0.214050384 | Z20: =SUMPRODUCT('RevReq_ExitCase_(2021)'!AH$143:AH$162,N('RevReq_ExitCase_(2021)'!$A$143:$A$162=$D20 ))/10^6-SUMPRODUCT(RevReq_BaseCase!AH$143:AH$162,N(RevReq_BaseCase!$A$143:$A$162=$D20 ))/10^6-+('RevReq_ExitCase_(2021)'!AH154-RevReq_BaseCase!AH154)/10^6 -> -0.2183313916 | AA20: =SUMPRODUCT('RevReq_ExitCase_(2021)'!AI$143:AI$162,N('RevReq_ExitCase_(2021)'!$A$143:$A$162=$D20 ))/10^6-SUMPRODUCT(RevReq_BaseCase!AI$143:AI$162,N(RevReq_BaseCase!$A$143:$A$162=$D20 ))/10^6-+('RevReq_ExitCase_(2021)'!AI154-RevReq_BaseCase!AI154)/10^6 -> -0.2226980195 | AB20: =SUMPRODUCT('RevReq_ExitCase_(2021)'!AJ$143:AJ$162,N('RevReq_ExitCase_(2021)'!$A$143:$A$162=$D20 ))/10^6-SUMPRODUCT(RevReq_BaseCase!AJ$143:AJ$162,N(RevReq_BaseCase!$A$143:$A$162=$D20 ))/10^6-+('RevReq_ExitCase_(2021)'!AJ154-RevReq_BaseCase!AJ154)/10^6 -> -0.2271519799 | AC20: =SUMPRODUCT('RevReq_ExitCase_(2021)'!AK$143:AK$162,N('RevReq_ExitCase_(2021)'!$A$143:$A$162=$D20 ))/10^6-SUMPRODUCT(RevReq_BaseCase!AK$143:AK$162,N(RevReq_BaseCase!$A$143:$A$162=$D20 ))/10^6-+('RevReq_ExitCase_(2021)'!AK154-RevReq_BaseCase!AK154)/10^6 -> -0.2316950194 | AD20: =SUMPRODUCT('RevReq_ExitCase_(2021)'!AL$143:AL$162,N('RevReq_ExitCase_(2021)'!$A$143:$A$162=$D20 ))/10^6-SUMPRODUCT(RevReq_BaseCase!AL$143:AL$162,N(RevReq_BaseCase!$A$143:$A$162=$D20 ))/10^6-+('RevReq_ExitCase_(2021)'!AL154-RevReq_BaseCase!AL154)/10^6 -> -0.2363289198 | AE20: =SUMPRODUCT('RevReq_ExitCase_(2021)'!AM$143:AM$162,N('RevReq_ExitCase_(2021)'!$A$143:$A$162=$D20 ))/10^6-SUMPRODUCT(RevReq_BaseCase!AM$143:AM$162,N(RevReq_BaseCase!$A$143:$A$162=$D20 ))/10^6-+('RevReq_ExitCase_(2021)'!AM154-RevReq_BaseCase!AM154)/10^6 -> -0.2410554982 | AF20: =SUMPRODUCT('RevReq_ExitCase_(2021)'!AN$143:AN$162,N('RevReq_ExitCase_(2021)'!$A$143:$A$162=$D20 ))/10^6-SUMPRODUCT(RevReq_BaseCase!AN$143:AN$162,N(RevReq_BaseCase!$A$143:$A$162=$D20 ))/10^6-+('RevReq_ExitCase_(2021)'!AN154-RevReq_BaseCase!AN154)/10^6 -> -0.2458766082 | AG20: =SUMPRODUCT('RevReq_ExitCase_(2021)'!AO$143:AO$162,N('RevReq_ExitCase_(2021)'!$A$143:$A$162=$D20 ))/10^6-SUMPRODUCT(RevReq_BaseCase!AO$143:AO$162,N(RevReq_BaseCase!$A$143:$A$162=$D20 ))/10^6-+('RevReq_ExitCase_(2021)'!AO154-RevReq_BaseCase!AO154)/10^6 -> -0.2507941404 | AH20: =SUMPRODUCT('RevReq_ExitCase_(2021)'!AP$143:AP$162,N('RevReq_ExitCase_(2021)'!$A$143:$A$162=$D20 ))/10^6-SUMPRODUCT(RevReq_BaseCase!AP$143:AP$162,N(RevReq_BaseCase!$A$143:$A$162=$D20 ))/10^6-+('RevReq_ExitCase_(2021)'!AP154-RevReq_BaseCase!AP154)/10^6 -> -0.2558100232 | AI20: =SUMPRODUCT('RevReq_ExitCase_(2021)'!AQ$143:AQ$162,N('RevReq_ExitCase_(2021)'!$A$143:$A$162=$D20 ))/10^6-SUMPRODUCT(RevReq_BaseCase!AQ$143:AQ$162,N(RevReq_BaseCase!$A$143:$A$162=$D20 ))/10^6-+('RevReq_ExitCase_(2021)'!AQ154-RevReq_BaseCase!AQ154)/10^6 -> -0.2609262236 | AJ20: =SUMPRODUCT('RevReq_ExitCase_(2021)'!AR$143:AR$162,N('RevReq_ExitCase_(2021)'!$A$143:$A$162=$D20 ))/10^6-SUMPRODUCT(RevReq_BaseCase!AR$143:AR$162,N(RevReq_BaseCase!$A$143:$A$162=$D20 ))/10^6-+('RevReq_ExitCase_(2021)'!AR154-RevReq_BaseCase!AR154)/10^6 -> -0.2661447481 | AK20: =SUMPRODUCT('RevReq_ExitCase_(2021)'!AS$143:AS$162,N('RevReq_ExitCase_(2021)'!$A$143:$A$162=$D20 ))/10^6-SUMPRODUCT(RevReq_BaseCase!AS$143:AS$162,N(RevReq_BaseCase!$A$143:$A$162=$D20 ))/10^6-+('RevReq_ExitCase_(2021)'!AS154-RevReq_BaseCase!AS154)/10^6 -> -0.2714676431 | AL20: =SUMPRODUCT('RevReq_ExitCase_(2021)'!AT$143:AT$162,N('RevReq_ExitCase_(2021)'!$A$143:$A$162=$D20 ))/10^6-SUMPRODUCT(RevReq_BaseCase!AT$143:AT$162,N(RevReq_BaseCase!$A$143:$A$162=$D20 ))/10^6-+('RevReq_ExitCase_(2021)'!AT154-RevReq_BaseCase!AT154)/10^6 -> -0.2768969959 | AM20: =SUMPRODUCT('RevReq_ExitCase_(2021)'!AU$143:AU$162,N('RevReq_ExitCase_(2021)'!$A$143:$A$162=$D20 ))/10^6-SUMPRODUCT(RevReq_BaseCase!AU$143:AU$162,N(RevReq_BaseCase!$A$143:$A$162=$D20 ))/10^6-+('RevReq_ExitCase_(2021)'!AU154-RevReq_BaseCase!AU154)/10^6 -> -0.2824349358 | AN20: =SUMPRODUCT('RevReq_ExitCase_(2021)'!AV$143:AV$162,N('RevReq_ExitCase_(2021)'!$A$143:$A$162=$D20 ))/10^6-SUMPRODUCT(RevReq_BaseCase!AV$143:AV$162,N(RevReq_BaseCase!$A$143:$A$162=$D20 ))/10^6-+('RevReq_ExitCase_(2021)'!AV154-RevReq_BaseCase!AV154)/10^6 -> -0.2880836346 | AO20: =SUMPRODUCT('RevReq_ExitCase_(2021)'!AW$143:AW$162,N('RevReq_ExitCase_(2021)'!$A$143:$A$162=$D20 ))/10^6-SUMPRODUCT(RevReq_BaseCase!AW$143:AW$162,N(RevReq_BaseCase!$A$143:$A$162=$D20 ))/10^6-+('RevReq_ExitCase_(2021)'!AW154-RevReq_BaseCase!AW154)/10^6 -> -0.2938453073 | AP20: =SUMPRODUCT('RevReq_ExitCase_(2021)'!AX$143:AX$162,N('RevReq_ExitCase_(2021)'!$A$143:$A$162=$D20 ))/10^6-SUMPRODUCT(RevReq_BaseCase!AX$143:AX$162,N(RevReq_BaseCase!$A$143:$A$162=$D20 ))/10^6-+('RevReq_ExitCase_(2021)'!AX154-RevReq_BaseCase!AX154)/10^6 -> -0.2997222134 | AQ20: =SUMPRODUCT('RevReq_ExitCase_(2021)'!AY$143:AY$162,N('RevReq_ExitCase_(2021)'!$A$143:$A$162=$D20 ))/10^6-SUMPRODUCT(RevReq_BaseCase!AY$143:AY$162,N(RevReq_BaseCase!$A$143:$A$162=$D20 ))/10^6-+('RevReq_ExitCase_(2021)'!AY154-RevReq_BaseCase!AY154)/10^6 -> -0.3057166577 | AS20: =SUM(W20:AQ20) -> -5.304622208
B21: Property Tax | D21: Clause | E21: =SUM(I21:AQ21) -> -9.581230166 | G21: =SUMPRODUCT(I21:AQ21,$I$7:$AQ$7) -> -8.381083979 | I21: =SUMPRODUCT('RevReq_ExitCase_(2021)'!Q$767:Q$791,N('RevReq_ExitCase_(2021)'!$A$767:$A$791=$D21 ))/10^6-SUMPRODUCT(RevReq_BaseCase!Q$767:Q$791,N(RevReq_BaseCase!$A$767:$A$791=$D21 ))/10^6+('RevReq_ExitCase_(2021)'!Q154-RevReq_BaseCase!Q154)/10^6 -> -2.664314434 | J21: =SUMPRODUCT('RevReq_ExitCase_(2021)'!R$767:R$791,N('RevReq_ExitCase_(2021)'!$A$767:$A$791=$D21 ))/10^6-SUMPRODUCT(RevReq_BaseCase!R$767:R$791,N(RevReq_BaseCase!$A$767:$A$791=$D21 ))/10^6+('RevReq_ExitCase_(2021)'!R154-RevReq_BaseCase!R154)/10^6 -> -2.549410055 | K21: =SUMPRODUCT('RevReq_ExitCase_(2021)'!S$767:S$791,N('RevReq_ExitCase_(2021)'!$A$767:$A$791=$D21 ))/10^6-SUMPRODUCT(RevReq_BaseCase!S$767:S$791,N(RevReq_BaseCase!$A$767:$A$791=$D21 ))/10^6+('RevReq_ExitCase_(2021)'!S154-RevReq_BaseCase!S154)/10^6 -> -2.434505677 | L21: =SUMPRODUCT('RevReq_ExitCase_(2021)'!T$767:T$791,N('RevReq_ExitCase_(2021)'!$A$767:$A$791=$D21 ))/10^6-SUMPRODUCT(RevReq_BaseCase!T$767:T$791,N(RevReq_BaseCase!$A$767:$A$791=$D21 ))/10^6+('RevReq_ExitCase_(2021)'!T154-RevReq_BaseCase!T154)/10^6 -> -1.933 | M21: =SUMPRODUCT('RevReq_ExitCase_(2021)'!U$767:U$791,N('RevReq_ExitCase_(2021)'!$A$767:$A$791=$D21 ))/10^6-SUMPRODUCT(RevReq_BaseCase!U$767:U$791,N(RevReq_BaseCase!$A$767:$A$791=$D21 ))/10^6+('RevReq_ExitCase_(2021)'!U154-RevReq_BaseCase!U154)/10^6 -> 0 | N21: =SUMPRODUCT('RevReq_ExitCase_(2021)'!V$767:V$791,N('RevReq_ExitCase_(2021)'!$A$767:$A$791=$D21 ))/10^6-SUMPRODUCT(RevReq_BaseCase!V$767:V$791,N(RevReq_BaseCase!$A$767:$A$791=$D21 ))/10^6+('RevReq_ExitCase_(2021)'!V154-RevReq_BaseCase!V154)/10^6 -> 0 | O21: =SUMPRODUCT('RevReq_ExitCase_(2021)'!W$767:W$791,N('RevReq_ExitCase_(2021)'!$A$767:$A$791=$D21 ))/10^6-SUMPRODUCT(RevReq_BaseCase!W$767:W$791,N(RevReq_BaseCase!$A$767:$A$791=$D21 ))/10^6+('RevReq_ExitCase_(2021)'!W154-RevReq_BaseCase!W154)/10^6 -> 0 | P21: =SUMPRODUCT('RevReq_ExitCase_(2021)'!X$767:X$791,N('RevReq_ExitCase_(2021)'!$A$767:$A$791=$D21 ))/10^6-SUMPRODUCT(RevReq_BaseCase!X$767:X$791,N(RevReq_BaseCase!$A$767:$A$791=$D21 ))/10^6+('RevReq_ExitCase_(2021)'!X154-RevReq_BaseCase!X154)/10^6 -> 0 | Q21: =SUMPRODUCT('RevReq_ExitCase_(2021)'!Y$767:Y$791,N('RevReq_ExitCase_(2021)'!$A$767:$A$791=$D21 ))/10^6-SUMPRODUCT(RevReq_BaseCase!Y$767:Y$791,N(RevReq_BaseCase!$A$767:$A$791=$D21 ))/10^6+('RevReq_ExitCase_(2021)'!Y154-RevReq_BaseCase!Y154)/10^6 -> 0 | R21: =SUMPRODUCT('RevReq_ExitCase_(2021)'!Z$767:Z$791,N('RevReq_ExitCase_(2021)'!$A$767:$A$791=$D21 ))/10^6-SUMPRODUCT(RevReq_BaseCase!Z$767:Z$791,N(RevReq_BaseCase!$A$767:$A$791=$D21 ))/10^6+('RevReq_ExitCase_(2021)'!Z154-RevReq_BaseCase!Z154)/10^6 -> 0 | S21: =SUMPRODUCT('RevReq_ExitCase_(2021)'!AA$767:AA$791,N('RevReq_ExitCase_(2021)'!$A$767:$A$791=$D21 ))/10^6-SUMPRODUCT(RevReq_BaseCase!AA$767:AA$791,N(RevReq_BaseCase!$A$767:$A$791=$D21 ))/10^6+('RevReq_ExitCase_(2021)'!AA154-RevReq_BaseCase!AA154)/10^6 -> 0 | T21: =SUMPRODUCT('RevReq_ExitCase_(2021)'!AB$767:AB$791,N('RevReq_ExitCase_(2021)'!$A$767:$A$791=$D21 ))/10^6-SUMPRODUCT(RevReq_BaseCase!AB$767:AB$791,N(RevReq_BaseCase!$A$767:$A$791=$D21 ))/10^6+('RevReq_ExitCase_(2021)'!AB154-RevReq_BaseCase!AB154)/10^6 -> 0 | U21: =SUMPRODUCT('RevReq_ExitCase_(2021)'!AC$767:AC$791,N('RevReq_ExitCase_(2021)'!$A$767:$A$791=$D21 ))/10^6-SUMPRODUCT(RevReq_BaseCase!AC$767:AC$791,N(RevReq_BaseCase!$A$767:$A$791=$D21 ))/10^6+('RevReq_ExitCase_(2021)'!AC154-RevReq_BaseCase!AC154)/10^6 -> 0 | V21: =SUMPRODUCT('RevReq_ExitCase_(2021)'!AD$767:AD$791,N('RevReq_ExitCase_(2021)'!$A$767:$A$791=$D21 ))/10^6-SUMPRODUCT(RevReq_BaseCase!AD$767:AD$791,N(RevReq_BaseCase!$A$767:$A$791=$D21 ))/10^6+('RevReq_ExitCase_(2021)'!AD154-RevReq_BaseCase!AD154)/10^6 -> 0 | W21: =SUMPRODUCT('RevReq_ExitCase_(2021)'!AE$767:AE$791,N('RevReq_ExitCase_(2021)'!$A$767:$A$791=$D21 ))/10^6-SUMPRODUCT(RevReq_BaseCase!AE$767:AE$791,N(RevReq_BaseCase!$A$767:$A$791=$D21 ))/10^6+('RevReq_ExitCase_(2021)'!AE154-RevReq_BaseCase!AE154)/10^6 -> 0 | X21: =SUMPRODUCT('RevReq_ExitCase_(2021)'!AF$767:AF$791,N('RevReq_ExitCase_(2021)'!$A$767:$A$791=$D21 ))/10^6-SUMPRODUCT(RevReq_BaseCase!AF$767:AF$791,N(RevReq_BaseCase!$A$767:$A$791=$D21 ))/10^6+('RevReq_ExitCase_(2021)'!AF154-RevReq_BaseCase!AF154)/10^6 -> 0 | Y21: =SUMPRODUCT('RevReq_ExitCase_(2021)'!AG$767:AG$791,N('RevReq_ExitCase_(2021)'!$A$767:$A$791=$D21 ))/10^6-SUMPRODUCT(RevReq_BaseCase!AG$767:AG$791,N(RevReq_BaseCase!$A$767:$A$791=$D21 ))/10^6+('RevReq_ExitCase_(2021)'!AG154-RevReq_BaseCase!AG154)/10^6 -> 0 | Z21: =SUMPRODUCT('RevReq_ExitCase_(2021)'!AH$767:AH$791,N('RevReq_ExitCase_(2021)'!$A$767:$A$791=$D21 ))/10^6-SUMPRODUCT(RevReq_BaseCase!AH$767:AH$791,N(RevReq_BaseCase!$A$767:$A$791=$D21 ))/10^6+('RevReq_ExitCase_(2021)'!AH154-RevReq_BaseCase!AH154)/10^6 -> 0 | AA21: =SUMPRODUCT('RevReq_ExitCase_(2021)'!AI$767:AI$791,N('RevReq_ExitCase_(2021)'!$A$767:$A$791=$D21 ))/10^6-SUMPRODUCT(RevReq_BaseCase!AI$767:AI$791,N(RevReq_BaseCase!$A$767:$A$791=$D21 ))/10^6+('RevReq_ExitCase_(2021)'!AI154-RevReq_BaseCase!AI154)/10^6 -> 0 | AB21: =SUMPRODUCT('RevReq_ExitCase_(2021)'!AJ$767:AJ$791,N('RevReq_ExitCase_(2021)'!$A$767:$A$791=$D21 ))/10^6-SUMPRODUCT(RevReq_BaseCase!AJ$767:AJ$791,N(RevReq_BaseCase!$A$767:$A$791=$D21 ))/10^6+('RevReq_ExitCase_(2021)'!AJ154-RevReq_BaseCase!AJ154)/10^6 -> 0 | AC21: =SUMPRODUCT('RevReq_ExitCase_(2021)'!AK$767:AK$791,N('RevReq_ExitCase_(2021)'!$A$767:$A$791=$D21 ))/10^6-SUMPRODUCT(RevReq_BaseCase!AK$767:AK$791,N(RevReq_BaseCase!$A$767:$A$791=$D21 ))/10^6+('RevReq_ExitCase_(2021)'!AK154-RevReq_BaseCase!AK154)/10^6 -> 0 | AD21: =SUMPRODUCT('RevReq_ExitCase_(2021)'!AL$767:AL$791,N('RevReq_ExitCase_(2021)'!$A$767:$A$791=$D21 ))/10^6-SUMPRODUCT(RevReq_BaseCase!AL$767:AL$791,N(RevReq_BaseCase!$A$767:$A$791=$D21 ))/10^6+('RevReq_ExitCase_(2021)'!AL154-RevReq_BaseCase!AL154)/10^6 -> 0 | AE21: =SUMPRODUCT('RevReq_ExitCase_(2021)'!AM$767:AM$791,N('RevReq_ExitCase_(2021)'!$A$767:$A$791=$D21 ))/10^6-SUMPRODUCT(RevReq_BaseCase!AM$767:AM$791,N(RevReq_BaseCase!$A$767:$A$791=$D21 ))/10^6+('RevReq_ExitCase_(2021)'!AM154-RevReq_BaseCase!AM154)/10^6 -> 0 | AF21: =SUMPRODUCT('RevReq_ExitCase_(2021)'!AN$767:AN$791,N('RevReq_ExitCase_(2021)'!$A$767:$A$791=$D21 ))/10^6-SUMPRODUCT(RevReq_BaseCase!AN$767:AN$791,N(RevReq_BaseCase!$A$767:$A$791=$D21 ))/10^6+('RevReq_ExitCase_(2021)'!AN154-RevReq_BaseCase!AN154)/10^6 -> 0 | AG21: =SUMPRODUCT('RevReq_ExitCase_(2021)'!AO$767:AO$791,N('RevReq_ExitCase_(2021)'!$A$767:$A$791=$D21 ))/10^6-SUMPRODUCT(RevReq_BaseCase!AO$767:AO$791,N(RevReq_BaseCase!$A$767:$A$791=$D21 ))/10^6+('RevReq_ExitCase_(2021)'!AO154-RevReq_BaseCase!AO154)/10^6 -> 0 | AH21: =SUMPRODUCT('RevReq_ExitCase_(2021)'!AP$767:AP$791,N('RevReq_ExitCase_(2021)'!$A$767:$A$791=$D21 ))/10^6-SUMPRODUCT(RevReq_BaseCase!AP$767:AP$791,N(RevReq_BaseCase!$A$767:$A$791=$D21 ))/10^6+('RevReq_ExitCase_(2021)'!AP154-RevReq_BaseCase!AP154)/10^6 -> 0 | AI21: =SUMPRODUCT('RevReq_ExitCase_(2021)'!AQ$767:AQ$791,N('RevReq_ExitCase_(2021)'!$A$767:$A$791=$D21 ))/10^6-SUMPRODUCT(RevReq_BaseCase!AQ$767:AQ$791,N(RevReq_BaseCase!$A$767:$A$791=$D21 ))/10^6+('RevReq_ExitCase_(2021)'!AQ154-RevReq_BaseCase!AQ154)/10^6 -> 0 | AJ21: =SUMPRODUCT('RevReq_ExitCase_(2021)'!AR$767:AR$791,N('RevReq_ExitCase_(2021)'!$A$767:$A$791=$D21 ))/10^6-SUMPRODUCT(RevReq_BaseCase!AR$767:AR$791,N(RevReq_BaseCase!$A$767:$A$791=$D21 ))/10^6+('RevReq_ExitCase_(2021)'!AR154-RevReq_BaseCase!AR154)/10^6 -> 0 | AK21: =SUMPRODUCT('RevReq_ExitCase_(2021)'!AS$767:AS$791,N('RevReq_ExitCase_(2021)'!$A$767:$A$791=$D21 ))/10^6-SUMPRODUCT(RevReq_BaseCase!AS$767:AS$791,N(RevReq_BaseCase!$A$767:$A$791=$D21 ))/10^6+('RevReq_ExitCase_(2021)'!AS154-RevReq_BaseCase!AS154)/10^6 -> 0 | AL21: =SUMPRODUCT('RevReq_ExitCase_(2021)'!AT$767:AT$791,N('RevReq_ExitCase_(2021)'!$A$767:$A$791=$D21 ))/10^6-SUMPRODUCT(RevReq_BaseCase!AT$767:AT$791,N(RevReq_BaseCase!$A$767:$A$791=$D21 ))/10^6+('RevReq_ExitCase_(2021)'!AT154-RevReq_BaseCase!AT154)/10^6 -> 0 | AM21: =SUMPRODUCT('RevReq_ExitCase_(2021)'!AU$767:AU$791,N('RevReq_ExitCase_(2021)'!$A$767:$A$791=$D21 ))/10^6-SUMPRODUCT(RevReq_BaseCase!AU$767:AU$791,N(RevReq_BaseCase!$A$767:$A$791=$D21 ))/10^6+('RevReq_ExitCase_(2021)'!AU154-RevReq_BaseCase!AU154)/10^6 -> 0 | AN21: =SUMPRODUCT('RevReq_ExitCase_(2021)'!AV$767:AV$791,N('RevReq_ExitCase_(2021)'!$A$767:$A$791=$D21 ))/10^6-SUMPRODUCT(RevReq_BaseCase!AV$767:AV$791,N(RevReq_BaseCase!$A$767:$A$791=$D21 ))/10^6+('RevReq_ExitCase_(2021)'!AV154-RevReq_BaseCase!AV154)/10^6 -> 0 | AO21: =SUMPRODUCT('RevReq_ExitCase_(2021)'!AW$767:AW$791,N('RevReq_ExitCase_(2021)'!$A$767:$A$791=$D21 ))/10^6-SUMPRODUCT(RevReq_BaseCase!AW$767:AW$791,N(RevReq_BaseCase!$A$767:$A$791=$D21 ))/10^6+('RevReq_ExitCase_(2021)'!AW154-RevReq_BaseCase!AW154)/10^6 -> 0 | AP21: =SUMPRODUCT('RevReq_ExitCase_(2021)'!AX$767:AX$791,N('RevReq_ExitCase_(2021)'!$A$767:$A$791=$D21 ))/10^6-SUMPRODUCT(RevReq_BaseCase!AX$767:AX$791,N(RevReq_BaseCase!$A$767:$A$791=$D21 ))/10^6+('RevReq_ExitCase_(2021)'!AX154-RevReq_BaseCase!AX154)/10^6 -> 0 | AQ21: =SUMPRODUCT('RevReq_ExitCase_(2021)'!AY$767:AY$791,N('RevReq_ExitCase_(2021)'!$A$767:$A$791=$D21 ))/10^6-SUMPRODUCT(RevReq_BaseCase!AY$767:AY$791,N(RevReq_BaseCase!$A$767:$A$791=$D21 ))/10^6+('RevReq_ExitCase_(2021)'!AY154-RevReq_BaseCase!AY154)/10^6 -> 0 | AS21: 0
B22: System Impact(9) | D22: Clause | E22: -142.2880261 | G22: =SUMPRODUCT(I22:AQ22,$I$7:$AQ$7) -> 29.91106609 | I22: =SUMPRODUCT('RevReq_ExitCase_(2021)'!Q$163:Q$167,N('RevReq_ExitCase_(2021)'!$A$163:$A$167=$D22 ))/10^6-SUMPRODUCT(RevReq_BaseCase!Q$163:Q$167,N(RevReq_BaseCase!$A$163:$A$167=$D22 ))/10^6 -> 13.543415 | J22: =SUMPRODUCT('RevReq_ExitCase_(2021)'!R$163:R$167,N('RevReq_ExitCase_(2021)'!$A$163:$A$167=$D22 ))/10^6-SUMPRODUCT(RevReq_BaseCase!R$163:R$167,N(RevReq_BaseCase!$A$163:$A$167=$D22 ))/10^6 -> 10 | K22: =SUMPRODUCT('RevReq_ExitCase_(2021)'!S$163:S$167,N('RevReq_ExitCase_(2021)'!$A$163:$A$167=$D22 ))/10^6-SUMPRODUCT(RevReq_BaseCase!S$163:S$167,N(RevReq_BaseCase!$A$163:$A$167=$D22 ))/10^6 -> 0.48 | L22: =SUMPRODUCT('RevReq_ExitCase_(2021)'!T$163:T$167,N('RevReq_ExitCase_(2021)'!$A$163:$A$167=$D22 ))/10^6-SUMPRODUCT(RevReq_BaseCase!T$163:T$167,N(RevReq_BaseCase!$A$163:$A$167=$D22 ))/10^6 -> 0.07 | M22: =SUMPRODUCT('RevReq_ExitCase_(2021)'!U$163:U$167,N('RevReq_ExitCase_(2021)'!$A$163:$A$167=$D22 ))/10^6-SUMPRODUCT(RevReq_BaseCase!U$163:U$167,N(RevReq_BaseCase!$A$163:$A$167=$D22 ))/10^6 -> -0.92 | N22: =SUMPRODUCT('RevReq_ExitCase_(2021)'!V$163:V$167,N('RevReq_ExitCase_(2021)'!$A$163:$A$167=$D22 ))/10^6-SUMPRODUCT(RevReq_BaseCase!V$163:V$167,N(RevReq_BaseCase!$A$163:$A$167=$D22 ))/10^6 -> -0.67 | O22: =SUMPRODUCT('RevReq_ExitCase_(2021)'!W$163:W$167,N('RevReq_ExitCase_(2021)'!$A$163:$A$167=$D22 ))/10^6-SUMPRODUCT(RevReq_BaseCase!W$163:W$167,N(RevReq_BaseCase!$A$163:$A$167=$D22 ))/10^6 -> -2.11 | P22: =SUMPRODUCT('RevReq_ExitCase_(2021)'!X$163:X$167,N('RevReq_ExitCase_(2021)'!$A$163:$A$167=$D22 ))/10^6-SUMPRODUCT(RevReq_BaseCase!X$163:X$167,N(RevReq_BaseCase!$A$163:$A$167=$D22 ))/10^6 -> 8.775281792 | Q22: =SUMPRODUCT('RevReq_ExitCase_(2021)'!Y$163:Y$167,N('RevReq_ExitCase_(2021)'!$A$163:$A$167=$D22 ))/10^6-SUMPRODUCT(RevReq_BaseCase!Y$163:Y$167,N(RevReq_BaseCase!$A$163:$A$167=$D22 ))/10^6 -> 9.895281792 | R22: =SUMPRODUCT('RevReq_ExitCase_(2021)'!Z$163:Z$167,N('RevReq_ExitCase_(2021)'!$A$163:$A$167=$D22 ))/10^6-SUMPRODUCT(RevReq_BaseCase!Z$163:Z$167,N(RevReq_BaseCase!$A$163:$A$167=$D22 ))/10^6 -> 20.96745885 | S22: =SUMPRODUCT('RevReq_ExitCase_(2021)'!AA$163:AA$167,N('RevReq_ExitCase_(2021)'!$A$163:$A$167=$D22 ))/10^6-SUMPRODUCT(RevReq_BaseCase!AA$163:AA$167,N(RevReq_BaseCase!$A$163:$A$167=$D22 ))/10^6 -> 9.055281792 | T22: =SUMPRODUCT('RevReq_ExitCase_(2021)'!AB$163:AB$167,N('RevReq_ExitCase_(2021)'!$A$163:$A$167=$D22 ))/10^6-SUMPRODUCT(RevReq_BaseCase!AB$163:AB$167,N(RevReq_BaseCase!$A$163:$A$167=$D22 ))/10^6 -> 9.015281792 | U22: =SUMPRODUCT('RevReq_ExitCase_(2021)'!AC$163:AC$167,N('RevReq_ExitCase_(2021)'!$A$163:$A$167=$D22 ))/10^6-SUMPRODUCT(RevReq_BaseCase!AC$163:AC$167,N(RevReq_BaseCase!$A$163:$A$167=$D22 ))/10^6 -> 18.52377348 | V22: =SUMPRODUCT('RevReq_ExitCase_(2021)'!AD$163:AD$167,N('RevReq_ExitCase_(2021)'!$A$163:$A$167=$D22 ))/10^6-SUMPRODUCT(RevReq_BaseCase!AD$163:AD$167,N(RevReq_BaseCase!$A$163:$A$167=$D22 ))/10^6 -> 7.625281792 | W22: =SUMPRODUCT('RevReq_ExitCase_(2021)'!AE$163:AE$167,N('RevReq_ExitCase_(2021)'!$A$163:$A$167=$D22 ))/10^6-SUMPRODUCT(RevReq_BaseCase!AE$163:AE$167,N(RevReq_BaseCase!$A$163:$A$167=$D22 ))/10^6 -> 5.865281792 | X22: =SUMPRODUCT('RevReq_ExitCase_(2021)'!AF$163:AF$167,N('RevReq_ExitCase_(2021)'!$A$163:$A$167=$D22 ))/10^6-SUMPRODUCT(RevReq_BaseCase!AF$163:AF$167,N(RevReq_BaseCase!$A$163:$A$167=$D22 ))/10^6 -> 1.645281792 | Y22: =SUMPRODUCT('RevReq_ExitCase_(2021)'!AG$163:AG$167,N('RevReq_ExitCase_(2021)'!$A$163:$A$167=$D22 ))/10^6-SUMPRODUCT(RevReq_BaseCase!AG$163:AG$167,N(RevReq_BaseCase!$A$163:$A$167=$D22 ))/10^6 -> 0.7452817917 | Z22: =SUMPRODUCT('RevReq_ExitCase_(2021)'!AH$163:AH$167,N('RevReq_ExitCase_(2021)'!$A$163:$A$167=$D22 ))/10^6-SUMPRODUCT(RevReq_BaseCase!AH$163:AH$167,N(RevReq_BaseCase!$A$163:$A$167=$D22 ))/10^6 -> -0.9847182083 | AA22: =SUMPRODUCT('RevReq_ExitCase_(2021)'!AI$163:AI$167,N('RevReq_ExitCase_(2021)'!$A$163:$A$167=$D22 ))/10^6-SUMPRODUCT(RevReq_BaseCase!AI$163:AI$167,N(RevReq_BaseCase!$A$163:$A$167=$D22 ))/10^6 -> -3.034718208 | AB22: =SUMPRODUCT('RevReq_ExitCase_(2021)'!AJ$163:AJ$167,N('RevReq_ExitCase_(2021)'!$A$163:$A$167=$D22 ))/10^6-SUMPRODUCT(RevReq_BaseCase!AJ$163:AJ$167,N(RevReq_BaseCase!$A$163:$A$167=$D22 ))/10^6 -> -2.354718208 | AC22: =SUMPRODUCT('RevReq_ExitCase_(2021)'!AK$163:AK$167,N('RevReq_ExitCase_(2021)'!$A$163:$A$167=$D22 ))/10^6-SUMPRODUCT(RevReq_BaseCase!AK$163:AK$167,N(RevReq_BaseCase!$A$163:$A$167=$D22 ))/10^6 -> -4.884718208 | AD22: =SUMPRODUCT('RevReq_ExitCase_(2021)'!AL$163:AL$167,N('RevReq_ExitCase_(2021)'!$A$163:$A$167=$D22 ))/10^6-SUMPRODUCT(RevReq_BaseCase!AL$163:AL$167,N(RevReq_BaseCase!$A$163:$A$167=$D22 ))/10^6 -> -6.604718208 | AE22: =SUMPRODUCT('RevReq_ExitCase_(2021)'!AM$163:AM$167,N('RevReq_ExitCase_(2021)'!$A$163:$A$167=$D22 ))/10^6-SUMPRODUCT(RevReq_BaseCase!AM$163:AM$167,N(RevReq_BaseCase!$A$163:$A$167=$D22 ))/10^6 -> -7.004718208 | AF22: =SUMPRODUCT('RevReq_ExitCase_(2021)'!AN$163:AN$167,N('RevReq_ExitCase_(2021)'!$A$163:$A$167=$D22 ))/10^6-SUMPRODUCT(RevReq_BaseCase!AN$163:AN$167,N(RevReq_BaseCase!$A$163:$A$167=$D22 ))/10^6 -> -7.684718208 | AG22: =SUMPRODUCT('RevReq_ExitCase_(2021)'!AO$163:AO$167,N('RevReq_ExitCase_(2021)'!$A$163:$A$167=$D22 ))/10^6-SUMPRODUCT(RevReq_BaseCase!AO$163:AO$167,N(RevReq_BaseCase!$A$163:$A$167=$D22 ))/10^6 -> -11.03471821 | AH22: =SUMPRODUCT('RevReq_ExitCase_(2021)'!AP$163:AP$167,N('RevReq_ExitCase_(2021)'!$A$163:$A$167=$D22 ))/10^6-SUMPRODUCT(RevReq_BaseCase!AP$163:AP$167,N(RevReq_BaseCase!$A$163:$A$167=$D22 ))/10^6 -> -16.90471821 | AI22: =SUMPRODUCT('RevReq_ExitCase_(2021)'!AQ$163:AQ$167,N('RevReq_ExitCase_(2021)'!$A$163:$A$167=$D22 ))/10^6-SUMPRODUCT(RevReq_BaseCase!AQ$163:AQ$167,N(RevReq_BaseCase!$A$163:$A$167=$D22 ))/10^6 -> -19.23471821 | AJ22: =SUMPRODUCT('RevReq_ExitCase_(2021)'!AR$163:AR$167,N('RevReq_ExitCase_(2021)'!$A$163:$A$167=$D22 ))/10^6-SUMPRODUCT(RevReq_BaseCase!AR$163:AR$167,N(RevReq_BaseCase!$A$163:$A$167=$D22 ))/10^6 -> -17.32471821 | AK22: =SUMPRODUCT('RevReq_ExitCase_(2021)'!AS$163:AS$167,N('RevReq_ExitCase_(2021)'!$A$163:$A$167=$D22 ))/10^6-SUMPRODUCT(RevReq_BaseCase!AS$163:AS$167,N(RevReq_BaseCase!$A$163:$A$167=$D22 ))/10^6 -> -15.33471821 | AL22: =SUMPRODUCT('RevReq_ExitCase_(2021)'!AT$163:AT$167,N('RevReq_ExitCase_(2021)'!$A$163:$A$167=$D22 ))/10^6-SUMPRODUCT(RevReq_BaseCase!AT$163:AT$167,N(RevReq_BaseCase!$A$163:$A$167=$D22 ))/10^6 -> -23.73471821 | AM22: =SUMPRODUCT('RevReq_ExitCase_(2021)'!AU$163:AU$167,N('RevReq_ExitCase_(2021)'!$A$163:$A$167=$D22 ))/10^6-SUMPRODUCT(RevReq_BaseCase!AU$163:AU$167,N(RevReq_BaseCase!$A$163:$A$167=$D22 ))/10^6 -> -23.73471821 | AN22: =SUMPRODUCT('RevReq_ExitCase_(2021)'!AV$163:AV$167,N('RevReq_ExitCase_(2021)'!$A$163:$A$167=$D22 ))/10^6-SUMPRODUCT(RevReq_BaseCase!AV$163:AV$167,N(RevReq_BaseCase!$A$163:$A$167=$D22 ))/10^6 -> -23.73471821 | AO22: =SUMPRODUCT('RevReq_ExitCase_(2021)'!AW$163:AW$167,N('RevReq_ExitCase_(2021)'!$A$163:$A$167=$D22 ))/10^6-SUMPRODUCT(RevReq_BaseCase!AW$163:AW$167,N(RevReq_BaseCase!$A$163:$A$167=$D22 ))/10^6 -> -23.73471821 | AP22: =SUMPRODUCT('RevReq_ExitCase_(2021)'!AX$163:AX$167,N('RevReq_ExitCase_(2021)'!$A$163:$A$167=$D22 ))/10^6-SUMPRODUCT(RevReq_BaseCase!AX$163:AX$167,N(RevReq_BaseCase!$A$163:$A$167=$D22 ))/10^6 -> -23.73471821 | AQ22: =SUMPRODUCT('RevReq_ExitCase_(2021)'!AY$163:AY$167,N('RevReq_ExitCase_(2021)'!$A$163:$A$167=$D22 ))/10^6-SUMPRODUCT(RevReq_BaseCase!AY$163:AY$167,N(RevReq_BaseCase!$A$163:$A$167=$D22 ))/10^6 -> -23.73471821 | AS22: -246.5390824
B23: Depreciation and Amortization(10) | D23: Clause | E23: =SUM(I23:AQ23) -> 41.387502 | G23: =SUMPRODUCT(I23:AQ23,$I$7:$AQ$7) -> 50.08110709 | I23: =SUMPRODUCT('RevReq_ExitCase_(2021)'!Q$232:Q$256,N('RevReq_ExitCase_(2021)'!$A$232:$A$256=$D23 ))/10^6-SUMPRODUCT(RevReq_BaseCase!Q$232:Q$256,N(RevReq_BaseCase!$A$232:$A$256=$D23 ))/10^6 -> 17.0674139 | J23: =SUMPRODUCT('RevReq_ExitCase_(2021)'!R$232:R$256,N('RevReq_ExitCase_(2021)'!$A$232:$A$256=$D23 ))/10^6-SUMPRODUCT(RevReq_BaseCase!R$232:R$256,N(RevReq_BaseCase!$A$232:$A$256=$D23 ))/10^6 -> 7.974449181 | K23: =SUMPRODUCT('RevReq_ExitCase_(2021)'!S$232:S$256,N('RevReq_ExitCase_(2021)'!$A$232:$A$256=$D23 ))/10^6-SUMPRODUCT(RevReq_BaseCase!S$232:S$256,N(RevReq_BaseCase!$A$232:$A$256=$D23 ))/10^6 -> 9.403611111 | L23: =SUMPRODUCT('RevReq_ExitCase_(2021)'!T$232:T$256,N('RevReq_ExitCase_(2021)'!$A$232:$A$256=$D23 ))/10^6-SUMPRODUCT(RevReq_BaseCase!T$232:T$256,N(RevReq_BaseCase!$A$232:$A$256=$D23 ))/10^6 -> 12.53190888 | M23: =SUMPRODUCT('RevReq_ExitCase_(2021)'!U$232:U$256,N('RevReq_ExitCase_(2021)'!$A$232:$A$256=$D23 ))/10^6-SUMPRODUCT(RevReq_BaseCase!U$232:U$256,N(RevReq_BaseCase!$A$232:$A$256=$D23 ))/10^6 -> 3.095075688 | N23: =SUMPRODUCT('RevReq_ExitCase_(2021)'!V$232:V$256,N('RevReq_ExitCase_(2021)'!$A$232:$A$256=$D23 ))/10^6-SUMPRODUCT(RevReq_BaseCase!V$232:V$256,N(RevReq_BaseCase!$A$232:$A$256=$D23 ))/10^6 -> 3.086308974 | O23: =SUMPRODUCT('RevReq_ExitCase_(2021)'!W$232:W$256,N('RevReq_ExitCase_(2021)'!$A$232:$A$256=$D23 ))/10^6-SUMPRODUCT(RevReq_BaseCase!W$232:W$256,N(RevReq_BaseCase!$A$232:$A$256=$D23 ))/10^6 -> 3.077366925 | P23: =SUMPRODUCT('RevReq_ExitCase_(2021)'!X$232:X$256,N('RevReq_ExitCase_(2021)'!$A$232:$A$256=$D23 ))/10^6-SUMPRODUCT(RevReq_BaseCase!X$232:X$256,N(RevReq_BaseCase!$A$232:$A$256=$D23 ))/10^6 -> 3.068246036 | Q23: =SUMPRODUCT('RevReq_ExitCase_(2021)'!Y$232:Y$256,N('RevReq_ExitCase_(2021)'!$A$232:$A$256=$D23 ))/10^6-SUMPRODUCT(RevReq_BaseCase!Y$232:Y$256,N(RevReq_BaseCase!$A$232:$A$256=$D23 ))/10^6 -> 3.058942729 | R23: =SUMPRODUCT('RevReq_ExitCase_(2021)'!Z$232:Z$256,N('RevReq_ExitCase_(2021)'!$A$232:$A$256=$D23 ))/10^6-SUMPRODUCT(RevReq_BaseCase!Z$232:Z$256,N(RevReq_BaseCase!$A$232:$A$256=$D23 ))/10^6 -> 3.049453355 | S23: =SUMPRODUCT('RevReq_ExitCase_(2021)'!AA$232:AA$256,N('RevReq_ExitCase_(2021)'!$A$232:$A$256=$D23 ))/10^6-SUMPRODUCT(RevReq_BaseCase!AA$232:AA$256,N(RevReq_BaseCase!$A$232:$A$256=$D23 ))/10^6 -> 3.039774194 | T23: =SUMPRODUCT('RevReq_ExitCase_(2021)'!AB$232:AB$256,N('RevReq_ExitCase_(2021)'!$A$232:$A$256=$D23 ))/10^6-SUMPRODUCT(RevReq_BaseCase!AB$232:AB$256,N(RevReq_BaseCase!$A$232:$A$256=$D23 ))/10^6 -> 3.02990145 | U23: =SUMPRODUCT('RevReq_ExitCase_(2021)'!AC$232:AC$256,N('RevReq_ExitCase_(2021)'!$A$232:$A$256=$D23 ))/10^6-SUMPRODUCT(RevReq_BaseCase!AC$232:AC$256,N(RevReq_BaseCase!$A$232:$A$256=$D23 ))/10^6 -> 3.019831252 | V23: =SUMPRODUCT('RevReq_ExitCase_(2021)'!AD$232:AD$256,N('RevReq_ExitCase_(2021)'!$A$232:$A$256=$D23 ))/10^6-SUMPRODUCT(RevReq_BaseCase!AD$232:AD$256,N(RevReq_BaseCase!$A$232:$A$256=$D23 ))/10^6 -> -1.352811039 | W23: =SUMPRODUCT('RevReq_ExitCase_(2021)'!AE$232:AE$256,N('RevReq_ExitCase_(2021)'!$A$232:$A$256=$D23 ))/10^6-SUMPRODUCT(RevReq_BaseCase!AE$232:AE$256,N(RevReq_BaseCase!$A$232:$A$256=$D23 ))/10^6 -> -1.363288074 | X23: =SUMPRODUCT('RevReq_ExitCase_(2021)'!AF$232:AF$256,N('RevReq_ExitCase_(2021)'!$A$232:$A$256=$D23 ))/10^6-SUMPRODUCT(RevReq_BaseCase!AF$232:AF$256,N(RevReq_BaseCase!$A$232:$A$256=$D23 ))/10^6 -> -1.37397465 | Y23: =SUMPRODUCT('RevReq_ExitCase_(2021)'!AG$232:AG$256,N('RevReq_ExitCase_(2021)'!$A$232:$A$256=$D23 ))/10^6-SUMPRODUCT(RevReq_BaseCase!AG$232:AG$256,N(RevReq_BaseCase!$A$232:$A$256=$D23 ))/10^6 -> -1.384874957 | Z23: =SUMPRODUCT('RevReq_ExitCase_(2021)'!AH$232:AH$256,N('RevReq_ExitCase_(2021)'!$A$232:$A$256=$D23 ))/10^6-SUMPRODUCT(RevReq_BaseCase!AH$232:AH$256,N(RevReq_BaseCase!$A$232:$A$256=$D23 ))/10^6 -> -1.39599327 | AA23: =SUMPRODUCT('RevReq_ExitCase_(2021)'!AI$232:AI$256,N('RevReq_ExitCase_(2021)'!$A$232:$A$256=$D23 ))/10^6-SUMPRODUCT(RevReq_BaseCase!AI$232:AI$256,N(RevReq_BaseCase!$A$232:$A$256=$D23 ))/10^6 -> -1.40733395 | AB23: =SUMPRODUCT('RevReq_ExitCase_(2021)'!AJ$232:AJ$256,N('RevReq_ExitCase_(2021)'!$A$232:$A$256=$D23 ))/10^6-SUMPRODUCT(RevReq_BaseCase!AJ$232:AJ$256,N(RevReq_BaseCase!$A$232:$A$256=$D23 ))/10^6 -> -1.418901443 | AC23: =SUMPRODUCT('RevReq_ExitCase_(2021)'!AK$232:AK$256,N('RevReq_ExitCase_(2021)'!$A$232:$A$256=$D23 ))/10^6-SUMPRODUCT(RevReq_BaseCase!AK$232:AK$256,N(RevReq_BaseCase!$A$232:$A$256=$D23 ))/10^6 -> -1.430700286 | AD23: =SUMPRODUCT('RevReq_ExitCase_(2021)'!AL$232:AL$256,N('RevReq_ExitCase_(2021)'!$A$232:$A$256=$D23 ))/10^6-SUMPRODUCT(RevReq_BaseCase!AL$232:AL$256,N(RevReq_BaseCase!$A$232:$A$256=$D23 ))/10^6 -> -1.442735105 | AE23: =SUMPRODUCT('RevReq_ExitCase_(2021)'!AM$232:AM$256,N('RevReq_ExitCase_(2021)'!$A$232:$A$256=$D23 ))/10^6-SUMPRODUCT(RevReq_BaseCase!AM$232:AM$256,N(RevReq_BaseCase!$A$232:$A$256=$D23 ))/10^6 -> -1.455010622 | AF23: =SUMPRODUCT('RevReq_ExitCase_(2021)'!AN$232:AN$256,N('RevReq_ExitCase_(2021)'!$A$232:$A$256=$D23 ))/10^6-SUMPRODUCT(RevReq_BaseCase!AN$232:AN$256,N(RevReq_BaseCase!$A$232:$A$256=$D23 ))/10^6 -> -1.467531648 | AG23: =SUMPRODUCT('RevReq_ExitCase_(2021)'!AO$232:AO$256,N('RevReq_ExitCase_(2021)'!$A$232:$A$256=$D23 ))/10^6-SUMPRODUCT(RevReq_BaseCase!AO$232:AO$256,N(RevReq_BaseCase!$A$232:$A$256=$D23 ))/10^6 -> -1.480303095 | AH23: =SUMPRODUCT('RevReq_ExitCase_(2021)'!AP$232:AP$256,N('RevReq_ExitCase_(2021)'!$A$232:$A$256=$D23 ))/10^6-SUMPRODUCT(RevReq_BaseCase!AP$232:AP$256,N(RevReq_BaseCase!$A$232:$A$256=$D23 ))/10^6 -> -1.493329971 | AI23: =SUMPRODUCT('RevReq_ExitCase_(2021)'!AQ$232:AQ$256,N('RevReq_ExitCase_(2021)'!$A$232:$A$256=$D23 ))/10^6-SUMPRODUCT(RevReq_BaseCase!AQ$232:AQ$256,N(RevReq_BaseCase!$A$232:$A$256=$D23 ))/10^6 -> -1.506617385 | AJ23: =SUMPRODUCT('RevReq_ExitCase_(2021)'!AR$232:AR$256,N('RevReq_ExitCase_(2021)'!$A$232:$A$256=$D23 ))/10^6-SUMPRODUCT(RevReq_BaseCase!AR$232:AR$256,N(RevReq_BaseCase!$A$232:$A$256=$D23 ))/10^6 -> -1.520170547 | AK23: =SUMPRODUCT('RevReq_ExitCase_(2021)'!AS$232:AS$256,N('RevReq_ExitCase_(2021)'!$A$232:$A$256=$D23 ))/10^6-SUMPRODUCT(RevReq_BaseCase!AS$232:AS$256,N(RevReq_BaseCase!$A$232:$A$256=$D23 ))/10^6 -> -1.533994772 | AL23: =SUMPRODUCT('RevReq_ExitCase_(2021)'!AT$232:AT$256,N('RevReq_ExitCase_(2021)'!$A$232:$A$256=$D23 ))/10^6-SUMPRODUCT(RevReq_BaseCase!AT$232:AT$256,N(RevReq_BaseCase!$A$232:$A$256=$D23 ))/10^6 -> -1.548095481 | AM23: =SUMPRODUCT('RevReq_ExitCase_(2021)'!AU$232:AU$256,N('RevReq_ExitCase_(2021)'!$A$232:$A$256=$D23 ))/10^6-SUMPRODUCT(RevReq_BaseCase!AU$232:AU$256,N(RevReq_BaseCase!$A$232:$A$256=$D23 ))/10^6 -> -1.562478205 | AN23: =SUMPRODUCT('RevReq_ExitCase_(2021)'!AV$232:AV$256,N('RevReq_ExitCase_(2021)'!$A$232:$A$256=$D23 ))/10^6-SUMPRODUCT(RevReq_BaseCase!AV$232:AV$256,N(RevReq_BaseCase!$A$232:$A$256=$D23 ))/10^6 -> -1.577148583 | AO23: =SUMPRODUCT('RevReq_ExitCase_(2021)'!AW$232:AW$256,N('RevReq_ExitCase_(2021)'!$A$232:$A$256=$D23 ))/10^6-SUMPRODUCT(RevReq_BaseCase!AW$232:AW$256,N(RevReq_BaseCase!$A$232:$A$256=$D23 ))/10^6 -> -1.587712125 | AP23: =SUMPRODUCT('RevReq_ExitCase_(2021)'!AX$232:AX$256,N('RevReq_ExitCase_(2021)'!$A$232:$A$256=$D23 ))/10^6-SUMPRODUCT(RevReq_BaseCase!AX$232:AX$256,N(RevReq_BaseCase!$A$232:$A$256=$D23 ))/10^6 -> -1.146042866 | AQ23: =SUMPRODUCT('RevReq_ExitCase_(2021)'!AY$232:AY$256,N('RevReq_ExitCase_(2021)'!$A$232:$A$256=$D23 ))/10^6-SUMPRODUCT(RevReq_BaseCase!AY$232:AY$256,N(RevReq_BaseCase!$A$232:$A$256=$D23 ))/10^6 -> -2.665733593 | AS23: -31.76197063
B24: Interest Expense(5) | D24: Clause | E24: =SUM(I24:AQ24) -> -11.67988387 | G24: =SUMPRODUCT(I24:AQ24,$I$7:$AQ$7) -> -1.634159342 | I24: =SUMPRODUCT('RevReq_ExitCase_(2021)'!Q$409:Q$433,N('RevReq_ExitCase_(2021)'!$A$409:$A$433=$D24 ))/10^6-SUMPRODUCT(RevReq_BaseCase!Q$409:Q$433,N(RevReq_BaseCase!$A$409:$A$433=$D24 ))/10^6 -> 1.312701969 | J24: =SUMPRODUCT('RevReq_ExitCase_(2021)'!R$409:R$433,N('RevReq_ExitCase_(2021)'!$A$409:$A$433=$D24 ))/10^6-SUMPRODUCT(RevReq_BaseCase!R$409:R$433,N(RevReq_BaseCase!$A$409:$A$433=$D24 ))/10^6 -> 0.6227170318 | K24: =SUMPRODUCT('RevReq_ExitCase_(2021)'!S$409:S$433,N('RevReq_ExitCase_(2021)'!$A$409:$A$433=$D24 ))/10^6-SUMPRODUCT(RevReq_BaseCase!S$409:S$433,N(RevReq_BaseCase!$A$409:$A$433=$D24 ))/10^6 -> 0.3915368008 | L24: =SUMPRODUCT('RevReq_ExitCase_(2021)'!T$409:T$433,N('RevReq_ExitCase_(2021)'!$A$409:$A$433=$D24 ))/10^6-SUMPRODUCT(RevReq_BaseCase!T$409:T$433,N(RevReq_BaseCase!$A$409:$A$433=$D24 ))/10^6 -> 0.1269215757 | M24: =SUMPRODUCT('RevReq_ExitCase_(2021)'!U$409:U$433,N('RevReq_ExitCase_(2021)'!$A$409:$A$433=$D24 ))/10^6-SUMPRODUCT(RevReq_BaseCase!U$409:U$433,N(RevReq_BaseCase!$A$409:$A$433=$D24 ))/10^6 -> -0.05902256241 | N24: =SUMPRODUCT('RevReq_ExitCase_(2021)'!V$409:V$433,N('RevReq_ExitCase_(2021)'!$A$409:$A$433=$D24 ))/10^6-SUMPRODUCT(RevReq_BaseCase!V$409:V$433,N(RevReq_BaseCase!$A$409:$A$433=$D24 ))/10^6 -> -0.1328517171 | O24: =SUMPRODUCT('RevReq_ExitCase_(2021)'!W$409:W$433,N('RevReq_ExitCase_(2021)'!$A$409:$A$433=$D24 ))/10^6-SUMPRODUCT(RevReq_BaseCase!W$409:W$433,N(RevReq_BaseCase!$A$409:$A$433=$D24 ))/10^6 -> -0.2066822619 | P24: =SUMPRODUCT('RevReq_ExitCase_(2021)'!X$409:X$433,N('RevReq_ExitCase_(2021)'!$A$409:$A$433=$D24 ))/10^6-SUMPRODUCT(RevReq_BaseCase!X$409:X$433,N(RevReq_BaseCase!$A$409:$A$433=$D24 ))/10^6 -> -0.2805142246 | Q24: =SUMPRODUCT('RevReq_ExitCase_(2021)'!Y$409:Y$433,N('RevReq_ExitCase_(2021)'!$A$409:$A$433=$D24 ))/10^6-SUMPRODUCT(RevReq_BaseCase!Y$409:Y$433,N(RevReq_BaseCase!$A$409:$A$433=$D24 ))/10^6 -> -0.3543476336 | R24: =SUMPRODUCT('RevReq_ExitCase_(2021)'!Z$409:Z$433,N('RevReq_ExitCase_(2021)'!$A$409:$A$433=$D24 ))/10^6-SUMPRODUCT(RevReq_BaseCase!Z$409:Z$433,N(RevReq_BaseCase!$A$409:$A$433=$D24 ))/10^6 -> -0.4281825177 | S24: =SUMPRODUCT('RevReq_ExitCase_(2021)'!AA$409:AA$433,N('RevReq_ExitCase_(2021)'!$A$409:$A$433=$D24 ))/10^6-SUMPRODUCT(RevReq_BaseCase!AA$409:AA$433,N(RevReq_BaseCase!$A$409:$A$433=$D24 ))/10^6 -> -0.5020189065 | T24: =SUMPRODUCT('RevReq_ExitCase_(2021)'!AB$409:AB$433,N('RevReq_ExitCase_(2021)'!$A$409:$A$433=$D24 ))/10^6-SUMPRODUCT(RevReq_BaseCase!AB$409:AB$433,N(RevReq_BaseCase!$A$409:$A$433=$D24 ))/10^6 -> -0.5758568301 | U24: =SUMPRODUCT('RevReq_ExitCase_(2021)'!AC$409:AC$433,N('RevReq_ExitCase_(2021)'!$A$409:$A$433=$D24 ))/10^6-SUMPRODUCT(RevReq_BaseCase!AC$409:AC$433,N(RevReq_BaseCase!$A$409:$A$433=$D24 ))/10^6 -> -0.6496963191 | V24: =SUMPRODUCT('RevReq_ExitCase_(2021)'!AD$409:AD$433,N('RevReq_ExitCase_(2021)'!$A$409:$A$433=$D24 ))/10^6-SUMPRODUCT(RevReq_BaseCase!AD$409:AD$433,N(RevReq_BaseCase!$A$409:$A$433=$D24 ))/10^6 -> -0.6780053541 | W24: =SUMPRODUCT('RevReq_ExitCase_(2021)'!AE$409:AE$433,N('RevReq_ExitCase_(2021)'!$A$409:$A$433=$D24 ))/10^6-SUMPRODUCT(RevReq_BaseCase!AE$409:AE$433,N(RevReq_BaseCase!$A$409:$A$433=$D24 ))/10^6 -> -0.6607839668 | X24: =SUMPRODUCT('RevReq_ExitCase_(2021)'!AF$409:AF$433,N('RevReq_ExitCase_(2021)'!$A$409:$A$433=$D24 ))/10^6-SUMPRODUCT(RevReq_BaseCase!AF$409:AF$433,N(RevReq_BaseCase!$A$409:$A$433=$D24 ))/10^6 -> -0.6435642408 | Y24: =SUMPRODUCT('RevReq_ExitCase_(2021)'!AG$409:AG$433,N('RevReq_ExitCase_(2021)'!$A$409:$A$433=$D24 ))/10^6-SUMPRODUCT(RevReq_BaseCase!AG$409:AG$433,N(RevReq_BaseCase!$A$409:$A$433=$D24 ))/10^6 -> -0.6263462093 | Z24: =SUMPRODUCT('RevReq_ExitCase_(2021)'!AH$409:AH$433,N('RevReq_ExitCase_(2021)'!$A$409:$A$433=$D24 ))/10^6-SUMPRODUCT(RevReq_BaseCase!AH$409:AH$433,N(RevReq_BaseCase!$A$409:$A$433=$D24 ))/10^6 -> -0.6091299062 | AA24: =SUMPRODUCT('RevReq_ExitCase_(2021)'!AI$409:AI$433,N('RevReq_ExitCase_(2021)'!$A$409:$A$433=$D24 ))/10^6-SUMPRODUCT(RevReq_BaseCase!AI$409:AI$433,N(RevReq_BaseCase!$A$409:$A$433=$D24 ))/10^6 -> -0.5919153661 | AB24: =SUMPRODUCT('RevReq_ExitCase_(2021)'!AJ$409:AJ$433,N('RevReq_ExitCase_(2021)'!$A$409:$A$433=$D24 ))/10^6-SUMPRODUCT(RevReq_BaseCase!AJ$409:AJ$433,N(RevReq_BaseCase!$A$409:$A$433=$D24 ))/10^6 -> -0.5747026242 | AC24: =SUMPRODUCT('RevReq_ExitCase_(2021)'!AK$409:AK$433,N('RevReq_ExitCase_(2021)'!$A$409:$A$433=$D24 ))/10^6-SUMPRODUCT(RevReq_BaseCase!AK$409:AK$433,N(RevReq_BaseCase!$A$409:$A$433=$D24 ))/10^6 -> -0.5574917165 | AD24: =SUMPRODUCT('RevReq_ExitCase_(2021)'!AL$409:AL$433,N('RevReq_ExitCase_(2021)'!$A$409:$A$433=$D24 ))/10^6-SUMPRODUCT(RevReq_BaseCase!AL$409:AL$433,N(RevReq_BaseCase!$A$409:$A$433=$D24 ))/10^6 -> -0.5402826797 | AE24: =SUMPRODUCT('RevReq_ExitCase_(2021)'!AM$409:AM$433,N('RevReq_ExitCase_(2021)'!$A$409:$A$433=$D24 ))/10^6-SUMPRODUCT(RevReq_BaseCase!AM$409:AM$433,N(RevReq_BaseCase!$A$409:$A$433=$D24 ))/10^6 -> -0.5230755512 | AF24: =SUMPRODUCT('RevReq_ExitCase_(2021)'!AN$409:AN$433,N('RevReq_ExitCase_(2021)'!$A$409:$A$433=$D24 ))/10^6-SUMPRODUCT(RevReq_BaseCase!AN$409:AN$433,N(RevReq_BaseCase!$A$409:$A$433=$D24 ))/10^6 -> -0.5058703692 | AG24: =SUMPRODUCT('RevReq_ExitCase_(2021)'!AO$409:AO$433,N('RevReq_ExitCase_(2021)'!$A$409:$A$433=$D24 ))/10^6-SUMPRODUCT(RevReq_BaseCase!AO$409:AO$433,N(RevReq_BaseCase!$A$409:$A$433=$D24 ))/10^6 -> -0.4886671726 | AH24: =SUMPRODUCT('RevReq_ExitCase_(2021)'!AP$409:AP$433,N('RevReq_ExitCase_(2021)'!$A$409:$A$433=$D24 ))/10^6-SUMPRODUCT(RevReq_BaseCase!AP$409:AP$433,N(RevReq_BaseCase!$A$409:$A$433=$D24 ))/10^6 -> -0.4714660011 | AI24: =SUMPRODUCT('RevReq_ExitCase_(2021)'!AQ$409:AQ$433,N('RevReq_ExitCase_(2021)'!$A$409:$A$433=$D24 ))/10^6-SUMPRODUCT(RevReq_BaseCase!AQ$409:AQ$433,N(RevReq_BaseCase!$A$409:$A$433=$D24 ))/10^6 -> -0.4542668952 | AJ24: =SUMPRODUCT('RevReq_ExitCase_(2021)'!AR$409:AR$433,N('RevReq_ExitCase_(2021)'!$A$409:$A$433=$D24 ))/10^6-SUMPRODUCT(RevReq_BaseCase!AR$409:AR$433,N(RevReq_BaseCase!$A$409:$A$433=$D24 ))/10^6 -> -0.4370698962 | AK24: =SUMPRODUCT('RevReq_ExitCase_(2021)'!AS$409:AS$433,N('RevReq_ExitCase_(2021)'!$A$409:$A$433=$D24 ))/10^6-SUMPRODUCT(RevReq_BaseCase!AS$409:AS$433,N(RevReq_BaseCase!$A$409:$A$433=$D24 ))/10^6 -> -0.4198750462 | AL24: =SUMPRODUCT('RevReq_ExitCase_(2021)'!AT$409:AT$433,N('RevReq_ExitCase_(2021)'!$A$409:$A$433=$D24 ))/10^6-SUMPRODUCT(RevReq_BaseCase!AT$409:AT$433,N(RevReq_BaseCase!$A$409:$A$433=$D24 ))/10^6 -> -0.4026823883 | AM24: =SUMPRODUCT('RevReq_ExitCase_(2021)'!AU$409:AU$433,N('RevReq_ExitCase_(2021)'!$A$409:$A$433=$D24 ))/10^6-SUMPRODUCT(RevReq_BaseCase!AU$409:AU$433,N(RevReq_BaseCase!$A$409:$A$433=$D24 ))/10^6 -> -0.3854919663 | AN24: =SUMPRODUCT('RevReq_ExitCase_(2021)'!AV$409:AV$433,N('RevReq_ExitCase_(2021)'!$A$409:$A$433=$D24 ))/10^6-SUMPRODUCT(RevReq_BaseCase!AV$409:AV$433,N(RevReq_BaseCase!$A$409:$A$433=$D24 ))/10^6 -> -0.3683038249 | AO24: =SUMPRODUCT('RevReq_ExitCase_(2021)'!AW$409:AW$433,N('RevReq_ExitCase_(2021)'!$A$409:$A$433=$D24 ))/10^6-SUMPRODUCT(RevReq_BaseCase!AW$409:AW$433,N(RevReq_BaseCase!$A$409:$A$433=$D24 ))/10^6 -> -0.351163937 | AP24: =SUMPRODUCT('RevReq_ExitCase_(2021)'!AX$409:AX$433,N('RevReq_ExitCase_(2021)'!$A$409:$A$433=$D24 ))/10^6-SUMPRODUCT(RevReq_BaseCase!AX$409:AX$433,N(RevReq_BaseCase!$A$409:$A$433=$D24 ))/10^6 -> -0.3388415601 | AQ24: =SUMPRODUCT('RevReq_ExitCase_(2021)'!AY$409:AY$433,N('RevReq_ExitCase_(2021)'!$A$409:$A$433=$D24 ))/10^6-SUMPRODUCT(RevReq_BaseCase!AY$409:AY$433,N(RevReq_BaseCase!$A$409:$A$433=$D24 ))/10^6 -> -0.3155916033 | AS24: -10.26658292
B25: Return on Equity(6) | D25: Clause | E25: =SUM(I25:AQ25) -> -35.18135823 | G25: =SUMPRODUCT(I25:AQ25,$I$7:$AQ$7) -> -4.922304523 | I25: =SUMPRODUCT('RevReq_ExitCase_(2021)'!Q$438:Q$462,N('RevReq_ExitCase_(2021)'!$A$438:$A$462=$D25 ))/10^6-SUMPRODUCT(RevReq_BaseCase!Q$438:Q$462,N(RevReq_BaseCase!$A$438:$A$462=$D25 ))/10^6 -> 3.954032312 | J25: =SUMPRODUCT('RevReq_ExitCase_(2021)'!R$438:R$462,N('RevReq_ExitCase_(2021)'!$A$438:$A$462=$D25 ))/10^6-SUMPRODUCT(RevReq_BaseCase!R$438:R$462,N(RevReq_BaseCase!$A$438:$A$462=$D25 ))/10^6 -> 1.875706233 | K25: =SUMPRODUCT('RevReq_ExitCase_(2021)'!S$438:S$462,N('RevReq_ExitCase_(2021)'!$A$438:$A$462=$D25 ))/10^6-SUMPRODUCT(RevReq_BaseCase!S$438:S$462,N(RevReq_BaseCase!$A$438:$A$462=$D25 ))/10^6 -> 1.179360737 | L25: =SUMPRODUCT('RevReq_ExitCase_(2021)'!T$438:T$462,N('RevReq_ExitCase_(2021)'!$A$438:$A$462=$D25 ))/10^6-SUMPRODUCT(RevReq_BaseCase!T$438:T$462,N(RevReq_BaseCase!$A$438:$A$462=$D25 ))/10^6 -> 0.3823046078 | M25: =SUMPRODUCT('RevReq_ExitCase_(2021)'!U$438:U$462,N('RevReq_ExitCase_(2021)'!$A$438:$A$462=$D25 ))/10^6-SUMPRODUCT(RevReq_BaseCase!U$438:U$462,N(RevReq_BaseCase!$A$438:$A$462=$D25 ))/10^6 -> -0.1777837806 | N25: =SUMPRODUCT('RevReq_ExitCase_(2021)'!V$438:V$462,N('RevReq_ExitCase_(2021)'!$A$438:$A$462=$D25 ))/10^6-SUMPRODUCT(RevReq_BaseCase!V$438:V$462,N(RevReq_BaseCase!$A$438:$A$462=$D25 ))/10^6 -> -0.4001669797 | O25: =SUMPRODUCT('RevReq_ExitCase_(2021)'!W$438:W$462,N('RevReq_ExitCase_(2021)'!$A$438:$A$462=$D25 ))/10^6-SUMPRODUCT(RevReq_BaseCase!W$438:W$462,N(RevReq_BaseCase!$A$438:$A$462=$D25 ))/10^6 -> -0.6225543658 | P25: =SUMPRODUCT('RevReq_ExitCase_(2021)'!X$438:X$462,N('RevReq_ExitCase_(2021)'!$A$438:$A$462=$D25 ))/10^6-SUMPRODUCT(RevReq_BaseCase!X$438:X$462,N(RevReq_BaseCase!$A$438:$A$462=$D25 ))/10^6 -> -0.8449460229 | Q25: =SUMPRODUCT('RevReq_ExitCase_(2021)'!Y$438:Y$462,N('RevReq_ExitCase_(2021)'!$A$438:$A$462=$D25 ))/10^6-SUMPRODUCT(RevReq_BaseCase!Y$438:Y$462,N(RevReq_BaseCase!$A$438:$A$462=$D25 ))/10^6 -> -1.067342036 | R25: =SUMPRODUCT('RevReq_ExitCase_(2021)'!Z$438:Z$462,N('RevReq_ExitCase_(2021)'!$A$438:$A$462=$D25 ))/10^6-SUMPRODUCT(RevReq_BaseCase!Z$438:Z$462,N(RevReq_BaseCase!$A$438:$A$462=$D25 ))/10^6 -> -1.289742493 | S25: =SUMPRODUCT('RevReq_ExitCase_(2021)'!AA$438:AA$462,N('RevReq_ExitCase_(2021)'!$A$438:$A$462=$D25 ))/10^6-SUMPRODUCT(RevReq_BaseCase!AA$438:AA$462,N(RevReq_BaseCase!$A$438:$A$462=$D25 ))/10^6 -> -1.512147482 | T25: =SUMPRODUCT('RevReq_ExitCase_(2021)'!AB$438:AB$462,N('RevReq_ExitCase_(2021)'!$A$438:$A$462=$D25 ))/10^6-SUMPRODUCT(RevReq_BaseCase!AB$438:AB$462,N(RevReq_BaseCase!$A$438:$A$462=$D25 ))/10^6 -> -1.734557094 | U25: =SUMPRODUCT('RevReq_ExitCase_(2021)'!AC$438:AC$462,N('RevReq_ExitCase_(2021)'!$A$438:$A$462=$D25 ))/10^6-SUMPRODUCT(RevReq_BaseCase!AC$438:AC$462,N(RevReq_BaseCase!$A$438:$A$462=$D25 ))/10^6 -> -1.956971422 | V25: =SUMPRODUCT('RevReq_ExitCase_(2021)'!AD$438:AD$462,N('RevReq_ExitCase_(2021)'!$A$438:$A$462=$D25 ))/10^6-SUMPRODUCT(RevReq_BaseCase!AD$438:AD$462,N(RevReq_BaseCase!$A$438:$A$462=$D25 ))/10^6 -> -2.042241987 | W25: =SUMPRODUCT('RevReq_ExitCase_(2021)'!AE$438:AE$462,N('RevReq_ExitCase_(2021)'!$A$438:$A$462=$D25 ))/10^6-SUMPRODUCT(RevReq_BaseCase!AE$438:AE$462,N(RevReq_BaseCase!$A$438:$A$462=$D25 ))/10^6 -> -1.990368886 | X25: =SUMPRODUCT('RevReq_ExitCase_(2021)'!AF$438:AF$462,N('RevReq_ExitCase_(2021)'!$A$438:$A$462=$D25 ))/10^6-SUMPRODUCT(RevReq_BaseCase!AF$438:AF$462,N(RevReq_BaseCase!$A$438:$A$462=$D25 ))/10^6 -> -1.938500789 | Y25: =SUMPRODUCT('RevReq_ExitCase_(2021)'!AG$438:AG$462,N('RevReq_ExitCase_(2021)'!$A$438:$A$462=$D25 ))/10^6-SUMPRODUCT(RevReq_BaseCase!AG$438:AG$462,N(RevReq_BaseCase!$A$438:$A$462=$D25 ))/10^6 -> -1.886637796 | Z25: =SUMPRODUCT('RevReq_ExitCase_(2021)'!AH$438:AH$462,N('RevReq_ExitCase_(2021)'!$A$438:$A$462=$D25 ))/10^6-SUMPRODUCT(RevReq_BaseCase!AH$438:AH$462,N(RevReq_BaseCase!$A$438:$A$462=$D25 ))/10^6 -> -1.834780009 | AA25: =SUMPRODUCT('RevReq_ExitCase_(2021)'!AI$438:AI$462,N('RevReq_ExitCase_(2021)'!$A$438:$A$462=$D25 ))/10^6-SUMPRODUCT(RevReq_BaseCase!AI$438:AI$462,N(RevReq_BaseCase!$A$438:$A$462=$D25 ))/10^6 -> -1.782927533 | AB25: =SUMPRODUCT('RevReq_ExitCase_(2021)'!AJ$438:AJ$462,N('RevReq_ExitCase_(2021)'!$A$438:$A$462=$D25 ))/10^6-SUMPRODUCT(RevReq_BaseCase!AJ$438:AJ$462,N(RevReq_BaseCase!$A$438:$A$462=$D25 ))/10^6 -> -1.731080473 | AC25: =SUMPRODUCT('RevReq_ExitCase_(2021)'!AK$438:AK$462,N('RevReq_ExitCase_(2021)'!$A$438:$A$462=$D25 ))/10^6-SUMPRODUCT(RevReq_BaseCase!AK$438:AK$462,N(RevReq_BaseCase!$A$438:$A$462=$D25 ))/10^6 -> -1.679238938 | AD25: =SUMPRODUCT('RevReq_ExitCase_(2021)'!AL$438:AL$462,N('RevReq_ExitCase_(2021)'!$A$438:$A$462=$D25 ))/10^6-SUMPRODUCT(RevReq_BaseCase!AL$438:AL$462,N(RevReq_BaseCase!$A$438:$A$462=$D25 ))/10^6 -> -1.627403039 | AE25: =SUMPRODUCT('RevReq_ExitCase_(2021)'!AM$438:AM$462,N('RevReq_ExitCase_(2021)'!$A$438:$A$462=$D25 ))/10^6-SUMPRODUCT(RevReq_BaseCase!AM$438:AM$462,N(RevReq_BaseCase!$A$438:$A$462=$D25 ))/10^6 -> -1.575572887 | AF25: =SUMPRODUCT('RevReq_ExitCase_(2021)'!AN$438:AN$462,N('RevReq_ExitCase_(2021)'!$A$438:$A$462=$D25 ))/10^6-SUMPRODUCT(RevReq_BaseCase!AN$438:AN$462,N(RevReq_BaseCase!$A$438:$A$462=$D25 ))/10^6 -> -1.523748598 | AG25: =SUMPRODUCT('RevReq_ExitCase_(2021)'!AO$438:AO$462,N('RevReq_ExitCase_(2021)'!$A$438:$A$462=$D25 ))/10^6-SUMPRODUCT(RevReq_BaseCase!AO$438:AO$462,N(RevReq_BaseCase!$A$438:$A$462=$D25 ))/10^6 -> -1.47193029 | AH25: =SUMPRODUCT('RevReq_ExitCase_(2021)'!AP$438:AP$462,N('RevReq_ExitCase_(2021)'!$A$438:$A$462=$D25 ))/10^6-SUMPRODUCT(RevReq_BaseCase!AP$438:AP$462,N(RevReq_BaseCase!$A$438:$A$462=$D25 ))/10^6 -> -1.420118082 | AI25: =SUMPRODUCT('RevReq_ExitCase_(2021)'!AQ$438:AQ$462,N('RevReq_ExitCase_(2021)'!$A$438:$A$462=$D25 ))/10^6-SUMPRODUCT(RevReq_BaseCase!AQ$438:AQ$462,N(RevReq_BaseCase!$A$438:$A$462=$D25 ))/10^6 -> -1.368312095 | AJ25: =SUMPRODUCT('RevReq_ExitCase_(2021)'!AR$438:AR$462,N('RevReq_ExitCase_(2021)'!$A$438:$A$462=$D25 ))/10^6-SUMPRODUCT(RevReq_BaseCase!AR$438:AR$462,N(RevReq_BaseCase!$A$438:$A$462=$D25 ))/10^6 -> -1.316512455 | AK25: =SUMPRODUCT('RevReq_ExitCase_(2021)'!AS$438:AS$462,N('RevReq_ExitCase_(2021)'!$A$438:$A$462=$D25 ))/10^6-SUMPRODUCT(RevReq_BaseCase!AS$438:AS$462,N(RevReq_BaseCase!$A$438:$A$462=$D25 ))/10^6 -> -1.264719288 | AL25: =SUMPRODUCT('RevReq_ExitCase_(2021)'!AT$438:AT$462,N('RevReq_ExitCase_(2021)'!$A$438:$A$462=$D25 ))/10^6-SUMPRODUCT(RevReq_BaseCase!AT$438:AT$462,N(RevReq_BaseCase!$A$438:$A$462=$D25 ))/10^6 -> -1.212932724 | AM25: =SUMPRODUCT('RevReq_ExitCase_(2021)'!AU$438:AU$462,N('RevReq_ExitCase_(2021)'!$A$438:$A$462=$D25 ))/10^6-SUMPRODUCT(RevReq_BaseCase!AU$438:AU$462,N(RevReq_BaseCase!$A$438:$A$462=$D25 ))/10^6 -> -1.161152894 | AN25: =SUMPRODUCT('RevReq_ExitCase_(2021)'!AV$438:AV$462,N('RevReq_ExitCase_(2021)'!$A$438:$A$462=$D25 ))/10^6-SUMPRODUCT(RevReq_BaseCase!AV$438:AV$462,N(RevReq_BaseCase!$A$438:$A$462=$D25 ))/10^6 -> -1.109379934 | AO25: =SUMPRODUCT('RevReq_ExitCase_(2021)'!AW$438:AW$462,N('RevReq_ExitCase_(2021)'!$A$438:$A$462=$D25 ))/10^6-SUMPRODUCT(RevReq_BaseCase!AW$438:AW$462,N(RevReq_BaseCase!$A$438:$A$462=$D25 ))/10^6 -> -1.05775232 | AP25: =SUMPRODUCT('RevReq_ExitCase_(2021)'!AX$438:AX$462,N('RevReq_ExitCase_(2021)'!$A$438:$A$462=$D25 ))/10^6-SUMPRODUCT(RevReq_BaseCase!AX$438:AX$462,N(RevReq_BaseCase!$A$438:$A$462=$D25 ))/10^6 -> -1.020635688 | AQ25: =SUMPRODUCT('RevReq_ExitCase_(2021)'!AY$438:AY$462,N('RevReq_ExitCase_(2021)'!$A$438:$A$462=$D25 ))/10^6-SUMPRODUCT(RevReq_BaseCase!AY$438:AY$462,N(RevReq_BaseCase!$A$438:$A$462=$D25 ))/10^6 -> -0.9506037364 | AS25: -30.92430845
B26: Income Tax(7) | D26: Clause | E26: =SUM(I26:AQ26) -> -22.09395024 | G26: =SUMPRODUCT(I26:AQ26,$I$7:$AQ$7) -> -3.091215254 | I26: =SUMPRODUCT('RevReq_ExitCase_(2021)'!Q$467:Q$491,N('RevReq_ExitCase_(2021)'!$A$467:$A$491=$D26 ))/10^6-SUMPRODUCT(RevReq_BaseCase!Q$467:Q$491,N(RevReq_BaseCase!$A$467:$A$491=$D26 ))/10^6 -> 2.483138729 | J26: =SUMPRODUCT('RevReq_ExitCase_(2021)'!R$467:R$491,N('RevReq_ExitCase_(2021)'!$A$467:$A$491=$D26 ))/10^6-SUMPRODUCT(RevReq_BaseCase!R$467:R$491,N(RevReq_BaseCase!$A$467:$A$491=$D26 ))/10^6 -> 1.177946568 | K26: =SUMPRODUCT('RevReq_ExitCase_(2021)'!S$467:S$491,N('RevReq_ExitCase_(2021)'!$A$467:$A$491=$D26 ))/10^6-SUMPRODUCT(RevReq_BaseCase!S$467:S$491,N(RevReq_BaseCase!$A$467:$A$491=$D26 ))/10^6 -> 0.7406404627 | L26: =SUMPRODUCT('RevReq_ExitCase_(2021)'!T$467:T$491,N('RevReq_ExitCase_(2021)'!$A$467:$A$491=$D26 ))/10^6-SUMPRODUCT(RevReq_BaseCase!T$467:T$491,N(RevReq_BaseCase!$A$467:$A$491=$D26 ))/10^6 -> 0.2400879161 | M26: =SUMPRODUCT('RevReq_ExitCase_(2021)'!U$467:U$491,N('RevReq_ExitCase_(2021)'!$A$467:$A$491=$D26 ))/10^6-SUMPRODUCT(RevReq_BaseCase!U$467:U$491,N(RevReq_BaseCase!$A$467:$A$491=$D26 ))/10^6 -> -0.1116485037 | N26: =SUMPRODUCT('RevReq_ExitCase_(2021)'!V$467:V$491,N('RevReq_ExitCase_(2021)'!$A$467:$A$491=$D26 ))/10^6-SUMPRODUCT(RevReq_BaseCase!V$467:V$491,N(RevReq_BaseCase!$A$467:$A$491=$D26 ))/10^6 -> -0.2513055147 | O26: =SUMPRODUCT('RevReq_ExitCase_(2021)'!W$467:W$491,N('RevReq_ExitCase_(2021)'!$A$467:$A$491=$D26 ))/10^6-SUMPRODUCT(RevReq_BaseCase!W$467:W$491,N(RevReq_BaseCase!$A$467:$A$491=$D26 ))/10^6 -> -0.3909651553 | P26: =SUMPRODUCT('RevReq_ExitCase_(2021)'!X$467:X$491,N('RevReq_ExitCase_(2021)'!$A$467:$A$491=$D26 ))/10^6-SUMPRODUCT(RevReq_BaseCase!X$467:X$491,N(RevReq_BaseCase!$A$467:$A$491=$D26 ))/10^6 -> -0.530627478 | Q26: =SUMPRODUCT('RevReq_ExitCase_(2021)'!Y$467:Y$491,N('RevReq_ExitCase_(2021)'!$A$467:$A$491=$D26 ))/10^6-SUMPRODUCT(RevReq_BaseCase!Y$467:Y$491,N(RevReq_BaseCase!$A$467:$A$491=$D26 ))/10^6 -> -0.6702925364 | R26: =SUMPRODUCT('RevReq_ExitCase_(2021)'!Z$467:Z$491,N('RevReq_ExitCase_(2021)'!$A$467:$A$491=$D26 ))/10^6-SUMPRODUCT(RevReq_BaseCase!Z$467:Z$491,N(RevReq_BaseCase!$A$467:$A$491=$D26 ))/10^6 -> -0.8099603854 | S26: =SUMPRODUCT('RevReq_ExitCase_(2021)'!AA$467:AA$491,N('RevReq_ExitCase_(2021)'!$A$467:$A$491=$D26 ))/10^6-SUMPRODUCT(RevReq_BaseCase!AA$467:AA$491,N(RevReq_BaseCase!$A$467:$A$491=$D26 ))/10^6 -> -0.9496310806 | T26: =SUMPRODUCT('RevReq_ExitCase_(2021)'!AB$467:AB$491,N('RevReq_ExitCase_(2021)'!$A$467:$A$491=$D26 ))/10^6-SUMPRODUCT(RevReq_BaseCase!AB$467:AB$491,N(RevReq_BaseCase!$A$467:$A$491=$D26 ))/10^6 -> -1.089304679 | U26: =SUMPRODUCT('RevReq_ExitCase_(2021)'!AC$467:AC$491,N('RevReq_ExitCase_(2021)'!$A$467:$A$491=$D26 ))/10^6-SUMPRODUCT(RevReq_BaseCase!AC$467:AC$491,N(RevReq_BaseCase!$A$467:$A$491=$D26 ))/10^6 -> -1.228981239 | V26: =SUMPRODUCT('RevReq_ExitCase_(2021)'!AD$467:AD$491,N('RevReq_ExitCase_(2021)'!$A$467:$A$491=$D26 ))/10^6-SUMPRODUCT(RevReq_BaseCase!AD$467:AD$491,N(RevReq_BaseCase!$A$467:$A$491=$D26 ))/10^6 -> -1.282531293 | W26: =SUMPRODUCT('RevReq_ExitCase_(2021)'!AE$467:AE$491,N('RevReq_ExitCase_(2021)'!$A$467:$A$491=$D26 ))/10^6-SUMPRODUCT(RevReq_BaseCase!AE$467:AE$491,N(RevReq_BaseCase!$A$467:$A$491=$D26 ))/10^6 -> -1.249954901 | X26: =SUMPRODUCT('RevReq_ExitCase_(2021)'!AF$467:AF$491,N('RevReq_ExitCase_(2021)'!$A$467:$A$491=$D26 ))/10^6-SUMPRODUCT(RevReq_BaseCase!AF$467:AF$491,N(RevReq_BaseCase!$A$467:$A$491=$D26 ))/10^6 -> -1.217381651 | Y26: =SUMPRODUCT('RevReq_ExitCase_(2021)'!AG$467:AG$491,N('RevReq_ExitCase_(2021)'!$A$467:$A$491=$D26 ))/10^6-SUMPRODUCT(RevReq_BaseCase!AG$467:AG$491,N(RevReq_BaseCase!$A$467:$A$491=$D26 ))/10^6 -> -1.184811607 | Z26: =SUMPRODUCT('RevReq_ExitCase_(2021)'!AH$467:AH$491,N('RevReq_ExitCase_(2021)'!$A$467:$A$491=$D26 ))/10^6-SUMPRODUCT(RevReq_BaseCase!AH$467:AH$491,N(RevReq_BaseCase!$A$467:$A$491=$D26 ))/10^6 -> -1.152244833 | AA26: =SUMPRODUCT('RevReq_ExitCase_(2021)'!AI$467:AI$491,N('RevReq_ExitCase_(2021)'!$A$467:$A$491=$D26 ))/10^6-SUMPRODUCT(RevReq_BaseCase!AI$467:AI$491,N(RevReq_BaseCase!$A$467:$A$491=$D26 ))/10^6 -> -1.119681393 | AB26: =SUMPRODUCT('RevReq_ExitCase_(2021)'!AJ$467:AJ$491,N('RevReq_ExitCase_(2021)'!$A$467:$A$491=$D26 ))/10^6-SUMPRODUCT(RevReq_BaseCase!AJ$467:AJ$491,N(RevReq_BaseCase!$A$467:$A$491=$D26 ))/10^6 -> -1.087121355 | AC26: =SUMPRODUCT('RevReq_ExitCase_(2021)'!AK$467:AK$491,N('RevReq_ExitCase_(2021)'!$A$467:$A$491=$D26 ))/10^6-SUMPRODUCT(RevReq_BaseCase!AK$467:AK$491,N(RevReq_BaseCase!$A$467:$A$491=$D26 ))/10^6 -> -1.054564787 | AD26: =SUMPRODUCT('RevReq_ExitCase_(2021)'!AL$467:AL$491,N('RevReq_ExitCase_(2021)'!$A$467:$A$491=$D26 ))/10^6-SUMPRODUCT(RevReq_BaseCase!AL$467:AL$491,N(RevReq_BaseCase!$A$467:$A$491=$D26 ))/10^6 -> -1.022011758 | AE26: =SUMPRODUCT('RevReq_ExitCase_(2021)'!AM$467:AM$491,N('RevReq_ExitCase_(2021)'!$A$467:$A$491=$D26 ))/10^6-SUMPRODUCT(RevReq_BaseCase!AM$467:AM$491,N(RevReq_BaseCase!$A$467:$A$491=$D26 ))/10^6 -> -0.989462338 | AF26: =SUMPRODUCT('RevReq_ExitCase_(2021)'!AN$467:AN$491,N('RevReq_ExitCase_(2021)'!$A$467:$A$491=$D26 ))/10^6-SUMPRODUCT(RevReq_BaseCase!AN$467:AN$491,N(RevReq_BaseCase!$A$467:$A$491=$D26 ))/10^6 -> -0.9569166004 | AG26: =SUMPRODUCT('RevReq_ExitCase_(2021)'!AO$467:AO$491,N('RevReq_ExitCase_(2021)'!$A$467:$A$491=$D26 ))/10^6-SUMPRODUCT(RevReq_BaseCase!AO$467:AO$491,N(RevReq_BaseCase!$A$467:$A$491=$D26 ))/10^6 -> -0.9243746185 | AH26: =SUMPRODUCT('RevReq_ExitCase_(2021)'!AP$467:AP$491,N('RevReq_ExitCase_(2021)'!$A$467:$A$491=$D26 ))/10^6-SUMPRODUCT(RevReq_BaseCase!AP$467:AP$491,N(RevReq_BaseCase!$A$467:$A$491=$D26 ))/10^6 -> -0.8918364672 | AI26: =SUMPRODUCT('RevReq_ExitCase_(2021)'!AQ$467:AQ$491,N('RevReq_ExitCase_(2021)'!$A$467:$A$491=$D26 ))/10^6-SUMPRODUCT(RevReq_BaseCase!AQ$467:AQ$491,N(RevReq_BaseCase!$A$467:$A$491=$D26 ))/10^6 -> -0.8593022234 | AJ26: =SUMPRODUCT('RevReq_ExitCase_(2021)'!AR$467:AR$491,N('RevReq_ExitCase_(2021)'!$A$467:$A$491=$D26 ))/10^6-SUMPRODUCT(RevReq_BaseCase!AR$467:AR$491,N(RevReq_BaseCase!$A$467:$A$491=$D26 ))/10^6 -> -0.826771965 | AK26: =SUMPRODUCT('RevReq_ExitCase_(2021)'!AS$467:AS$491,N('RevReq_ExitCase_(2021)'!$A$467:$A$491=$D26 ))/10^6-SUMPRODUCT(RevReq_BaseCase!AS$467:AS$491,N(RevReq_BaseCase!$A$467:$A$491=$D26 ))/10^6 -> -0.7942457718 | AL26: =SUMPRODUCT('RevReq_ExitCase_(2021)'!AT$467:AT$491,N('RevReq_ExitCase_(2021)'!$A$467:$A$491=$D26 ))/10^6-SUMPRODUCT(RevReq_BaseCase!AT$467:AT$491,N(RevReq_BaseCase!$A$467:$A$491=$D26 ))/10^6 -> -0.7617237252 | AM26: =SUMPRODUCT('RevReq_ExitCase_(2021)'!AU$467:AU$491,N('RevReq_ExitCase_(2021)'!$A$467:$A$491=$D26 ))/10^6-SUMPRODUCT(RevReq_BaseCase!AU$467:AU$491,N(RevReq_BaseCase!$A$467:$A$491=$D26 ))/10^6 -> -0.729205908 | AN26: =SUMPRODUCT('RevReq_ExitCase_(2021)'!AV$467:AV$491,N('RevReq_ExitCase_(2021)'!$A$467:$A$491=$D26 ))/10^6-SUMPRODUCT(RevReq_BaseCase!AV$467:AV$491,N(RevReq_BaseCase!$A$467:$A$491=$D26 ))/10^6 -> -0.6966924048 | AO26: =SUMPRODUCT('RevReq_ExitCase_(2021)'!AW$467:AW$491,N('RevReq_ExitCase_(2021)'!$A$467:$A$491=$D26 ))/10^6-SUMPRODUCT(RevReq_BaseCase!AW$467:AW$491,N(RevReq_BaseCase!$A$467:$A$491=$D26 ))/10^6 -> -0.6642701792 | AP26: =SUMPRODUCT('RevReq_ExitCase_(2021)'!AX$467:AX$491,N('RevReq_ExitCase_(2021)'!$A$467:$A$491=$D26 ))/10^6-SUMPRODUCT(RevReq_BaseCase!AX$467:AX$491,N(RevReq_BaseCase!$A$467:$A$491=$D26 ))/10^6 -> -0.6409608736 | AQ26: =SUMPRODUCT('RevReq_ExitCase_(2021)'!AY$467:AY$491,N('RevReq_ExitCase_(2021)'!$A$467:$A$491=$D26 ))/10^6-SUMPRODUCT(RevReq_BaseCase!AY$467:AY$491,N(RevReq_BaseCase!$A$467:$A$491=$D26 ))/10^6 -> -0.5969806941 | AS26: -19.42051605
B27: Clause Revenue Requirement | E27: =SUM(I27:AQ27) -> -285.104699 | G27: =SUM(G20:G26) -> -31.84126039 | I27: =SUM(I20:I26) -> -17.68673905 | J27: -25.70283938 | K27: 9.598419994 | L27: 11.25275507 | M27: 1.657843574 | N27: 1.45983195 | O27: -0.4284307265 | P27: 10.00833232 | Q27: 10.67955237 | R27: 21.30268307 | S27: 8.941187902 | T27: 8.451592611 | U27: 17.51020628 | V27: 2.067987662 | W27: 0.3951474177 | X27: -3.737992856 | Y27: -4.551439162 | Z27: -6.195197618 | AA27: -8.15927447 | AB27: -7.393676083 | AC27: -9.838408955 | AD27: -11.47347971 | AE27: -11.7888951 | AF27: -12.38466203 | AG27: -15.65078753 | AH27: -21.43727875 | AI27: -23.68414303 | AJ27: -21.69138782 | AK27: -19.61902073 | AL27: -27.93704952 | AM27: -27.85548212 | AN27: -27.77432659 | AO27: -27.68946208 | AP27: -27.18092141 | AQ27: -28.56934449 | AS27: -344.2170826
B29: Net Customer Costs / (Savings)(11) | E29: =E17+E27 -> -618.5796734 | G29: =G17+G27 -> -183.1800755 | I29: =I17+I27 -> -38.18591844 | J29: -45.10599847 | K29: -7.687624985 | L29: 4.745830534 | M29: -5.54167299 | N29: -6.783280198 | O29: -9.692351566 | P29: -1.187317795 | Q29: -2.212806836 | R29: 6.964087659 | S29: -7.449027709 | T29: -9.584281167 | U29: -2.099596825 | V29: -33.5058984 | W29: -34.29688525 | X29: -12.79069313 | Y29: -0.9567573948 | Z29: -3.743373863 | AA29: -5.606120324 | AB29: -6.139194294 | AC29: -8.816435667 | AD29: -11.24951715 | AE29: -11.87247671 | AF29: -14.94284959 | AG29: -17.47750288 | AH29: -24.44908843 | AI29: -26.4286823 | AJ29: -28.48701974 | AK29: -26.45077443 | AL29: -36.33367256 | AM29: -36.54708329 | AN29: -36.64443177 | AO29: -36.79279514 | AP29: -36.49128993 | AQ29: -44.7371724 | AS29: =SUM(W29:AQ29) -> -461.2538162
B31: check | I31: =ROUND('RevReq_Delta_(2021)'!Q35/10^6-I29,3) -> 0 | J31: =ROUND('RevReq_Delta_(2021)'!R35/10^6-J29,3) -> 0 | K31: =ROUND('RevReq_Delta_(2021)'!S35/10^6-K29,3) -> 0 | L31: =ROUND('RevReq_Delta_(2021)'!T35/10^6-L29,3) -> 0 | M31: =ROUND('RevReq_Delta_(2021)'!U35/10^6-M29,3) -> 0 | N31: =ROUND('RevReq_Delta_(2021)'!V35/10^6-N29,3) -> 0 | O31: =ROUND('RevReq_Delta_(2021)'!W35/10^6-O29,3) -> 0 | P31: =ROUND('RevReq_Delta_(2021)'!X35/10^6-P29,3) -> 0 | Q31: =ROUND('RevReq_Delta_(2021)'!Y35/10^6-Q29,3) -> 0 | R31: =ROUND('RevReq_Delta_(2021)'!Z35/10^6-R29,3) -> 0 | S31: =ROUND('RevReq_Delta_(2021)'!AA35/10^6-S29,3) -> 0 | T31: =ROUND('RevReq_Delta_(2021)'!AB35/10^6-T29,3) -> 0 | U31: =ROUND('RevReq_Delta_(2021)'!AC35/10^6-U29,3) -> 0 | V31: =ROUND('RevReq_Delta_(2021)'!AD35/10^6-V29,3) -> 0 | W31: 0 | X31: 0 | Y31: 0 | Z31: 0 | AA31: 0 | AB31: 0 | AC31: 0 | AD31: 0 | AE31: 0 | AF31: 0 | AG31: 0 | AH31: 0 | AI31: 0 | AJ31: 0 | AK31: 0 | AL31: 0 | AM31: 0 | AN31: 0 | AO31: 0 | AP31: 0 | AQ31: 0
B34: 1 | C34: Incremental Revenue Requirement represents the difference between the Revenue Requirement with and without the Transaction.
B35: =B34+1 -> 2 | C35: Represents the O&M savings associated with FPL's 20% Equity portion of SJRPP that are recovered through base rates.
B36: =B35+1 -> 3 | C36: Base system impact reflects Fixed O&M and Capital Costs associated with additional generation in 2033.
B37: 4 | C37: Incremental Base D&A represents the amortization of the base regulatory assets less the avoided status quo depreciation of existing and future capital. It also includes the net impact to dismantlement accrual.
B38: 5 | C38: Interest expense assumes 5.2% cost of debt and 40.4% debt to investor capital ratio.
B39: 6 | C39: Return on Equity assumes 10.55% cost of equity and 59.6% equity to investor capital ratio.
B40: 7 | C40: Income tax assumes blended state and federal tax rate of 38.575%.
B41: 8 | C41: Includes payments to JEA for debt service, CCRA, O&M, and Transmission Costs associated with the PPA. Also includes O&M savings associated with FPL's 20% Equity portion that are recovered through ECR Clause.
B42: 9 | C42: Clause system impacts include incremental effects on fuel, emissions, variable O&M, short-term PPAs, and gas transportation.
B43: 10 | C43: Incremental Clause D&A represents the amortization of the clause regulatory assets less the avoided status quo depreciation of existing and future ECRC capital. It also includes the net impact to suspension liability,
C44: deferred interest and dismantlement accrual.
B45: =B43+1 -> 11 | C45: Net Customer Costs / (Savings) reflect the sum of base and clause net revenue requirement.
B52: As Filed
B53: Base Rates: Incremental Revenue Requirement(1)
B54: Operations and Maintenance(2) | D54: Base | E54: -591.8455484 | G54: -186.5513098 | I54: -12.34772614 | J54: -12.26546336 | K54: -12.26546336 | L54: -12.51077262 | M54: -12.76098808 | N54: -13.01620784 | O54: -13.276532 | P54: -13.7628788 | Q54: -14.03813637 | R54: -14.08916197 | S54: -14.3709452 | T54: -14.65836411 | U54: -14.95153139 | V54: -15.25056202 | W54: -15.55557326 | X54: -15.86668472 | Y54: -16.18401842 | Z54: -16.77687245 | AA54: -17.1124099 | AB54: -17.17460982 | AC54: -17.51810201 | AD54: -17.86846405 | AE54: -18.22583334 | AF54: -18.59035 | AG54: -18.962157 | AH54: -19.34140014 | AI54: -19.72822815 | AJ54: -20.45091391 | AK54: -20.85993219 | AL54: -20.93575353 | AM54: -21.3544686 | AN54: -21.78155798 | AO54: -22.21718914 | AP54: -22.66153292 | AQ54: -23.11476358 | AS54: -402.2808151
B55: Property Tax | D55: Base | E55: -92.7330673 | G55: -26.91070522 | I55: 0 | J55: -1.832959396 | K55: -1.827268023 | L55: -1.818371982 | M55: -1.820411581 | N55: -1.816975368 | O55: -1.81230899 | P55: -1.950234951 | Q55: -1.974586581 | R55: -2.090086044 | S55: -2.205881351 | T55: -2.243581264 | U55: -2.318306811 | V55: -2.365073064 | W55: -2.452073839 | X55: -2.513858144 | Y55: -2.600206484 | Z55: -2.736796541 | AA55: -2.839747903 | AB55: -2.882402896 | AC55: -2.948243577 | AD55: -2.997654011 | AE55: -3.083794948 | AF55: -3.177072912 | AG55: -3.277639598 | AH55: -3.363245249 | AI55: -3.403980911 | AJ55: -3.506536819 | AK55: -3.519210749 | AL55: -3.545917418 | AM55: -3.556709971 | AN55: -3.558709259 | AO55: -3.565404898 | AP55: -3.563030315 | AQ55: -3.564785452 | AS55: -66.65702189
B56: System Impact(3) | D56: Base | E56: 677.1175168 | G56: 120.7708945 | I56: 0 | J56: 0 | K56: 0 | L56: 0 | M56: 0 | N56: 0 | O56: 0 | P56: 0 | Q56: 0 | R56: 0 | S56: 0 | T56: 0 | U56: 0 | V56: 0 | W56: 0 | X56: 25.80758385 | Y56: 38.81265911 | Z56: 37.50875464 | AA56: 38.16385566 | AB56: 36.38904064 | AC56: 36.21793377 | AD56: 35.44489899 | AE56: 35.41990784 | AF56: 33.72084459 | AG56: 35.25561783 | AH56: 34.87988082 | AI56: 35.64925309 | AJ56: 32.58104002 | AK56: 33.08703757 | AL56: 31.3632014 | AM56: 31.3632014 | AN56: 31.3632014 | AO56: 31.3632014 | AP56: 31.3632014 | AQ56: 31.3632014 | AS56: 677.1175168
B57: Depreciation and Amortization(4) | D57: Base | E57: -119.8367137 | G57: -18.61282917 | I57: -7.772469479 | J57: -7.813966644 | K57: -7.870265226 | L57: 6.901698791 | M57: 6.827999816 | N57: 6.750001709 | O57: 6.674088964 | P57: 6.52138376 | Q57: 6.350982797 | R57: 6.189355258 | S57: 5.975770105 | T57: 5.799936363 | U57: 5.642153471 | V57: -9.364056137 | W57: -9.499310949 | X57: -9.604715501 | Y57: -8.971300554 | Z57: -9.049768679 | AA57: -9.209995441 | AB57: -9.323226997 | AC57: -9.41937571 | AD57: -9.475397089 | AE57: -9.588670775 | AF57: -7.507634164 | AG57: -6.961169831 | AH57: -6.487465154 | AI57: -6.581264697 | AJ57: -6.779308318 | AK57: -4.50744682 | AL57: -4.588731108 | AM57: -4.670976221 | AN57: -4.74166228 | AO57: -4.811661425 | AP57: -4.880705659 | AQ57: -3.989539919 | AS57: -150.6493273
B58: Interest Expense(5) | D58: Base | E58: -30.40537584 | G58: -6.75206374 | I58: -0.08090004845 | J58: 0.4094781504 | K58: 0.7779980677 | L58: 0.1432173631 | M58: 0.08258037869 | N58: -0.03697024972 | O58: -0.1518031579 | P58: -0.3443250297 | Q58: -0.5500405799 | R58: -0.7411715809 | S58: -0.9815981523 | T58: -1.177362969 | U58: -1.352184908 | V58: -1.454764331 | W58: -1.442860517 | X58: -1.396156762 | Y58: -1.35342092 | Z58: -1.357562855 | AA58: -1.369897719 | AB58: -1.328247334 | AC58: -1.266008666 | AD58: -1.207807419 | AE58: -1.160882827 | AF58: -1.150847736 | AG58: -1.164943198 | AH58: -1.181752195 | AI58: -1.168691482 | AJ58: -1.165993842 | AK58: -1.162560407 | AL58: -1.132943701 | AM58: -1.105833662 | AN58: -1.068176096 | AO58: -1.031136988 | AP58: -0.9942335959 | AQ58: -0.7375708718 | AS58: -24.94752879
B59: Return on Equity(6) | D59: Base | E59: -91.58502185 | G59: -20.33811088 | I59: -0.2436816681 | J59: 1.23340246 | K59: 2.343433293 | L59: 0.4313896793 | M59: 0.2487430455 | N59: -0.1113592921 | O59: -0.4572512311 | P59: -1.037152625 | Q59: -1.656795127 | R59: -2.232507034 | S59: -2.956703732 | T59: -3.546373307 | U59: -4.072960157 | V59: -4.381942974 | W59: -4.34608711 | X59: -4.205409209 | Y59: -4.07668319 | Z59: -4.089159246 | AA59: -4.12631349 | AB59: -4.000857012 | AC59: -3.813385896 | AD59: -3.638076025 | AE59: -3.496732933 | AF59: -3.466505909 | AG59: -3.508963311 | AH59: -3.559594238 | AI59: -3.520253637 | AJ59: -3.512127988 | AK59: -3.501786027 | AL59: -3.412576582 | AM59: -3.330917553 | AN59: -3.217487973 | AO59: -3.105921272 | AP59: -2.994763363 | AQ59: -2.221661221 | AS59: -75.14526318
B60: Income Tax(7) | D60: Base | E60: -57.51554282 | G60: -12.77236674 | I60: -0.1530324843 | J60: 0.7745787528 | K60: 1.471679923 | L60: 0.2709134209 | M60: 0.1562110375 | N60: -0.06993381671 | O60: -0.2871545175 | P60: -0.651333537 | Q60: -1.040470037 | R60: -1.402018052 | S60: -1.856814757 | T60: -2.22712821 | U60: -2.557825609 | V60: -2.751867321 | W60: -2.729349781 | X60: -2.64100383 | Y60: -2.56016368 | Z60: -2.567998664 | AA60: -2.591331589 | AB60: -2.512544717 | AC60: -2.394812551 | AD60: -2.284717666 | AE60: -2.195953975 | AF60: -2.176971354 | AG60: -2.203634672 | AH60: -2.235430976 | AI60: -2.210725015 | AJ60: -2.205622094 | AK60: -2.199127326 | AL60: -2.143103649 | AM60: -2.091821646 | AN60: -2.020587685 | AO60: -1.950523615 | AP60: -1.880716268 | AQ60: -1.395206864 | AS60: -47.19134762
B61: Base Revenue Requirement | E61: -306.8037531 | G61: -151.166491 | I61: -20.59780982 | J61: -19.49493003 | K61: -17.36988532 | L61: -6.581925352 | M61: -7.26586538 | N61: -8.301444856 | O61: -9.310960927 | P61: -11.22454118 | Q61: -12.9090459 | R61: -14.36558942 | S61: -16.39617309 | T61: -18.0528735 | U61: -19.6106554 | V61: -35.56826585 | W61: -36.02525546 | X61: -10.42024432 | Y61: 3.066865865 | Z61: 0.9305961964 | AA61: 0.9141596185 | AB61: -0.8328481299 | AC61: -1.141994644 | AD61: -2.027217273 | AE61: -2.331960953 | AF61: -2.34853749 | AG61: -0.8228897871 | AH61: -1.289007137 | AI61: -0.9638907953 | AJ61: -5.039462949 | AK61: -2.663025944 | AL61: -4.395824597 | AM61: -4.747526262 | AN61: -5.024979874 | AO61: -5.318635939 | AP61: -5.611780725 | AQ61: -3.660326509 | AS61: -89.7537871
B63: Clause: Incremental Revenue Requirement(1)
B64: PPA Payments, Operations and Maintenance(8) | D64: Clause | E64: -105.6677524 | G64: -93.80467048 | I64: -53.38312652 | J64: -44.80424834 | K64: -0.16222344 | L64: -0.1654679088 | M64: -0.168777267 | N64: -0.1721528123 | O64: -0.1755958686 | P64: -0.1791077859 | Q64: -0.1826899417 | R64: -0.1863437405 | S64: -0.1900706153 | T64: -0.1938720276 | U64: -0.1977494682 | V64: -0.2017044575 | W64: -0.2057385467 | X64: -0.2098533176 | Y64: -0.214050384 | Z64: -0.2183313916 | AA64: -0.2226980195 | AB64: -0.2271519799 | AC64: -0.2316950194 | AD64: -0.2363289198 | AE64: -0.2410554982 | AF64: -0.2458766082 | AG64: -0.2507941404 | AH64: -0.2558100232 | AI64: -0.2609262236 | AJ64: -0.2661447481 | AK64: -0.2714676431 | AL64: -0.2768969959 | AM64: -0.2824349358 | AN64: -0.2880836346 | AO64: -0.2938453073 | AP64: -0.2997222134 | AQ64: -0.3057166577 | AS64: -6.088018776
B65: Property Tax | D65: Clause | E65: -9.581230166 | G65: -8.381083979 | I65: -2.664314434 | J65: -2.549410055 | K65: -2.434505677 | L65: -1.933 | M65: 0 | N65: 0 | O65: 0 | P65: 0 | Q65: 0 | R65: 0 | S65: 0 | T65: 0 | U65: 0 | V65: 0 | W65: 0 | X65: 0 | Y65: 0 | Z65: 0 | AA65: 0 | AB65: 0 | AC65: 0 | AD65: 0 | AE65: 0 | AF65: 0 | AG65: 0 | AH65: 0 | AI65: 0 | AJ65: 0 | AK65: 0 | AL65: 0 | AM65: 0 | AN65: 0 | AO65: 0 | AP65: 0 | AQ65: 0 | AS65: 0
B66: System Impact(9) | D66: Clause | E66: -142.2880261 | G66: 29.91106609 | I66: 13.543415 | J66: 10 | K66: 0.48 | L66: 0.07 | M66: -0.92 | N66: -0.67 | O66: -2.11 | P66: 8.775281792 | Q66: 9.895281792 | R66: 20.96745885 | S66: 9.055281792 | T66: 9.015281792 | U66: 18.52377348 | V66: 7.625281792 | W66: 5.865281792 | X66: 1.645281792 | Y66: 0.7452817917 | Z66: -0.9847182083 | AA66: -3.034718208 | AB66: -2.354718208 | AC66: -4.884718208 | AD66: -6.604718208 | AE66: -7.004718208 | AF66: -7.684718208 | AG66: -11.03471821 | AH66: -16.90471821 | AI66: -19.23471821 | AJ66: -17.32471821 | AK66: -15.33471821 | AL66: -23.73471821 | AM66: -23.73471821 | AN66: -23.73471821 | AO66: -23.73471821 | AP66: -23.73471821 | AQ66: -23.73471821 | AS66: -246.5390824
B67: Depreciation and Amortization(10) | D67: Clause | E67: 58.67320114 | G67: 53.39957105 | I67: 17.20839621 | J67: 8.115431494 | K67: 9.544593423 | L67: 12.6728912 | M67: 3.236058012 | N67: 3.227291298 | O67: 3.21834925 | P67: 3.20922836 | Q67: 3.199925053 | R67: 3.19043568 | S67: 3.180756519 | T67: 3.170883775 | U67: 3.160813576 | V67: -1.211828727 | W67: -1.222305761 | X67: -1.232992337 | Y67: -1.124440685 | Z67: -1.124199278 | AA67: -1.135539957 | AB67: -1.14710745 | AC67: -1.158906293 | AD67: -1.163555537 | AE67: -1.175625507 | AF67: -0.8297983818 | AG67: -0.7301684258 | AH67: -0.6427331636 | AI67: -0.6517876625 | AJ67: -0.6760449178 | AK67: -0.3040904904 | AL67: -0.3181912 | AM67: -0.3325739237 | AN67: -0.347244302 | AO67: -0.3622080878 | AP67: -0.3774711493 | AQ67: -0.393039472 | AS67: -16.45002398
B68: Interest Expense(5) | D68: Clause | E68: -14.9617855 | G68: -2.199592636 | I68: 1.311230473 | J68: 0.6183025419 | K68: 0.3841793175 | L68: 0.1166210991 | M68: -0.07226603261 | N68: -0.1490381809 | O68: -0.2258117192 | P68: -0.3025866754 | Q68: -0.3793630779 | R68: -0.4561409556 | S68: -0.532920338 | T68: -0.6097012551 | U68: -0.6864837377 | V68: -0.717735766 | W68: -0.703457372 | X68: -0.6891806393 | Y68: -0.6761523756 | Z68: -0.6644911815 | AA68: -0.6529503169 | AB68: -0.6414112506 | AC68: -0.6298740184 | AD68: -0.6184157438 | AE68: -0.6070386094 | AF68: -0.5994058099 | AG68: -0.5966884234 | AH68: -0.5961948158 | AI68: -0.5967960238 | AJ68: -0.5973317961 | AK68: -0.6017845415 | AL68: -0.6102660266 | AM68: -0.6187497476 | AN68: -0.6272357491 | AO68: -0.6357240769 | AP68: -0.6442147774 | AQ68: -0.652707898 | AS68: -13.26007119
B69: Return on Equity(6) | D69: Clause | E69: -45.06688091 | G69: -6.625464547 | I69: 3.949599969 | J69: 1.862409204 | K69: 1.157199022 | L69: 0.3512782069 | M69: -0.2176748681 | N69: -0.4489227537 | O69: -0.6801748265 | P69: -0.9114311702 | Q69: -1.14269187 | R69: -1.373957014 | S69: -1.605226689 | T69: -1.836500988 | U69: -2.067780002 | V69: -2.161915253 | W69: -2.118906838 | X69: -2.075903427 | Y69: -2.03666057 | Z69: -2.001535508 | AA69: -1.966772894 | AB69: -1.932015697 | AC69: -1.897264025 | AD69: -1.862750183 | AE69: -1.828480746 | AF69: -1.805489743 | AG69: -1.797304614 | AH69: -1.795817803 | AI69: -1.797628721 | AJ69: -1.799242538 | AK69: -1.812654797 | AL69: -1.838202155 | AM69: -1.863756247 | AN69: -1.889317208 | AO69: -1.914885176 | AP69: -1.940460291 | AQ69: -1.966042697 | AS69: -39.94109188
B70: Income Tax(7) | D70: Clause | E70: -28.30207458 | G70: -4.160802522 | I70: 2.480355211 | J70: 1.169596012 | K70: 0.7267228698 | L70: 0.2206032858 | M70: -0.1367001715 | N70: -0.2819242202 | O70: -0.4271508984 | P70: -0.5723802587 | Q70: -0.7176123548 | R70: -0.8628472414 | S70: -1.008084974 | T70: -1.15332561 | U70: -1.298569208 | V70: -1.357686299 | W70: -1.330676944 | X70: -1.303670732 | Y70: -1.279026154 | Z70: -1.256967558 | AA70: -1.23513658 | AB70: -1.213309003 | AC70: -1.191484896 | AD70: -1.169810147 | AE70: -1.148288885 | AF70: -1.133850498 | AG70: -1.128710224 | AH70: -1.127776504 | AI70: -1.128913763 | AJ70: -1.129927243 | AK70: -1.138350164 | AL70: -1.154393946 | AM70: -1.170441957 | AN70: -1.186494282 | AO70: -1.202551008 | AP70: -1.218612222 | AQ70: -1.234678014 | AS70: -25.08307072
B71: Clause Revenue Requirement | E71: -287.1945485 | G71: -31.86097702 | I71: -17.55444409 | J71: -25.58791914 | K71: 9.695965516 | L71: 11.33292588 | M71: 1.720639673 | N71: 1.505253331 | O71: -0.4003840629 | P71: 10.01900426 | Q71: 10.6728496 | R71: 21.27860558 | S71: 8.899735694 | T71: 8.392765686 | U71: 17.43400464 | V71: 1.974411289 | W71: 0.2841963292 | X71: -3.866318661 | Y71: -4.585048378 | Z71: -6.250243125 | AA71: -8.247815976 | AB71: -7.515713589 | AC71: -9.993942461 | AD71: -11.65557874 | AE71: -12.00520746 | AF71: -12.29913925 | AG71: -15.53838404 | AH71: -21.32305052 | AI71: -23.6707706 | AJ71: -21.79340945 | AK71: -19.46306584 | AL71: -27.93266853 | AM71: -28.00267502 | AN71: -28.07309338 | AO71: -28.14393186 | AP71: -28.21519886 | AQ71: -28.28690295 | AS71: -346.5779624
B73: Net Customer Costs / (Savings)(11) | E73: -593.9983016 | G73: -183.027468 | I73: -38.15225391 | J73: -45.08284918 | K73: -7.673919807 | L73: 4.751000532 | M73: -5.545225707 | N73: -6.796191525 | O73: -9.71134499 | P73: -1.205536916 | Q73: -2.236196298 | R73: 6.913016158 | S73: -7.496437399 | T73: -9.660107811 | U73: -2.176650764 | V73: -33.59385456 | W73: -35.74105913 | X73: -14.28656298 | Y73: -1.518182513 | Z73: -5.319646928 | AA73: -7.333656357 | AB73: -8.348561719 | AC73: -11.13593711 | AD73: -13.68279601 | AE73: -14.33716841 | AF73: -14.64767674 | AG73: -16.36127382 | AH73: -22.61205765 | AI73: -24.6346614 | AJ73: -26.8328724 | AK73: -22.12609179 | AL73: -32.32849313 | AM73: -32.75020128 | AN73: -33.09807326 | AO73: -33.4625678 | AP73: -33.82697959 | AQ73: -31.94722946 | AS73: -436.3317495
B77: (Fav) Unfav delta of Corrected minus As Filed
B78: Base Rates: Incremental Revenue Requirement(1)
B79: Operations and Maintenance(2) | D79: Base | E79: =+E10-E54 -> 0 | G79: =+G10-G54 -> 0 | I79: =+I10-I54 -> 0 | J79: 0 | K79: 0 | L79: 0 | M79: 0 | N79: 0 | O79: 0 | P79: 0 | Q79: 0 | R79: 0 | S79: 0 | T79: 0 | U79: 0 | V79: 0 | W79: 0 | X79: 0 | Y79: 0 | Z79: 0 | AA79: 0 | AB79: 0 | AC79: 0 | AD79: 0 | AE79: 0 | AF79: 0 | AG79: 0 | AH79: 0 | AI79: 0 | AJ79: 0 | AK79: 0 | AL79: 0 | AM79: 0 | AN79: 0 | AO79: 0 | AP79: 0 | AQ79: 0 | AS79: =+AS10-AS54 -> 0
B80: Property Tax | D80: Base | E80: =+E11-E55 -> 0 | G80: =+G11-G55 -> 0 | I80: =+I11-I55 -> 0 | J80: 0 | K80: 0 | L80: 0 | M80: 0 | N80: 0 | O80: 0 | P80: 0 | Q80: 0 | R80: 0 | S80: 0 | T80: 0 | U80: 0 | V80: 0 | W80: 0 | X80: 0 | Y80: 0 | Z80: 0 | AA80: 0 | AB80: 0 | AC80: 0 | AD80: 0 | AE80: 0 | AF80: 0 | AG80: 0 | AH80: 0 | AI80: 0 | AJ80: 0 | AK80: 0 | AL80: 0 | AM80: 0 | AN80: 0 | AO80: 0 | AP80: 0 | AQ80: 0 | AS80: =+AS11-AS55 -> 0
B81: System Impact(3) | D81: Base | E81: =+E12-E56 -> 0 | G81: =+G12-G56 -> 0 | I81: =+I12-I56 -> 0 | J81: =+J12-J56 -> 0 | K81: 0 | L81: 0 | M81: 0 | N81: 0 | O81: 0 | P81: 0 | Q81: 0 | R81: 0 | S81: 0 | T81: 0 | U81: 0 | V81: 0 | W81: 0 | X81: 0 | Y81: 0 | Z81: 0 | AA81: 0 | AB81: 0 | AC81: 0 | AD81: 0 | AE81: 0 | AF81: 0 | AG81: 0 | AH81: 0 | AI81: 0 | AJ81: 0 | AK81: 0 | AL81: 0 | AM81: 0 | AN81: 0 | AO81: 0 | AP81: 0 | AQ81: 0 | AS81: =+AS12-AS56 -> 0
B82: Depreciation and Amortization(4) | D82: Base | E82: =+E13-E57 -> 17.07652122 | G82: =+G13-G57 -> 6.974285906 | I82: =+I13-I57 -> 0.1059934509 | J82: =+J13-J57 -> 0.114169482 | K82: 0.1218755247 | L82: 0.129243192 | M82: 0.1373854365 | N82: 0.1468292087 | O82: 0.1536105947 | P82: 0.1537994024 | Q82: 0.1601815688 | R82: 0.1904631631 | S82: 0.1905503723 | T82: 0.2239851622 | U82: 0.2317912689 | V82: 0.2502670658 | W82: 1.668435656 | X82: 1.842342907 | Y82: 1.124450167 | Z82: 2.258560541 | AA82: 2.572089704 | AB82: 3.253859565 | AC82: 3.602950335 | AD82: 3.990679328 | AE82: 4.315548358 | AF82: 2.123019986 | AG82: 1.498925485 | AH82: 0.9091438017 | AI82: 0.962684956 | AJ82: 1.105842817 | AK82: -1.263379078 | AL82: -1.127474431 | AM82: -1.096457564 | AN82: -1.019113116 | AO82: -0.975828864 | AP82: -0.9138449204 | AQ82: -10.0660593 | AS82: =+AS13-AS57 -> 14.76637633
B83: Interest Expense(5) | D83: Base | E83: =+E14-E58 -> -7.41015339 | G83: =+G14-G58 -> -1.210519057 | I83: =+I14-I58 -> -0.001247175805 | J83: =+J14-J58 -> -0.003793945644 | K83: -0.006442538749 | L83: -0.00918777258 | M83: -0.01203244372 | N83: -0.01498986245 | O83: -0.01805130404 | P83: -0.02115743298 | Q83: -0.0243056898 | R83: -0.02768900558 | S83: -0.03126702206 | T83: -0.03505995501 | U83: -0.0391172919 | V83: -0.04334312747 | W83: -0.0567795878 | X83: -0.0804231762 | Y83: -0.1010601042 | Z83: -0.12489217 | AA83: -0.1580510899 | AB83: -0.197591078 | AC83: -0.2437401272 | AD83: -0.2946428167 | AE83: -0.3501446836 | AF83: -0.3951162257 | AG83: -0.4239251698 | AH83: -0.4458087437 | AI83: -0.4646758968 | AJ83: -0.4847780734 | AK83: -0.4921186357 | AL83: -0.4866941792 | AM83: -0.482339891 | AN83: -0.4786803298 | AO83: -0.4757764276 | AP83: -0.4716899821 | AQ83: -0.4135404334 | AS83: =+AS14-AS58 -> -7.122468822
B84: Return on Equity(6) | D84: Base | E84: =+E15-E59 -> -22.32036413 | G84: =+G15-G59 -> -3.646243839 | I84: =+I15-I59 -> -0.003756658821 | J84: =+J15-J59 -> -0.01142786712 | K84: -0.01940578058 | L84: -0.02767478873 | M84: -0.03624331522 | N84: -0.04515145241 | O84: -0.05437292022 | P84: -0.06372899227 | Q84: -0.07321195906 | R84: -0.08340295462 | S84: -0.09418041446 | T84: -0.1056052312 | U84: -0.1178264677 | V84: -0.1305552445 | W84: -0.1710276438 | X84: -0.2422452657 | Y84: -0.304406428 | Z84: -0.3761917689 | AA84: -0.4760708303 | AB84: -0.595170515 | AC84: -0.7341775677 | AD84: -0.887503215 | AE84: -1.054682194 | AF84: -1.190142439 | AG84: -1.276918797 | AH84: -1.342835022 | AI84: -1.399665388 | AJ84: -1.460215808 | AK84: -1.482326554 | AL84: -1.465987372 | AM84: -1.452871679 | AN84: -1.441848596 | AO84: -1.433101658 | AP84: -1.420792742 | AQ84: -1.245638595 | AS84: =+AS15-AS59 -> -21.45382008
B85: Income Tax(7) | D85: Base | E85: =+E16-E60 -> -14.01722501 | G85: =+G16-G60 -> -2.289847067 | I85: =+I16-I60 -> -0.002359187856 | J85: =+J16-J60 -> -0.007176719154 | K85: -0.0121868618 | L85: -0.01737981237 | M85: -0.02276086096 | N85: -0.02835518562 | O85: -0.03414628242 | P85: -0.0400219109 | Q85: -0.04597722948 | R85: -0.05237719128 | S85: -0.05914545361 | T85: -0.06632025713 | U85: -0.07399521352 | V85: -0.08198890608 | W85: -0.1074056388 | X85: -0.1521304212 | Y85: -0.1911677324 | Z85: -0.2362490433 | AA85: -0.2989732565 | AB85: -0.3737680524 | AC85: -0.4610647077 | AD85: -0.5573534639 | AE85: -0.6623421348 | AF85: -0.7474113894 | AG85: -0.8019070834 | AH85: -0.8433025799 | AI85: -0.878992142 | AJ85: -0.9170179046 | AK85: -0.9309034894 | AL85: -0.9206424565 | AM85: -0.91240578 | AN85: -0.9054832655 | AO85: -0.8999901741 | AP85: -0.8922601551 | AQ85: -0.7822630653 | AS85: =+AS16-AS60 -> -13.47303394
B86: Base Revenue Requirement | E86: =SUM(E79:E85) -> -26.6712213 | G86: =SUM(G79:G85) -> -0.1723240572 | I86: =SUM(I79:I85) -> 0.09863042844 | J86: 0.09177095009 | K86: 0.08384034354 | L86: 0.07500081829 | M86: 0.06634881662 | N86: 0.05833270823 | O86: 0.04704008805 | P86: 0.02889106628 | Q86: 0.01668669049 | R86: 0.02699401164 | S86: 0.005957482166 | T86: 0.01699971886 | U86: 0.0008522958069 | V86: -0.005620212217 | W86: 1.333222785 | X86: 1.367544044 | Y86: 0.5278159022 | Z86: 1.521227559 | AA86: 1.638994527 | AB86: 2.08732992 | AC86: 2.163967932 | AD86: 2.251179832 | AE86: 2.248379346 | AF86: -0.2096500684 | AG86: -1.003825565 | AH86: -1.722802544 | AI86: -1.78064847 | AJ86: -1.756168969 | AK86: -4.168727758 | AL86: -4.000798439 | AM86: -3.944074914 | AN86: -3.845125307 | AO86: -3.784697123 | AP86: -3.6985878 | AQ86: -12.50750139 | AS86: =SUM(AS79:AS85) -> -27.2829465
B88: Clause: Incremental Revenue Requirement(1)
B89: PPA Payments, Operations and Maintenance(8) | D89: Clause | E89: =+E20-E64 -> 0 | G89: =+G20-G64 -> 0 | I89: =+I20-I64 -> 0 | J89: 0 | K89: 0 | L89: 0 | M89: 0 | N89: 0 | O89: 0 | P89: 0 | Q89: 0 | R89: 0 | S89: 0 | T89: 0 | U89: 0 | V89: 0 | W89: 0 | X89: 0 | Y89: 0 | Z89: 0 | AA89: 0 | AB89: 0 | AC89: 0 | AD89: 0 | AE89: 0 | AF89: 0 | AG89: 0 | AH89: 0 | AI89: 0 | AJ89: 0 | AK89: 0 | AL89: 0 | AM89: 0 | AN89: 0 | AO89: 0 | AP89: 0 | AQ89: 0 | AS89: =+AS20-AS64 -> 0.7833965686
B90: Property Tax | D90: Clause | E90: =+E21-E65 -> 0 | G90: =+G21-G65 -> 0 | I90: =+I21-I65 -> 0 | J90: 0 | K90: 0 | L90: 0 | M90: 0 | N90: 0 | O90: 0 | P90: 0 | Q90: 0 | R90: 0 | S90: 0 | T90: 0 | U90: 0 | V90: 0 | W90: 0 | X90: 0 | Y90: 0 | Z90: 0 | AA90: 0 | AB90: 0 | AC90: 0 | AD90: 0 | AE90: 0 | AF90: 0 | AG90: 0 | AH90: 0 | AI90: 0 | AJ90: 0 | AK90: 0 | AL90: 0 | AM90: 0 | AN90: 0 | AO90: 0 | AP90: 0 | AQ90: 0 | AS90: =+AS21-AS65 -> 0
B91: System Impact(9) | D91: Clause | E91: =+E22-E66 -> 0 | G91: =+G22-G66 -> 0 | I91: =+I22-I66 -> 0 | J91: 0 | K91: 0 | L91: 0 | M91: 0 | N91: 0 | O91: 0 | P91: 0 | Q91: 0 | R91: 0 | S91: 0 | T91: 0 | U91: 0 | V91: 0 | W91: 0 | X91: 0 | Y91: 0 | Z91: 0 | AA91: 0 | AB91: 0 | AC91: 0 | AD91: 0 | AE91: 0 | AF91: 0 | AG91: 0 | AH91: 0 | AI91: 0 | AJ91: 0 | AK91: 0 | AL91: 0 | AM91: 0 | AN91: 0 | AO91: 0 | AP91: 0 | AQ91: 0 | AS91: =+AS22-AS66 -> 0
B92: Depreciation and Amortization(10) | D92: Clause | E92: =+E23-E67 -> -17.28569914 | G92: =+G23-G67 -> -3.318463961 | I92: =+I23-I67 -> -0.1409823126 | J92: -0.1409823126 | K92: -0.1409823126 | L92: -0.1409823247 | M92: -0.1409823247 | N92: -0.1409823247 | O92: -0.1409823247 | P92: -0.1409823247 | Q92: -0.1409823247 | R92: -0.1409823247 | S92: -0.1409823247 | T92: -0.1409823247 | U92: -0.1409823247 | V92: -0.1409823126 | W92: -0.1409823126 | X92: -0.1409823126 | Y92: -0.2604342713 | Z92: -0.2717939922 | AA92: -0.2717939922 | AB92: -0.2717939922 | AC92: -0.2717939922 | AD92: -0.2791795683 | AE92: -0.2793851142 | AF92: -0.6377332665 | AG92: -0.7501346695 | AH92: -0.8505968078 | AI92: -0.8548297225 | AJ92: -0.844125629 | AK92: -1.229904281 | AL92: -1.229904281 | AM92: -1.229904281 | AN92: -1.229904281 | AO92: -1.225504037 | AP92: -0.7685717168 | AQ92: -2.272694121 | AS92: =+AS23-AS67 -> -15.31194664
B93: Interest Expense(5) | D93: Clause | E93: =+E24-E68 -> 3.28190163 | G93: =+G24-G68 -> 0.5654332947 | I93: =+I24-I68 -> 0.001471496646 | J93: 0.004414489939 | K93: 0.007357483231 | L93: 0.01030047665 | M93: 0.0132434702 | N93: 0.01618646374 | O93: 0.01912945729 | P93: 0.02207245083 | Q93: 0.02501544438 | R93: 0.02795843792 | S93: 0.03090143147 | T93: 0.03384442502 | U93: 0.03678741856 | V93: 0.03973041198 | W93: 0.04267340527 | X93: 0.04561639857 | Y93: 0.04980616639 | Z93: 0.05536127533 | AA93: 0.06103495085 | AB93: 0.06670862637 | AC93: 0.07238230189 | AD93: 0.07813306403 | AE93: 0.08396305818 | AF93: 0.09353544068 | AG93: 0.1080212508 | AH93: 0.1247288147 | AI93: 0.1425291287 | AJ93: 0.1602618999 | AK93: 0.1819094953 | AL93: 0.2075836383 | AM93: 0.2332577812 | AN93: 0.2589319242 | AO93: 0.2845601398 | AP93: 0.3053732172 | AQ93: 0.3371162948 | AS93: =+AS24-AS68 -> 2.993488273
B94: Return on Equity(6) | D94: Clause | E94: =+E25-E69 -> 9.885522683 | G94: =+G25-G69 -> 1.703160024 | I94: =+I25-I69 -> 0.004432342925 | J94: 0.01329702878 | K94: 0.02216171463 | L94: 0.03102640086 | M94: 0.03989108747 | N94: 0.04875577409 | O94: 0.0576204607 | P94: 0.06648514731 | Q94: 0.07534983393 | R94: 0.08421452054 | S94: 0.09307920716 | T94: 0.1019438938 | U94: 0.1108085804 | V94: 0.1196732666 | W94: 0.1285379525 | X94: 0.1374026383 | Y94: 0.1500227743 | Z94: 0.1667554987 | AA94: 0.1838453613 | AB94: 0.2009352239 | AC94: 0.2180250866 | AD94: 0.2353471444 | AE94: 0.2529078594 | AF94: 0.2817411442 | AG94: 0.3253743242 | AH94: 0.3756997211 | AI94: 0.4293166258 | AJ94: 0.4827300831 | AK94: 0.5479355095 | AL94: 0.6252694309 | AM94: 0.7026033523 | AN94: 0.7799372737 | AO94: 0.8571328558 | AP94: 0.9198246034 | AQ94: 1.01543896 | AS94: =+AS25-AS69 -> 9.016783423
B95: Income Tax(7) | D95: Clause | E95: =+E26-E70 -> 6.208124338 | G95: =+G26-G70 -> 1.069587268 | I95: =+I26-I70 -> 0.002783518573 | J95: 0.008350555719 | K95: 0.01391759286 | L95: 0.01948463025 | M95: 0.02505166788 | N95: 0.0306187055 | O95: 0.03618574313 | P95: 0.04175278075 | Q95: 0.04731981838 | R95: 0.052886856 | S95: 0.05845389363 | T95: 0.06402093125 | U95: 0.06958796888 | V95: 0.07515500626 | W95: 0.08072204341 | X95: 0.08628908055 | Y95: 0.0942145465 | Z95: 0.1047227246 | AA95: 0.1154551862 | AB95: 0.1261876478 | AC95: 0.1369201093 | AD95: 0.1477983898 | AE95: 0.1588265474 | AF95: 0.1769338972 | AG95: 0.2043356053 | AH95: 0.2359400365 | AI95: 0.2696115399 | AJ95: 0.3031552781 | AK95: 0.344104392 | AL95: 0.3926702205 | AM95: 0.4412360491 | AN95: 0.4898018776 | AO95: 0.5382808289 | AP95: 0.5776513484 | AQ95: 0.6376973201 | AS95: =+AS26-AS70 -> 5.662554669
B96: Clause Revenue Requirement | E96: =SUM(E89:E95) -> 2.089849511 | G96: =SUM(G89:G95) -> 0.01971662585 | I96: =SUM(I89:I95) -> -0.1322949544 | J96: -0.1149202381 | K96: -0.09754552186 | L96: -0.08017081696 | M96: -0.06279609918 | N96: -0.04542138139 | O96: -0.02804666361 | P96: -0.01067194582 | Q96: 0.006702771962 | R96: 0.02407748975 | S96: 0.04145220753 | T96: 0.05882692532 | U96: 0.0762016431 | V96: 0.09357637228 | W96: 0.1109510886 | X96: 0.1283258049 | Y96: 0.03360921591 | Z96: 0.05504550648 | AA96: 0.0885415062 | AB96: 0.1220375059 | AC96: 0.1555335056 | AD96: 0.1820990299 | AE96: 0.2163123508 | AF96: -0.0855227844 | AG96: -0.1124034891 | AH96: -0.1142282354 | AI96: -0.01337242804 | AJ96: 0.1020216321 | AK96: -0.1559548846 | AL96: -0.004380991714 | AM96: 0.1471929012 | AN96: 0.2987667941 | AO96: 0.4544697872 | AP96: 1.034277452 | AQ96: -0.2824415457 | AS96: =SUM(AS89:AS95) -> 3.144276291
B98: Net Customer Costs / (Savings)(11) | E98: =E29-E73 -> -24.58137179 | G98: =G29-G73 -> -0.1526074313 | I98: =I29-I73 -> -0.03366452599 | J98: -0.02314928806 | K98: -0.01370517833 | L98: -0.005169998667 | M98: 0.003552717446 | N98: 0.01291132684 | O98: 0.01899342444 | P98: 0.01821912046 | Q98: 0.02338946245 | R98: 0.05107150139 | S98: 0.0474096897 | T98: 0.07582664417 | U98: 0.07705393891 | V98: 0.08795616006 | W98: 1.444173874 | X98: 1.495869848 | Y98: 0.5614251181 | Z98: 1.576273065 | AA98: 1.727536034 | AB98: 2.209367425 | AC98: 2.319501438 | AD98: 2.433278862 | AE98: 2.464691696 | AF98: -0.2951728529 | AG98: -1.116229054 | AH98: -1.837030779 | AI98: -1.794020898 | AJ98: -1.654147337 | AK98: -4.324682643 | AL98: -4.00517943 | AM98: -3.796882013 | AN98: -3.546358513 | AO98: -3.330227336 | AP98: -2.664310347 | AQ98: -12.78994294 | AS98: =AS29-AS73 -> -24.92206678

Sheet Staffs 3rd Set No. 54
A1: SJRPP 000900
K7: Summary CPVRR Analysis for Retirement of SJRPP
E8: Nominal | G8: 35-yr | K8: Exhibit SRB-1 (Amend v1), Page 1 of 2
B9: (dollars in millions) | E9: Total | G9: CPVRR | I9: 2018 | J9: =I9+1 -> 2019 | K9: 2020 | L9: 2021 | M9: 2022 | N9: 2023 | O9: 2024 | P9: 2025 | Q9: 2026 | R9: 2027 | S9: 2028 | T9: 2029 | U9: 2030 | V9: 2031 | W9: 2032 | X9: 2033 | Y9: 2034 | Z9: 2035 | AA9: 2036 | AB9: 2037 | AC9: 2038 | AD9: 2039 | AE9: 2040 | AF9: 2041 | AG9: 2042 | AH9: 2043 | AI9: 2044 | AJ9: 2045 | AK9: 2046 | AL9: 2047 | AM9: 2048 | AN9: 2049 | AO9: 2050 | AP9: 2051 | AQ9: 2052 | AS9: 2032-2052
B11: Discount Factor | I11: =RevReq_BaseCase!Q5 -> 0.9642679783 | J11: =RevReq_BaseCase!R5 -> 0.8965886453 | K11: =RevReq_BaseCase!S5 -> 0.8333262703 | L11: =RevReq_BaseCase!T5 -> 0.7746824851 | M11: =RevReq_BaseCase!U5 -> 0.7201656472 | N11: =RevReq_BaseCase!V5 -> 0.6694853303 | O11: =RevReq_BaseCase!W5 -> 0.6222471322 | P11: =RevReq_BaseCase!X5 -> 0.5784576486 | Q11: =RevReq_BaseCase!Y5 -> 0.5377497683 | R11: =RevReq_BaseCase!Z5 -> 0.4999066293 | S11: =RevReq_BaseCase!AA5 -> 0.4646337304 | T11: =RevReq_BaseCase!AB5 -> 0.4319359965 | U11: =RevReq_BaseCase!AC5 -> 0.4015393047 | V11: =RevReq_BaseCase!AD5 -> 0.3732817236 | W11: =RevReq_BaseCase!AE5 -> 0.3469433481 | X11: =RevReq_BaseCase!AF5 -> 0.3225278558 | Y11: =RevReq_BaseCase!AG5 -> 0.2998305583 | Z11: =RevReq_BaseCase!AH5 -> 0.2787305409 | AA11: =RevReq_BaseCase!AI5 -> 0.2590635998 | AB11: =RevReq_BaseCase!AJ5 -> 0.2408324812 | AC11: =RevReq_BaseCase!AK5 -> 0.2238843436 | AD11: =RevReq_BaseCase!AL5 -> 0.2081288997 | AE11: =RevReq_BaseCase!AM5 -> 0.1934435381 | AF11: =RevReq_BaseCase!AN5 -> 0.1798303091 | AG11: =RevReq_BaseCase!AO5 -> 0.1671750859 | AH11: =RevReq_BaseCase!AP5 -> 0.1554104504 | AI11: =RevReq_BaseCase!AQ5 -> 0.1444448484 | AJ11: =RevReq_BaseCase!AR5 -> 0.1342798111 | AK11: =RevReq_BaseCase!AS5 -> 0.1248301193 | AL11: =RevReq_BaseCase!AT5 -> 0.116045432 | AM11: =RevReq_BaseCase!AU5 -> 0.1078573854 | AN11: =RevReq_BaseCase!AV5 -> 0.1002671227 | AO11: =RevReq_BaseCase!AW5 -> 0.09321101056 | AP11: =RevReq_BaseCase!AX5 -> 0.08665145919 | AQ11: =RevReq_BaseCase!AY5 -> 0.08053742113 | AS11: na
B13: Amortization Begins in 2021 (Exhibit SRB-1 Amend v1)
B14: Base Rates: Incremental Revenue Requirement(1)
B15: Operations and Maintenance(2) | D15: Base | E15: =SUM(I15:AQ15) -> -591.8455484 | G15: =SUMPRODUCT(I15:AQ15,$I$11:$AQ$11) -> -186.5513098 | I15: =SUMPRODUCT('RevReq_ExitCase_(2021)'!Q$143:Q$162,N('RevReq_ExitCase_(2021)'!$A$143:$A$162=$D38 ))/10^6-SUMPRODUCT(RevReq_BaseCase!Q$143:Q$162,N(RevReq_BaseCase!$A$143:$A$162=$D38 ))/10^6 -> -12.34772614 | J15: =SUMPRODUCT('RevReq_ExitCase_(2021)'!R$143:R$162,N('RevReq_ExitCase_(2021)'!$A$143:$A$162=$D38 ))/10^6-SUMPRODUCT(RevReq_BaseCase!R$143:R$162,N(RevReq_BaseCase!$A$143:$A$162=$D38 ))/10^6 -> -12.26546336 | K15: =SUMPRODUCT('RevReq_ExitCase_(2021)'!S$143:S$162,N('RevReq_ExitCase_(2021)'!$A$143:$A$162=$D38 ))/10^6-SUMPRODUCT(RevReq_BaseCase!S$143:S$162,N(RevReq_BaseCase!$A$143:$A$162=$D38 ))/10^6 -> -12.26546336 | L15: =SUMPRODUCT('RevReq_ExitCase_(2021)'!T$143:T$162,N('RevReq_ExitCase_(2021)'!$A$143:$A$162=$D38 ))/10^6-SUMPRODUCT(RevReq_BaseCase!T$143:T$162,N(RevReq_BaseCase!$A$143:$A$162=$D38 ))/10^6 -> -12.51077262 | M15: =SUMPRODUCT('RevReq_ExitCase_(2021)'!U$143:U$162,N('RevReq_ExitCase_(2021)'!$A$143:$A$162=$D38 ))/10^6-SUMPRODUCT(RevReq_BaseCase!U$143:U$162,N(RevReq_BaseCase!$A$143:$A$162=$D38 ))/10^6 -> -12.76098808 | N15: =SUMPRODUCT('RevReq_ExitCase_(2021)'!V$143:V$162,N('RevReq_ExitCase_(2021)'!$A$143:$A$162=$D38 ))/10^6-SUMPRODUCT(RevReq_BaseCase!V$143:V$162,N(RevReq_BaseCase!$A$143:$A$162=$D38 ))/10^6 -> -13.01620784 | O15: =SUMPRODUCT('RevReq_ExitCase_(2021)'!W$143:W$162,N('RevReq_ExitCase_(2021)'!$A$143:$A$162=$D38 ))/10^6-SUMPRODUCT(RevReq_BaseCase!W$143:W$162,N(RevReq_BaseCase!$A$143:$A$162=$D38 ))/10^6 -> -13.276532 | P15: =SUMPRODUCT('RevReq_ExitCase_(2021)'!X$143:X$162,N('RevReq_ExitCase_(2021)'!$A$143:$A$162=$D38 ))/10^6-SUMPRODUCT(RevReq_BaseCase!X$143:X$162,N(RevReq_BaseCase!$A$143:$A$162=$D38 ))/10^6 -> -13.7628788 | Q15: =SUMPRODUCT('RevReq_ExitCase_(2021)'!Y$143:Y$162,N('RevReq_ExitCase_(2021)'!$A$143:$A$162=$D38 ))/10^6-SUMPRODUCT(RevReq_BaseCase!Y$143:Y$162,N(RevReq_BaseCase!$A$143:$A$162=$D38 ))/10^6 -> -14.03813637 | R15: =SUMPRODUCT('RevReq_ExitCase_(2021)'!Z$143:Z$162,N('RevReq_ExitCase_(2021)'!$A$143:$A$162=$D38 ))/10^6-SUMPRODUCT(RevReq_BaseCase!Z$143:Z$162,N(RevReq_BaseCase!$A$143:$A$162=$D38 ))/10^6 -> -14.08916197 | S15: =SUMPRODUCT('RevReq_ExitCase_(2021)'!AA$143:AA$162,N('RevReq_ExitCase_(2021)'!$A$143:$A$162=$D38 ))/10^6-SUMPRODUCT(RevReq_BaseCase!AA$143:AA$162,N(RevReq_BaseCase!$A$143:$A$162=$D38 ))/10^6 -> -14.3709452 | T15: =SUMPRODUCT('RevReq_ExitCase_(2021)'!AB$143:AB$162,N('RevReq_ExitCase_(2021)'!$A$143:$A$162=$D38 ))/10^6-SUMPRODUCT(RevReq_BaseCase!AB$143:AB$162,N(RevReq_BaseCase!$A$143:$A$162=$D38 ))/10^6 -> -14.65836411 | U15: =SUMPRODUCT('RevReq_ExitCase_(2021)'!AC$143:AC$162,N('RevReq_ExitCase_(2021)'!$A$143:$A$162=$D38 ))/10^6-SUMPRODUCT(RevReq_BaseCase!AC$143:AC$162,N(RevReq_BaseCase!$A$143:$A$162=$D38 ))/10^6 -> -14.95153139 | V15: =SUMPRODUCT('RevReq_ExitCase_(2021)'!AD$143:AD$162,N('RevReq_ExitCase_(2021)'!$A$143:$A$162=$D38 ))/10^6-SUMPRODUCT(RevReq_BaseCase!AD$143:AD$162,N(RevReq_BaseCase!$A$143:$A$162=$D38 ))/10^6 -> -15.25056202 | W15: =SUMPRODUCT('RevReq_ExitCase_(2021)'!AE$143:AE$162,N('RevReq_ExitCase_(2021)'!$A$143:$A$162=$D38 ))/10^6-SUMPRODUCT(RevReq_BaseCase!AE$143:AE$162,N(RevReq_BaseCase!$A$143:$A$162=$D38 ))/10^6 -> -15.55557326 | X15: =SUMPRODUCT('RevReq_ExitCase_(2021)'!AF$143:AF$162,N('RevReq_ExitCase_(2021)'!$A$143:$A$162=$D38 ))/10^6-SUMPRODUCT(RevReq_BaseCase!AF$143:AF$162,N(RevReq_BaseCase!$A$143:$A$162=$D38 ))/10^6 -> -15.86668472 | Y15: =SUMPRODUCT('RevReq_ExitCase_(2021)'!AG$143:AG$162,N('RevReq_ExitCase_(2021)'!$A$143:$A$162=$D38 ))/10^6-SUMPRODUCT(RevReq_BaseCase!AG$143:AG$162,N(RevReq_BaseCase!$A$143:$A$162=$D38 ))/10^6 -> -16.18401842 | Z15: =SUMPRODUCT('RevReq_ExitCase_(2021)'!AH$143:AH$162,N('RevReq_ExitCase_(2021)'!$A$143:$A$162=$D38 ))/10^6-SUMPRODUCT(RevReq_BaseCase!AH$143:AH$162,N(RevReq_BaseCase!$A$143:$A$162=$D38 ))/10^6 -> -16.77687245 | AA15: =SUMPRODUCT('RevReq_ExitCase_(2021)'!AI$143:AI$162,N('RevReq_ExitCase_(2021)'!$A$143:$A$162=$D38 ))/10^6-SUMPRODUCT(RevReq_BaseCase!AI$143:AI$162,N(RevReq_BaseCase!$A$143:$A$162=$D38 ))/10^6 -> -17.1124099 | AB15: =SUMPRODUCT('RevReq_ExitCase_(2021)'!AJ$143:AJ$162,N('RevReq_ExitCase_(2021)'!$A$143:$A$162=$D38 ))/10^6-SUMPRODUCT(RevReq_BaseCase!AJ$143:AJ$162,N(RevReq_BaseCase!$A$143:$A$162=$D38 ))/10^6 -> -17.17460982 | AC15: =SUMPRODUCT('RevReq_ExitCase_(2021)'!AK$143:AK$162,N('RevReq_ExitCase_(2021)'!$A$143:$A$162=$D38 ))/10^6-SUMPRODUCT(RevReq_BaseCase!AK$143:AK$162,N(RevReq_BaseCase!$A$143:$A$162=$D38 ))/10^6 -> -17.51810201 | AD15: =SUMPRODUCT('RevReq_ExitCase_(2021)'!AL$143:AL$162,N('RevReq_ExitCase_(2021)'!$A$143:$A$162=$D38 ))/10^6-SUMPRODUCT(RevReq_BaseCase!AL$143:AL$162,N(RevReq_BaseCase!$A$143:$A$162=$D38 ))/10^6 -> -17.86846405 | AE15: =SUMPRODUCT('RevReq_ExitCase_(2021)'!AM$143:AM$162,N('RevReq_ExitCase_(2021)'!$A$143:$A$162=$D38 ))/10^6-SUMPRODUCT(RevReq_BaseCase!AM$143:AM$162,N(RevReq_BaseCase!$A$143:$A$162=$D38 ))/10^6 -> -18.22583334 | AF15: =SUMPRODUCT('RevReq_ExitCase_(2021)'!AN$143:AN$162,N('RevReq_ExitCase_(2021)'!$A$143:$A$162=$D38 ))/10^6-SUMPRODUCT(RevReq_BaseCase!AN$143:AN$162,N(RevReq_BaseCase!$A$143:$A$162=$D38 ))/10^6 -> -18.59035 | AG15: =SUMPRODUCT('RevReq_ExitCase_(2021)'!AO$143:AO$162,N('RevReq_ExitCase_(2021)'!$A$143:$A$162=$D38 ))/10^6-SUMPRODUCT(RevReq_BaseCase!AO$143:AO$162,N(RevReq_BaseCase!$A$143:$A$162=$D38 ))/10^6 -> -18.962157 | AH15: =SUMPRODUCT('RevReq_ExitCase_(2021)'!AP$143:AP$162,N('RevReq_ExitCase_(2021)'!$A$143:$A$162=$D38 ))/10^6-SUMPRODUCT(RevReq_BaseCase!AP$143:AP$162,N(RevReq_BaseCase!$A$143:$A$162=$D38 ))/10^6 -> -19.34140014 | AI15: =SUMPRODUCT('RevReq_ExitCase_(2021)'!AQ$143:AQ$162,N('RevReq_ExitCase_(2021)'!$A$143:$A$162=$D38 ))/10^6-SUMPRODUCT(RevReq_BaseCase!AQ$143:AQ$162,N(RevReq_BaseCase!$A$143:$A$162=$D38 ))/10^6 -> -19.72822815 | AJ15: =SUMPRODUCT('RevReq_ExitCase_(2021)'!AR$143:AR$162,N('RevReq_ExitCase_(2021)'!$A$143:$A$162=$D38 ))/10^6-SUMPRODUCT(RevReq_BaseCase!AR$143:AR$162,N(RevReq_BaseCase!$A$143:$A$162=$D38 ))/10^6 -> -20.45091391 | AK15: =SUMPRODUCT('RevReq_ExitCase_(2021)'!AS$143:AS$162,N('RevReq_ExitCase_(2021)'!$A$143:$A$162=$D38 ))/10^6-SUMPRODUCT(RevReq_BaseCase!AS$143:AS$162,N(RevReq_BaseCase!$A$143:$A$162=$D38 ))/10^6 -> -20.85993219 | AL15: =SUMPRODUCT('RevReq_ExitCase_(2021)'!AT$143:AT$162,N('RevReq_ExitCase_(2021)'!$A$143:$A$162=$D38 ))/10^6-SUMPRODUCT(RevReq_BaseCase!AT$143:AT$162,N(RevReq_BaseCase!$A$143:$A$162=$D38 ))/10^6 -> -20.93575353 | AM15: =SUMPRODUCT('RevReq_ExitCase_(2021)'!AU$143:AU$162,N('RevReq_ExitCase_(2021)'!$A$143:$A$162=$D38 ))/10^6-SUMPRODUCT(RevReq_BaseCase!AU$143:AU$162,N(RevReq_BaseCase!$A$143:$A$162=$D38 ))/10^6 -> -21.3544686 | AN15: =SUMPRODUCT('RevReq_ExitCase_(2021)'!AV$143:AV$162,N('RevReq_ExitCase_(2021)'!$A$143:$A$162=$D38 ))/10^6-SUMPRODUCT(RevReq_BaseCase!AV$143:AV$162,N(RevReq_BaseCase!$A$143:$A$162=$D38 ))/10^6 -> -21.78155798 | AO15: =SUMPRODUCT('RevReq_ExitCase_(2021)'!AW$143:AW$162,N('RevReq_ExitCase_(2021)'!$A$143:$A$162=$D38 ))/10^6-SUMPRODUCT(RevReq_BaseCase!AW$143:AW$162,N(RevReq_BaseCase!$A$143:$A$162=$D38 ))/10^6 -> -22.21718914 | AP15: =SUMPRODUCT('RevReq_ExitCase_(2021)'!AX$143:AX$162,N('RevReq_ExitCase_(2021)'!$A$143:$A$162=$D38 ))/10^6-SUMPRODUCT(RevReq_BaseCase!AX$143:AX$162,N(RevReq_BaseCase!$A$143:$A$162=$D38 ))/10^6 -> -22.66153292 | AQ15: =SUMPRODUCT('RevReq_ExitCase_(2021)'!AY$143:AY$162,N('RevReq_ExitCase_(2021)'!$A$143:$A$162=$D38 ))/10^6-SUMPRODUCT(RevReq_BaseCase!AY$143:AY$162,N(RevReq_BaseCase!$A$143:$A$162=$D38 ))/10^6 -> -23.11476358 | AS15: =SUM(W15:AQ15) -> -402.2808151
B16: Property Tax | D16: Base | E16: -92.7330673 | G16: =SUMPRODUCT(I16:AQ16,$I$11:$AQ$11) -> -26.91070522 | I16: =SUMPRODUCT('RevReq_ExitCase_(2021)'!Q$767:Q$791,N('RevReq_ExitCase_(2021)'!$A$767:$A$791=$D39 ))/10^6-SUMPRODUCT(RevReq_BaseCase!Q$767:Q$791,N(RevReq_BaseCase!$A$767:$A$791=$D39 ))/10^6 -> 0 | J16: =SUMPRODUCT('RevReq_ExitCase_(2021)'!R$767:R$791,N('RevReq_ExitCase_(2021)'!$A$767:$A$791=$D39 ))/10^6-SUMPRODUCT(RevReq_BaseCase!R$767:R$791,N(RevReq_BaseCase!$A$767:$A$791=$D39 ))/10^6 -> -1.832959396 | K16: =SUMPRODUCT('RevReq_ExitCase_(2021)'!S$767:S$791,N('RevReq_ExitCase_(2021)'!$A$767:$A$791=$D39 ))/10^6-SUMPRODUCT(RevReq_BaseCase!S$767:S$791,N(RevReq_BaseCase!$A$767:$A$791=$D39 ))/10^6 -> -1.827268023 | L16: =SUMPRODUCT('RevReq_ExitCase_(2021)'!T$767:T$791,N('RevReq_ExitCase_(2021)'!$A$767:$A$791=$D39 ))/10^6-SUMPRODUCT(RevReq_BaseCase!T$767:T$791,N(RevReq_BaseCase!$A$767:$A$791=$D39 ))/10^6 -> -1.818371982 | M16: =SUMPRODUCT('RevReq_ExitCase_(2021)'!U$767:U$791,N('RevReq_ExitCase_(2021)'!$A$767:$A$791=$D39 ))/10^6-SUMPRODUCT(RevReq_BaseCase!U$767:U$791,N(RevReq_BaseCase!$A$767:$A$791=$D39 ))/10^6 -> -1.820411581 | N16: =SUMPRODUCT('RevReq_ExitCase_(2021)'!V$767:V$791,N('RevReq_ExitCase_(2021)'!$A$767:$A$791=$D39 ))/10^6-SUMPRODUCT(RevReq_BaseCase!V$767:V$791,N(RevReq_BaseCase!$A$767:$A$791=$D39 ))/10^6 -> -1.816975368 | O16: =SUMPRODUCT('RevReq_ExitCase_(2021)'!W$767:W$791,N('RevReq_ExitCase_(2021)'!$A$767:$A$791=$D39 ))/10^6-SUMPRODUCT(RevReq_BaseCase!W$767:W$791,N(RevReq_BaseCase!$A$767:$A$791=$D39 ))/10^6 -> -1.81230899 | P16: =SUMPRODUCT('RevReq_ExitCase_(2021)'!X$767:X$791,N('RevReq_ExitCase_(2021)'!$A$767:$A$791=$D39 ))/10^6-SUMPRODUCT(RevReq_BaseCase!X$767:X$791,N(RevReq_BaseCase!$A$767:$A$791=$D39 ))/10^6 -> -1.950234951 | Q16: =SUMPRODUCT('RevReq_ExitCase_(2021)'!Y$767:Y$791,N('RevReq_ExitCase_(2021)'!$A$767:$A$791=$D39 ))/10^6-SUMPRODUCT(RevReq_BaseCase!Y$767:Y$791,N(RevReq_BaseCase!$A$767:$A$791=$D39 ))/10^6 -> -1.974586581 | R16: =SUMPRODUCT('RevReq_ExitCase_(2021)'!Z$767:Z$791,N('RevReq_ExitCase_(2021)'!$A$767:$A$791=$D39 ))/10^6-SUMPRODUCT(RevReq_BaseCase!Z$767:Z$791,N(RevReq_BaseCase!$A$767:$A$791=$D39 ))/10^6 -> -2.090086044 | S16: =SUMPRODUCT('RevReq_ExitCase_(2021)'!AA$767:AA$791,N('RevReq_ExitCase_(2021)'!$A$767:$A$791=$D39 ))/10^6-SUMPRODUCT(RevReq_BaseCase!AA$767:AA$791,N(RevReq_BaseCase!$A$767:$A$791=$D39 ))/10^6 -> -2.205881351 | T16: =SUMPRODUCT('RevReq_ExitCase_(2021)'!AB$767:AB$791,N('RevReq_ExitCase_(2021)'!$A$767:$A$791=$D39 ))/10^6-SUMPRODUCT(RevReq_BaseCase!AB$767:AB$791,N(RevReq_BaseCase!$A$767:$A$791=$D39 ))/10^6 -> -2.243581264 | U16: =SUMPRODUCT('RevReq_ExitCase_(2021)'!AC$767:AC$791,N('RevReq_ExitCase_(2021)'!$A$767:$A$791=$D39 ))/10^6-SUMPRODUCT(RevReq_BaseCase!AC$767:AC$791,N(RevReq_BaseCase!$A$767:$A$791=$D39 ))/10^6 -> -2.318306811 | V16: =SUMPRODUCT('RevReq_ExitCase_(2021)'!AD$767:AD$791,N('RevReq_ExitCase_(2021)'!$A$767:$A$791=$D39 ))/10^6-SUMPRODUCT(RevReq_BaseCase!AD$767:AD$791,N(RevReq_BaseCase!$A$767:$A$791=$D39 ))/10^6 -> -2.365073064 | W16: =SUMPRODUCT('RevReq_ExitCase_(2021)'!AE$767:AE$791,N('RevReq_ExitCase_(2021)'!$A$767:$A$791=$D39 ))/10^6-SUMPRODUCT(RevReq_BaseCase!AE$767:AE$791,N(RevReq_BaseCase!$A$767:$A$791=$D39 ))/10^6 -> -2.452073839 | X16: =SUMPRODUCT('RevReq_ExitCase_(2021)'!AF$767:AF$791,N('RevReq_ExitCase_(2021)'!$A$767:$A$791=$D39 ))/10^6-SUMPRODUCT(RevReq_BaseCase!AF$767:AF$791,N(RevReq_BaseCase!$A$767:$A$791=$D39 ))/10^6 -> -2.513858144 | Y16: =SUMPRODUCT('RevReq_ExitCase_(2021)'!AG$767:AG$791,N('RevReq_ExitCase_(2021)'!$A$767:$A$791=$D39 ))/10^6-SUMPRODUCT(RevReq_BaseCase!AG$767:AG$791,N(RevReq_BaseCase!$A$767:$A$791=$D39 ))/10^6 -> -2.600206484 | Z16: =SUMPRODUCT('RevReq_ExitCase_(2021)'!AH$767:AH$791,N('RevReq_ExitCase_(2021)'!$A$767:$A$791=$D39 ))/10^6-SUMPRODUCT(RevReq_BaseCase!AH$767:AH$791,N(RevReq_BaseCase!$A$767:$A$791=$D39 ))/10^6 -> -2.736796541 | AA16: =SUMPRODUCT('RevReq_ExitCase_(2021)'!AI$767:AI$791,N('RevReq_ExitCase_(2021)'!$A$767:$A$791=$D39 ))/10^6-SUMPRODUCT(RevReq_BaseCase!AI$767:AI$791,N(RevReq_BaseCase!$A$767:$A$791=$D39 ))/10^6 -> -2.839747903 | AB16: =SUMPRODUCT('RevReq_ExitCase_(2021)'!AJ$767:AJ$791,N('RevReq_ExitCase_(2021)'!$A$767:$A$791=$D39 ))/10^6-SUMPRODUCT(RevReq_BaseCase!AJ$767:AJ$791,N(RevReq_BaseCase!$A$767:$A$791=$D39 ))/10^6 -> -2.882402896 | AC16: =SUMPRODUCT('RevReq_ExitCase_(2021)'!AK$767:AK$791,N('RevReq_ExitCase_(2021)'!$A$767:$A$791=$D39 ))/10^6-SUMPRODUCT(RevReq_BaseCase!AK$767:AK$791,N(RevReq_BaseCase!$A$767:$A$791=$D39 ))/10^6 -> -2.948243577 | AD16: =SUMPRODUCT('RevReq_ExitCase_(2021)'!AL$767:AL$791,N('RevReq_ExitCase_(2021)'!$A$767:$A$791=$D39 ))/10^6-SUMPRODUCT(RevReq_BaseCase!AL$767:AL$791,N(RevReq_BaseCase!$A$767:$A$791=$D39 ))/10^6 -> -2.997654011 | AE16: =SUMPRODUCT('RevReq_ExitCase_(2021)'!AM$767:AM$791,N('RevReq_ExitCase_(2021)'!$A$767:$A$791=$D39 ))/10^6-SUMPRODUCT(RevReq_BaseCase!AM$767:AM$791,N(RevReq_BaseCase!$A$767:$A$791=$D39 ))/10^6 -> -3.083794948 | AF16: =SUMPRODUCT('RevReq_ExitCase_(2021)'!AN$767:AN$791,N('RevReq_ExitCase_(2021)'!$A$767:$A$791=$D39 ))/10^6-SUMPRODUCT(RevReq_BaseCase!AN$767:AN$791,N(RevReq_BaseCase!$A$767:$A$791=$D39 ))/10^6 -> -3.177072912 | AG16: =SUMPRODUCT('RevReq_ExitCase_(2021)'!AO$767:AO$791,N('RevReq_ExitCase_(2021)'!$A$767:$A$791=$D39 ))/10^6-SUMPRODUCT(RevReq_BaseCase!AO$767:AO$791,N(RevReq_BaseCase!$A$767:$A$791=$D39 ))/10^6 -> -3.277639598 | AH16: =SUMPRODUCT('RevReq_ExitCase_(2021)'!AP$767:AP$791,N('RevReq_ExitCase_(2021)'!$A$767:$A$791=$D39 ))/10^6-SUMPRODUCT(RevReq_BaseCase!AP$767:AP$791,N(RevReq_BaseCase!$A$767:$A$791=$D39 ))/10^6 -> -3.363245249 | AI16: =SUMPRODUCT('RevReq_ExitCase_(2021)'!AQ$767:AQ$791,N('RevReq_ExitCase_(2021)'!$A$767:$A$791=$D39 ))/10^6-SUMPRODUCT(RevReq_BaseCase!AQ$767:AQ$791,N(RevReq_BaseCase!$A$767:$A$791=$D39 ))/10^6 -> -3.403980911 | AJ16: =SUMPRODUCT('RevReq_ExitCase_(2021)'!AR$767:AR$791,N('RevReq_ExitCase_(2021)'!$A$767:$A$791=$D39 ))/10^6-SUMPRODUCT(RevReq_BaseCase!AR$767:AR$791,N(RevReq_BaseCase!$A$767:$A$791=$D39 ))/10^6 -> -3.506536819 | AK16: =SUMPRODUCT('RevReq_ExitCase_(2021)'!AS$767:AS$791,N('RevReq_ExitCase_(2021)'!$A$767:$A$791=$D39 ))/10^6-SUMPRODUCT(RevReq_BaseCase!AS$767:AS$791,N(RevReq_BaseCase!$A$767:$A$791=$D39 ))/10^6 -> -3.519210749 | AL16: =SUMPRODUCT('RevReq_ExitCase_(2021)'!AT$767:AT$791,N('RevReq_ExitCase_(2021)'!$A$767:$A$791=$D39 ))/10^6-SUMPRODUCT(RevReq_BaseCase!AT$767:AT$791,N(RevReq_BaseCase!$A$767:$A$791=$D39 ))/10^6 -> -3.545917418 | AM16: =SUMPRODUCT('RevReq_ExitCase_(2021)'!AU$767:AU$791,N('RevReq_ExitCase_(2021)'!$A$767:$A$791=$D39 ))/10^6-SUMPRODUCT(RevReq_BaseCase!AU$767:AU$791,N(RevReq_BaseCase!$A$767:$A$791=$D39 ))/10^6 -> -3.556709971 | AN16: =SUMPRODUCT('RevReq_ExitCase_(2021)'!AV$767:AV$791,N('RevReq_ExitCase_(2021)'!$A$767:$A$791=$D39 ))/10^6-SUMPRODUCT(RevReq_BaseCase!AV$767:AV$791,N(RevReq_BaseCase!$A$767:$A$791=$D39 ))/10^6 -> -3.558709259 | AO16: =SUMPRODUCT('RevReq_ExitCase_(2021)'!AW$767:AW$791,N('RevReq_ExitCase_(2021)'!$A$767:$A$791=$D39 ))/10^6-SUMPRODUCT(RevReq_BaseCase!AW$767:AW$791,N(RevReq_BaseCase!$A$767:$A$791=$D39 ))/10^6 -> -3.565404898 | AP16: =SUMPRODUCT('RevReq_ExitCase_(2021)'!AX$767:AX$791,N('RevReq_ExitCase_(2021)'!$A$767:$A$791=$D39 ))/10^6-SUMPRODUCT(RevReq_BaseCase!AX$767:AX$791,N(RevReq_BaseCase!$A$767:$A$791=$D39 ))/10^6 -> -3.563030315 | AQ16: =SUMPRODUCT('RevReq_ExitCase_(2021)'!AY$767:AY$791,N('RevReq_ExitCase_(2021)'!$A$767:$A$791=$D39 ))/10^6-SUMPRODUCT(RevReq_BaseCase!AY$767:AY$791,N(RevReq_BaseCase!$A$767:$A$791=$D39 ))/10^6 -> -3.564785452 | AS16: -66.65702189
B17: System Impact(3) | D17: Base | E17: 677.1175168 | G17: 120.7708945 | I17: =SUMPRODUCT('RevReq_ExitCase_(2021)'!Q$163:Q$167,N('RevReq_ExitCase_(2021)'!$A$163:$A$167=$D40 ))/10^6-SUMPRODUCT(RevReq_BaseCase!Q$163:Q$167,N(RevReq_BaseCase!$A$163:$A$167=$D40 ))/10^6 -> 0 | J17: =SUMPRODUCT('RevReq_ExitCase_(2021)'!R$163:R$167,N('RevReq_ExitCase_(2021)'!$A$163:$A$167=$D40 ))/10^6-SUMPRODUCT(RevReq_BaseCase!R$163:R$167,N(RevReq_BaseCase!$A$163:$A$167=$D40 ))/10^6 -> 0 | K17: =SUMPRODUCT('RevReq_ExitCase_(2021)'!S$163:S$167,N('RevReq_ExitCase_(2021)'!$A$163:$A$167=$D40 ))/10^6-SUMPRODUCT(RevReq_BaseCase!S$163:S$167,N(RevReq_BaseCase!$A$163:$A$167=$D40 ))/10^6 -> 0 | L17: =SUMPRODUCT('RevReq_ExitCase_(2021)'!T$163:T$167,N('RevReq_ExitCase_(2021)'!$A$163:$A$167=$D40 ))/10^6-SUMPRODUCT(RevReq_BaseCase!T$163:T$167,N(RevReq_BaseCase!$A$163:$A$167=$D40 ))/10^6 -> 0 | M17: =SUMPRODUCT('RevReq_ExitCase_(2021)'!U$163:U$167,N('RevReq_ExitCase_(2021)'!$A$163:$A$167=$D40 ))/10^6-SUMPRODUCT(RevReq_BaseCase!U$163:U$167,N(RevReq_BaseCase!$A$163:$A$167=$D40 ))/10^6 -> 0 | N17: =SUMPRODUCT('RevReq_ExitCase_(2021)'!V$163:V$167,N('RevReq_ExitCase_(2021)'!$A$163:$A$167=$D40 ))/10^6-SUMPRODUCT(RevReq_BaseCase!V$163:V$167,N(RevReq_BaseCase!$A$163:$A$167=$D40 ))/10^6 -> 0 | O17: =SUMPRODUCT('RevReq_ExitCase_(2021)'!W$163:W$167,N('RevReq_ExitCase_(2021)'!$A$163:$A$167=$D40 ))/10^6-SUMPRODUCT(RevReq_BaseCase!W$163:W$167,N(RevReq_BaseCase!$A$163:$A$167=$D40 ))/10^6 -> 0 | P17: =SUMPRODUCT('RevReq_ExitCase_(2021)'!X$163:X$167,N('RevReq_ExitCase_(2021)'!$A$163:$A$167=$D40 ))/10^6-SUMPRODUCT(RevReq_BaseCase!X$163:X$167,N(RevReq_BaseCase!$A$163:$A$167=$D40 ))/10^6 -> 0 | Q17: =SUMPRODUCT('RevReq_ExitCase_(2021)'!Y$163:Y$167,N('RevReq_ExitCase_(2021)'!$A$163:$A$167=$D40 ))/10^6-SUMPRODUCT(RevReq_BaseCase!Y$163:Y$167,N(RevReq_BaseCase!$A$163:$A$167=$D40 ))/10^6 -> 0 | R17: =SUMPRODUCT('RevReq_ExitCase_(2021)'!Z$163:Z$167,N('RevReq_ExitCase_(2021)'!$A$163:$A$167=$D40 ))/10^6-SUMPRODUCT(RevReq_BaseCase!Z$163:Z$167,N(RevReq_BaseCase!$A$163:$A$167=$D40 ))/10^6 -> 0 | S17: =SUMPRODUCT('RevReq_ExitCase_(2021)'!AA$163:AA$167,N('RevReq_ExitCase_(2021)'!$A$163:$A$167=$D40 ))/10^6-SUMPRODUCT(RevReq_BaseCase!AA$163:AA$167,N(RevReq_BaseCase!$A$163:$A$167=$D40 ))/10^6 -> 0 | T17: =SUMPRODUCT('RevReq_ExitCase_(2021)'!AB$163:AB$167,N('RevReq_ExitCase_(2021)'!$A$163:$A$167=$D40 ))/10^6-SUMPRODUCT(RevReq_BaseCase!AB$163:AB$167,N(RevReq_BaseCase!$A$163:$A$167=$D40 ))/10^6 -> 0 | U17: =SUMPRODUCT('RevReq_ExitCase_(2021)'!AC$163:AC$167,N('RevReq_ExitCase_(2021)'!$A$163:$A$167=$D40 ))/10^6-SUMPRODUCT(RevReq_BaseCase!AC$163:AC$167,N(RevReq_BaseCase!$A$163:$A$167=$D40 ))/10^6 -> 0 | V17: =SUMPRODUCT('RevReq_ExitCase_(2021)'!AD$163:AD$167,N('RevReq_ExitCase_(2021)'!$A$163:$A$167=$D40 ))/10^6-SUMPRODUCT(RevReq_BaseCase!AD$163:AD$167,N(RevReq_BaseCase!$A$163:$A$167=$D40 ))/10^6 -> 0 | W17: =SUMPRODUCT('RevReq_ExitCase_(2021)'!AE$163:AE$167,N('RevReq_ExitCase_(2021)'!$A$163:$A$167=$D40 ))/10^6-SUMPRODUCT(RevReq_BaseCase!AE$163:AE$167,N(RevReq_BaseCase!$A$163:$A$167=$D40 ))/10^6 -> 0 | X17: =SUMPRODUCT('RevReq_ExitCase_(2021)'!AF$163:AF$167,N('RevReq_ExitCase_(2021)'!$A$163:$A$167=$D40 ))/10^6-SUMPRODUCT(RevReq_BaseCase!AF$163:AF$167,N(RevReq_BaseCase!$A$163:$A$167=$D40 ))/10^6 -> 25.80758385 | Y17: =SUMPRODUCT('RevReq_ExitCase_(2021)'!AG$163:AG$167,N('RevReq_ExitCase_(2021)'!$A$163:$A$167=$D40 ))/10^6-SUMPRODUCT(RevReq_BaseCase!AG$163:AG$167,N(RevReq_BaseCase!$A$163:$A$167=$D40 ))/10^6 -> 38.81265911 | Z17: =SUMPRODUCT('RevReq_ExitCase_(2021)'!AH$163:AH$167,N('RevReq_ExitCase_(2021)'!$A$163:$A$167=$D40 ))/10^6-SUMPRODUCT(RevReq_BaseCase!AH$163:AH$167,N(RevReq_BaseCase!$A$163:$A$167=$D40 ))/10^6 -> 37.50875464 | AA17: =SUMPRODUCT('RevReq_ExitCase_(2021)'!AI$163:AI$167,N('RevReq_ExitCase_(2021)'!$A$163:$A$167=$D40 ))/10^6-SUMPRODUCT(RevReq_BaseCase!AI$163:AI$167,N(RevReq_BaseCase!$A$163:$A$167=$D40 ))/10^6 -> 38.16385566 | AB17: =SUMPRODUCT('RevReq_ExitCase_(2021)'!AJ$163:AJ$167,N('RevReq_ExitCase_(2021)'!$A$163:$A$167=$D40 ))/10^6-SUMPRODUCT(RevReq_BaseCase!AJ$163:AJ$167,N(RevReq_BaseCase!$A$163:$A$167=$D40 ))/10^6 -> 36.38904064 | AC17: =SUMPRODUCT('RevReq_ExitCase_(2021)'!AK$163:AK$167,N('RevReq_ExitCase_(2021)'!$A$163:$A$167=$D40 ))/10^6-SUMPRODUCT(RevReq_BaseCase!AK$163:AK$167,N(RevReq_BaseCase!$A$163:$A$167=$D40 ))/10^6 -> 36.21793377 | AD17: =SUMPRODUCT('RevReq_ExitCase_(2021)'!AL$163:AL$167,N('RevReq_ExitCase_(2021)'!$A$163:$A$167=$D40 ))/10^6-SUMPRODUCT(RevReq_BaseCase!AL$163:AL$167,N(RevReq_BaseCase!$A$163:$A$167=$D40 ))/10^6 -> 35.44489899 | AE17: =SUMPRODUCT('RevReq_ExitCase_(2021)'!AM$163:AM$167,N('RevReq_ExitCase_(2021)'!$A$163:$A$167=$D40 ))/10^6-SUMPRODUCT(RevReq_BaseCase!AM$163:AM$167,N(RevReq_BaseCase!$A$163:$A$167=$D40 ))/10^6 -> 35.41990784 | AF17: =SUMPRODUCT('RevReq_ExitCase_(2021)'!AN$163:AN$167,N('RevReq_ExitCase_(2021)'!$A$163:$A$167=$D40 ))/10^6-SUMPRODUCT(RevReq_BaseCase!AN$163:AN$167,N(RevReq_BaseCase!$A$163:$A$167=$D40 ))/10^6 -> 33.72084459 | AG17: =SUMPRODUCT('RevReq_ExitCase_(2021)'!AO$163:AO$167,N('RevReq_ExitCase_(2021)'!$A$163:$A$167=$D40 ))/10^6-SUMPRODUCT(RevReq_BaseCase!AO$163:AO$167,N(RevReq_BaseCase!$A$163:$A$167=$D40 ))/10^6 -> 35.25561783 | AH17: =SUMPRODUCT('RevReq_ExitCase_(2021)'!AP$163:AP$167,N('RevReq_ExitCase_(2021)'!$A$163:$A$167=$D40 ))/10^6-SUMPRODUCT(RevReq_BaseCase!AP$163:AP$167,N(RevReq_BaseCase!$A$163:$A$167=$D40 ))/10^6 -> 34.87988082 | AI17: =SUMPRODUCT('RevReq_ExitCase_(2021)'!AQ$163:AQ$167,N('RevReq_ExitCase_(2021)'!$A$163:$A$167=$D40 ))/10^6-SUMPRODUCT(RevReq_BaseCase!AQ$163:AQ$167,N(RevReq_BaseCase!$A$163:$A$167=$D40 ))/10^6 -> 35.64925309 | AJ17: =SUMPRODUCT('RevReq_ExitCase_(2021)'!AR$163:AR$167,N('RevReq_ExitCase_(2021)'!$A$163:$A$167=$D40 ))/10^6-SUMPRODUCT(RevReq_BaseCase!AR$163:AR$167,N(RevReq_BaseCase!$A$163:$A$167=$D40 ))/10^6 -> 32.58104002 | AK17: =SUMPRODUCT('RevReq_ExitCase_(2021)'!AS$163:AS$167,N('RevReq_ExitCase_(2021)'!$A$163:$A$167=$D40 ))/10^6-SUMPRODUCT(RevReq_BaseCase!AS$163:AS$167,N(RevReq_BaseCase!$A$163:$A$167=$D40 ))/10^6 -> 33.08703757 | AL17: =SUMPRODUCT('RevReq_ExitCase_(2021)'!AT$163:AT$167,N('RevReq_ExitCase_(2021)'!$A$163:$A$167=$D40 ))/10^6-SUMPRODUCT(RevReq_BaseCase!AT$163:AT$167,N(RevReq_BaseCase!$A$163:$A$167=$D40 ))/10^6 -> 31.3632014 | AM17: =SUMPRODUCT('RevReq_ExitCase_(2021)'!AU$163:AU$167,N('RevReq_ExitCase_(2021)'!$A$163:$A$167=$D40 ))/10^6-SUMPRODUCT(RevReq_BaseCase!AU$163:AU$167,N(RevReq_BaseCase!$A$163:$A$167=$D40 ))/10^6 -> 31.3632014 | AN17: =SUMPRODUCT('RevReq_ExitCase_(2021)'!AV$163:AV$167,N('RevReq_ExitCase_(2021)'!$A$163:$A$167=$D40 ))/10^6-SUMPRODUCT(RevReq_BaseCase!AV$163:AV$167,N(RevReq_BaseCase!$A$163:$A$167=$D40 ))/10^6 -> 31.3632014 | AO17: =SUMPRODUCT('RevReq_ExitCase_(2021)'!AW$163:AW$167,N('RevReq_ExitCase_(2021)'!$A$163:$A$167=$D40 ))/10^6-SUMPRODUCT(RevReq_BaseCase!AW$163:AW$167,N(RevReq_BaseCase!$A$163:$A$167=$D40 ))/10^6 -> 31.3632014 | AP17: =SUMPRODUCT('RevReq_ExitCase_(2021)'!AX$163:AX$167,N('RevReq_ExitCase_(2021)'!$A$163:$A$167=$D40 ))/10^6-SUMPRODUCT(RevReq_BaseCase!AX$163:AX$167,N(RevReq_BaseCase!$A$163:$A$167=$D40 ))/10^6 -> 31.3632014 | AQ17: =SUMPRODUCT('RevReq_ExitCase_(2021)'!AY$163:AY$167,N('RevReq_ExitCase_(2021)'!$A$163:$A$167=$D40 ))/10^6-SUMPRODUCT(RevReq_BaseCase!AY$163:AY$167,N(RevReq_BaseCase!$A$163:$A$167=$D40 ))/10^6 -> 31.3632014 | AS17: 677.1175168
B18: Depreciation and Amortization(4) | D18: Base | E18: -102.7601925 | G18: -11.63854327 | I18: =SUMPRODUCT('RevReq_ExitCase_(2021)'!Q$232:Q$256,N('RevReq_ExitCase_(2021)'!$A$232:$A$256=$D41 ))/10^6-SUMPRODUCT(RevReq_BaseCase!Q$232:Q$256,N(RevReq_BaseCase!$A$232:$A$256=$D41 ))/10^6 -> -7.666476028 | J18: =SUMPRODUCT('RevReq_ExitCase_(2021)'!R$232:R$256,N('RevReq_ExitCase_(2021)'!$A$232:$A$256=$D41 ))/10^6-SUMPRODUCT(RevReq_BaseCase!R$232:R$256,N(RevReq_BaseCase!$A$232:$A$256=$D41 ))/10^6 -> -7.699797162 | K18: =SUMPRODUCT('RevReq_ExitCase_(2021)'!S$232:S$256,N('RevReq_ExitCase_(2021)'!$A$232:$A$256=$D41 ))/10^6-SUMPRODUCT(RevReq_BaseCase!S$232:S$256,N(RevReq_BaseCase!$A$232:$A$256=$D41 ))/10^6 -> -7.748389702 | L18: =SUMPRODUCT('RevReq_ExitCase_(2021)'!T$232:T$256,N('RevReq_ExitCase_(2021)'!$A$232:$A$256=$D41 ))/10^6-SUMPRODUCT(RevReq_BaseCase!T$232:T$256,N(RevReq_BaseCase!$A$232:$A$256=$D41 ))/10^6 -> 7.030941983 | M18: =SUMPRODUCT('RevReq_ExitCase_(2021)'!U$232:U$256,N('RevReq_ExitCase_(2021)'!$A$232:$A$256=$D41 ))/10^6-SUMPRODUCT(RevReq_BaseCase!U$232:U$256,N(RevReq_BaseCase!$A$232:$A$256=$D41 ))/10^6 -> 6.965385252 | N18: =SUMPRODUCT('RevReq_ExitCase_(2021)'!V$232:V$256,N('RevReq_ExitCase_(2021)'!$A$232:$A$256=$D41 ))/10^6-SUMPRODUCT(RevReq_BaseCase!V$232:V$256,N(RevReq_BaseCase!$A$232:$A$256=$D41 ))/10^6 -> 6.896830918 | O18: =SUMPRODUCT('RevReq_ExitCase_(2021)'!W$232:W$256,N('RevReq_ExitCase_(2021)'!$A$232:$A$256=$D41 ))/10^6-SUMPRODUCT(RevReq_BaseCase!W$232:W$256,N(RevReq_BaseCase!$A$232:$A$256=$D41 ))/10^6 -> 6.827699559 | P18: =SUMPRODUCT('RevReq_ExitCase_(2021)'!X$232:X$256,N('RevReq_ExitCase_(2021)'!$A$232:$A$256=$D41 ))/10^6-SUMPRODUCT(RevReq_BaseCase!X$232:X$256,N(RevReq_BaseCase!$A$232:$A$256=$D41 ))/10^6 -> 6.675183163 | Q18: =SUMPRODUCT('RevReq_ExitCase_(2021)'!Y$232:Y$256,N('RevReq_ExitCase_(2021)'!$A$232:$A$256=$D41 ))/10^6-SUMPRODUCT(RevReq_BaseCase!Y$232:Y$256,N(RevReq_BaseCase!$A$232:$A$256=$D41 ))/10^6 -> 6.511164366 | R18: =SUMPRODUCT('RevReq_ExitCase_(2021)'!Z$232:Z$256,N('RevReq_ExitCase_(2021)'!$A$232:$A$256=$D41 ))/10^6-SUMPRODUCT(RevReq_BaseCase!Z$232:Z$256,N(RevReq_BaseCase!$A$232:$A$256=$D41 ))/10^6 -> 6.379818421 | S18: =SUMPRODUCT('RevReq_ExitCase_(2021)'!AA$232:AA$256,N('RevReq_ExitCase_(2021)'!$A$232:$A$256=$D41 ))/10^6-SUMPRODUCT(RevReq_BaseCase!AA$232:AA$256,N(RevReq_BaseCase!$A$232:$A$256=$D41 ))/10^6 -> 6.166320477 | T18: =SUMPRODUCT('RevReq_ExitCase_(2021)'!AB$232:AB$256,N('RevReq_ExitCase_(2021)'!$A$232:$A$256=$D41 ))/10^6-SUMPRODUCT(RevReq_BaseCase!AB$232:AB$256,N(RevReq_BaseCase!$A$232:$A$256=$D41 ))/10^6 -> 6.023921525 | U18: =SUMPRODUCT('RevReq_ExitCase_(2021)'!AC$232:AC$256,N('RevReq_ExitCase_(2021)'!$A$232:$A$256=$D41 ))/10^6-SUMPRODUCT(RevReq_BaseCase!AC$232:AC$256,N(RevReq_BaseCase!$A$232:$A$256=$D41 ))/10^6 -> 5.87394474 | V18: =SUMPRODUCT('RevReq_ExitCase_(2021)'!AD$232:AD$256,N('RevReq_ExitCase_(2021)'!$A$232:$A$256=$D41 ))/10^6-SUMPRODUCT(RevReq_BaseCase!AD$232:AD$256,N(RevReq_BaseCase!$A$232:$A$256=$D41 ))/10^6 -> -9.113789071 | W18: =SUMPRODUCT('RevReq_ExitCase_(2021)'!AE$232:AE$256,N('RevReq_ExitCase_(2021)'!$A$232:$A$256=$D41 ))/10^6-SUMPRODUCT(RevReq_BaseCase!AE$232:AE$256,N(RevReq_BaseCase!$A$232:$A$256=$D41 ))/10^6 -> -7.830875294 | X18: =SUMPRODUCT('RevReq_ExitCase_(2021)'!AF$232:AF$256,N('RevReq_ExitCase_(2021)'!$A$232:$A$256=$D41 ))/10^6-SUMPRODUCT(RevReq_BaseCase!AF$232:AF$256,N(RevReq_BaseCase!$A$232:$A$256=$D41 ))/10^6 -> -7.762372595 | Y18: =SUMPRODUCT('RevReq_ExitCase_(2021)'!AG$232:AG$256,N('RevReq_ExitCase_(2021)'!$A$232:$A$256=$D41 ))/10^6-SUMPRODUCT(RevReq_BaseCase!AG$232:AG$256,N(RevReq_BaseCase!$A$232:$A$256=$D41 ))/10^6 -> -7.846850387 | Z18: =SUMPRODUCT('RevReq_ExitCase_(2021)'!AH$232:AH$256,N('RevReq_ExitCase_(2021)'!$A$232:$A$256=$D41 ))/10^6-SUMPRODUCT(RevReq_BaseCase!AH$232:AH$256,N(RevReq_BaseCase!$A$232:$A$256=$D41 ))/10^6 -> -6.791208138 | AA18: =SUMPRODUCT('RevReq_ExitCase_(2021)'!AI$232:AI$256,N('RevReq_ExitCase_(2021)'!$A$232:$A$256=$D41 ))/10^6-SUMPRODUCT(RevReq_BaseCase!AI$232:AI$256,N(RevReq_BaseCase!$A$232:$A$256=$D41 ))/10^6 -> -6.637905737 | AB18: =SUMPRODUCT('RevReq_ExitCase_(2021)'!AJ$232:AJ$256,N('RevReq_ExitCase_(2021)'!$A$232:$A$256=$D41 ))/10^6-SUMPRODUCT(RevReq_BaseCase!AJ$232:AJ$256,N(RevReq_BaseCase!$A$232:$A$256=$D41 ))/10^6 -> -6.069367432 | AC18: =SUMPRODUCT('RevReq_ExitCase_(2021)'!AK$232:AK$256,N('RevReq_ExitCase_(2021)'!$A$232:$A$256=$D41 ))/10^6-SUMPRODUCT(RevReq_BaseCase!AK$232:AK$256,N(RevReq_BaseCase!$A$232:$A$256=$D41 ))/10^6 -> -5.816425375 | AD18: =SUMPRODUCT('RevReq_ExitCase_(2021)'!AL$232:AL$256,N('RevReq_ExitCase_(2021)'!$A$232:$A$256=$D41 ))/10^6-SUMPRODUCT(RevReq_BaseCase!AL$232:AL$256,N(RevReq_BaseCase!$A$232:$A$256=$D41 ))/10^6 -> -5.484717761 | AE18: =SUMPRODUCT('RevReq_ExitCase_(2021)'!AM$232:AM$256,N('RevReq_ExitCase_(2021)'!$A$232:$A$256=$D41 ))/10^6-SUMPRODUCT(RevReq_BaseCase!AM$232:AM$256,N(RevReq_BaseCase!$A$232:$A$256=$D41 ))/10^6 -> -5.273122417 | AF18: =SUMPRODUCT('RevReq_ExitCase_(2021)'!AN$232:AN$256,N('RevReq_ExitCase_(2021)'!$A$232:$A$256=$D41 ))/10^6-SUMPRODUCT(RevReq_BaseCase!AN$232:AN$256,N(RevReq_BaseCase!$A$232:$A$256=$D41 ))/10^6 -> -5.384614178 | AG18: =SUMPRODUCT('RevReq_ExitCase_(2021)'!AO$232:AO$256,N('RevReq_ExitCase_(2021)'!$A$232:$A$256=$D41 ))/10^6-SUMPRODUCT(RevReq_BaseCase!AO$232:AO$256,N(RevReq_BaseCase!$A$232:$A$256=$D41 ))/10^6 -> -5.462244346 | AH18: =SUMPRODUCT('RevReq_ExitCase_(2021)'!AP$232:AP$256,N('RevReq_ExitCase_(2021)'!$A$232:$A$256=$D41 ))/10^6-SUMPRODUCT(RevReq_BaseCase!AP$232:AP$256,N(RevReq_BaseCase!$A$232:$A$256=$D41 ))/10^6 -> -5.578321352 | AI18: =SUMPRODUCT('RevReq_ExitCase_(2021)'!AQ$232:AQ$256,N('RevReq_ExitCase_(2021)'!$A$232:$A$256=$D41 ))/10^6-SUMPRODUCT(RevReq_BaseCase!AQ$232:AQ$256,N(RevReq_BaseCase!$A$232:$A$256=$D41 ))/10^6 -> -5.618579741 | AJ18: =SUMPRODUCT('RevReq_ExitCase_(2021)'!AR$232:AR$256,N('RevReq_ExitCase_(2021)'!$A$232:$A$256=$D41 ))/10^6-SUMPRODUCT(RevReq_BaseCase!AR$232:AR$256,N(RevReq_BaseCase!$A$232:$A$256=$D41 ))/10^6 -> -5.673465501 | AK18: =SUMPRODUCT('RevReq_ExitCase_(2021)'!AS$232:AS$256,N('RevReq_ExitCase_(2021)'!$A$232:$A$256=$D41 ))/10^6-SUMPRODUCT(RevReq_BaseCase!AS$232:AS$256,N(RevReq_BaseCase!$A$232:$A$256=$D41 ))/10^6 -> -5.770825899 | AL18: =SUMPRODUCT('RevReq_ExitCase_(2021)'!AT$232:AT$256,N('RevReq_ExitCase_(2021)'!$A$232:$A$256=$D41 ))/10^6-SUMPRODUCT(RevReq_BaseCase!AT$232:AT$256,N(RevReq_BaseCase!$A$232:$A$256=$D41 ))/10^6 -> -5.716205538 | AM18: =SUMPRODUCT('RevReq_ExitCase_(2021)'!AU$232:AU$256,N('RevReq_ExitCase_(2021)'!$A$232:$A$256=$D41 ))/10^6-SUMPRODUCT(RevReq_BaseCase!AU$232:AU$256,N(RevReq_BaseCase!$A$232:$A$256=$D41 ))/10^6 -> -5.767433785 | AN18: =SUMPRODUCT('RevReq_ExitCase_(2021)'!AV$232:AV$256,N('RevReq_ExitCase_(2021)'!$A$232:$A$256=$D41 ))/10^6-SUMPRODUCT(RevReq_BaseCase!AV$232:AV$256,N(RevReq_BaseCase!$A$232:$A$256=$D41 ))/10^6 -> -5.760775395 | AO18: =SUMPRODUCT('RevReq_ExitCase_(2021)'!AW$232:AW$256,N('RevReq_ExitCase_(2021)'!$A$232:$A$256=$D41 ))/10^6-SUMPRODUCT(RevReq_BaseCase!AW$232:AW$256,N(RevReq_BaseCase!$A$232:$A$256=$D41 ))/10^6 -> -5.787490289 | AP18: =SUMPRODUCT('RevReq_ExitCase_(2021)'!AX$232:AX$256,N('RevReq_ExitCase_(2021)'!$A$232:$A$256=$D41 ))/10^6-SUMPRODUCT(RevReq_BaseCase!AX$232:AX$256,N(RevReq_BaseCase!$A$232:$A$256=$D41 ))/10^6 -> -5.79455058 | AQ18: =SUMPRODUCT('RevReq_ExitCase_(2021)'!AY$232:AY$256,N('RevReq_ExitCase_(2021)'!$A$232:$A$256=$D41 ))/10^6-SUMPRODUCT(RevReq_BaseCase!AY$232:AY$256,N(RevReq_BaseCase!$A$232:$A$256=$D41 ))/10^6 -> -14.05559922 | AS18: -135.882951
B19: Interest Expense(5) | D19: Base | E19: -37.81552923 | G19: -7.962582798 | I19: =SUMPRODUCT('RevReq_ExitCase_(2021)'!Q$409:Q$433,N('RevReq_ExitCase_(2021)'!$A$409:$A$433=$D42 ))/10^6-SUMPRODUCT(RevReq_BaseCase!Q$409:Q$433,N(RevReq_BaseCase!$A$409:$A$433=$D42 ))/10^6 -> -0.08214722425 | J19: =SUMPRODUCT('RevReq_ExitCase_(2021)'!R$409:R$433,N('RevReq_ExitCase_(2021)'!$A$409:$A$433=$D42 ))/10^6-SUMPRODUCT(RevReq_BaseCase!R$409:R$433,N(RevReq_BaseCase!$A$409:$A$433=$D42 ))/10^6 -> 0.4056842048 | K19: =SUMPRODUCT('RevReq_ExitCase_(2021)'!S$409:S$433,N('RevReq_ExitCase_(2021)'!$A$409:$A$433=$D42 ))/10^6-SUMPRODUCT(RevReq_BaseCase!S$409:S$433,N(RevReq_BaseCase!$A$409:$A$433=$D42 ))/10^6 -> 0.7715555289 | L19: =SUMPRODUCT('RevReq_ExitCase_(2021)'!T$409:T$433,N('RevReq_ExitCase_(2021)'!$A$409:$A$433=$D42 ))/10^6-SUMPRODUCT(RevReq_BaseCase!T$409:T$433,N(RevReq_BaseCase!$A$409:$A$433=$D42 ))/10^6 -> 0.1340295906 | M19: =SUMPRODUCT('RevReq_ExitCase_(2021)'!U$409:U$433,N('RevReq_ExitCase_(2021)'!$A$409:$A$433=$D42 ))/10^6-SUMPRODUCT(RevReq_BaseCase!U$409:U$433,N(RevReq_BaseCase!$A$409:$A$433=$D42 ))/10^6 -> 0.07054793497 | N19: =SUMPRODUCT('RevReq_ExitCase_(2021)'!V$409:V$433,N('RevReq_ExitCase_(2021)'!$A$409:$A$433=$D42 ))/10^6-SUMPRODUCT(RevReq_BaseCase!V$409:V$433,N(RevReq_BaseCase!$A$409:$A$433=$D42 ))/10^6 -> -0.05196011217 | O19: =SUMPRODUCT('RevReq_ExitCase_(2021)'!W$409:W$433,N('RevReq_ExitCase_(2021)'!$A$409:$A$433=$D42 ))/10^6-SUMPRODUCT(RevReq_BaseCase!W$409:W$433,N(RevReq_BaseCase!$A$409:$A$433=$D42 ))/10^6 -> -0.1698544619 | P19: =SUMPRODUCT('RevReq_ExitCase_(2021)'!X$409:X$433,N('RevReq_ExitCase_(2021)'!$A$409:$A$433=$D42 ))/10^6-SUMPRODUCT(RevReq_BaseCase!X$409:X$433,N(RevReq_BaseCase!$A$409:$A$433=$D42 ))/10^6 -> -0.3654824626 | Q19: =SUMPRODUCT('RevReq_ExitCase_(2021)'!Y$409:Y$433,N('RevReq_ExitCase_(2021)'!$A$409:$A$433=$D42 ))/10^6-SUMPRODUCT(RevReq_BaseCase!Y$409:Y$433,N(RevReq_BaseCase!$A$409:$A$433=$D42 ))/10^6 -> -0.5743462697 | R19: =SUMPRODUCT('RevReq_ExitCase_(2021)'!Z$409:Z$433,N('RevReq_ExitCase_(2021)'!$A$409:$A$433=$D42 ))/10^6-SUMPRODUCT(RevReq_BaseCase!Z$409:Z$433,N(RevReq_BaseCase!$A$409:$A$433=$D42 ))/10^6 -> -0.7688605865 | S19: =SUMPRODUCT('RevReq_ExitCase_(2021)'!AA$409:AA$433,N('RevReq_ExitCase_(2021)'!$A$409:$A$433=$D42 ))/10^6-SUMPRODUCT(RevReq_BaseCase!AA$409:AA$433,N(RevReq_BaseCase!$A$409:$A$433=$D42 ))/10^6 -> -1.012865174 | T19: =SUMPRODUCT('RevReq_ExitCase_(2021)'!AB$409:AB$433,N('RevReq_ExitCase_(2021)'!$A$409:$A$433=$D42 ))/10^6-SUMPRODUCT(RevReq_BaseCase!AB$409:AB$433,N(RevReq_BaseCase!$A$409:$A$433=$D42 ))/10^6 -> -1.212422924 | U19: =SUMPRODUCT('RevReq_ExitCase_(2021)'!AC$409:AC$433,N('RevReq_ExitCase_(2021)'!$A$409:$A$433=$D42 ))/10^6-SUMPRODUCT(RevReq_BaseCase!AC$409:AC$433,N(RevReq_BaseCase!$A$409:$A$433=$D42 ))/10^6 -> -1.3913022 | V19: =SUMPRODUCT('RevReq_ExitCase_(2021)'!AD$409:AD$433,N('RevReq_ExitCase_(2021)'!$A$409:$A$433=$D42 ))/10^6-SUMPRODUCT(RevReq_BaseCase!AD$409:AD$433,N(RevReq_BaseCase!$A$409:$A$433=$D42 ))/10^6 -> -1.498107458 | W19: =SUMPRODUCT('RevReq_ExitCase_(2021)'!AE$409:AE$433,N('RevReq_ExitCase_(2021)'!$A$409:$A$433=$D42 ))/10^6-SUMPRODUCT(RevReq_BaseCase!AE$409:AE$433,N(RevReq_BaseCase!$A$409:$A$433=$D42 ))/10^6 -> -1.499640105 | X19: =SUMPRODUCT('RevReq_ExitCase_(2021)'!AF$409:AF$433,N('RevReq_ExitCase_(2021)'!$A$409:$A$433=$D42 ))/10^6-SUMPRODUCT(RevReq_BaseCase!AF$409:AF$433,N(RevReq_BaseCase!$A$409:$A$433=$D42 ))/10^6 -> -1.476579938 | Y19: =SUMPRODUCT('RevReq_ExitCase_(2021)'!AG$409:AG$433,N('RevReq_ExitCase_(2021)'!$A$409:$A$433=$D42 ))/10^6-SUMPRODUCT(RevReq_BaseCase!AG$409:AG$433,N(RevReq_BaseCase!$A$409:$A$433=$D42 ))/10^6 -> -1.454481025 | Z19: =SUMPRODUCT('RevReq_ExitCase_(2021)'!AH$409:AH$433,N('RevReq_ExitCase_(2021)'!$A$409:$A$433=$D42 ))/10^6-SUMPRODUCT(RevReq_BaseCase!AH$409:AH$433,N(RevReq_BaseCase!$A$409:$A$433=$D42 ))/10^6 -> -1.482455025 | AA19: =SUMPRODUCT('RevReq_ExitCase_(2021)'!AI$409:AI$433,N('RevReq_ExitCase_(2021)'!$A$409:$A$433=$D42 ))/10^6-SUMPRODUCT(RevReq_BaseCase!AI$409:AI$433,N(RevReq_BaseCase!$A$409:$A$433=$D42 ))/10^6 -> -1.527948808 | AB19: =SUMPRODUCT('RevReq_ExitCase_(2021)'!AJ$409:AJ$433,N('RevReq_ExitCase_(2021)'!$A$409:$A$433=$D42 ))/10^6-SUMPRODUCT(RevReq_BaseCase!AJ$409:AJ$433,N(RevReq_BaseCase!$A$409:$A$433=$D42 ))/10^6 -> -1.525838412 | AC19: =SUMPRODUCT('RevReq_ExitCase_(2021)'!AK$409:AK$433,N('RevReq_ExitCase_(2021)'!$A$409:$A$433=$D42 ))/10^6-SUMPRODUCT(RevReq_BaseCase!AK$409:AK$433,N(RevReq_BaseCase!$A$409:$A$433=$D42 ))/10^6 -> -1.509748794 | AD19: =SUMPRODUCT('RevReq_ExitCase_(2021)'!AL$409:AL$433,N('RevReq_ExitCase_(2021)'!$A$409:$A$433=$D42 ))/10^6-SUMPRODUCT(RevReq_BaseCase!AL$409:AL$433,N(RevReq_BaseCase!$A$409:$A$433=$D42 ))/10^6 -> -1.502450236 | AE19: =SUMPRODUCT('RevReq_ExitCase_(2021)'!AM$409:AM$433,N('RevReq_ExitCase_(2021)'!$A$409:$A$433=$D42 ))/10^6-SUMPRODUCT(RevReq_BaseCase!AM$409:AM$433,N(RevReq_BaseCase!$A$409:$A$433=$D42 ))/10^6 -> -1.51102751 | AF19: =SUMPRODUCT('RevReq_ExitCase_(2021)'!AN$409:AN$433,N('RevReq_ExitCase_(2021)'!$A$409:$A$433=$D42 ))/10^6-SUMPRODUCT(RevReq_BaseCase!AN$409:AN$433,N(RevReq_BaseCase!$A$409:$A$433=$D42 ))/10^6 -> -1.545963961 | AG19: =SUMPRODUCT('RevReq_ExitCase_(2021)'!AO$409:AO$433,N('RevReq_ExitCase_(2021)'!$A$409:$A$433=$D42 ))/10^6-SUMPRODUCT(RevReq_BaseCase!AO$409:AO$433,N(RevReq_BaseCase!$A$409:$A$433=$D42 ))/10^6 -> -1.588868368 | AH19: =SUMPRODUCT('RevReq_ExitCase_(2021)'!AP$409:AP$433,N('RevReq_ExitCase_(2021)'!$A$409:$A$433=$D42 ))/10^6-SUMPRODUCT(RevReq_BaseCase!AP$409:AP$433,N(RevReq_BaseCase!$A$409:$A$433=$D42 ))/10^6 -> -1.627560939 | AI19: =SUMPRODUCT('RevReq_ExitCase_(2021)'!AQ$409:AQ$433,N('RevReq_ExitCase_(2021)'!$A$409:$A$433=$D42 ))/10^6-SUMPRODUCT(RevReq_BaseCase!AQ$409:AQ$433,N(RevReq_BaseCase!$A$409:$A$433=$D42 ))/10^6 -> -1.633367378 | AJ19: =SUMPRODUCT('RevReq_ExitCase_(2021)'!AR$409:AR$433,N('RevReq_ExitCase_(2021)'!$A$409:$A$433=$D42 ))/10^6-SUMPRODUCT(RevReq_BaseCase!AR$409:AR$433,N(RevReq_BaseCase!$A$409:$A$433=$D42 ))/10^6 -> -1.650771915 | AK19: =SUMPRODUCT('RevReq_ExitCase_(2021)'!AS$409:AS$433,N('RevReq_ExitCase_(2021)'!$A$409:$A$433=$D42 ))/10^6-SUMPRODUCT(RevReq_BaseCase!AS$409:AS$433,N(RevReq_BaseCase!$A$409:$A$433=$D42 ))/10^6 -> -1.654679042 | AL19: =SUMPRODUCT('RevReq_ExitCase_(2021)'!AT$409:AT$433,N('RevReq_ExitCase_(2021)'!$A$409:$A$433=$D42 ))/10^6-SUMPRODUCT(RevReq_BaseCase!AT$409:AT$433,N(RevReq_BaseCase!$A$409:$A$433=$D42 ))/10^6 -> -1.61963788 | AM19: =SUMPRODUCT('RevReq_ExitCase_(2021)'!AU$409:AU$433,N('RevReq_ExitCase_(2021)'!$A$409:$A$433=$D42 ))/10^6-SUMPRODUCT(RevReq_BaseCase!AU$409:AU$433,N(RevReq_BaseCase!$A$409:$A$433=$D42 ))/10^6 -> -1.588173553 | AN19: =SUMPRODUCT('RevReq_ExitCase_(2021)'!AV$409:AV$433,N('RevReq_ExitCase_(2021)'!$A$409:$A$433=$D42 ))/10^6-SUMPRODUCT(RevReq_BaseCase!AV$409:AV$433,N(RevReq_BaseCase!$A$409:$A$433=$D42 ))/10^6 -> -1.546856426 | AO19: =SUMPRODUCT('RevReq_ExitCase_(2021)'!AW$409:AW$433,N('RevReq_ExitCase_(2021)'!$A$409:$A$433=$D42 ))/10^6-SUMPRODUCT(RevReq_BaseCase!AW$409:AW$433,N(RevReq_BaseCase!$A$409:$A$433=$D42 ))/10^6 -> -1.506913416 | AP19: =SUMPRODUCT('RevReq_ExitCase_(2021)'!AX$409:AX$433,N('RevReq_ExitCase_(2021)'!$A$409:$A$433=$D42 ))/10^6-SUMPRODUCT(RevReq_BaseCase!AX$409:AX$433,N(RevReq_BaseCase!$A$409:$A$433=$D42 ))/10^6 -> -1.465923578 | AQ19: =SUMPRODUCT('RevReq_ExitCase_(2021)'!AY$409:AY$433,N('RevReq_ExitCase_(2021)'!$A$409:$A$433=$D42 ))/10^6-SUMPRODUCT(RevReq_BaseCase!AY$409:AY$433,N(RevReq_BaseCase!$A$409:$A$433=$D42 ))/10^6 -> -1.151111305 | AS19: -32.06999761
B20: Return on Equity(6) | D20: Base | E20: -113.905386 | G20: -23.98435472 | I20: =SUMPRODUCT('RevReq_ExitCase_(2021)'!Q$438:Q$462,N('RevReq_ExitCase_(2021)'!$A$438:$A$462=$D43 ))/10^6-SUMPRODUCT(RevReq_BaseCase!Q$438:Q$462,N(RevReq_BaseCase!$A$438:$A$462=$D43 ))/10^6 -> -0.247438327 | J20: =SUMPRODUCT('RevReq_ExitCase_(2021)'!R$438:R$462,N('RevReq_ExitCase_(2021)'!$A$438:$A$462=$D43 ))/10^6-SUMPRODUCT(RevReq_BaseCase!R$438:R$462,N(RevReq_BaseCase!$A$438:$A$462=$D43 ))/10^6 -> 1.221974593 | K20: =SUMPRODUCT('RevReq_ExitCase_(2021)'!S$438:S$462,N('RevReq_ExitCase_(2021)'!$A$438:$A$462=$D43 ))/10^6-SUMPRODUCT(RevReq_BaseCase!S$438:S$462,N(RevReq_BaseCase!$A$438:$A$462=$D43 ))/10^6 -> 2.324027512 | L20: =SUMPRODUCT('RevReq_ExitCase_(2021)'!T$438:T$462,N('RevReq_ExitCase_(2021)'!$A$438:$A$462=$D43 ))/10^6-SUMPRODUCT(RevReq_BaseCase!T$438:T$462,N(RevReq_BaseCase!$A$438:$A$462=$D43 ))/10^6 -> 0.4037148906 | M20: =SUMPRODUCT('RevReq_ExitCase_(2021)'!U$438:U$462,N('RevReq_ExitCase_(2021)'!$A$438:$A$462=$D43 ))/10^6-SUMPRODUCT(RevReq_BaseCase!U$438:U$462,N(RevReq_BaseCase!$A$438:$A$462=$D43 ))/10^6 -> 0.2124997303 | N20: =SUMPRODUCT('RevReq_ExitCase_(2021)'!V$438:V$462,N('RevReq_ExitCase_(2021)'!$A$438:$A$462=$D43 ))/10^6-SUMPRODUCT(RevReq_BaseCase!V$438:V$462,N(RevReq_BaseCase!$A$438:$A$462=$D43 ))/10^6 -> -0.1565107445 | O20: =SUMPRODUCT('RevReq_ExitCase_(2021)'!W$438:W$462,N('RevReq_ExitCase_(2021)'!$A$438:$A$462=$D43 ))/10^6-SUMPRODUCT(RevReq_BaseCase!W$438:W$462,N(RevReq_BaseCase!$A$438:$A$462=$D43 ))/10^6 -> -0.5116241513 | P20: =SUMPRODUCT('RevReq_ExitCase_(2021)'!X$438:X$462,N('RevReq_ExitCase_(2021)'!$A$438:$A$462=$D43 ))/10^6-SUMPRODUCT(RevReq_BaseCase!X$438:X$462,N(RevReq_BaseCase!$A$438:$A$462=$D43 ))/10^6 -> -1.100881617 | Q20: =SUMPRODUCT('RevReq_ExitCase_(2021)'!Y$438:Y$462,N('RevReq_ExitCase_(2021)'!$A$438:$A$462=$D43 ))/10^6-SUMPRODUCT(RevReq_BaseCase!Y$438:Y$462,N(RevReq_BaseCase!$A$438:$A$462=$D43 ))/10^6 -> -1.730007086 | R20: =SUMPRODUCT('RevReq_ExitCase_(2021)'!Z$438:Z$462,N('RevReq_ExitCase_(2021)'!$A$438:$A$462=$D43 ))/10^6-SUMPRODUCT(RevReq_BaseCase!Z$438:Z$462,N(RevReq_BaseCase!$A$438:$A$462=$D43 ))/10^6 -> -2.315909989 | S20: =SUMPRODUCT('RevReq_ExitCase_(2021)'!AA$438:AA$462,N('RevReq_ExitCase_(2021)'!$A$438:$A$462=$D43 ))/10^6-SUMPRODUCT(RevReq_BaseCase!AA$438:AA$462,N(RevReq_BaseCase!$A$438:$A$462=$D43 ))/10^6 -> -3.050884147 | T20: =SUMPRODUCT('RevReq_ExitCase_(2021)'!AB$438:AB$462,N('RevReq_ExitCase_(2021)'!$A$438:$A$462=$D43 ))/10^6-SUMPRODUCT(RevReq_BaseCase!AB$438:AB$462,N(RevReq_BaseCase!$A$438:$A$462=$D43 ))/10^6 -> -3.651978538 | U20: =SUMPRODUCT('RevReq_ExitCase_(2021)'!AC$438:AC$462,N('RevReq_ExitCase_(2021)'!$A$438:$A$462=$D43 ))/10^6-SUMPRODUCT(RevReq_BaseCase!AC$438:AC$462,N(RevReq_BaseCase!$A$438:$A$462=$D43 ))/10^6 -> -4.190786624 | V20: =SUMPRODUCT('RevReq_ExitCase_(2021)'!AD$438:AD$462,N('RevReq_ExitCase_(2021)'!$A$438:$A$462=$D43 ))/10^6-SUMPRODUCT(RevReq_BaseCase!AD$438:AD$462,N(RevReq_BaseCase!$A$438:$A$462=$D43 ))/10^6 -> -4.512498218 | W20: =SUMPRODUCT('RevReq_ExitCase_(2021)'!AE$438:AE$462,N('RevReq_ExitCase_(2021)'!$A$438:$A$462=$D43 ))/10^6-SUMPRODUCT(RevReq_BaseCase!AE$438:AE$462,N(RevReq_BaseCase!$A$438:$A$462=$D43 ))/10^6 -> -4.517114754 | X20: =SUMPRODUCT('RevReq_ExitCase_(2021)'!AF$438:AF$462,N('RevReq_ExitCase_(2021)'!$A$438:$A$462=$D43 ))/10^6-SUMPRODUCT(RevReq_BaseCase!AF$438:AF$462,N(RevReq_BaseCase!$A$438:$A$462=$D43 ))/10^6 -> -4.447654475 | Y20: =SUMPRODUCT('RevReq_ExitCase_(2021)'!AG$438:AG$462,N('RevReq_ExitCase_(2021)'!$A$438:$A$462=$D43 ))/10^6-SUMPRODUCT(RevReq_BaseCase!AG$438:AG$462,N(RevReq_BaseCase!$A$438:$A$462=$D43 ))/10^6 -> -4.381089618 | Z20: =SUMPRODUCT('RevReq_ExitCase_(2021)'!AH$438:AH$462,N('RevReq_ExitCase_(2021)'!$A$438:$A$462=$D43 ))/10^6-SUMPRODUCT(RevReq_BaseCase!AH$438:AH$462,N(RevReq_BaseCase!$A$438:$A$462=$D43 ))/10^6 -> -4.465351015 | AA20: =SUMPRODUCT('RevReq_ExitCase_(2021)'!AI$438:AI$462,N('RevReq_ExitCase_(2021)'!$A$438:$A$462=$D43 ))/10^6-SUMPRODUCT(RevReq_BaseCase!AI$438:AI$462,N(RevReq_BaseCase!$A$438:$A$462=$D43 ))/10^6 -> -4.60238432 | AB20: =SUMPRODUCT('RevReq_ExitCase_(2021)'!AJ$438:AJ$462,N('RevReq_ExitCase_(2021)'!$A$438:$A$462=$D43 ))/10^6-SUMPRODUCT(RevReq_BaseCase!AJ$438:AJ$462,N(RevReq_BaseCase!$A$438:$A$462=$D43 ))/10^6 -> -4.596027527 | AC20: =SUMPRODUCT('RevReq_ExitCase_(2021)'!AK$438:AK$462,N('RevReq_ExitCase_(2021)'!$A$438:$A$462=$D43 ))/10^6-SUMPRODUCT(RevReq_BaseCase!AK$438:AK$462,N(RevReq_BaseCase!$A$438:$A$462=$D43 ))/10^6 -> -4.547563463 | AD20: =SUMPRODUCT('RevReq_ExitCase_(2021)'!AL$438:AL$462,N('RevReq_ExitCase_(2021)'!$A$438:$A$462=$D43 ))/10^6-SUMPRODUCT(RevReq_BaseCase!AL$438:AL$462,N(RevReq_BaseCase!$A$438:$A$462=$D43 ))/10^6 -> -4.52557924 | AE20: =SUMPRODUCT('RevReq_ExitCase_(2021)'!AM$438:AM$462,N('RevReq_ExitCase_(2021)'!$A$438:$A$462=$D43 ))/10^6-SUMPRODUCT(RevReq_BaseCase!AM$438:AM$462,N(RevReq_BaseCase!$A$438:$A$462=$D43 ))/10^6 -> -4.551415127 | AF20: =SUMPRODUCT('RevReq_ExitCase_(2021)'!AN$438:AN$462,N('RevReq_ExitCase_(2021)'!$A$438:$A$462=$D43 ))/10^6-SUMPRODUCT(RevReq_BaseCase!AN$438:AN$462,N(RevReq_BaseCase!$A$438:$A$462=$D43 ))/10^6 -> -4.656648348 | AG20: =SUMPRODUCT('RevReq_ExitCase_(2021)'!AO$438:AO$462,N('RevReq_ExitCase_(2021)'!$A$438:$A$462=$D43 ))/10^6-SUMPRODUCT(RevReq_BaseCase!AO$438:AO$462,N(RevReq_BaseCase!$A$438:$A$462=$D43 ))/10^6 -> -4.785882108 | AH20: =SUMPRODUCT('RevReq_ExitCase_(2021)'!AP$438:AP$462,N('RevReq_ExitCase_(2021)'!$A$438:$A$462=$D43 ))/10^6-SUMPRODUCT(RevReq_BaseCase!AP$438:AP$462,N(RevReq_BaseCase!$A$438:$A$462=$D43 ))/10^6 -> -4.90242926 | AI20: =SUMPRODUCT('RevReq_ExitCase_(2021)'!AQ$438:AQ$462,N('RevReq_ExitCase_(2021)'!$A$438:$A$462=$D43 ))/10^6-SUMPRODUCT(RevReq_BaseCase!AQ$438:AQ$462,N(RevReq_BaseCase!$A$438:$A$462=$D43 ))/10^6 -> -4.919919025 | AJ20: =SUMPRODUCT('RevReq_ExitCase_(2021)'!AR$438:AR$462,N('RevReq_ExitCase_(2021)'!$A$438:$A$462=$D43 ))/10^6-SUMPRODUCT(RevReq_BaseCase!AR$438:AR$462,N(RevReq_BaseCase!$A$438:$A$462=$D43 ))/10^6 -> -4.972343796 | AK20: =SUMPRODUCT('RevReq_ExitCase_(2021)'!AS$438:AS$462,N('RevReq_ExitCase_(2021)'!$A$438:$A$462=$D43 ))/10^6-SUMPRODUCT(RevReq_BaseCase!AS$438:AS$462,N(RevReq_BaseCase!$A$438:$A$462=$D43 ))/10^6 -> -4.984112581 | AL20: =SUMPRODUCT('RevReq_ExitCase_(2021)'!AT$438:AT$462,N('RevReq_ExitCase_(2021)'!$A$438:$A$462=$D43 ))/10^6-SUMPRODUCT(RevReq_BaseCase!AT$438:AT$462,N(RevReq_BaseCase!$A$438:$A$462=$D43 ))/10^6 -> -4.878563955 | AM20: =SUMPRODUCT('RevReq_ExitCase_(2021)'!AU$438:AU$462,N('RevReq_ExitCase_(2021)'!$A$438:$A$462=$D43 ))/10^6-SUMPRODUCT(RevReq_BaseCase!AU$438:AU$462,N(RevReq_BaseCase!$A$438:$A$462=$D43 ))/10^6 -> -4.783789232 | AN20: =SUMPRODUCT('RevReq_ExitCase_(2021)'!AV$438:AV$462,N('RevReq_ExitCase_(2021)'!$A$438:$A$462=$D43 ))/10^6-SUMPRODUCT(RevReq_BaseCase!AV$438:AV$462,N(RevReq_BaseCase!$A$438:$A$462=$D43 ))/10^6 -> -4.659336569 | AO20: =SUMPRODUCT('RevReq_ExitCase_(2021)'!AW$438:AW$462,N('RevReq_ExitCase_(2021)'!$A$438:$A$462=$D43 ))/10^6-SUMPRODUCT(RevReq_BaseCase!AW$438:AW$462,N(RevReq_BaseCase!$A$438:$A$462=$D43 ))/10^6 -> -4.53902293 | AP20: =SUMPRODUCT('RevReq_ExitCase_(2021)'!AX$438:AX$462,N('RevReq_ExitCase_(2021)'!$A$438:$A$462=$D43 ))/10^6-SUMPRODUCT(RevReq_BaseCase!AX$438:AX$462,N(RevReq_BaseCase!$A$438:$A$462=$D43 ))/10^6 -> -4.415556105 | AQ20: =SUMPRODUCT('RevReq_ExitCase_(2021)'!AY$438:AY$462,N('RevReq_ExitCase_(2021)'!$A$438:$A$462=$D43 ))/10^6-SUMPRODUCT(RevReq_BaseCase!AY$438:AY$462,N(RevReq_BaseCase!$A$438:$A$462=$D43 ))/10^6 -> -3.467299815 | AS20: -96.59908326
B21: Income Tax(7) | D21: Base | E21: -71.53276783 | G21: -15.06221381 | I21: =SUMPRODUCT('RevReq_ExitCase_(2021)'!Q$467:Q$491,N('RevReq_ExitCase_(2021)'!$A$467:$A$491=$D44 ))/10^6-SUMPRODUCT(RevReq_BaseCase!Q$467:Q$491,N(RevReq_BaseCase!$A$467:$A$491=$D44 ))/10^6 -> -0.1553916722 | J21: =SUMPRODUCT('RevReq_ExitCase_(2021)'!R$467:R$491,N('RevReq_ExitCase_(2021)'!$A$467:$A$491=$D44 ))/10^6-SUMPRODUCT(RevReq_BaseCase!R$467:R$491,N(RevReq_BaseCase!$A$467:$A$491=$D44 ))/10^6 -> 0.7674020336 | K21: =SUMPRODUCT('RevReq_ExitCase_(2021)'!S$467:S$491,N('RevReq_ExitCase_(2021)'!$A$467:$A$491=$D44 ))/10^6-SUMPRODUCT(RevReq_BaseCase!S$467:S$491,N(RevReq_BaseCase!$A$467:$A$491=$D44 ))/10^6 -> 1.459493061 | L21: =SUMPRODUCT('RevReq_ExitCase_(2021)'!T$467:T$491,N('RevReq_ExitCase_(2021)'!$A$467:$A$491=$D44 ))/10^6-SUMPRODUCT(RevReq_BaseCase!T$467:T$491,N(RevReq_BaseCase!$A$467:$A$491=$D44 ))/10^6 -> 0.2535336085 | M21: =SUMPRODUCT('RevReq_ExitCase_(2021)'!U$467:U$491,N('RevReq_ExitCase_(2021)'!$A$467:$A$491=$D44 ))/10^6-SUMPRODUCT(RevReq_BaseCase!U$467:U$491,N(RevReq_BaseCase!$A$467:$A$491=$D44 ))/10^6 -> 0.1334501766 | N21: =SUMPRODUCT('RevReq_ExitCase_(2021)'!V$467:V$491,N('RevReq_ExitCase_(2021)'!$A$467:$A$491=$D44 ))/10^6-SUMPRODUCT(RevReq_BaseCase!V$467:V$491,N(RevReq_BaseCase!$A$467:$A$491=$D44 ))/10^6 -> -0.09828900233 | O21: =SUMPRODUCT('RevReq_ExitCase_(2021)'!W$467:W$491,N('RevReq_ExitCase_(2021)'!$A$467:$A$491=$D44 ))/10^6-SUMPRODUCT(RevReq_BaseCase!W$467:W$491,N(RevReq_BaseCase!$A$467:$A$491=$D44 ))/10^6 -> -0.3213007999 | P21: =SUMPRODUCT('RevReq_ExitCase_(2021)'!X$467:X$491,N('RevReq_ExitCase_(2021)'!$A$467:$A$491=$D44 ))/10^6-SUMPRODUCT(RevReq_BaseCase!X$467:X$491,N(RevReq_BaseCase!$A$467:$A$491=$D44 ))/10^6 -> -0.6913554479 | Q21: =SUMPRODUCT('RevReq_ExitCase_(2021)'!Y$467:Y$491,N('RevReq_ExitCase_(2021)'!$A$467:$A$491=$D44 ))/10^6-SUMPRODUCT(RevReq_BaseCase!Y$467:Y$491,N(RevReq_BaseCase!$A$467:$A$491=$D44 ))/10^6 -> -1.086447267 | R21: =SUMPRODUCT('RevReq_ExitCase_(2021)'!Z$467:Z$491,N('RevReq_ExitCase_(2021)'!$A$467:$A$491=$D44 ))/10^6-SUMPRODUCT(RevReq_BaseCase!Z$467:Z$491,N(RevReq_BaseCase!$A$467:$A$491=$D44 ))/10^6 -> -1.454395243 | S21: =SUMPRODUCT('RevReq_ExitCase_(2021)'!AA$467:AA$491,N('RevReq_ExitCase_(2021)'!$A$467:$A$491=$D44 ))/10^6-SUMPRODUCT(RevReq_BaseCase!AA$467:AA$491,N(RevReq_BaseCase!$A$467:$A$491=$D44 ))/10^6 -> -1.915960211 | T21: =SUMPRODUCT('RevReq_ExitCase_(2021)'!AB$467:AB$491,N('RevReq_ExitCase_(2021)'!$A$467:$A$491=$D44 ))/10^6-SUMPRODUCT(RevReq_BaseCase!AB$467:AB$491,N(RevReq_BaseCase!$A$467:$A$491=$D44 ))/10^6 -> -2.293448467 | U21: =SUMPRODUCT('RevReq_ExitCase_(2021)'!AC$467:AC$491,N('RevReq_ExitCase_(2021)'!$A$467:$A$491=$D44 ))/10^6-SUMPRODUCT(RevReq_BaseCase!AC$467:AC$491,N(RevReq_BaseCase!$A$467:$A$491=$D44 ))/10^6 -> -2.631820823 | V21: =SUMPRODUCT('RevReq_ExitCase_(2021)'!AD$467:AD$491,N('RevReq_ExitCase_(2021)'!$A$467:$A$491=$D44 ))/10^6-SUMPRODUCT(RevReq_BaseCase!AD$467:AD$491,N(RevReq_BaseCase!$A$467:$A$491=$D44 ))/10^6 -> -2.833856227 | W21: =SUMPRODUCT('RevReq_ExitCase_(2021)'!AE$467:AE$491,N('RevReq_ExitCase_(2021)'!$A$467:$A$491=$D44 ))/10^6-SUMPRODUCT(RevReq_BaseCase!AE$467:AE$491,N(RevReq_BaseCase!$A$467:$A$491=$D44 ))/10^6 -> -2.836755419 | X21: =SUMPRODUCT('RevReq_ExitCase_(2021)'!AF$467:AF$491,N('RevReq_ExitCase_(2021)'!$A$467:$A$491=$D44 ))/10^6-SUMPRODUCT(RevReq_BaseCase!AF$467:AF$491,N(RevReq_BaseCase!$A$467:$A$491=$D44 ))/10^6 -> -2.793134251 | Y21: =SUMPRODUCT('RevReq_ExitCase_(2021)'!AG$467:AG$491,N('RevReq_ExitCase_(2021)'!$A$467:$A$491=$D44 ))/10^6-SUMPRODUCT(RevReq_BaseCase!AG$467:AG$491,N(RevReq_BaseCase!$A$467:$A$491=$D44 ))/10^6 -> -2.751331412 | Z21: =SUMPRODUCT('RevReq_ExitCase_(2021)'!AH$467:AH$491,N('RevReq_ExitCase_(2021)'!$A$467:$A$491=$D44 ))/10^6-SUMPRODUCT(RevReq_BaseCase!AH$467:AH$491,N(RevReq_BaseCase!$A$467:$A$491=$D44 ))/10^6 -> -2.804247707 | AA21: =SUMPRODUCT('RevReq_ExitCase_(2021)'!AI$467:AI$491,N('RevReq_ExitCase_(2021)'!$A$467:$A$491=$D44 ))/10^6-SUMPRODUCT(RevReq_BaseCase!AI$467:AI$491,N(RevReq_BaseCase!$A$467:$A$491=$D44 ))/10^6 -> -2.890304846 | AB21: =SUMPRODUCT('RevReq_ExitCase_(2021)'!AJ$467:AJ$491,N('RevReq_ExitCase_(2021)'!$A$467:$A$491=$D44 ))/10^6-SUMPRODUCT(RevReq_BaseCase!AJ$467:AJ$491,N(RevReq_BaseCase!$A$467:$A$491=$D44 ))/10^6 -> -2.886312769 | AC21: =SUMPRODUCT('RevReq_ExitCase_(2021)'!AK$467:AK$491,N('RevReq_ExitCase_(2021)'!$A$467:$A$491=$D44 ))/10^6-SUMPRODUCT(RevReq_BaseCase!AK$467:AK$491,N(RevReq_BaseCase!$A$467:$A$491=$D44 ))/10^6 -> -2.855877258 | AD21: =SUMPRODUCT('RevReq_ExitCase_(2021)'!AL$467:AL$491,N('RevReq_ExitCase_(2021)'!$A$467:$A$491=$D44 ))/10^6-SUMPRODUCT(RevReq_BaseCase!AL$467:AL$491,N(RevReq_BaseCase!$A$467:$A$491=$D44 ))/10^6 -> -2.84207113 | AE21: =SUMPRODUCT('RevReq_ExitCase_(2021)'!AM$467:AM$491,N('RevReq_ExitCase_(2021)'!$A$467:$A$491=$D44 ))/10^6-SUMPRODUCT(RevReq_BaseCase!AM$467:AM$491,N(RevReq_BaseCase!$A$467:$A$491=$D44 ))/10^6 -> -2.858296109 | AF21: =SUMPRODUCT('RevReq_ExitCase_(2021)'!AN$467:AN$491,N('RevReq_ExitCase_(2021)'!$A$467:$A$491=$D44 ))/10^6-SUMPRODUCT(RevReq_BaseCase!AN$467:AN$491,N(RevReq_BaseCase!$A$467:$A$491=$D44 ))/10^6 -> -2.924382744 | AG21: =SUMPRODUCT('RevReq_ExitCase_(2021)'!AO$467:AO$491,N('RevReq_ExitCase_(2021)'!$A$467:$A$491=$D44 ))/10^6-SUMPRODUCT(RevReq_BaseCase!AO$467:AO$491,N(RevReq_BaseCase!$A$467:$A$491=$D44 ))/10^6 -> -3.005541755 | AH21: =SUMPRODUCT('RevReq_ExitCase_(2021)'!AP$467:AP$491,N('RevReq_ExitCase_(2021)'!$A$467:$A$491=$D44 ))/10^6-SUMPRODUCT(RevReq_BaseCase!AP$467:AP$491,N(RevReq_BaseCase!$A$467:$A$491=$D44 ))/10^6 -> -3.078733556 | AI21: =SUMPRODUCT('RevReq_ExitCase_(2021)'!AQ$467:AQ$491,N('RevReq_ExitCase_(2021)'!$A$467:$A$491=$D44 ))/10^6-SUMPRODUCT(RevReq_BaseCase!AQ$467:AQ$491,N(RevReq_BaseCase!$A$467:$A$491=$D44 ))/10^6 -> -3.089717157 | AJ21: =SUMPRODUCT('RevReq_ExitCase_(2021)'!AR$467:AR$491,N('RevReq_ExitCase_(2021)'!$A$467:$A$491=$D44 ))/10^6-SUMPRODUCT(RevReq_BaseCase!AR$467:AR$491,N(RevReq_BaseCase!$A$467:$A$491=$D44 ))/10^6 -> -3.122639999 | AK21: =SUMPRODUCT('RevReq_ExitCase_(2021)'!AS$467:AS$491,N('RevReq_ExitCase_(2021)'!$A$467:$A$491=$D44 ))/10^6-SUMPRODUCT(RevReq_BaseCase!AS$467:AS$491,N(RevReq_BaseCase!$A$467:$A$491=$D44 ))/10^6 -> -3.130030815 | AL21: =SUMPRODUCT('RevReq_ExitCase_(2021)'!AT$467:AT$491,N('RevReq_ExitCase_(2021)'!$A$467:$A$491=$D44 ))/10^6-SUMPRODUCT(RevReq_BaseCase!AT$467:AT$491,N(RevReq_BaseCase!$A$467:$A$491=$D44 ))/10^6 -> -3.063746106 | AM21: =SUMPRODUCT('RevReq_ExitCase_(2021)'!AU$467:AU$491,N('RevReq_ExitCase_(2021)'!$A$467:$A$491=$D44 ))/10^6-SUMPRODUCT(RevReq_BaseCase!AU$467:AU$491,N(RevReq_BaseCase!$A$467:$A$491=$D44 ))/10^6 -> -3.004227426 | AN21: =SUMPRODUCT('RevReq_ExitCase_(2021)'!AV$467:AV$491,N('RevReq_ExitCase_(2021)'!$A$467:$A$491=$D44 ))/10^6-SUMPRODUCT(RevReq_BaseCase!AV$467:AV$491,N(RevReq_BaseCase!$A$467:$A$491=$D44 ))/10^6 -> -2.926070951 | AO21: =SUMPRODUCT('RevReq_ExitCase_(2021)'!AW$467:AW$491,N('RevReq_ExitCase_(2021)'!$A$467:$A$491=$D44 ))/10^6-SUMPRODUCT(RevReq_BaseCase!AW$467:AW$491,N(RevReq_BaseCase!$A$467:$A$491=$D44 ))/10^6 -> -2.850513789 | AP21: =SUMPRODUCT('RevReq_ExitCase_(2021)'!AX$467:AX$491,N('RevReq_ExitCase_(2021)'!$A$467:$A$491=$D44 ))/10^6-SUMPRODUCT(RevReq_BaseCase!AX$467:AX$491,N(RevReq_BaseCase!$A$467:$A$491=$D44 ))/10^6 -> -2.772976423 | AQ21: =SUMPRODUCT('RevReq_ExitCase_(2021)'!AY$467:AY$491,N('RevReq_ExitCase_(2021)'!$A$467:$A$491=$D44 ))/10^6-SUMPRODUCT(RevReq_BaseCase!AY$467:AY$491,N(RevReq_BaseCase!$A$467:$A$491=$D44 ))/10^6 -> -2.177469929 | AS21: -60.66438155
B22: Base Revenue Requirement | E22: -333.4749744 | G22: =SUM(G15:G21) -> -151.3388151 | I22: =SUM(I15:I21) -> -20.49917939 | J22: -19.40315908 | K22: -17.28604498 | L22: -6.506924534 | M22: -7.199516564 | N22: -8.243112148 | O22: -9.263920839 | P22: -11.19565011 | Q22: -12.89235921 | R22: -14.33859541 | S22: -16.39021561 | T22: -18.03587378 | U22: -19.60980311 | V22: -35.57388606 | W22: -34.69203267 | X22: -9.052700275 | Y22: 3.594681767 | Z22: 2.451823755 | AA22: 2.553154146 | AB22: 1.25448179 | AC22: 1.021973288 | AD22: 0.223962559 | AE22: -0.08358160693 | AF22: -2.558187558 | AG22: -1.826715352 | AH22: -3.011809681 | AI22: -2.744539266 | AJ22: -6.795631918 | AK22: -6.831753702 | AL22: -8.396623035 | AM22: -8.691601176 | AN22: -8.870105181 | AO22: -9.103333063 | AP22: -9.310368524 | AQ22: -16.1678279 | AS22: -117.0367336
B24: Clause: Incremental Revenue Requirement(1)
B25: PPA Payments, Operations and Maintenance(8) | D25: Clause | E25: =SUM(I25:AQ25) -> -105.6677524 | G25: =SUMPRODUCT(I25:AQ25,$I$11:$AQ$11) -> -93.80467048 | I25: =SUMPRODUCT('RevReq_ExitCase_(2021)'!Q$143:Q$162,N('RevReq_ExitCase_(2021)'!$A$143:$A$162=$D48 ))/10^6-SUMPRODUCT(RevReq_BaseCase!Q$143:Q$162,N(RevReq_BaseCase!$A$143:$A$162=$D48 ))/10^6-+('RevReq_ExitCase_(2021)'!Q$154-RevReq_BaseCase!Q$154)/10^6 -> -53.38312652 | J25: =SUMPRODUCT('RevReq_ExitCase_(2021)'!R$143:R$162,N('RevReq_ExitCase_(2021)'!$A$143:$A$162=$D48 ))/10^6-SUMPRODUCT(RevReq_BaseCase!R$143:R$162,N(RevReq_BaseCase!$A$143:$A$162=$D48 ))/10^6-+('RevReq_ExitCase_(2021)'!R$154-RevReq_BaseCase!R$154)/10^6 -> -44.80424834 | K25: =SUMPRODUCT('RevReq_ExitCase_(2021)'!S$143:S$162,N('RevReq_ExitCase_(2021)'!$A$143:$A$162=$D48 ))/10^6-SUMPRODUCT(RevReq_BaseCase!S$143:S$162,N(RevReq_BaseCase!$A$143:$A$162=$D48 ))/10^6-+('RevReq_ExitCase_(2021)'!S$154-RevReq_BaseCase!S$154)/10^6 -> -0.16222344 | L25: =SUMPRODUCT('RevReq_ExitCase_(2021)'!T$143:T$162,N('RevReq_ExitCase_(2021)'!$A$143:$A$162=$D48 ))/10^6-SUMPRODUCT(RevReq_BaseCase!T$143:T$162,N(RevReq_BaseCase!$A$143:$A$162=$D48 ))/10^6-+('RevReq_ExitCase_(2021)'!T$154-RevReq_BaseCase!T$154)/10^6 -> -0.1654679088 | M25: =SUMPRODUCT('RevReq_ExitCase_(2021)'!U$143:U$162,N('RevReq_ExitCase_(2021)'!$A$143:$A$162=$D48 ))/10^6-SUMPRODUCT(RevReq_BaseCase!U$143:U$162,N(RevReq_BaseCase!$A$143:$A$162=$D48 ))/10^6-+('RevReq_ExitCase_(2021)'!U$154-RevReq_BaseCase!U$154)/10^6 -> -0.168777267 | N25: =SUMPRODUCT('RevReq_ExitCase_(2021)'!V$143:V$162,N('RevReq_ExitCase_(2021)'!$A$143:$A$162=$D48 ))/10^6-SUMPRODUCT(RevReq_BaseCase!V$143:V$162,N(RevReq_BaseCase!$A$143:$A$162=$D48 ))/10^6-+('RevReq_ExitCase_(2021)'!V$154-RevReq_BaseCase!V$154)/10^6 -> -0.1721528123 | O25: =SUMPRODUCT('RevReq_ExitCase_(2021)'!W$143:W$162,N('RevReq_ExitCase_(2021)'!$A$143:$A$162=$D48 ))/10^6-SUMPRODUCT(RevReq_BaseCase!W$143:W$162,N(RevReq_BaseCase!$A$143:$A$162=$D48 ))/10^6-+('RevReq_ExitCase_(2021)'!W$154-RevReq_BaseCase!W$154)/10^6 -> -0.1755958686 | P25: =SUMPRODUCT('RevReq_ExitCase_(2021)'!X$143:X$162,N('RevReq_ExitCase_(2021)'!$A$143:$A$162=$D48 ))/10^6-SUMPRODUCT(RevReq_BaseCase!X$143:X$162,N(RevReq_BaseCase!$A$143:$A$162=$D48 ))/10^6-+('RevReq_ExitCase_(2021)'!X$154-RevReq_BaseCase!X$154)/10^6 -> -0.1791077859 | Q25: =SUMPRODUCT('RevReq_ExitCase_(2021)'!Y$143:Y$162,N('RevReq_ExitCase_(2021)'!$A$143:$A$162=$D48 ))/10^6-SUMPRODUCT(RevReq_BaseCase!Y$143:Y$162,N(RevReq_BaseCase!$A$143:$A$162=$D48 ))/10^6-+('RevReq_ExitCase_(2021)'!Y$154-RevReq_BaseCase!Y$154)/10^6 -> -0.1826899417 | R25: =SUMPRODUCT('RevReq_ExitCase_(2021)'!Z$143:Z$162,N('RevReq_ExitCase_(2021)'!$A$143:$A$162=$D48 ))/10^6-SUMPRODUCT(RevReq_BaseCase!Z$143:Z$162,N(RevReq_BaseCase!$A$143:$A$162=$D48 ))/10^6-+('RevReq_ExitCase_(2021)'!Z$154-RevReq_BaseCase!Z$154)/10^6 -> -0.1863437405 | S25: =SUMPRODUCT('RevReq_ExitCase_(2021)'!AA$143:AA$162,N('RevReq_ExitCase_(2021)'!$A$143:$A$162=$D48 ))/10^6-SUMPRODUCT(RevReq_BaseCase!AA$143:AA$162,N(RevReq_BaseCase!$A$143:$A$162=$D48 ))/10^6-+('RevReq_ExitCase_(2021)'!AA$154-RevReq_BaseCase!AA$154)/10^6 -> -0.1900706153 | T25: =SUMPRODUCT('RevReq_ExitCase_(2021)'!AB$143:AB$162,N('RevReq_ExitCase_(2021)'!$A$143:$A$162=$D48 ))/10^6-SUMPRODUCT(RevReq_BaseCase!AB$143:AB$162,N(RevReq_BaseCase!$A$143:$A$162=$D48 ))/10^6-+('RevReq_ExitCase_(2021)'!AB$154-RevReq_BaseCase!AB$154)/10^6 -> -0.1938720276 | U25: =SUMPRODUCT('RevReq_ExitCase_(2021)'!AC$143:AC$162,N('RevReq_ExitCase_(2021)'!$A$143:$A$162=$D48 ))/10^6-SUMPRODUCT(RevReq_BaseCase!AC$143:AC$162,N(RevReq_BaseCase!$A$143:$A$162=$D48 ))/10^6-+('RevReq_ExitCase_(2021)'!AC$154-RevReq_BaseCase!AC$154)/10^6 -> -0.1977494682 | V25: =SUMPRODUCT('RevReq_ExitCase_(2021)'!AD$143:AD$162,N('RevReq_ExitCase_(2021)'!$A$143:$A$162=$D48 ))/10^6-SUMPRODUCT(RevReq_BaseCase!AD$143:AD$162,N(RevReq_BaseCase!$A$143:$A$162=$D48 ))/10^6-+('RevReq_ExitCase_(2021)'!AD$154-RevReq_BaseCase!AD$154)/10^6 -> -0.2017044575 | W25: =SUMPRODUCT('RevReq_ExitCase_(2021)'!AE$143:AE$162,N('RevReq_ExitCase_(2021)'!$A$143:$A$162=$D48 ))/10^6-SUMPRODUCT(RevReq_BaseCase!AE$143:AE$162,N(RevReq_BaseCase!$A$143:$A$162=$D48 ))/10^6-+('RevReq_ExitCase_(2021)'!AE$154-RevReq_BaseCase!AE$154)/10^6 -> -0.2057385467 | X25: =SUMPRODUCT('RevReq_ExitCase_(2021)'!AF$143:AF$162,N('RevReq_ExitCase_(2021)'!$A$143:$A$162=$D48 ))/10^6-SUMPRODUCT(RevReq_BaseCase!AF$143:AF$162,N(RevReq_BaseCase!$A$143:$A$162=$D48 ))/10^6-+('RevReq_ExitCase_(2021)'!AF$154-RevReq_BaseCase!AF$154)/10^6 -> -0.2098533176 | Y25: =SUMPRODUCT('RevReq_ExitCase_(2021)'!AG$143:AG$162,N('RevReq_ExitCase_(2021)'!$A$143:$A$162=$D48 ))/10^6-SUMPRODUCT(RevReq_BaseCase!AG$143:AG$162,N(RevReq_BaseCase!$A$143:$A$162=$D48 ))/10^6-+('RevReq_ExitCase_(2021)'!AG$154-RevReq_BaseCase!AG$154)/10^6 -> -0.214050384 | Z25: =SUMPRODUCT('RevReq_ExitCase_(2021)'!AH$143:AH$162,N('RevReq_ExitCase_(2021)'!$A$143:$A$162=$D48 ))/10^6-SUMPRODUCT(RevReq_BaseCase!AH$143:AH$162,N(RevReq_BaseCase!$A$143:$A$162=$D48 ))/10^6-+('RevReq_ExitCase_(2021)'!AH$154-RevReq_BaseCase!AH$154)/10^6 -> -0.2183313916 | AA25: =SUMPRODUCT('RevReq_ExitCase_(2021)'!AI$143:AI$162,N('RevReq_ExitCase_(2021)'!$A$143:$A$162=$D48 ))/10^6-SUMPRODUCT(RevReq_BaseCase!AI$143:AI$162,N(RevReq_BaseCase!$A$143:$A$162=$D48 ))/10^6-+('RevReq_ExitCase_(2021)'!AI$154-RevReq_BaseCase!AI$154)/10^6 -> -0.2226980195 | AB25: =SUMPRODUCT('RevReq_ExitCase_(2021)'!AJ$143:AJ$162,N('RevReq_ExitCase_(2021)'!$A$143:$A$162=$D48 ))/10^6-SUMPRODUCT(RevReq_BaseCase!AJ$143:AJ$162,N(RevReq_BaseCase!$A$143:$A$162=$D48 ))/10^6-+('RevReq_ExitCase_(2021)'!AJ$154-RevReq_BaseCase!AJ$154)/10^6 -> -0.2271519799 | AC25: =SUMPRODUCT('RevReq_ExitCase_(2021)'!AK$143:AK$162,N('RevReq_ExitCase_(2021)'!$A$143:$A$162=$D48 ))/10^6-SUMPRODUCT(RevReq_BaseCase!AK$143:AK$162,N(RevReq_BaseCase!$A$143:$A$162=$D48 ))/10^6-+('RevReq_ExitCase_(2021)'!AK$154-RevReq_BaseCase!AK$154)/10^6 -> -0.2316950194 | AD25: =SUMPRODUCT('RevReq_ExitCase_(2021)'!AL$143:AL$162,N('RevReq_ExitCase_(2021)'!$A$143:$A$162=$D48 ))/10^6-SUMPRODUCT(RevReq_BaseCase!AL$143:AL$162,N(RevReq_BaseCase!$A$143:$A$162=$D48 ))/10^6-+('RevReq_ExitCase_(2021)'!AL$154-RevReq_BaseCase!AL$154)/10^6 -> -0.2363289198 | AE25: =SUMPRODUCT('RevReq_ExitCase_(2021)'!AM$143:AM$162,N('RevReq_ExitCase_(2021)'!$A$143:$A$162=$D48 ))/10^6-SUMPRODUCT(RevReq_BaseCase!AM$143:AM$162,N(RevReq_BaseCase!$A$143:$A$162=$D48 ))/10^6-+('RevReq_ExitCase_(2021)'!AM$154-RevReq_BaseCase!AM$154)/10^6 -> -0.2410554982 | AF25: =SUMPRODUCT('RevReq_ExitCase_(2021)'!AN$143:AN$162,N('RevReq_ExitCase_(2021)'!$A$143:$A$162=$D48 ))/10^6-SUMPRODUCT(RevReq_BaseCase!AN$143:AN$162,N(RevReq_BaseCase!$A$143:$A$162=$D48 ))/10^6-+('RevReq_ExitCase_(2021)'!AN$154-RevReq_BaseCase!AN$154)/10^6 -> -0.2458766082 | AG25: =SUMPRODUCT('RevReq_ExitCase_(2021)'!AO$143:AO$162,N('RevReq_ExitCase_(2021)'!$A$143:$A$162=$D48 ))/10^6-SUMPRODUCT(RevReq_BaseCase!AO$143:AO$162,N(RevReq_BaseCase!$A$143:$A$162=$D48 ))/10^6-+('RevReq_ExitCase_(2021)'!AO$154-RevReq_BaseCase!AO$154)/10^6 -> -0.2507941404 | AH25: =SUMPRODUCT('RevReq_ExitCase_(2021)'!AP$143:AP$162,N('RevReq_ExitCase_(2021)'!$A$143:$A$162=$D48 ))/10^6-SUMPRODUCT(RevReq_BaseCase!AP$143:AP$162,N(RevReq_BaseCase!$A$143:$A$162=$D48 ))/10^6-+('RevReq_ExitCase_(2021)'!AP$154-RevReq_BaseCase!AP$154)/10^6 -> -0.2558100232 | AI25: =SUMPRODUCT('RevReq_ExitCase_(2021)'!AQ$143:AQ$162,N('RevReq_ExitCase_(2021)'!$A$143:$A$162=$D48 ))/10^6-SUMPRODUCT(RevReq_BaseCase!AQ$143:AQ$162,N(RevReq_BaseCase!$A$143:$A$162=$D48 ))/10^6-+('RevReq_ExitCase_(2021)'!AQ$154-RevReq_BaseCase!AQ$154)/10^6 -> -0.2609262236 | AJ25: =SUMPRODUCT('RevReq_ExitCase_(2021)'!AR$143:AR$162,N('RevReq_ExitCase_(2021)'!$A$143:$A$162=$D48 ))/10^6-SUMPRODUCT(RevReq_BaseCase!AR$143:AR$162,N(RevReq_BaseCase!$A$143:$A$162=$D48 ))/10^6-+('RevReq_ExitCase_(2021)'!AR$154-RevReq_BaseCase!AR$154)/10^6 -> -0.2661447481 | AK25: =SUMPRODUCT('RevReq_ExitCase_(2021)'!AS$143:AS$162,N('RevReq_ExitCase_(2021)'!$A$143:$A$162=$D48 ))/10^6-SUMPRODUCT(RevReq_BaseCase!AS$143:AS$162,N(RevReq_BaseCase!$A$143:$A$162=$D48 ))/10^6-+('RevReq_ExitCase_(2021)'!AS$154-RevReq_BaseCase!AS$154)/10^6 -> -0.2714676431 | AL25: =SUMPRODUCT('RevReq_ExitCase_(2021)'!AT$143:AT$162,N('RevReq_ExitCase_(2021)'!$A$143:$A$162=$D48 ))/10^6-SUMPRODUCT(RevReq_BaseCase!AT$143:AT$162,N(RevReq_BaseCase!$A$143:$A$162=$D48 ))/10^6-+('RevReq_ExitCase_(2021)'!AT$154-RevReq_BaseCase!AT$154)/10^6 -> -0.2768969959 | AM25: =SUMPRODUCT('RevReq_ExitCase_(2021)'!AU$143:AU$162,N('RevReq_ExitCase_(2021)'!$A$143:$A$162=$D48 ))/10^6-SUMPRODUCT(RevReq_BaseCase!AU$143:AU$162,N(RevReq_BaseCase!$A$143:$A$162=$D48 ))/10^6-+('RevReq_ExitCase_(2021)'!AU$154-RevReq_BaseCase!AU$154)/10^6 -> -0.2824349358 | AN25: =SUMPRODUCT('RevReq_ExitCase_(2021)'!AV$143:AV$162,N('RevReq_ExitCase_(2021)'!$A$143:$A$162=$D48 ))/10^6-SUMPRODUCT(RevReq_BaseCase!AV$143:AV$162,N(RevReq_BaseCase!$A$143:$A$162=$D48 ))/10^6-+('RevReq_ExitCase_(2021)'!AV$154-RevReq_BaseCase!AV$154)/10^6 -> -0.2880836346 | AO25: =SUMPRODUCT('RevReq_ExitCase_(2021)'!AW$143:AW$162,N('RevReq_ExitCase_(2021)'!$A$143:$A$162=$D48 ))/10^6-SUMPRODUCT(RevReq_BaseCase!AW$143:AW$162,N(RevReq_BaseCase!$A$143:$A$162=$D48 ))/10^6-+('RevReq_ExitCase_(2021)'!AW$154-RevReq_BaseCase!AW$154)/10^6 -> -0.2938453073 | AP25: =SUMPRODUCT('RevReq_ExitCase_(2021)'!AX$143:AX$162,N('RevReq_ExitCase_(2021)'!$A$143:$A$162=$D48 ))/10^6-SUMPRODUCT(RevReq_BaseCase!AX$143:AX$162,N(RevReq_BaseCase!$A$143:$A$162=$D48 ))/10^6-+('RevReq_ExitCase_(2021)'!AX$154-RevReq_BaseCase!AX$154)/10^6 -> -0.2997222134 | AQ25: =SUMPRODUCT('RevReq_ExitCase_(2021)'!AY$143:AY$162,N('RevReq_ExitCase_(2021)'!$A$143:$A$162=$D48 ))/10^6-SUMPRODUCT(RevReq_BaseCase!AY$143:AY$162,N(RevReq_BaseCase!$A$143:$A$162=$D48 ))/10^6-+('RevReq_ExitCase_(2021)'!AY$154-RevReq_BaseCase!AY$154)/10^6 -> -0.3057166577 | AS25: =SUM(W25:AQ25) -> -5.304622208
B26: Property Tax | D26: Clause | E26: -9.581230166 | G26: =SUMPRODUCT(I26:AQ26,$I$11:$AQ$11) -> -8.381083979 | I26: =SUMPRODUCT('RevReq_ExitCase_(2021)'!Q$767:Q$791,N('RevReq_ExitCase_(2021)'!$A$767:$A$791=$D49 ))/10^6-SUMPRODUCT(RevReq_BaseCase!Q$767:Q$791,N(RevReq_BaseCase!$A$767:$A$791=$D49 ))/10^6+('RevReq_ExitCase_(2021)'!Q$154-RevReq_BaseCase!Q$154)/10^6 -> -2.664314434 | J26: =SUMPRODUCT('RevReq_ExitCase_(2021)'!R$767:R$791,N('RevReq_ExitCase_(2021)'!$A$767:$A$791=$D49 ))/10^6-SUMPRODUCT(RevReq_BaseCase!R$767:R$791,N(RevReq_BaseCase!$A$767:$A$791=$D49 ))/10^6+('RevReq_ExitCase_(2021)'!R$154-RevReq_BaseCase!R$154)/10^6 -> -2.549410055 | K26: =SUMPRODUCT('RevReq_ExitCase_(2021)'!S$767:S$791,N('RevReq_ExitCase_(2021)'!$A$767:$A$791=$D49 ))/10^6-SUMPRODUCT(RevReq_BaseCase!S$767:S$791,N(RevReq_BaseCase!$A$767:$A$791=$D49 ))/10^6+('RevReq_ExitCase_(2021)'!S$154-RevReq_BaseCase!S$154)/10^6 -> -2.434505677 | L26: =SUMPRODUCT('RevReq_ExitCase_(2021)'!T$767:T$791,N('RevReq_ExitCase_(2021)'!$A$767:$A$791=$D49 ))/10^6-SUMPRODUCT(RevReq_BaseCase!T$767:T$791,N(RevReq_BaseCase!$A$767:$A$791=$D49 ))/10^6+('RevReq_ExitCase_(2021)'!T$154-RevReq_BaseCase!T$154)/10^6 -> -1.933 | M26: =SUMPRODUCT('RevReq_ExitCase_(2021)'!U$767:U$791,N('RevReq_ExitCase_(2021)'!$A$767:$A$791=$D49 ))/10^6-SUMPRODUCT(RevReq_BaseCase!U$767:U$791,N(RevReq_BaseCase!$A$767:$A$791=$D49 ))/10^6+('RevReq_ExitCase_(2021)'!U$154-RevReq_BaseCase!U$154)/10^6 -> 0 | N26: =SUMPRODUCT('RevReq_ExitCase_(2021)'!V$767:V$791,N('RevReq_ExitCase_(2021)'!$A$767:$A$791=$D49 ))/10^6-SUMPRODUCT(RevReq_BaseCase!V$767:V$791,N(RevReq_BaseCase!$A$767:$A$791=$D49 ))/10^6+('RevReq_ExitCase_(2021)'!V$154-RevReq_BaseCase!V$154)/10^6 -> 0 | O26: =SUMPRODUCT('RevReq_ExitCase_(2021)'!W$767:W$791,N('RevReq_ExitCase_(2021)'!$A$767:$A$791=$D49 ))/10^6-SUMPRODUCT(RevReq_BaseCase!W$767:W$791,N(RevReq_BaseCase!$A$767:$A$791=$D49 ))/10^6+('RevReq_ExitCase_(2021)'!W$154-RevReq_BaseCase!W$154)/10^6 -> 0 | P26: =SUMPRODUCT('RevReq_ExitCase_(2021)'!X$767:X$791,N('RevReq_ExitCase_(2021)'!$A$767:$A$791=$D49 ))/10^6-SUMPRODUCT(RevReq_BaseCase!X$767:X$791,N(RevReq_BaseCase!$A$767:$A$791=$D49 ))/10^6+('RevReq_ExitCase_(2021)'!X$154-RevReq_BaseCase!X$154)/10^6 -> 0 | Q26: =SUMPRODUCT('RevReq_ExitCase_(2021)'!Y$767:Y$791,N('RevReq_ExitCase_(2021)'!$A$767:$A$791=$D49 ))/10^6-SUMPRODUCT(RevReq_BaseCase!Y$767:Y$791,N(RevReq_BaseCase!$A$767:$A$791=$D49 ))/10^6+('RevReq_ExitCase_(2021)'!Y$154-RevReq_BaseCase!Y$154)/10^6 -> 0 | R26: =SUMPRODUCT('RevReq_ExitCase_(2021)'!Z$767:Z$791,N('RevReq_ExitCase_(2021)'!$A$767:$A$791=$D49 ))/10^6-SUMPRODUCT(RevReq_BaseCase!Z$767:Z$791,N(RevReq_BaseCase!$A$767:$A$791=$D49 ))/10^6+('RevReq_ExitCase_(2021)'!Z$154-RevReq_BaseCase!Z$154)/10^6 -> 0 | S26: =SUMPRODUCT('RevReq_ExitCase_(2021)'!AA$767:AA$791,N('RevReq_ExitCase_(2021)'!$A$767:$A$791=$D49 ))/10^6-SUMPRODUCT(RevReq_BaseCase!AA$767:AA$791,N(RevReq_BaseCase!$A$767:$A$791=$D49 ))/10^6+('RevReq_ExitCase_(2021)'!AA$154-RevReq_BaseCase!AA$154)/10^6 -> 0 | T26: =SUMPRODUCT('RevReq_ExitCase_(2021)'!AB$767:AB$791,N('RevReq_ExitCase_(2021)'!$A$767:$A$791=$D49 ))/10^6-SUMPRODUCT(RevReq_BaseCase!AB$767:AB$791,N(RevReq_BaseCase!$A$767:$A$791=$D49 ))/10^6+('RevReq_ExitCase_(2021)'!AB$154-RevReq_BaseCase!AB$154)/10^6 -> 0 | U26: =SUMPRODUCT('RevReq_ExitCase_(2021)'!AC$767:AC$791,N('RevReq_ExitCase_(2021)'!$A$767:$A$791=$D49 ))/10^6-SUMPRODUCT(RevReq_BaseCase!AC$767:AC$791,N(RevReq_BaseCase!$A$767:$A$791=$D49 ))/10^6+('RevReq_ExitCase_(2021)'!AC$154-RevReq_BaseCase!AC$154)/10^6 -> 0 | V26: =SUMPRODUCT('RevReq_ExitCase_(2021)'!AD$767:AD$791,N('RevReq_ExitCase_(2021)'!$A$767:$A$791=$D49 ))/10^6-SUMPRODUCT(RevReq_BaseCase!AD$767:AD$791,N(RevReq_BaseCase!$A$767:$A$791=$D49 ))/10^6+('RevReq_ExitCase_(2021)'!AD$154-RevReq_BaseCase!AD$154)/10^6 -> 0 | W26: =SUMPRODUCT('RevReq_ExitCase_(2021)'!AE$767:AE$791,N('RevReq_ExitCase_(2021)'!$A$767:$A$791=$D49 ))/10^6-SUMPRODUCT(RevReq_BaseCase!AE$767:AE$791,N(RevReq_BaseCase!$A$767:$A$791=$D49 ))/10^6+('RevReq_ExitCase_(2021)'!AE$154-RevReq_BaseCase!AE$154)/10^6 -> 0 | X26: =SUMPRODUCT('RevReq_ExitCase_(2021)'!AF$767:AF$791,N('RevReq_ExitCase_(2021)'!$A$767:$A$791=$D49 ))/10^6-SUMPRODUCT(RevReq_BaseCase!AF$767:AF$791,N(RevReq_BaseCase!$A$767:$A$791=$D49 ))/10^6+('RevReq_ExitCase_(2021)'!AF$154-RevReq_BaseCase!AF$154)/10^6 -> 0 | Y26: =SUMPRODUCT('RevReq_ExitCase_(2021)'!AG$767:AG$791,N('RevReq_ExitCase_(2021)'!$A$767:$A$791=$D49 ))/10^6-SUMPRODUCT(RevReq_BaseCase!AG$767:AG$791,N(RevReq_BaseCase!$A$767:$A$791=$D49 ))/10^6+('RevReq_ExitCase_(2021)'!AG$154-RevReq_BaseCase!AG$154)/10^6 -> 0 | Z26: =SUMPRODUCT('RevReq_ExitCase_(2021)'!AH$767:AH$791,N('RevReq_ExitCase_(2021)'!$A$767:$A$791=$D49 ))/10^6-SUMPRODUCT(RevReq_BaseCase!AH$767:AH$791,N(RevReq_BaseCase!$A$767:$A$791=$D49 ))/10^6+('RevReq_ExitCase_(2021)'!AH$154-RevReq_BaseCase!AH$154)/10^6 -> 0 | AA26: =SUMPRODUCT('RevReq_ExitCase_(2021)'!AI$767:AI$791,N('RevReq_ExitCase_(2021)'!$A$767:$A$791=$D49 ))/10^6-SUMPRODUCT(RevReq_BaseCase!AI$767:AI$791,N(RevReq_BaseCase!$A$767:$A$791=$D49 ))/10^6+('RevReq_ExitCase_(2021)'!AI$154-RevReq_BaseCase!AI$154)/10^6 -> 0 | AB26: =SUMPRODUCT('RevReq_ExitCase_(2021)'!AJ$767:AJ$791,N('RevReq_ExitCase_(2021)'!$A$767:$A$791=$D49 ))/10^6-SUMPRODUCT(RevReq_BaseCase!AJ$767:AJ$791,N(RevReq_BaseCase!$A$767:$A$791=$D49 ))/10^6+('RevReq_ExitCase_(2021)'!AJ$154-RevReq_BaseCase!AJ$154)/10^6 -> 0 | AC26: =SUMPRODUCT('RevReq_ExitCase_(2021)'!AK$767:AK$791,N('RevReq_ExitCase_(2021)'!$A$767:$A$791=$D49 ))/10^6-SUMPRODUCT(RevReq_BaseCase!AK$767:AK$791,N(RevReq_BaseCase!$A$767:$A$791=$D49 ))/10^6+('RevReq_ExitCase_(2021)'!AK$154-RevReq_BaseCase!AK$154)/10^6 -> 0 | AD26: =SUMPRODUCT('RevReq_ExitCase_(2021)'!AL$767:AL$791,N('RevReq_ExitCase_(2021)'!$A$767:$A$791=$D49 ))/10^6-SUMPRODUCT(RevReq_BaseCase!AL$767:AL$791,N(RevReq_BaseCase!$A$767:$A$791=$D49 ))/10^6+('RevReq_ExitCase_(2021)'!AL$154-RevReq_BaseCase!AL$154)/10^6 -> 0 | AE26: =SUMPRODUCT('RevReq_ExitCase_(2021)'!AM$767:AM$791,N('RevReq_ExitCase_(2021)'!$A$767:$A$791=$D49 ))/10^6-SUMPRODUCT(RevReq_BaseCase!AM$767:AM$791,N(RevReq_BaseCase!$A$767:$A$791=$D49 ))/10^6+('RevReq_ExitCase_(2021)'!AM$154-RevReq_BaseCase!AM$154)/10^6 -> 0 | AF26: =SUMPRODUCT('RevReq_ExitCase_(2021)'!AN$767:AN$791,N('RevReq_ExitCase_(2021)'!$A$767:$A$791=$D49 ))/10^6-SUMPRODUCT(RevReq_BaseCase!AN$767:AN$791,N(RevReq_BaseCase!$A$767:$A$791=$D49 ))/10^6+('RevReq_ExitCase_(2021)'!AN$154-RevReq_BaseCase!AN$154)/10^6 -> 0 | AG26: =SUMPRODUCT('RevReq_ExitCase_(2021)'!AO$767:AO$791,N('RevReq_ExitCase_(2021)'!$A$767:$A$791=$D49 ))/10^6-SUMPRODUCT(RevReq_BaseCase!AO$767:AO$791,N(RevReq_BaseCase!$A$767:$A$791=$D49 ))/10^6+('RevReq_ExitCase_(2021)'!AO$154-RevReq_BaseCase!AO$154)/10^6 -> 0 | AH26: =SUMPRODUCT('RevReq_ExitCase_(2021)'!AP$767:AP$791,N('RevReq_ExitCase_(2021)'!$A$767:$A$791=$D49 ))/10^6-SUMPRODUCT(RevReq_BaseCase!AP$767:AP$791,N(RevReq_BaseCase!$A$767:$A$791=$D49 ))/10^6+('RevReq_ExitCase_(2021)'!AP$154-RevReq_BaseCase!AP$154)/10^6 -> 0 | AI26: =SUMPRODUCT('RevReq_ExitCase_(2021)'!AQ$767:AQ$791,N('RevReq_ExitCase_(2021)'!$A$767:$A$791=$D49 ))/10^6-SUMPRODUCT(RevReq_BaseCase!AQ$767:AQ$791,N(RevReq_BaseCase!$A$767:$A$791=$D49 ))/10^6+('RevReq_ExitCase_(2021)'!AQ$154-RevReq_BaseCase!AQ$154)/10^6 -> 0 | AJ26: =SUMPRODUCT('RevReq_ExitCase_(2021)'!AR$767:AR$791,N('RevReq_ExitCase_(2021)'!$A$767:$A$791=$D49 ))/10^6-SUMPRODUCT(RevReq_BaseCase!AR$767:AR$791,N(RevReq_BaseCase!$A$767:$A$791=$D49 ))/10^6+('RevReq_ExitCase_(2021)'!AR$154-RevReq_BaseCase!AR$154)/10^6 -> 0 | AK26: =SUMPRODUCT('RevReq_ExitCase_(2021)'!AS$767:AS$791,N('RevReq_ExitCase_(2021)'!$A$767:$A$791=$D49 ))/10^6-SUMPRODUCT(RevReq_BaseCase!AS$767:AS$791,N(RevReq_BaseCase!$A$767:$A$791=$D49 ))/10^6+('RevReq_ExitCase_(2021)'!AS$154-RevReq_BaseCase!AS$154)/10^6 -> 0 | AL26: =SUMPRODUCT('RevReq_ExitCase_(2021)'!AT$767:AT$791,N('RevReq_ExitCase_(2021)'!$A$767:$A$791=$D49 ))/10^6-SUMPRODUCT(RevReq_BaseCase!AT$767:AT$791,N(RevReq_BaseCase!$A$767:$A$791=$D49 ))/10^6+('RevReq_ExitCase_(2021)'!AT$154-RevReq_BaseCase!AT$154)/10^6 -> 0 | AM26: =SUMPRODUCT('RevReq_ExitCase_(2021)'!AU$767:AU$791,N('RevReq_ExitCase_(2021)'!$A$767:$A$791=$D49 ))/10^6-SUMPRODUCT(RevReq_BaseCase!AU$767:AU$791,N(RevReq_BaseCase!$A$767:$A$791=$D49 ))/10^6+('RevReq_ExitCase_(2021)'!AU$154-RevReq_BaseCase!AU$154)/10^6 -> 0 | AN26: =SUMPRODUCT('RevReq_ExitCase_(2021)'!AV$767:AV$791,N('RevReq_ExitCase_(2021)'!$A$767:$A$791=$D49 ))/10^6-SUMPRODUCT(RevReq_BaseCase!AV$767:AV$791,N(RevReq_BaseCase!$A$767:$A$791=$D49 ))/10^6+('RevReq_ExitCase_(2021)'!AV$154-RevReq_BaseCase!AV$154)/10^6 -> 0 | AO26: =SUMPRODUCT('RevReq_ExitCase_(2021)'!AW$767:AW$791,N('RevReq_ExitCase_(2021)'!$A$767:$A$791=$D49 ))/10^6-SUMPRODUCT(RevReq_BaseCase!AW$767:AW$791,N(RevReq_BaseCase!$A$767:$A$791=$D49 ))/10^6+('RevReq_ExitCase_(2021)'!AW$154-RevReq_BaseCase!AW$154)/10^6 -> 0 | AP26: =SUMPRODUCT('RevReq_ExitCase_(2021)'!AX$767:AX$791,N('RevReq_ExitCase_(2021)'!$A$767:$A$791=$D49 ))/10^6-SUMPRODUCT(RevReq_BaseCase!AX$767:AX$791,N(RevReq_BaseCase!$A$767:$A$791=$D49 ))/10^6+('RevReq_ExitCase_(2021)'!AX$154-RevReq_BaseCase!AX$154)/10^6 -> 0 | AQ26: =SUMPRODUCT('RevReq_ExitCase_(2021)'!AY$767:AY$791,N('RevReq_ExitCase_(2021)'!$A$767:$A$791=$D49 ))/10^6-SUMPRODUCT(RevReq_BaseCase!AY$767:AY$791,N(RevReq_BaseCase!$A$767:$A$791=$D49 ))/10^6+('RevReq_ExitCase_(2021)'!AY$154-RevReq_BaseCase!AY$154)/10^6 -> 0 | AS26: 0
B27: System Impact(9) | D27: Clause | E27: -142.2880261 | G27: 29.91106609 | I27: =SUMPRODUCT('RevReq_ExitCase_(2021)'!Q$163:Q$167,N('RevReq_ExitCase_(2021)'!$A$163:$A$167=$D50 ))/10^6-SUMPRODUCT(RevReq_BaseCase!Q$163:Q$167,N(RevReq_BaseCase!$A$163:$A$167=$D50 ))/10^6 -> 13.543415 | J27: =SUMPRODUCT('RevReq_ExitCase_(2021)'!R$163:R$167,N('RevReq_ExitCase_(2021)'!$A$163:$A$167=$D50 ))/10^6-SUMPRODUCT(RevReq_BaseCase!R$163:R$167,N(RevReq_BaseCase!$A$163:$A$167=$D50 ))/10^6 -> 10 | K27: =SUMPRODUCT('RevReq_ExitCase_(2021)'!S$163:S$167,N('RevReq_ExitCase_(2021)'!$A$163:$A$167=$D50 ))/10^6-SUMPRODUCT(RevReq_BaseCase!S$163:S$167,N(RevReq_BaseCase!$A$163:$A$167=$D50 ))/10^6 -> 0.48 | L27: =SUMPRODUCT('RevReq_ExitCase_(2021)'!T$163:T$167,N('RevReq_ExitCase_(2021)'!$A$163:$A$167=$D50 ))/10^6-SUMPRODUCT(RevReq_BaseCase!T$163:T$167,N(RevReq_BaseCase!$A$163:$A$167=$D50 ))/10^6 -> 0.07 | M27: =SUMPRODUCT('RevReq_ExitCase_(2021)'!U$163:U$167,N('RevReq_ExitCase_(2021)'!$A$163:$A$167=$D50 ))/10^6-SUMPRODUCT(RevReq_BaseCase!U$163:U$167,N(RevReq_BaseCase!$A$163:$A$167=$D50 ))/10^6 -> -0.92 | N27: =SUMPRODUCT('RevReq_ExitCase_(2021)'!V$163:V$167,N('RevReq_ExitCase_(2021)'!$A$163:$A$167=$D50 ))/10^6-SUMPRODUCT(RevReq_BaseCase!V$163:V$167,N(RevReq_BaseCase!$A$163:$A$167=$D50 ))/10^6 -> -0.67 | O27: =SUMPRODUCT('RevReq_ExitCase_(2021)'!W$163:W$167,N('RevReq_ExitCase_(2021)'!$A$163:$A$167=$D50 ))/10^6-SUMPRODUCT(RevReq_BaseCase!W$163:W$167,N(RevReq_BaseCase!$A$163:$A$167=$D50 ))/10^6 -> -2.11 | P27: =SUMPRODUCT('RevReq_ExitCase_(2021)'!X$163:X$167,N('RevReq_ExitCase_(2021)'!$A$163:$A$167=$D50 ))/10^6-SUMPRODUCT(RevReq_BaseCase!X$163:X$167,N(RevReq_BaseCase!$A$163:$A$167=$D50 ))/10^6 -> 8.775281792 | Q27: =SUMPRODUCT('RevReq_ExitCase_(2021)'!Y$163:Y$167,N('RevReq_ExitCase_(2021)'!$A$163:$A$167=$D50 ))/10^6-SUMPRODUCT(RevReq_BaseCase!Y$163:Y$167,N(RevReq_BaseCase!$A$163:$A$167=$D50 ))/10^6 -> 9.895281792 | R27: =SUMPRODUCT('RevReq_ExitCase_(2021)'!Z$163:Z$167,N('RevReq_ExitCase_(2021)'!$A$163:$A$167=$D50 ))/10^6-SUMPRODUCT(RevReq_BaseCase!Z$163:Z$167,N(RevReq_BaseCase!$A$163:$A$167=$D50 ))/10^6 -> 20.96745885 | S27: =SUMPRODUCT('RevReq_ExitCase_(2021)'!AA$163:AA$167,N('RevReq_ExitCase_(2021)'!$A$163:$A$167=$D50 ))/10^6-SUMPRODUCT(RevReq_BaseCase!AA$163:AA$167,N(RevReq_BaseCase!$A$163:$A$167=$D50 ))/10^6 -> 9.055281792 | T27: =SUMPRODUCT('RevReq_ExitCase_(2021)'!AB$163:AB$167,N('RevReq_ExitCase_(2021)'!$A$163:$A$167=$D50 ))/10^6-SUMPRODUCT(RevReq_BaseCase!AB$163:AB$167,N(RevReq_BaseCase!$A$163:$A$167=$D50 ))/10^6 -> 9.015281792 | U27: =SUMPRODUCT('RevReq_ExitCase_(2021)'!AC$163:AC$167,N('RevReq_ExitCase_(2021)'!$A$163:$A$167=$D50 ))/10^6-SUMPRODUCT(RevReq_BaseCase!AC$163:AC$167,N(RevReq_BaseCase!$A$163:$A$167=$D50 ))/10^6 -> 18.52377348 | V27: =SUMPRODUCT('RevReq_ExitCase_(2021)'!AD$163:AD$167,N('RevReq_ExitCase_(2021)'!$A$163:$A$167=$D50 ))/10^6-SUMPRODUCT(RevReq_BaseCase!AD$163:AD$167,N(RevReq_BaseCase!$A$163:$A$167=$D50 ))/10^6 -> 7.625281792 | W27: =SUMPRODUCT('RevReq_ExitCase_(2021)'!AE$163:AE$167,N('RevReq_ExitCase_(2021)'!$A$163:$A$167=$D50 ))/10^6-SUMPRODUCT(RevReq_BaseCase!AE$163:AE$167,N(RevReq_BaseCase!$A$163:$A$167=$D50 ))/10^6 -> 5.865281792 | X27: =SUMPRODUCT('RevReq_ExitCase_(2021)'!AF$163:AF$167,N('RevReq_ExitCase_(2021)'!$A$163:$A$167=$D50 ))/10^6-SUMPRODUCT(RevReq_BaseCase!AF$163:AF$167,N(RevReq_BaseCase!$A$163:$A$167=$D50 ))/10^6 -> 1.645281792 | Y27: =SUMPRODUCT('RevReq_ExitCase_(2021)'!AG$163:AG$167,N('RevReq_ExitCase_(2021)'!$A$163:$A$167=$D50 ))/10^6-SUMPRODUCT(RevReq_BaseCase!AG$163:AG$167,N(RevReq_BaseCase!$A$163:$A$167=$D50 ))/10^6 -> 0.7452817917 | Z27: =SUMPRODUCT('RevReq_ExitCase_(2021)'!AH$163:AH$167,N('RevReq_ExitCase_(2021)'!$A$163:$A$167=$D50 ))/10^6-SUMPRODUCT(RevReq_BaseCase!AH$163:AH$167,N(RevReq_BaseCase!$A$163:$A$167=$D50 ))/10^6 -> -0.9847182083 | AA27: =SUMPRODUCT('RevReq_ExitCase_(2021)'!AI$163:AI$167,N('RevReq_ExitCase_(2021)'!$A$163:$A$167=$D50 ))/10^6-SUMPRODUCT(RevReq_BaseCase!AI$163:AI$167,N(RevReq_BaseCase!$A$163:$A$167=$D50 ))/10^6 -> -3.034718208 | AB27: =SUMPRODUCT('RevReq_ExitCase_(2021)'!AJ$163:AJ$167,N('RevReq_ExitCase_(2021)'!$A$163:$A$167=$D50 ))/10^6-SUMPRODUCT(RevReq_BaseCase!AJ$163:AJ$167,N(RevReq_BaseCase!$A$163:$A$167=$D50 ))/10^6 -> -2.354718208 | AC27: =SUMPRODUCT('RevReq_ExitCase_(2021)'!AK$163:AK$167,N('RevReq_ExitCase_(2021)'!$A$163:$A$167=$D50 ))/10^6-SUMPRODUCT(RevReq_BaseCase!AK$163:AK$167,N(RevReq_BaseCase!$A$163:$A$167=$D50 ))/10^6 -> -4.884718208 | AD27: =SUMPRODUCT('RevReq_ExitCase_(2021)'!AL$163:AL$167,N('RevReq_ExitCase_(2021)'!$A$163:$A$167=$D50 ))/10^6-SUMPRODUCT(RevReq_BaseCase!AL$163:AL$167,N(RevReq_BaseCase!$A$163:$A$167=$D50 ))/10^6 -> -6.604718208 | AE27: =SUMPRODUCT('RevReq_ExitCase_(2021)'!AM$163:AM$167,N('RevReq_ExitCase_(2021)'!$A$163:$A$167=$D50 ))/10^6-SUMPRODUCT(RevReq_BaseCase!AM$163:AM$167,N(RevReq_BaseCase!$A$163:$A$167=$D50 ))/10^6 -> -7.004718208 | AF27: =SUMPRODUCT('RevReq_ExitCase_(2021)'!AN$163:AN$167,N('RevReq_ExitCase_(2021)'!$A$163:$A$167=$D50 ))/10^6-SUMPRODUCT(RevReq_BaseCase!AN$163:AN$167,N(RevReq_BaseCase!$A$163:$A$167=$D50 ))/10^6 -> -7.684718208 | AG27: =SUMPRODUCT('RevReq_ExitCase_(2021)'!AO$163:AO$167,N('RevReq_ExitCase_(2021)'!$A$163:$A$167=$D50 ))/10^6-SUMPRODUCT(RevReq_BaseCase!AO$163:AO$167,N(RevReq_BaseCase!$A$163:$A$167=$D50 ))/10^6 -> -11.03471821 | AH27: =SUMPRODUCT('RevReq_ExitCase_(2021)'!AP$163:AP$167,N('RevReq_ExitCase_(2021)'!$A$163:$A$167=$D50 ))/10^6-SUMPRODUCT(RevReq_BaseCase!AP$163:AP$167,N(RevReq_BaseCase!$A$163:$A$167=$D50 ))/10^6 -> -16.90471821 | AI27: =SUMPRODUCT('RevReq_ExitCase_(2021)'!AQ$163:AQ$167,N('RevReq_ExitCase_(2021)'!$A$163:$A$167=$D50 ))/10^6-SUMPRODUCT(RevReq_BaseCase!AQ$163:AQ$167,N(RevReq_BaseCase!$A$163:$A$167=$D50 ))/10^6 -> -19.23471821 | AJ27: =SUMPRODUCT('RevReq_ExitCase_(2021)'!AR$163:AR$167,N('RevReq_ExitCase_(2021)'!$A$163:$A$167=$D50 ))/10^6-SUMPRODUCT(RevReq_BaseCase!AR$163:AR$167,N(RevReq_BaseCase!$A$163:$A$167=$D50 ))/10^6 -> -17.32471821 | AK27: =SUMPRODUCT('RevReq_ExitCase_(2021)'!AS$163:AS$167,N('RevReq_ExitCase_(2021)'!$A$163:$A$167=$D50 ))/10^6-SUMPRODUCT(RevReq_BaseCase!AS$163:AS$167,N(RevReq_BaseCase!$A$163:$A$167=$D50 ))/10^6 -> -15.33471821 | AL27: =SUMPRODUCT('RevReq_ExitCase_(2021)'!AT$163:AT$167,N('RevReq_ExitCase_(2021)'!$A$163:$A$167=$D50 ))/10^6-SUMPRODUCT(RevReq_BaseCase!AT$163:AT$167,N(RevReq_BaseCase!$A$163:$A$167=$D50 ))/10^6 -> -23.73471821 | AM27: =SUMPRODUCT('RevReq_ExitCase_(2021)'!AU$163:AU$167,N('RevReq_ExitCase_(2021)'!$A$163:$A$167=$D50 ))/10^6-SUMPRODUCT(RevReq_BaseCase!AU$163:AU$167,N(RevReq_BaseCase!$A$163:$A$167=$D50 ))/10^6 -> -23.73471821 | AN27: =SUMPRODUCT('RevReq_ExitCase_(2021)'!AV$163:AV$167,N('RevReq_ExitCase_(2021)'!$A$163:$A$167=$D50 ))/10^6-SUMPRODUCT(RevReq_BaseCase!AV$163:AV$167,N(RevReq_BaseCase!$A$163:$A$167=$D50 ))/10^6 -> -23.73471821 | AO27: =SUMPRODUCT('RevReq_ExitCase_(2021)'!AW$163:AW$167,N('RevReq_ExitCase_(2021)'!$A$163:$A$167=$D50 ))/10^6-SUMPRODUCT(RevReq_BaseCase!AW$163:AW$167,N(RevReq_BaseCase!$A$163:$A$167=$D50 ))/10^6 -> -23.73471821 | AP27: =SUMPRODUCT('RevReq_ExitCase_(2021)'!AX$163:AX$167,N('RevReq_ExitCase_(2021)'!$A$163:$A$167=$D50 ))/10^6-SUMPRODUCT(RevReq_BaseCase!AX$163:AX$167,N(RevReq_BaseCase!$A$163:$A$167=$D50 ))/10^6 -> -23.73471821 | AQ27: =SUMPRODUCT('RevReq_ExitCase_(2021)'!AY$163:AY$167,N('RevReq_ExitCase_(2021)'!$A$163:$A$167=$D50 ))/10^6-SUMPRODUCT(RevReq_BaseCase!AY$163:AY$167,N(RevReq_BaseCase!$A$163:$A$167=$D50 ))/10^6 -> -23.73471821 | AS27: -246.5390824
B28: Depreciation and Amortization(10) | D28: Clause | E28: 41.387502 | G28: 50.08110709 | I28: =SUMPRODUCT('RevReq_ExitCase_(2021)'!Q$232:Q$256,N('RevReq_ExitCase_(2021)'!$A$232:$A$256=$D51 ))/10^6-SUMPRODUCT(RevReq_BaseCase!Q$232:Q$256,N(RevReq_BaseCase!$A$232:$A$256=$D51 ))/10^6 -> 17.0674139 | J28: =SUMPRODUCT('RevReq_ExitCase_(2021)'!R$232:R$256,N('RevReq_ExitCase_(2021)'!$A$232:$A$256=$D51 ))/10^6-SUMPRODUCT(RevReq_BaseCase!R$232:R$256,N(RevReq_BaseCase!$A$232:$A$256=$D51 ))/10^6 -> 7.974449181 | K28: =SUMPRODUCT('RevReq_ExitCase_(2021)'!S$232:S$256,N('RevReq_ExitCase_(2021)'!$A$232:$A$256=$D51 ))/10^6-SUMPRODUCT(RevReq_BaseCase!S$232:S$256,N(RevReq_BaseCase!$A$232:$A$256=$D51 ))/10^6 -> 9.403611111 | L28: =SUMPRODUCT('RevReq_ExitCase_(2021)'!T$232:T$256,N('RevReq_ExitCase_(2021)'!$A$232:$A$256=$D51 ))/10^6-SUMPRODUCT(RevReq_BaseCase!T$232:T$256,N(RevReq_BaseCase!$A$232:$A$256=$D51 ))/10^6 -> 12.53190888 | M28: =SUMPRODUCT('RevReq_ExitCase_(2021)'!U$232:U$256,N('RevReq_ExitCase_(2021)'!$A$232:$A$256=$D51 ))/10^6-SUMPRODUCT(RevReq_BaseCase!U$232:U$256,N(RevReq_BaseCase!$A$232:$A$256=$D51 ))/10^6 -> 3.095075688 | N28: =SUMPRODUCT('RevReq_ExitCase_(2021)'!V$232:V$256,N('RevReq_ExitCase_(2021)'!$A$232:$A$256=$D51 ))/10^6-SUMPRODUCT(RevReq_BaseCase!V$232:V$256,N(RevReq_BaseCase!$A$232:$A$256=$D51 ))/10^6 -> 3.086308974 | O28: =SUMPRODUCT('RevReq_ExitCase_(2021)'!W$232:W$256,N('RevReq_ExitCase_(2021)'!$A$232:$A$256=$D51 ))/10^6-SUMPRODUCT(RevReq_BaseCase!W$232:W$256,N(RevReq_BaseCase!$A$232:$A$256=$D51 ))/10^6 -> 3.077366925 | P28: =SUMPRODUCT('RevReq_ExitCase_(2021)'!X$232:X$256,N('RevReq_ExitCase_(2021)'!$A$232:$A$256=$D51 ))/10^6-SUMPRODUCT(RevReq_BaseCase!X$232:X$256,N(RevReq_BaseCase!$A$232:$A$256=$D51 ))/10^6 -> 3.068246036 | Q28: =SUMPRODUCT('RevReq_ExitCase_(2021)'!Y$232:Y$256,N('RevReq_ExitCase_(2021)'!$A$232:$A$256=$D51 ))/10^6-SUMPRODUCT(RevReq_BaseCase!Y$232:Y$256,N(RevReq_BaseCase!$A$232:$A$256=$D51 ))/10^6 -> 3.058942729 | R28: =SUMPRODUCT('RevReq_ExitCase_(2021)'!Z$232:Z$256,N('RevReq_ExitCase_(2021)'!$A$232:$A$256=$D51 ))/10^6-SUMPRODUCT(RevReq_BaseCase!Z$232:Z$256,N(RevReq_BaseCase!$A$232:$A$256=$D51 ))/10^6 -> 3.049453355 | S28: =SUMPRODUCT('RevReq_ExitCase_(2021)'!AA$232:AA$256,N('RevReq_ExitCase_(2021)'!$A$232:$A$256=$D51 ))/10^6-SUMPRODUCT(RevReq_BaseCase!AA$232:AA$256,N(RevReq_BaseCase!$A$232:$A$256=$D51 ))/10^6 -> 3.039774194 | T28: =SUMPRODUCT('RevReq_ExitCase_(2021)'!AB$232:AB$256,N('RevReq_ExitCase_(2021)'!$A$232:$A$256=$D51 ))/10^6-SUMPRODUCT(RevReq_BaseCase!AB$232:AB$256,N(RevReq_BaseCase!$A$232:$A$256=$D51 ))/10^6 -> 3.02990145 | U28: =SUMPRODUCT('RevReq_ExitCase_(2021)'!AC$232:AC$256,N('RevReq_ExitCase_(2021)'!$A$232:$A$256=$D51 ))/10^6-SUMPRODUCT(RevReq_BaseCase!AC$232:AC$256,N(RevReq_BaseCase!$A$232:$A$256=$D51 ))/10^6 -> 3.019831252 | V28: =SUMPRODUCT('RevReq_ExitCase_(2021)'!AD$232:AD$256,N('RevReq_ExitCase_(2021)'!$A$232:$A$256=$D51 ))/10^6-SUMPRODUCT(RevReq_BaseCase!AD$232:AD$256,N(RevReq_BaseCase!$A$232:$A$256=$D51 ))/10^6 -> -1.352811039 | W28: =SUMPRODUCT('RevReq_ExitCase_(2021)'!AE$232:AE$256,N('RevReq_ExitCase_(2021)'!$A$232:$A$256=$D51 ))/10^6-SUMPRODUCT(RevReq_BaseCase!AE$232:AE$256,N(RevReq_BaseCase!$A$232:$A$256=$D51 ))/10^6 -> -1.363288074 | X28: =SUMPRODUCT('RevReq_ExitCase_(2021)'!AF$232:AF$256,N('RevReq_ExitCase_(2021)'!$A$232:$A$256=$D51 ))/10^6-SUMPRODUCT(RevReq_BaseCase!AF$232:AF$256,N(RevReq_BaseCase!$A$232:$A$256=$D51 ))/10^6 -> -1.37397465 | Y28: =SUMPRODUCT('RevReq_ExitCase_(2021)'!AG$232:AG$256,N('RevReq_ExitCase_(2021)'!$A$232:$A$256=$D51 ))/10^6-SUMPRODUCT(RevReq_BaseCase!AG$232:AG$256,N(RevReq_BaseCase!$A$232:$A$256=$D51 ))/10^6 -> -1.384874957 | Z28: =SUMPRODUCT('RevReq_ExitCase_(2021)'!AH$232:AH$256,N('RevReq_ExitCase_(2021)'!$A$232:$A$256=$D51 ))/10^6-SUMPRODUCT(RevReq_BaseCase!AH$232:AH$256,N(RevReq_BaseCase!$A$232:$A$256=$D51 ))/10^6 -> -1.39599327 | AA28: =SUMPRODUCT('RevReq_ExitCase_(2021)'!AI$232:AI$256,N('RevReq_ExitCase_(2021)'!$A$232:$A$256=$D51 ))/10^6-SUMPRODUCT(RevReq_BaseCase!AI$232:AI$256,N(RevReq_BaseCase!$A$232:$A$256=$D51 ))/10^6 -> -1.40733395 | AB28: =SUMPRODUCT('RevReq_ExitCase_(2021)'!AJ$232:AJ$256,N('RevReq_ExitCase_(2021)'!$A$232:$A$256=$D51 ))/10^6-SUMPRODUCT(RevReq_BaseCase!AJ$232:AJ$256,N(RevReq_BaseCase!$A$232:$A$256=$D51 ))/10^6 -> -1.418901443 | AC28: =SUMPRODUCT('RevReq_ExitCase_(2021)'!AK$232:AK$256,N('RevReq_ExitCase_(2021)'!$A$232:$A$256=$D51 ))/10^6-SUMPRODUCT(RevReq_BaseCase!AK$232:AK$256,N(RevReq_BaseCase!$A$232:$A$256=$D51 ))/10^6 -> -1.430700286 | AD28: =SUMPRODUCT('RevReq_ExitCase_(2021)'!AL$232:AL$256,N('RevReq_ExitCase_(2021)'!$A$232:$A$256=$D51 ))/10^6-SUMPRODUCT(RevReq_BaseCase!AL$232:AL$256,N(RevReq_BaseCase!$A$232:$A$256=$D51 ))/10^6 -> -1.442735105 | AE28: =SUMPRODUCT('RevReq_ExitCase_(2021)'!AM$232:AM$256,N('RevReq_ExitCase_(2021)'!$A$232:$A$256=$D51 ))/10^6-SUMPRODUCT(RevReq_BaseCase!AM$232:AM$256,N(RevReq_BaseCase!$A$232:$A$256=$D51 ))/10^6 -> -1.455010622 | AF28: =SUMPRODUCT('RevReq_ExitCase_(2021)'!AN$232:AN$256,N('RevReq_ExitCase_(2021)'!$A$232:$A$256=$D51 ))/10^6-SUMPRODUCT(RevReq_BaseCase!AN$232:AN$256,N(RevReq_BaseCase!$A$232:$A$256=$D51 ))/10^6 -> -1.467531648 | AG28: =SUMPRODUCT('RevReq_ExitCase_(2021)'!AO$232:AO$256,N('RevReq_ExitCase_(2021)'!$A$232:$A$256=$D51 ))/10^6-SUMPRODUCT(RevReq_BaseCase!AO$232:AO$256,N(RevReq_BaseCase!$A$232:$A$256=$D51 ))/10^6 -> -1.480303095 | AH28: =SUMPRODUCT('RevReq_ExitCase_(2021)'!AP$232:AP$256,N('RevReq_ExitCase_(2021)'!$A$232:$A$256=$D51 ))/10^6-SUMPRODUCT(RevReq_BaseCase!AP$232:AP$256,N(RevReq_BaseCase!$A$232:$A$256=$D51 ))/10^6 -> -1.493329971 | AI28: =SUMPRODUCT('RevReq_ExitCase_(2021)'!AQ$232:AQ$256,N('RevReq_ExitCase_(2021)'!$A$232:$A$256=$D51 ))/10^6-SUMPRODUCT(RevReq_BaseCase!AQ$232:AQ$256,N(RevReq_BaseCase!$A$232:$A$256=$D51 ))/10^6 -> -1.506617385 | AJ28: =SUMPRODUCT('RevReq_ExitCase_(2021)'!AR$232:AR$256,N('RevReq_ExitCase_(2021)'!$A$232:$A$256=$D51 ))/10^6-SUMPRODUCT(RevReq_BaseCase!AR$232:AR$256,N(RevReq_BaseCase!$A$232:$A$256=$D51 ))/10^6 -> -1.520170547 | AK28: =SUMPRODUCT('RevReq_ExitCase_(2021)'!AS$232:AS$256,N('RevReq_ExitCase_(2021)'!$A$232:$A$256=$D51 ))/10^6-SUMPRODUCT(RevReq_BaseCase!AS$232:AS$256,N(RevReq_BaseCase!$A$232:$A$256=$D51 ))/10^6 -> -1.533994772 | AL28: =SUMPRODUCT('RevReq_ExitCase_(2021)'!AT$232:AT$256,N('RevReq_ExitCase_(2021)'!$A$232:$A$256=$D51 ))/10^6-SUMPRODUCT(RevReq_BaseCase!AT$232:AT$256,N(RevReq_BaseCase!$A$232:$A$256=$D51 ))/10^6 -> -1.548095481 | AM28: =SUMPRODUCT('RevReq_ExitCase_(2021)'!AU$232:AU$256,N('RevReq_ExitCase_(2021)'!$A$232:$A$256=$D51 ))/10^6-SUMPRODUCT(RevReq_BaseCase!AU$232:AU$256,N(RevReq_BaseCase!$A$232:$A$256=$D51 ))/10^6 -> -1.562478205 | AN28: =SUMPRODUCT('RevReq_ExitCase_(2021)'!AV$232:AV$256,N('RevReq_ExitCase_(2021)'!$A$232:$A$256=$D51 ))/10^6-SUMPRODUCT(RevReq_BaseCase!AV$232:AV$256,N(RevReq_BaseCase!$A$232:$A$256=$D51 ))/10^6 -> -1.577148583 | AO28: =SUMPRODUCT('RevReq_ExitCase_(2021)'!AW$232:AW$256,N('RevReq_ExitCase_(2021)'!$A$232:$A$256=$D51 ))/10^6-SUMPRODUCT(RevReq_BaseCase!AW$232:AW$256,N(RevReq_BaseCase!$A$232:$A$256=$D51 ))/10^6 -> -1.587712125 | AP28: =SUMPRODUCT('RevReq_ExitCase_(2021)'!AX$232:AX$256,N('RevReq_ExitCase_(2021)'!$A$232:$A$256=$D51 ))/10^6-SUMPRODUCT(RevReq_BaseCase!AX$232:AX$256,N(RevReq_BaseCase!$A$232:$A$256=$D51 ))/10^6 -> -1.146042866 | AQ28: =SUMPRODUCT('RevReq_ExitCase_(2021)'!AY$232:AY$256,N('RevReq_ExitCase_(2021)'!$A$232:$A$256=$D51 ))/10^6-SUMPRODUCT(RevReq_BaseCase!AY$232:AY$256,N(RevReq_BaseCase!$A$232:$A$256=$D51 ))/10^6 -> -2.665733593 | AS28: -31.76197063
B29: Interest Expense(5) | D29: Clause | E29: -11.67988387 | G29: -1.634159342 | I29: =SUMPRODUCT('RevReq_ExitCase_(2021)'!Q$409:Q$433,N('RevReq_ExitCase_(2021)'!$A$409:$A$433=$D52 ))/10^6-SUMPRODUCT(RevReq_BaseCase!Q$409:Q$433,N(RevReq_BaseCase!$A$409:$A$433=$D52 ))/10^6 -> 1.312701969 | J29: =SUMPRODUCT('RevReq_ExitCase_(2021)'!R$409:R$433,N('RevReq_ExitCase_(2021)'!$A$409:$A$433=$D52 ))/10^6-SUMPRODUCT(RevReq_BaseCase!R$409:R$433,N(RevReq_BaseCase!$A$409:$A$433=$D52 ))/10^6 -> 0.6227170318 | K29: =SUMPRODUCT('RevReq_ExitCase_(2021)'!S$409:S$433,N('RevReq_ExitCase_(2021)'!$A$409:$A$433=$D52 ))/10^6-SUMPRODUCT(RevReq_BaseCase!S$409:S$433,N(RevReq_BaseCase!$A$409:$A$433=$D52 ))/10^6 -> 0.3915368008 | L29: =SUMPRODUCT('RevReq_ExitCase_(2021)'!T$409:T$433,N('RevReq_ExitCase_(2021)'!$A$409:$A$433=$D52 ))/10^6-SUMPRODUCT(RevReq_BaseCase!T$409:T$433,N(RevReq_BaseCase!$A$409:$A$433=$D52 ))/10^6 -> 0.1269215757 | M29: =SUMPRODUCT('RevReq_ExitCase_(2021)'!U$409:U$433,N('RevReq_ExitCase_(2021)'!$A$409:$A$433=$D52 ))/10^6-SUMPRODUCT(RevReq_BaseCase!U$409:U$433,N(RevReq_BaseCase!$A$409:$A$433=$D52 ))/10^6 -> -0.05902256241 | N29: =SUMPRODUCT('RevReq_ExitCase_(2021)'!V$409:V$433,N('RevReq_ExitCase_(2021)'!$A$409:$A$433=$D52 ))/10^6-SUMPRODUCT(RevReq_BaseCase!V$409:V$433,N(RevReq_BaseCase!$A$409:$A$433=$D52 ))/10^6 -> -0.1328517171 | O29: =SUMPRODUCT('RevReq_ExitCase_(2021)'!W$409:W$433,N('RevReq_ExitCase_(2021)'!$A$409:$A$433=$D52 ))/10^6-SUMPRODUCT(RevReq_BaseCase!W$409:W$433,N(RevReq_BaseCase!$A$409:$A$433=$D52 ))/10^6 -> -0.2066822619 | P29: =SUMPRODUCT('RevReq_ExitCase_(2021)'!X$409:X$433,N('RevReq_ExitCase_(2021)'!$A$409:$A$433=$D52 ))/10^6-SUMPRODUCT(RevReq_BaseCase!X$409:X$433,N(RevReq_BaseCase!$A$409:$A$433=$D52 ))/10^6 -> -0.2805142246 | Q29: =SUMPRODUCT('RevReq_ExitCase_(2021)'!Y$409:Y$433,N('RevReq_ExitCase_(2021)'!$A$409:$A$433=$D52 ))/10^6-SUMPRODUCT(RevReq_BaseCase!Y$409:Y$433,N(RevReq_BaseCase!$A$409:$A$433=$D52 ))/10^6 -> -0.3543476336 | R29: =SUMPRODUCT('RevReq_ExitCase_(2021)'!Z$409:Z$433,N('RevReq_ExitCase_(2021)'!$A$409:$A$433=$D52 ))/10^6-SUMPRODUCT(RevReq_BaseCase!Z$409:Z$433,N(RevReq_BaseCase!$A$409:$A$433=$D52 ))/10^6 -> -0.4281825177 | S29: =SUMPRODUCT('RevReq_ExitCase_(2021)'!AA$409:AA$433,N('RevReq_ExitCase_(2021)'!$A$409:$A$433=$D52 ))/10^6-SUMPRODUCT(RevReq_BaseCase!AA$409:AA$433,N(RevReq_BaseCase!$A$409:$A$433=$D52 ))/10^6 -> -0.5020189065 | T29: =SUMPRODUCT('RevReq_ExitCase_(2021)'!AB$409:AB$433,N('RevReq_ExitCase_(2021)'!$A$409:$A$433=$D52 ))/10^6-SUMPRODUCT(RevReq_BaseCase!AB$409:AB$433,N(RevReq_BaseCase!$A$409:$A$433=$D52 ))/10^6 -> -0.5758568301 | U29: =SUMPRODUCT('RevReq_ExitCase_(2021)'!AC$409:AC$433,N('RevReq_ExitCase_(2021)'!$A$409:$A$433=$D52 ))/10^6-SUMPRODUCT(RevReq_BaseCase!AC$409:AC$433,N(RevReq_BaseCase!$A$409:$A$433=$D52 ))/10^6 -> -0.6496963191 | V29: =SUMPRODUCT('RevReq_ExitCase_(2021)'!AD$409:AD$433,N('RevReq_ExitCase_(2021)'!$A$409:$A$433=$D52 ))/10^6-SUMPRODUCT(RevReq_BaseCase!AD$409:AD$433,N(RevReq_BaseCase!$A$409:$A$433=$D52 ))/10^6 -> -0.6780053541 | W29: =SUMPRODUCT('RevReq_ExitCase_(2021)'!AE$409:AE$433,N('RevReq_ExitCase_(2021)'!$A$409:$A$433=$D52 ))/10^6-SUMPRODUCT(RevReq_BaseCase!AE$409:AE$433,N(RevReq_BaseCase!$A$409:$A$433=$D52 ))/10^6 -> -0.6607839668 | X29: =SUMPRODUCT('RevReq_ExitCase_(2021)'!AF$409:AF$433,N('RevReq_ExitCase_(2021)'!$A$409:$A$433=$D52 ))/10^6-SUMPRODUCT(RevReq_BaseCase!AF$409:AF$433,N(RevReq_BaseCase!$A$409:$A$433=$D52 ))/10^6 -> -0.6435642408 | Y29: =SUMPRODUCT('RevReq_ExitCase_(2021)'!AG$409:AG$433,N('RevReq_ExitCase_(2021)'!$A$409:$A$433=$D52 ))/10^6-SUMPRODUCT(RevReq_BaseCase!AG$409:AG$433,N(RevReq_BaseCase!$A$409:$A$433=$D52 ))/10^6 -> -0.6263462093 | Z29: =SUMPRODUCT('RevReq_ExitCase_(2021)'!AH$409:AH$433,N('RevReq_ExitCase_(2021)'!$A$409:$A$433=$D52 ))/10^6-SUMPRODUCT(RevReq_BaseCase!AH$409:AH$433,N(RevReq_BaseCase!$A$409:$A$433=$D52 ))/10^6 -> -0.6091299062 | AA29: =SUMPRODUCT('RevReq_ExitCase_(2021)'!AI$409:AI$433,N('RevReq_ExitCase_(2021)'!$A$409:$A$433=$D52 ))/10^6-SUMPRODUCT(RevReq_BaseCase!AI$409:AI$433,N(RevReq_BaseCase!$A$409:$A$433=$D52 ))/10^6 -> -0.5919153661 | AB29: =SUMPRODUCT('RevReq_ExitCase_(2021)'!AJ$409:AJ$433,N('RevReq_ExitCase_(2021)'!$A$409:$A$433=$D52 ))/10^6-SUMPRODUCT(RevReq_BaseCase!AJ$409:AJ$433,N(RevReq_BaseCase!$A$409:$A$433=$D52 ))/10^6 -> -0.5747026242 | AC29: =SUMPRODUCT('RevReq_ExitCase_(2021)'!AK$409:AK$433,N('RevReq_ExitCase_(2021)'!$A$409:$A$433=$D52 ))/10^6-SUMPRODUCT(RevReq_BaseCase!AK$409:AK$433,N(RevReq_BaseCase!$A$409:$A$433=$D52 ))/10^6 -> -0.5574917165 | AD29: =SUMPRODUCT('RevReq_ExitCase_(2021)'!AL$409:AL$433,N('RevReq_ExitCase_(2021)'!$A$409:$A$433=$D52 ))/10^6-SUMPRODUCT(RevReq_BaseCase!AL$409:AL$433,N(RevReq_BaseCase!$A$409:$A$433=$D52 ))/10^6 -> -0.5402826797 | AE29: =SUMPRODUCT('RevReq_ExitCase_(2021)'!AM$409:AM$433,N('RevReq_ExitCase_(2021)'!$A$409:$A$433=$D52 ))/10^6-SUMPRODUCT(RevReq_BaseCase!AM$409:AM$433,N(RevReq_BaseCase!$A$409:$A$433=$D52 ))/10^6 -> -0.5230755512 | AF29: =SUMPRODUCT('RevReq_ExitCase_(2021)'!AN$409:AN$433,N('RevReq_ExitCase_(2021)'!$A$409:$A$433=$D52 ))/10^6-SUMPRODUCT(RevReq_BaseCase!AN$409:AN$433,N(RevReq_BaseCase!$A$409:$A$433=$D52 ))/10^6 -> -0.5058703692 | AG29: =SUMPRODUCT('RevReq_ExitCase_(2021)'!AO$409:AO$433,N('RevReq_ExitCase_(2021)'!$A$409:$A$433=$D52 ))/10^6-SUMPRODUCT(RevReq_BaseCase!AO$409:AO$433,N(RevReq_BaseCase!$A$409:$A$433=$D52 ))/10^6 -> -0.4886671726 | AH29: =SUMPRODUCT('RevReq_ExitCase_(2021)'!AP$409:AP$433,N('RevReq_ExitCase_(2021)'!$A$409:$A$433=$D52 ))/10^6-SUMPRODUCT(RevReq_BaseCase!AP$409:AP$433,N(RevReq_BaseCase!$A$409:$A$433=$D52 ))/10^6 -> -0.4714660011 | AI29: =SUMPRODUCT('RevReq_ExitCase_(2021)'!AQ$409:AQ$433,N('RevReq_ExitCase_(2021)'!$A$409:$A$433=$D52 ))/10^6-SUMPRODUCT(RevReq_BaseCase!AQ$409:AQ$433,N(RevReq_BaseCase!$A$409:$A$433=$D52 ))/10^6 -> -0.4542668952 | AJ29: =SUMPRODUCT('RevReq_ExitCase_(2021)'!AR$409:AR$433,N('RevReq_ExitCase_(2021)'!$A$409:$A$433=$D52 ))/10^6-SUMPRODUCT(RevReq_BaseCase!AR$409:AR$433,N(RevReq_BaseCase!$A$409:$A$433=$D52 ))/10^6 -> -0.4370698962 | AK29: =SUMPRODUCT('RevReq_ExitCase_(2021)'!AS$409:AS$433,N('RevReq_ExitCase_(2021)'!$A$409:$A$433=$D52 ))/10^6-SUMPRODUCT(RevReq_BaseCase!AS$409:AS$433,N(RevReq_BaseCase!$A$409:$A$433=$D52 ))/10^6 -> -0.4198750462 | AL29: =SUMPRODUCT('RevReq_ExitCase_(2021)'!AT$409:AT$433,N('RevReq_ExitCase_(2021)'!$A$409:$A$433=$D52 ))/10^6-SUMPRODUCT(RevReq_BaseCase!AT$409:AT$433,N(RevReq_BaseCase!$A$409:$A$433=$D52 ))/10^6 -> -0.4026823883 | AM29: =SUMPRODUCT('RevReq_ExitCase_(2021)'!AU$409:AU$433,N('RevReq_ExitCase_(2021)'!$A$409:$A$433=$D52 ))/10^6-SUMPRODUCT(RevReq_BaseCase!AU$409:AU$433,N(RevReq_BaseCase!$A$409:$A$433=$D52 ))/10^6 -> -0.3854919663 | AN29: =SUMPRODUCT('RevReq_ExitCase_(2021)'!AV$409:AV$433,N('RevReq_ExitCase_(2021)'!$A$409:$A$433=$D52 ))/10^6-SUMPRODUCT(RevReq_BaseCase!AV$409:AV$433,N(RevReq_BaseCase!$A$409:$A$433=$D52 ))/10^6 -> -0.3683038249 | AO29: =SUMPRODUCT('RevReq_ExitCase_(2021)'!AW$409:AW$433,N('RevReq_ExitCase_(2021)'!$A$409:$A$433=$D52 ))/10^6-SUMPRODUCT(RevReq_BaseCase!AW$409:AW$433,N(RevReq_BaseCase!$A$409:$A$433=$D52 ))/10^6 -> -0.351163937 | AP29: =SUMPRODUCT('RevReq_ExitCase_(2021)'!AX$409:AX$433,N('RevReq_ExitCase_(2021)'!$A$409:$A$433=$D52 ))/10^6-SUMPRODUCT(RevReq_BaseCase!AX$409:AX$433,N(RevReq_BaseCase!$A$409:$A$433=$D52 ))/10^6 -> -0.3388415601 | AQ29: =SUMPRODUCT('RevReq_ExitCase_(2021)'!AY$409:AY$433,N('RevReq_ExitCase_(2021)'!$A$409:$A$433=$D52 ))/10^6-SUMPRODUCT(RevReq_BaseCase!AY$409:AY$433,N(RevReq_BaseCase!$A$409:$A$433=$D52 ))/10^6 -> -0.3155916033 | AS29: -10.26658292
B30: Return on Equity(6) | D30: Clause | E30: -35.18135823 | G30: -4.922304523 | I30: =SUMPRODUCT('RevReq_ExitCase_(2021)'!Q$438:Q$462,N('RevReq_ExitCase_(2021)'!$A$438:$A$462=$D53 ))/10^6-SUMPRODUCT(RevReq_BaseCase!Q$438:Q$462,N(RevReq_BaseCase!$A$438:$A$462=$D53 ))/10^6 -> 3.954032312 | J30: =SUMPRODUCT('RevReq_ExitCase_(2021)'!R$438:R$462,N('RevReq_ExitCase_(2021)'!$A$438:$A$462=$D53 ))/10^6-SUMPRODUCT(RevReq_BaseCase!R$438:R$462,N(RevReq_BaseCase!$A$438:$A$462=$D53 ))/10^6 -> 1.875706233 | K30: =SUMPRODUCT('RevReq_ExitCase_(2021)'!S$438:S$462,N('RevReq_ExitCase_(2021)'!$A$438:$A$462=$D53 ))/10^6-SUMPRODUCT(RevReq_BaseCase!S$438:S$462,N(RevReq_BaseCase!$A$438:$A$462=$D53 ))/10^6 -> 1.179360737 | L30: =SUMPRODUCT('RevReq_ExitCase_(2021)'!T$438:T$462,N('RevReq_ExitCase_(2021)'!$A$438:$A$462=$D53 ))/10^6-SUMPRODUCT(RevReq_BaseCase!T$438:T$462,N(RevReq_BaseCase!$A$438:$A$462=$D53 ))/10^6 -> 0.3823046078 | M30: =SUMPRODUCT('RevReq_ExitCase_(2021)'!U$438:U$462,N('RevReq_ExitCase_(2021)'!$A$438:$A$462=$D53 ))/10^6-SUMPRODUCT(RevReq_BaseCase!U$438:U$462,N(RevReq_BaseCase!$A$438:$A$462=$D53 ))/10^6 -> -0.1777837806 | N30: =SUMPRODUCT('RevReq_ExitCase_(2021)'!V$438:V$462,N('RevReq_ExitCase_(2021)'!$A$438:$A$462=$D53 ))/10^6-SUMPRODUCT(RevReq_BaseCase!V$438:V$462,N(RevReq_BaseCase!$A$438:$A$462=$D53 ))/10^6 -> -0.4001669797 | O30: =SUMPRODUCT('RevReq_ExitCase_(2021)'!W$438:W$462,N('RevReq_ExitCase_(2021)'!$A$438:$A$462=$D53 ))/10^6-SUMPRODUCT(RevReq_BaseCase!W$438:W$462,N(RevReq_BaseCase!$A$438:$A$462=$D53 ))/10^6 -> -0.6225543658 | P30: =SUMPRODUCT('RevReq_ExitCase_(2021)'!X$438:X$462,N('RevReq_ExitCase_(2021)'!$A$438:$A$462=$D53 ))/10^6-SUMPRODUCT(RevReq_BaseCase!X$438:X$462,N(RevReq_BaseCase!$A$438:$A$462=$D53 ))/10^6 -> -0.8449460229 | Q30: =SUMPRODUCT('RevReq_ExitCase_(2021)'!Y$438:Y$462,N('RevReq_ExitCase_(2021)'!$A$438:$A$462=$D53 ))/10^6-SUMPRODUCT(RevReq_BaseCase!Y$438:Y$462,N(RevReq_BaseCase!$A$438:$A$462=$D53 ))/10^6 -> -1.067342036 | R30: =SUMPRODUCT('RevReq_ExitCase_(2021)'!Z$438:Z$462,N('RevReq_ExitCase_(2021)'!$A$438:$A$462=$D53 ))/10^6-SUMPRODUCT(RevReq_BaseCase!Z$438:Z$462,N(RevReq_BaseCase!$A$438:$A$462=$D53 ))/10^6 -> -1.289742493 | S30: =SUMPRODUCT('RevReq_ExitCase_(2021)'!AA$438:AA$462,N('RevReq_ExitCase_(2021)'!$A$438:$A$462=$D53 ))/10^6-SUMPRODUCT(RevReq_BaseCase!AA$438:AA$462,N(RevReq_BaseCase!$A$438:$A$462=$D53 ))/10^6 -> -1.512147482 | T30: =SUMPRODUCT('RevReq_ExitCase_(2021)'!AB$438:AB$462,N('RevReq_ExitCase_(2021)'!$A$438:$A$462=$D53 ))/10^6-SUMPRODUCT(RevReq_BaseCase!AB$438:AB$462,N(RevReq_BaseCase!$A$438:$A$462=$D53 ))/10^6 -> -1.734557094 | U30: =SUMPRODUCT('RevReq_ExitCase_(2021)'!AC$438:AC$462,N('RevReq_ExitCase_(2021)'!$A$438:$A$462=$D53 ))/10^6-SUMPRODUCT(RevReq_BaseCase!AC$438:AC$462,N(RevReq_BaseCase!$A$438:$A$462=$D53 ))/10^6 -> -1.956971422 | V30: =SUMPRODUCT('RevReq_ExitCase_(2021)'!AD$438:AD$462,N('RevReq_ExitCase_(2021)'!$A$438:$A$462=$D53 ))/10^6-SUMPRODUCT(RevReq_BaseCase!AD$438:AD$462,N(RevReq_BaseCase!$A$438:$A$462=$D53 ))/10^6 -> -2.042241987 | W30: =SUMPRODUCT('RevReq_ExitCase_(2021)'!AE$438:AE$462,N('RevReq_ExitCase_(2021)'!$A$438:$A$462=$D53 ))/10^6-SUMPRODUCT(RevReq_BaseCase!AE$438:AE$462,N(RevReq_BaseCase!$A$438:$A$462=$D53 ))/10^6 -> -1.990368886 | X30: =SUMPRODUCT('RevReq_ExitCase_(2021)'!AF$438:AF$462,N('RevReq_ExitCase_(2021)'!$A$438:$A$462=$D53 ))/10^6-SUMPRODUCT(RevReq_BaseCase!AF$438:AF$462,N(RevReq_BaseCase!$A$438:$A$462=$D53 ))/10^6 -> -1.938500789 | Y30: =SUMPRODUCT('RevReq_ExitCase_(2021)'!AG$438:AG$462,N('RevReq_ExitCase_(2021)'!$A$438:$A$462=$D53 ))/10^6-SUMPRODUCT(RevReq_BaseCase!AG$438:AG$462,N(RevReq_BaseCase!$A$438:$A$462=$D53 ))/10^6 -> -1.886637796 | Z30: =SUMPRODUCT('RevReq_ExitCase_(2021)'!AH$438:AH$462,N('RevReq_ExitCase_(2021)'!$A$438:$A$462=$D53 ))/10^6-SUMPRODUCT(RevReq_BaseCase!AH$438:AH$462,N(RevReq_BaseCase!$A$438:$A$462=$D53 ))/10^6 -> -1.834780009 | AA30: =SUMPRODUCT('RevReq_ExitCase_(2021)'!AI$438:AI$462,N('RevReq_ExitCase_(2021)'!$A$438:$A$462=$D53 ))/10^6-SUMPRODUCT(RevReq_BaseCase!AI$438:AI$462,N(RevReq_BaseCase!$A$438:$A$462=$D53 ))/10^6 -> -1.782927533 | AB30: =SUMPRODUCT('RevReq_ExitCase_(2021)'!AJ$438:AJ$462,N('RevReq_ExitCase_(2021)'!$A$438:$A$462=$D53 ))/10^6-SUMPRODUCT(RevReq_BaseCase!AJ$438:AJ$462,N(RevReq_BaseCase!$A$438:$A$462=$D53 ))/10^6 -> -1.731080473 | AC30: =SUMPRODUCT('RevReq_ExitCase_(2021)'!AK$438:AK$462,N('RevReq_ExitCase_(2021)'!$A$438:$A$462=$D53 ))/10^6-SUMPRODUCT(RevReq_BaseCase!AK$438:AK$462,N(RevReq_BaseCase!$A$438:$A$462=$D53 ))/10^6 -> -1.679238938 | AD30: =SUMPRODUCT('RevReq_ExitCase_(2021)'!AL$438:AL$462,N('RevReq_ExitCase_(2021)'!$A$438:$A$462=$D53 ))/10^6-SUMPRODUCT(RevReq_BaseCase!AL$438:AL$462,N(RevReq_BaseCase!$A$438:$A$462=$D53 ))/10^6 -> -1.627403039 | AE30: =SUMPRODUCT('RevReq_ExitCase_(2021)'!AM$438:AM$462,N('RevReq_ExitCase_(2021)'!$A$438:$A$462=$D53 ))/10^6-SUMPRODUCT(RevReq_BaseCase!AM$438:AM$462,N(RevReq_BaseCase!$A$438:$A$462=$D53 ))/10^6 -> -1.575572887 | AF30: =SUMPRODUCT('RevReq_ExitCase_(2021)'!AN$438:AN$462,N('RevReq_ExitCase_(2021)'!$A$438:$A$462=$D53 ))/10^6-SUMPRODUCT(RevReq_BaseCase!AN$438:AN$462,N(RevReq_BaseCase!$A$438:$A$462=$D53 ))/10^6 -> -1.523748598 | AG30: =SUMPRODUCT('RevReq_ExitCase_(2021)'!AO$438:AO$462,N('RevReq_ExitCase_(2021)'!$A$438:$A$462=$D53 ))/10^6-SUMPRODUCT(RevReq_BaseCase!AO$438:AO$462,N(RevReq_BaseCase!$A$438:$A$462=$D53 ))/10^6 -> -1.47193029 | AH30: =SUMPRODUCT('RevReq_ExitCase_(2021)'!AP$438:AP$462,N('RevReq_ExitCase_(2021)'!$A$438:$A$462=$D53 ))/10^6-SUMPRODUCT(RevReq_BaseCase!AP$438:AP$462,N(RevReq_BaseCase!$A$438:$A$462=$D53 ))/10^6 -> -1.420118082 | AI30: =SUMPRODUCT('RevReq_ExitCase_(2021)'!AQ$438:AQ$462,N('RevReq_ExitCase_(2021)'!$A$438:$A$462=$D53 ))/10^6-SUMPRODUCT(RevReq_BaseCase!AQ$438:AQ$462,N(RevReq_BaseCase!$A$438:$A$462=$D53 ))/10^6 -> -1.368312095 | AJ30: =SUMPRODUCT('RevReq_ExitCase_(2021)'!AR$438:AR$462,N('RevReq_ExitCase_(2021)'!$A$438:$A$462=$D53 ))/10^6-SUMPRODUCT(RevReq_BaseCase!AR$438:AR$462,N(RevReq_BaseCase!$A$438:$A$462=$D53 ))/10^6 -> -1.316512455 | AK30: =SUMPRODUCT('RevReq_ExitCase_(2021)'!AS$438:AS$462,N('RevReq_ExitCase_(2021)'!$A$438:$A$462=$D53 ))/10^6-SUMPRODUCT(RevReq_BaseCase!AS$438:AS$462,N(RevReq_BaseCase!$A$438:$A$462=$D53 ))/10^6 -> -1.264719288 | AL30: =SUMPRODUCT('RevReq_ExitCase_(2021)'!AT$438:AT$462,N('RevReq_ExitCase_(2021)'!$A$438:$A$462=$D53 ))/10^6-SUMPRODUCT(RevReq_BaseCase!AT$438:AT$462,N(RevReq_BaseCase!$A$438:$A$462=$D53 ))/10^6 -> -1.212932724 | AM30: =SUMPRODUCT('RevReq_ExitCase_(2021)'!AU$438:AU$462,N('RevReq_ExitCase_(2021)'!$A$438:$A$462=$D53 ))/10^6-SUMPRODUCT(RevReq_BaseCase!AU$438:AU$462,N(RevReq_BaseCase!$A$438:$A$462=$D53 ))/10^6 -> -1.161152894 | AN30: =SUMPRODUCT('RevReq_ExitCase_(2021)'!AV$438:AV$462,N('RevReq_ExitCase_(2021)'!$A$438:$A$462=$D53 ))/10^6-SUMPRODUCT(RevReq_BaseCase!AV$438:AV$462,N(RevReq_BaseCase!$A$438:$A$462=$D53 ))/10^6 -> -1.109379934 | AO30: =SUMPRODUCT('RevReq_ExitCase_(2021)'!AW$438:AW$462,N('RevReq_ExitCase_(2021)'!$A$438:$A$462=$D53 ))/10^6-SUMPRODUCT(RevReq_BaseCase!AW$438:AW$462,N(RevReq_BaseCase!$A$438:$A$462=$D53 ))/10^6 -> -1.05775232 | AP30: =SUMPRODUCT('RevReq_ExitCase_(2021)'!AX$438:AX$462,N('RevReq_ExitCase_(2021)'!$A$438:$A$462=$D53 ))/10^6-SUMPRODUCT(RevReq_BaseCase!AX$438:AX$462,N(RevReq_BaseCase!$A$438:$A$462=$D53 ))/10^6 -> -1.020635688 | AQ30: =SUMPRODUCT('RevReq_ExitCase_(2021)'!AY$438:AY$462,N('RevReq_ExitCase_(2021)'!$A$438:$A$462=$D53 ))/10^6-SUMPRODUCT(RevReq_BaseCase!AY$438:AY$462,N(RevReq_BaseCase!$A$438:$A$462=$D53 ))/10^6 -> -0.9506037364 | AS30: -30.92430845
B31: Income Tax(7) | D31: Clause | E31: -22.09395024 | G31: -3.091215254 | I31: =SUMPRODUCT('RevReq_ExitCase_(2021)'!Q$467:Q$491,N('RevReq_ExitCase_(2021)'!$A$467:$A$491=$D54 ))/10^6-SUMPRODUCT(RevReq_BaseCase!Q$467:Q$491,N(RevReq_BaseCase!$A$467:$A$491=$D54 ))/10^6 -> 2.483138729 | J31: =SUMPRODUCT('RevReq_ExitCase_(2021)'!R$467:R$491,N('RevReq_ExitCase_(2021)'!$A$467:$A$491=$D54 ))/10^6-SUMPRODUCT(RevReq_BaseCase!R$467:R$491,N(RevReq_BaseCase!$A$467:$A$491=$D54 ))/10^6 -> 1.177946568 | K31: =SUMPRODUCT('RevReq_ExitCase_(2021)'!S$467:S$491,N('RevReq_ExitCase_(2021)'!$A$467:$A$491=$D54 ))/10^6-SUMPRODUCT(RevReq_BaseCase!S$467:S$491,N(RevReq_BaseCase!$A$467:$A$491=$D54 ))/10^6 -> 0.7406404627 | L31: =SUMPRODUCT('RevReq_ExitCase_(2021)'!T$467:T$491,N('RevReq_ExitCase_(2021)'!$A$467:$A$491=$D54 ))/10^6-SUMPRODUCT(RevReq_BaseCase!T$467:T$491,N(RevReq_BaseCase!$A$467:$A$491=$D54 ))/10^6 -> 0.2400879161 | M31: =SUMPRODUCT('RevReq_ExitCase_(2021)'!U$467:U$491,N('RevReq_ExitCase_(2021)'!$A$467:$A$491=$D54 ))/10^6-SUMPRODUCT(RevReq_BaseCase!U$467:U$491,N(RevReq_BaseCase!$A$467:$A$491=$D54 ))/10^6 -> -0.1116485037 | N31: =SUMPRODUCT('RevReq_ExitCase_(2021)'!V$467:V$491,N('RevReq_ExitCase_(2021)'!$A$467:$A$491=$D54 ))/10^6-SUMPRODUCT(RevReq_BaseCase!V$467:V$491,N(RevReq_BaseCase!$A$467:$A$491=$D54 ))/10^6 -> -0.2513055147 | O31: =SUMPRODUCT('RevReq_ExitCase_(2021)'!W$467:W$491,N('RevReq_ExitCase_(2021)'!$A$467:$A$491=$D54 ))/10^6-SUMPRODUCT(RevReq_BaseCase!W$467:W$491,N(RevReq_BaseCase!$A$467:$A$491=$D54 ))/10^6 -> -0.3909651553 | P31: =SUMPRODUCT('RevReq_ExitCase_(2021)'!X$467:X$491,N('RevReq_ExitCase_(2021)'!$A$467:$A$491=$D54 ))/10^6-SUMPRODUCT(RevReq_BaseCase!X$467:X$491,N(RevReq_BaseCase!$A$467:$A$491=$D54 ))/10^6 -> -0.530627478 | Q31: =SUMPRODUCT('RevReq_ExitCase_(2021)'!Y$467:Y$491,N('RevReq_ExitCase_(2021)'!$A$467:$A$491=$D54 ))/10^6-SUMPRODUCT(RevReq_BaseCase!Y$467:Y$491,N(RevReq_BaseCase!$A$467:$A$491=$D54 ))/10^6 -> -0.6702925364 | R31: =SUMPRODUCT('RevReq_ExitCase_(2021)'!Z$467:Z$491,N('RevReq_ExitCase_(2021)'!$A$467:$A$491=$D54 ))/10^6-SUMPRODUCT(RevReq_BaseCase!Z$467:Z$491,N(RevReq_BaseCase!$A$467:$A$491=$D54 ))/10^6 -> -0.8099603854 | S31: =SUMPRODUCT('RevReq_ExitCase_(2021)'!AA$467:AA$491,N('RevReq_ExitCase_(2021)'!$A$467:$A$491=$D54 ))/10^6-SUMPRODUCT(RevReq_BaseCase!AA$467:AA$491,N(RevReq_BaseCase!$A$467:$A$491=$D54 ))/10^6 -> -0.9496310806 | T31: =SUMPRODUCT('RevReq_ExitCase_(2021)'!AB$467:AB$491,N('RevReq_ExitCase_(2021)'!$A$467:$A$491=$D54 ))/10^6-SUMPRODUCT(RevReq_BaseCase!AB$467:AB$491,N(RevReq_BaseCase!$A$467:$A$491=$D54 ))/10^6 -> -1.089304679 | U31: =SUMPRODUCT('RevReq_ExitCase_(2021)'!AC$467:AC$491,N('RevReq_ExitCase_(2021)'!$A$467:$A$491=$D54 ))/10^6-SUMPRODUCT(RevReq_BaseCase!AC$467:AC$491,N(RevReq_BaseCase!$A$467:$A$491=$D54 ))/10^6 -> -1.228981239 | V31: =SUMPRODUCT('RevReq_ExitCase_(2021)'!AD$467:AD$491,N('RevReq_ExitCase_(2021)'!$A$467:$A$491=$D54 ))/10^6-SUMPRODUCT(RevReq_BaseCase!AD$467:AD$491,N(RevReq_BaseCase!$A$467:$A$491=$D54 ))/10^6 -> -1.282531293 | W31: =SUMPRODUCT('RevReq_ExitCase_(2021)'!AE$467:AE$491,N('RevReq_ExitCase_(2021)'!$A$467:$A$491=$D54 ))/10^6-SUMPRODUCT(RevReq_BaseCase!AE$467:AE$491,N(RevReq_BaseCase!$A$467:$A$491=$D54 ))/10^6 -> -1.249954901 | X31: =SUMPRODUCT('RevReq_ExitCase_(2021)'!AF$467:AF$491,N('RevReq_ExitCase_(2021)'!$A$467:$A$491=$D54 ))/10^6-SUMPRODUCT(RevReq_BaseCase!AF$467:AF$491,N(RevReq_BaseCase!$A$467:$A$491=$D54 ))/10^6 -> -1.217381651 | Y31: =SUMPRODUCT('RevReq_ExitCase_(2021)'!AG$467:AG$491,N('RevReq_ExitCase_(2021)'!$A$467:$A$491=$D54 ))/10^6-SUMPRODUCT(RevReq_BaseCase!AG$467:AG$491,N(RevReq_BaseCase!$A$467:$A$491=$D54 ))/10^6 -> -1.184811607 | Z31: =SUMPRODUCT('RevReq_ExitCase_(2021)'!AH$467:AH$491,N('RevReq_ExitCase_(2021)'!$A$467:$A$491=$D54 ))/10^6-SUMPRODUCT(RevReq_BaseCase!AH$467:AH$491,N(RevReq_BaseCase!$A$467:$A$491=$D54 ))/10^6 -> -1.152244833 | AA31: =SUMPRODUCT('RevReq_ExitCase_(2021)'!AI$467:AI$491,N('RevReq_ExitCase_(2021)'!$A$467:$A$491=$D54 ))/10^6-SUMPRODUCT(RevReq_BaseCase!AI$467:AI$491,N(RevReq_BaseCase!$A$467:$A$491=$D54 ))/10^6 -> -1.119681393 | AB31: =SUMPRODUCT('RevReq_ExitCase_(2021)'!AJ$467:AJ$491,N('RevReq_ExitCase_(2021)'!$A$467:$A$491=$D54 ))/10^6-SUMPRODUCT(RevReq_BaseCase!AJ$467:AJ$491,N(RevReq_BaseCase!$A$467:$A$491=$D54 ))/10^6 -> -1.087121355 | AC31: =SUMPRODUCT('RevReq_ExitCase_(2021)'!AK$467:AK$491,N('RevReq_ExitCase_(2021)'!$A$467:$A$491=$D54 ))/10^6-SUMPRODUCT(RevReq_BaseCase!AK$467:AK$491,N(RevReq_BaseCase!$A$467:$A$491=$D54 ))/10^6 -> -1.054564787 | AD31: =SUMPRODUCT('RevReq_ExitCase_(2021)'!AL$467:AL$491,N('RevReq_ExitCase_(2021)'!$A$467:$A$491=$D54 ))/10^6-SUMPRODUCT(RevReq_BaseCase!AL$467:AL$491,N(RevReq_BaseCase!$A$467:$A$491=$D54 ))/10^6 -> -1.022011758 | AE31: =SUMPRODUCT('RevReq_ExitCase_(2021)'!AM$467:AM$491,N('RevReq_ExitCase_(2021)'!$A$467:$A$491=$D54 ))/10^6-SUMPRODUCT(RevReq_BaseCase!AM$467:AM$491,N(RevReq_BaseCase!$A$467:$A$491=$D54 ))/10^6 -> -0.989462338 | AF31: =SUMPRODUCT('RevReq_ExitCase_(2021)'!AN$467:AN$491,N('RevReq_ExitCase_(2021)'!$A$467:$A$491=$D54 ))/10^6-SUMPRODUCT(RevReq_BaseCase!AN$467:AN$491,N(RevReq_BaseCase!$A$467:$A$491=$D54 ))/10^6 -> -0.9569166004 | AG31: =SUMPRODUCT('RevReq_ExitCase_(2021)'!AO$467:AO$491,N('RevReq_ExitCase_(2021)'!$A$467:$A$491=$D54 ))/10^6-SUMPRODUCT(RevReq_BaseCase!AO$467:AO$491,N(RevReq_BaseCase!$A$467:$A$491=$D54 ))/10^6 -> -0.9243746185 | AH31: =SUMPRODUCT('RevReq_ExitCase_(2021)'!AP$467:AP$491,N('RevReq_ExitCase_(2021)'!$A$467:$A$491=$D54 ))/10^6-SUMPRODUCT(RevReq_BaseCase!AP$467:AP$491,N(RevReq_BaseCase!$A$467:$A$491=$D54 ))/10^6 -> -0.8918364672 | AI31: =SUMPRODUCT('RevReq_ExitCase_(2021)'!AQ$467:AQ$491,N('RevReq_ExitCase_(2021)'!$A$467:$A$491=$D54 ))/10^6-SUMPRODUCT(RevReq_BaseCase!AQ$467:AQ$491,N(RevReq_BaseCase!$A$467:$A$491=$D54 ))/10^6 -> -0.8593022234 | AJ31: =SUMPRODUCT('RevReq_ExitCase_(2021)'!AR$467:AR$491,N('RevReq_ExitCase_(2021)'!$A$467:$A$491=$D54 ))/10^6-SUMPRODUCT(RevReq_BaseCase!AR$467:AR$491,N(RevReq_BaseCase!$A$467:$A$491=$D54 ))/10^6 -> -0.826771965 | AK31: =SUMPRODUCT('RevReq_ExitCase_(2021)'!AS$467:AS$491,N('RevReq_ExitCase_(2021)'!$A$467:$A$491=$D54 ))/10^6-SUMPRODUCT(RevReq_BaseCase!AS$467:AS$491,N(RevReq_BaseCase!$A$467:$A$491=$D54 ))/10^6 -> -0.7942457718 | AL31: =SUMPRODUCT('RevReq_ExitCase_(2021)'!AT$467:AT$491,N('RevReq_ExitCase_(2021)'!$A$467:$A$491=$D54 ))/10^6-SUMPRODUCT(RevReq_BaseCase!AT$467:AT$491,N(RevReq_BaseCase!$A$467:$A$491=$D54 ))/10^6 -> -0.7617237252 | AM31: =SUMPRODUCT('RevReq_ExitCase_(2021)'!AU$467:AU$491,N('RevReq_ExitCase_(2021)'!$A$467:$A$491=$D54 ))/10^6-SUMPRODUCT(RevReq_BaseCase!AU$467:AU$491,N(RevReq_BaseCase!$A$467:$A$491=$D54 ))/10^6 -> -0.729205908 | AN31: =SUMPRODUCT('RevReq_ExitCase_(2021)'!AV$467:AV$491,N('RevReq_ExitCase_(2021)'!$A$467:$A$491=$D54 ))/10^6-SUMPRODUCT(RevReq_BaseCase!AV$467:AV$491,N(RevReq_BaseCase!$A$467:$A$491=$D54 ))/10^6 -> -0.6966924048 | AO31: =SUMPRODUCT('RevReq_ExitCase_(2021)'!AW$467:AW$491,N('RevReq_ExitCase_(2021)'!$A$467:$A$491=$D54 ))/10^6-SUMPRODUCT(RevReq_BaseCase!AW$467:AW$491,N(RevReq_BaseCase!$A$467:$A$491=$D54 ))/10^6 -> -0.6642701792 | AP31: =SUMPRODUCT('RevReq_ExitCase_(2021)'!AX$467:AX$491,N('RevReq_ExitCase_(2021)'!$A$467:$A$491=$D54 ))/10^6-SUMPRODUCT(RevReq_BaseCase!AX$467:AX$491,N(RevReq_BaseCase!$A$467:$A$491=$D54 ))/10^6 -> -0.6409608736 | AQ31: =SUMPRODUCT('RevReq_ExitCase_(2021)'!AY$467:AY$491,N('RevReq_ExitCase_(2021)'!$A$467:$A$491=$D54 ))/10^6-SUMPRODUCT(RevReq_BaseCase!AY$467:AY$491,N(RevReq_BaseCase!$A$467:$A$491=$D54 ))/10^6 -> -0.5969806941 | AS31: -19.42051605
B32: Clause Revenue Requirement | E32: -285.104699 | G32: =SUM(G25:G31) -> -31.84126039 | I32: =SUM(I25:I31) -> -17.68673905 | J32: -25.70283938 | K32: 9.598419994 | L32: 11.25275507 | M32: 1.657843574 | N32: 1.45983195 | O32: -0.4284307265 | P32: 10.00833232 | Q32: 10.67955237 | R32: 21.30268307 | S32: 8.941187902 | T32: 8.451592611 | U32: 17.51020628 | V32: 2.067987662 | W32: 0.3951474177 | X32: -3.737992856 | Y32: -4.551439162 | Z32: -6.195197618 | AA32: -8.15927447 | AB32: -7.393676083 | AC32: -9.838408955 | AD32: -11.47347971 | AE32: -11.7888951 | AF32: -12.38466203 | AG32: -15.65078753 | AH32: -21.43727875 | AI32: -23.68414303 | AJ32: -21.69138782 | AK32: -19.61902073 | AL32: -27.93704952 | AM32: -27.85548212 | AN32: -27.77432659 | AO32: -27.68946208 | AP32: -27.18092141 | AQ32: -28.56934449 | AS32: -344.2170826
B34: Net Customer Costs / (Savings)(11) | E34: =E22+E32 -> -618.5796734 | G34: -183.1800755 | I34: =I22+I32 -> -38.18591844 | J34: -45.10599847 | K34: -7.687624985 | L34: 4.745830534 | M34: -5.54167299 | N34: -6.783280198 | O34: -9.692351566 | P34: -1.187317795 | Q34: -2.212806836 | R34: 6.964087659 | S34: -7.449027709 | T34: -9.584281167 | U34: -2.099596825 | V34: -33.5058984 | W34: -34.29688525 | X34: -12.79069313 | Y34: -0.9567573948 | Z34: -3.743373863 | AA34: -5.606120324 | AB34: -6.139194294 | AC34: -8.816435667 | AD34: -11.24951715 | AE34: -11.87247671 | AF34: -14.94284959 | AG34: -17.47750288 | AH34: -24.44908843 | AI34: -26.4286823 | AJ34: -28.48701974 | AK34: -26.45077443 | AL34: -36.33367256 | AM34: -36.54708329 | AN34: -36.64443177 | AO34: -36.79279514 | AP34: -36.49128993 | AQ34: -44.7371724 | AS34: =SUM(W34:AQ34) -> -461.2538162
B36: ="Amortization Begins in "&'RevReq_ExitCase_(2018)'!$H$1 -> Amortization Begins in 2018
B37: Base Rates: Incremental Revenue Requirement(1)
B38: Operations and Maintenance(2) | D38: Base | E38: =SUM(I38:AQ38) -> -591.8455484 | G38: =SUMPRODUCT(I38:AQ38,$I$11:$AQ$11) -> -186.5513098 | I38: =SUMPRODUCT('RevReq_ExitCase_(2018)'!Q$143:Q$162,N('RevReq_ExitCase_(2018)'!$A$143:$A$162=$D38 ))/10^6-SUMPRODUCT(RevReq_BaseCase!Q$143:Q$162,N(RevReq_BaseCase!$A$143:$A$162=$D38 ))/10^6 -> -12.34772614 | J38: =SUMPRODUCT('RevReq_ExitCase_(2018)'!R$143:R$162,N('RevReq_ExitCase_(2018)'!$A$143:$A$162=$D38 ))/10^6-SUMPRODUCT(RevReq_BaseCase!R$143:R$162,N(RevReq_BaseCase!$A$143:$A$162=$D38 ))/10^6 -> -12.26546336 | K38: =SUMPRODUCT('RevReq_ExitCase_(2018)'!S$143:S$162,N('RevReq_ExitCase_(2018)'!$A$143:$A$162=$D38 ))/10^6-SUMPRODUCT(RevReq_BaseCase!S$143:S$162,N(RevReq_BaseCase!$A$143:$A$162=$D38 ))/10^6 -> -12.26546336 | L38: =SUMPRODUCT('RevReq_ExitCase_(2018)'!T$143:T$162,N('RevReq_ExitCase_(2018)'!$A$143:$A$162=$D38 ))/10^6-SUMPRODUCT(RevReq_BaseCase!T$143:T$162,N(RevReq_BaseCase!$A$143:$A$162=$D38 ))/10^6 -> -12.51077262 | M38: =SUMPRODUCT('RevReq_ExitCase_(2018)'!U$143:U$162,N('RevReq_ExitCase_(2018)'!$A$143:$A$162=$D38 ))/10^6-SUMPRODUCT(RevReq_BaseCase!U$143:U$162,N(RevReq_BaseCase!$A$143:$A$162=$D38 ))/10^6 -> -12.76098808 | N38: =SUMPRODUCT('RevReq_ExitCase_(2018)'!V$143:V$162,N('RevReq_ExitCase_(2018)'!$A$143:$A$162=$D38 ))/10^6-SUMPRODUCT(RevReq_BaseCase!V$143:V$162,N(RevReq_BaseCase!$A$143:$A$162=$D38 ))/10^6 -> -13.01620784 | O38: =SUMPRODUCT('RevReq_ExitCase_(2018)'!W$143:W$162,N('RevReq_ExitCase_(2018)'!$A$143:$A$162=$D38 ))/10^6-SUMPRODUCT(RevReq_BaseCase!W$143:W$162,N(RevReq_BaseCase!$A$143:$A$162=$D38 ))/10^6 -> -13.276532 | P38: =SUMPRODUCT('RevReq_ExitCase_(2018)'!X$143:X$162,N('RevReq_ExitCase_(2018)'!$A$143:$A$162=$D38 ))/10^6-SUMPRODUCT(RevReq_BaseCase!X$143:X$162,N(RevReq_BaseCase!$A$143:$A$162=$D38 ))/10^6 -> -13.7628788 | Q38: =SUMPRODUCT('RevReq_ExitCase_(2018)'!Y$143:Y$162,N('RevReq_ExitCase_(2018)'!$A$143:$A$162=$D38 ))/10^6-SUMPRODUCT(RevReq_BaseCase!Y$143:Y$162,N(RevReq_BaseCase!$A$143:$A$162=$D38 ))/10^6 -> -14.03813637 | R38: =SUMPRODUCT('RevReq_ExitCase_(2018)'!Z$143:Z$162,N('RevReq_ExitCase_(2018)'!$A$143:$A$162=$D38 ))/10^6-SUMPRODUCT(RevReq_BaseCase!Z$143:Z$162,N(RevReq_BaseCase!$A$143:$A$162=$D38 ))/10^6 -> -14.08916197 | S38: =SUMPRODUCT('RevReq_ExitCase_(2018)'!AA$143:AA$162,N('RevReq_ExitCase_(2018)'!$A$143:$A$162=$D38 ))/10^6-SUMPRODUCT(RevReq_BaseCase!AA$143:AA$162,N(RevReq_BaseCase!$A$143:$A$162=$D38 ))/10^6 -> -14.3709452 | T38: =SUMPRODUCT('RevReq_ExitCase_(2018)'!AB$143:AB$162,N('RevReq_ExitCase_(2018)'!$A$143:$A$162=$D38 ))/10^6-SUMPRODUCT(RevReq_BaseCase!AB$143:AB$162,N(RevReq_BaseCase!$A$143:$A$162=$D38 ))/10^6 -> -14.65836411 | U38: =SUMPRODUCT('RevReq_ExitCase_(2018)'!AC$143:AC$162,N('RevReq_ExitCase_(2018)'!$A$143:$A$162=$D38 ))/10^6-SUMPRODUCT(RevReq_BaseCase!AC$143:AC$162,N(RevReq_BaseCase!$A$143:$A$162=$D38 ))/10^6 -> -14.95153139 | V38: =SUMPRODUCT('RevReq_ExitCase_(2018)'!AD$143:AD$162,N('RevReq_ExitCase_(2018)'!$A$143:$A$162=$D38 ))/10^6-SUMPRODUCT(RevReq_BaseCase!AD$143:AD$162,N(RevReq_BaseCase!$A$143:$A$162=$D38 ))/10^6 -> -15.25056202 | W38: =SUMPRODUCT('RevReq_ExitCase_(2018)'!AE$143:AE$162,N('RevReq_ExitCase_(2018)'!$A$143:$A$162=$D38 ))/10^6-SUMPRODUCT(RevReq_BaseCase!AE$143:AE$162,N(RevReq_BaseCase!$A$143:$A$162=$D38 ))/10^6 -> -15.55557326 | X38: =SUMPRODUCT('RevReq_ExitCase_(2018)'!AF$143:AF$162,N('RevReq_ExitCase_(2018)'!$A$143:$A$162=$D38 ))/10^6-SUMPRODUCT(RevReq_BaseCase!AF$143:AF$162,N(RevReq_BaseCase!$A$143:$A$162=$D38 ))/10^6 -> -15.86668472 | Y38: =SUMPRODUCT('RevReq_ExitCase_(2018)'!AG$143:AG$162,N('RevReq_ExitCase_(2018)'!$A$143:$A$162=$D38 ))/10^6-SUMPRODUCT(RevReq_BaseCase!AG$143:AG$162,N(RevReq_BaseCase!$A$143:$A$162=$D38 ))/10^6 -> -16.18401842 | Z38: =SUMPRODUCT('RevReq_ExitCase_(2018)'!AH$143:AH$162,N('RevReq_ExitCase_(2018)'!$A$143:$A$162=$D38 ))/10^6-SUMPRODUCT(RevReq_BaseCase!AH$143:AH$162,N(RevReq_BaseCase!$A$143:$A$162=$D38 ))/10^6 -> -16.77687245 | AA38: =SUMPRODUCT('RevReq_ExitCase_(2018)'!AI$143:AI$162,N('RevReq_ExitCase_(2018)'!$A$143:$A$162=$D38 ))/10^6-SUMPRODUCT(RevReq_BaseCase!AI$143:AI$162,N(RevReq_BaseCase!$A$143:$A$162=$D38 ))/10^6 -> -17.1124099 | AB38: =SUMPRODUCT('RevReq_ExitCase_(2018)'!AJ$143:AJ$162,N('RevReq_ExitCase_(2018)'!$A$143:$A$162=$D38 ))/10^6-SUMPRODUCT(RevReq_BaseCase!AJ$143:AJ$162,N(RevReq_BaseCase!$A$143:$A$162=$D38 ))/10^6 -> -17.17460982 | AC38: =SUMPRODUCT('RevReq_ExitCase_(2018)'!AK$143:AK$162,N('RevReq_ExitCase_(2018)'!$A$143:$A$162=$D38 ))/10^6-SUMPRODUCT(RevReq_BaseCase!AK$143:AK$162,N(RevReq_BaseCase!$A$143:$A$162=$D38 ))/10^6 -> -17.51810201 | AD38: =SUMPRODUCT('RevReq_ExitCase_(2018)'!AL$143:AL$162,N('RevReq_ExitCase_(2018)'!$A$143:$A$162=$D38 ))/10^6-SUMPRODUCT(RevReq_BaseCase!AL$143:AL$162,N(RevReq_BaseCase!$A$143:$A$162=$D38 ))/10^6 -> -17.86846405 | AE38: =SUMPRODUCT('RevReq_ExitCase_(2018)'!AM$143:AM$162,N('RevReq_ExitCase_(2018)'!$A$143:$A$162=$D38 ))/10^6-SUMPRODUCT(RevReq_BaseCase!AM$143:AM$162,N(RevReq_BaseCase!$A$143:$A$162=$D38 ))/10^6 -> -18.22583334 | AF38: =SUMPRODUCT('RevReq_ExitCase_(2018)'!AN$143:AN$162,N('RevReq_ExitCase_(2018)'!$A$143:$A$162=$D38 ))/10^6-SUMPRODUCT(RevReq_BaseCase!AN$143:AN$162,N(RevReq_BaseCase!$A$143:$A$162=$D38 ))/10^6 -> -18.59035 | AG38: =SUMPRODUCT('RevReq_ExitCase_(2018)'!AO$143:AO$162,N('RevReq_ExitCase_(2018)'!$A$143:$A$162=$D38 ))/10^6-SUMPRODUCT(RevReq_BaseCase!AO$143:AO$162,N(RevReq_BaseCase!$A$143:$A$162=$D38 ))/10^6 -> -18.962157 | AH38: =SUMPRODUCT('RevReq_ExitCase_(2018)'!AP$143:AP$162,N('RevReq_ExitCase_(2018)'!$A$143:$A$162=$D38 ))/10^6-SUMPRODUCT(RevReq_BaseCase!AP$143:AP$162,N(RevReq_BaseCase!$A$143:$A$162=$D38 ))/10^6 -> -19.34140014 | AI38: =SUMPRODUCT('RevReq_ExitCase_(2018)'!AQ$143:AQ$162,N('RevReq_ExitCase_(2018)'!$A$143:$A$162=$D38 ))/10^6-SUMPRODUCT(RevReq_BaseCase!AQ$143:AQ$162,N(RevReq_BaseCase!$A$143:$A$162=$D38 ))/10^6 -> -19.72822815 | AJ38: =SUMPRODUCT('RevReq_ExitCase_(2018)'!AR$143:AR$162,N('RevReq_ExitCase_(2018)'!$A$143:$A$162=$D38 ))/10^6-SUMPRODUCT(RevReq_BaseCase!AR$143:AR$162,N(RevReq_BaseCase!$A$143:$A$162=$D38 ))/10^6 -> -20.45091391 | AK38: =SUMPRODUCT('RevReq_ExitCase_(2018)'!AS$143:AS$162,N('RevReq_ExitCase_(2018)'!$A$143:$A$162=$D38 ))/10^6-SUMPRODUCT(RevReq_BaseCase!AS$143:AS$162,N(RevReq_BaseCase!$A$143:$A$162=$D38 ))/10^6 -> -20.85993219 | AL38: =SUMPRODUCT('RevReq_ExitCase_(2018)'!AT$143:AT$162,N('RevReq_ExitCase_(2018)'!$A$143:$A$162=$D38 ))/10^6-SUMPRODUCT(RevReq_BaseCase!AT$143:AT$162,N(RevReq_BaseCase!$A$143:$A$162=$D38 ))/10^6 -> -20.93575353 | AM38: =SUMPRODUCT('RevReq_ExitCase_(2018)'!AU$143:AU$162,N('RevReq_ExitCase_(2018)'!$A$143:$A$162=$D38 ))/10^6-SUMPRODUCT(RevReq_BaseCase!AU$143:AU$162,N(RevReq_BaseCase!$A$143:$A$162=$D38 ))/10^6 -> -21.3544686 | AN38: =SUMPRODUCT('RevReq_ExitCase_(2018)'!AV$143:AV$162,N('RevReq_ExitCase_(2018)'!$A$143:$A$162=$D38 ))/10^6-SUMPRODUCT(RevReq_BaseCase!AV$143:AV$162,N(RevReq_BaseCase!$A$143:$A$162=$D38 ))/10^6 -> -21.78155798 | AO38: =SUMPRODUCT('RevReq_ExitCase_(2018)'!AW$143:AW$162,N('RevReq_ExitCase_(2018)'!$A$143:$A$162=$D38 ))/10^6-SUMPRODUCT(RevReq_BaseCase!AW$143:AW$162,N(RevReq_BaseCase!$A$143:$A$162=$D38 ))/10^6 -> -22.21718914 | AP38: =SUMPRODUCT('RevReq_ExitCase_(2018)'!AX$143:AX$162,N('RevReq_ExitCase_(2018)'!$A$143:$A$162=$D38 ))/10^6-SUMPRODUCT(RevReq_BaseCase!AX$143:AX$162,N(RevReq_BaseCase!$A$143:$A$162=$D38 ))/10^6 -> -22.66153292 | AQ38: =SUMPRODUCT('RevReq_ExitCase_(2018)'!AY$143:AY$162,N('RevReq_ExitCase_(2018)'!$A$143:$A$162=$D38 ))/10^6-SUMPRODUCT(RevReq_BaseCase!AY$143:AY$162,N(RevReq_BaseCase!$A$143:$A$162=$D38 ))/10^6 -> -23.11476358 | AS38: =SUM(W38:AQ38) -> -402.2808151
B39: Property Tax | D39: Base | E39: -92.7330673 | G39: =SUMPRODUCT(I39:AQ39,$I$11:$AQ$11) -> -26.91070522 | I39: =SUMPRODUCT('RevReq_ExitCase_(2018)'!Q$767:Q$791,N('RevReq_ExitCase_(2018)'!$A$767:$A$791=$D39 ))/10^6-SUMPRODUCT(RevReq_BaseCase!Q$767:Q$791,N(RevReq_BaseCase!$A$767:$A$791=$D39 ))/10^6 -> 0 | J39: =SUMPRODUCT('RevReq_ExitCase_(2018)'!R$767:R$791,N('RevReq_ExitCase_(2018)'!$A$767:$A$791=$D39 ))/10^6-SUMPRODUCT(RevReq_BaseCase!R$767:R$791,N(RevReq_BaseCase!$A$767:$A$791=$D39 ))/10^6 -> -1.832959396 | K39: =SUMPRODUCT('RevReq_ExitCase_(2018)'!S$767:S$791,N('RevReq_ExitCase_(2018)'!$A$767:$A$791=$D39 ))/10^6-SUMPRODUCT(RevReq_BaseCase!S$767:S$791,N(RevReq_BaseCase!$A$767:$A$791=$D39 ))/10^6 -> -1.827268023 | L39: =SUMPRODUCT('RevReq_ExitCase_(2018)'!T$767:T$791,N('RevReq_ExitCase_(2018)'!$A$767:$A$791=$D39 ))/10^6-SUMPRODUCT(RevReq_BaseCase!T$767:T$791,N(RevReq_BaseCase!$A$767:$A$791=$D39 ))/10^6 -> -1.818371982 | M39: =SUMPRODUCT('RevReq_ExitCase_(2018)'!U$767:U$791,N('RevReq_ExitCase_(2018)'!$A$767:$A$791=$D39 ))/10^6-SUMPRODUCT(RevReq_BaseCase!U$767:U$791,N(RevReq_BaseCase!$A$767:$A$791=$D39 ))/10^6 -> -1.820411581 | N39: =SUMPRODUCT('RevReq_ExitCase_(2018)'!V$767:V$791,N('RevReq_ExitCase_(2018)'!$A$767:$A$791=$D39 ))/10^6-SUMPRODUCT(RevReq_BaseCase!V$767:V$791,N(RevReq_BaseCase!$A$767:$A$791=$D39 ))/10^6 -> -1.816975368 | O39: =SUMPRODUCT('RevReq_ExitCase_(2018)'!W$767:W$791,N('RevReq_ExitCase_(2018)'!$A$767:$A$791=$D39 ))/10^6-SUMPRODUCT(RevReq_BaseCase!W$767:W$791,N(RevReq_BaseCase!$A$767:$A$791=$D39 ))/10^6 -> -1.81230899 | P39: =SUMPRODUCT('RevReq_ExitCase_(2018)'!X$767:X$791,N('RevReq_ExitCase_(2018)'!$A$767:$A$791=$D39 ))/10^6-SUMPRODUCT(RevReq_BaseCase!X$767:X$791,N(RevReq_BaseCase!$A$767:$A$791=$D39 ))/10^6 -> -1.950234951 | Q39: =SUMPRODUCT('RevReq_ExitCase_(2018)'!Y$767:Y$791,N('RevReq_ExitCase_(2018)'!$A$767:$A$791=$D39 ))/10^6-SUMPRODUCT(RevReq_BaseCase!Y$767:Y$791,N(RevReq_BaseCase!$A$767:$A$791=$D39 ))/10^6 -> -1.974586581 | R39: =SUMPRODUCT('RevReq_ExitCase_(2018)'!Z$767:Z$791,N('RevReq_ExitCase_(2018)'!$A$767:$A$791=$D39 ))/10^6-SUMPRODUCT(RevReq_BaseCase!Z$767:Z$791,N(RevReq_BaseCase!$A$767:$A$791=$D39 ))/10^6 -> -2.090086044 | S39: =SUMPRODUCT('RevReq_ExitCase_(2018)'!AA$767:AA$791,N('RevReq_ExitCase_(2018)'!$A$767:$A$791=$D39 ))/10^6-SUMPRODUCT(RevReq_BaseCase!AA$767:AA$791,N(RevReq_BaseCase!$A$767:$A$791=$D39 ))/10^6 -> -2.205881351 | T39: =SUMPRODUCT('RevReq_ExitCase_(2018)'!AB$767:AB$791,N('RevReq_ExitCase_(2018)'!$A$767:$A$791=$D39 ))/10^6-SUMPRODUCT(RevReq_BaseCase!AB$767:AB$791,N(RevReq_BaseCase!$A$767:$A$791=$D39 ))/10^6 -> -2.243581264 | U39: =SUMPRODUCT('RevReq_ExitCase_(2018)'!AC$767:AC$791,N('RevReq_ExitCase_(2018)'!$A$767:$A$791=$D39 ))/10^6-SUMPRODUCT(RevReq_BaseCase!AC$767:AC$791,N(RevReq_BaseCase!$A$767:$A$791=$D39 ))/10^6 -> -2.318306811 | V39: =SUMPRODUCT('RevReq_ExitCase_(2018)'!AD$767:AD$791,N('RevReq_ExitCase_(2018)'!$A$767:$A$791=$D39 ))/10^6-SUMPRODUCT(RevReq_BaseCase!AD$767:AD$791,N(RevReq_BaseCase!$A$767:$A$791=$D39 ))/10^6 -> -2.365073064 | W39: =SUMPRODUCT('RevReq_ExitCase_(2018)'!AE$767:AE$791,N('RevReq_ExitCase_(2018)'!$A$767:$A$791=$D39 ))/10^6-SUMPRODUCT(RevReq_BaseCase!AE$767:AE$791,N(RevReq_BaseCase!$A$767:$A$791=$D39 ))/10^6 -> -2.452073839 | X39: =SUMPRODUCT('RevReq_ExitCase_(2018)'!AF$767:AF$791,N('RevReq_ExitCase_(2018)'!$A$767:$A$791=$D39 ))/10^6-SUMPRODUCT(RevReq_BaseCase!AF$767:AF$791,N(RevReq_BaseCase!$A$767:$A$791=$D39 ))/10^6 -> -2.513858144 | Y39: =SUMPRODUCT('RevReq_ExitCase_(2018)'!AG$767:AG$791,N('RevReq_ExitCase_(2018)'!$A$767:$A$791=$D39 ))/10^6-SUMPRODUCT(RevReq_BaseCase!AG$767:AG$791,N(RevReq_BaseCase!$A$767:$A$791=$D39 ))/10^6 -> -2.600206484 | Z39: =SUMPRODUCT('RevReq_ExitCase_(2018)'!AH$767:AH$791,N('RevReq_ExitCase_(2018)'!$A$767:$A$791=$D39 ))/10^6-SUMPRODUCT(RevReq_BaseCase!AH$767:AH$791,N(RevReq_BaseCase!$A$767:$A$791=$D39 ))/10^6 -> -2.736796541 | AA39: =SUMPRODUCT('RevReq_ExitCase_(2018)'!AI$767:AI$791,N('RevReq_ExitCase_(2018)'!$A$767:$A$791=$D39 ))/10^6-SUMPRODUCT(RevReq_BaseCase!AI$767:AI$791,N(RevReq_BaseCase!$A$767:$A$791=$D39 ))/10^6 -> -2.839747903 | AB39: =SUMPRODUCT('RevReq_ExitCase_(2018)'!AJ$767:AJ$791,N('RevReq_ExitCase_(2018)'!$A$767:$A$791=$D39 ))/10^6-SUMPRODUCT(RevReq_BaseCase!AJ$767:AJ$791,N(RevReq_BaseCase!$A$767:$A$791=$D39 ))/10^6 -> -2.882402896 | AC39: =SUMPRODUCT('RevReq_ExitCase_(2018)'!AK$767:AK$791,N('RevReq_ExitCase_(2018)'!$A$767:$A$791=$D39 ))/10^6-SUMPRODUCT(RevReq_BaseCase!AK$767:AK$791,N(RevReq_BaseCase!$A$767:$A$791=$D39 ))/10^6 -> -2.948243577 | AD39: =SUMPRODUCT('RevReq_ExitCase_(2018)'!AL$767:AL$791,N('RevReq_ExitCase_(2018)'!$A$767:$A$791=$D39 ))/10^6-SUMPRODUCT(RevReq_BaseCase!AL$767:AL$791,N(RevReq_BaseCase!$A$767:$A$791=$D39 ))/10^6 -> -2.997654011 | AE39: =SUMPRODUCT('RevReq_ExitCase_(2018)'!AM$767:AM$791,N('RevReq_ExitCase_(2018)'!$A$767:$A$791=$D39 ))/10^6-SUMPRODUCT(RevReq_BaseCase!AM$767:AM$791,N(RevReq_BaseCase!$A$767:$A$791=$D39 ))/10^6 -> -3.083794948 | AF39: =SUMPRODUCT('RevReq_ExitCase_(2018)'!AN$767:AN$791,N('RevReq_ExitCase_(2018)'!$A$767:$A$791=$D39 ))/10^6-SUMPRODUCT(RevReq_BaseCase!AN$767:AN$791,N(RevReq_BaseCase!$A$767:$A$791=$D39 ))/10^6 -> -3.177072912 | AG39: =SUMPRODUCT('RevReq_ExitCase_(2018)'!AO$767:AO$791,N('RevReq_ExitCase_(2018)'!$A$767:$A$791=$D39 ))/10^6-SUMPRODUCT(RevReq_BaseCase!AO$767:AO$791,N(RevReq_BaseCase!$A$767:$A$791=$D39 ))/10^6 -> -3.277639598 | AH39: =SUMPRODUCT('RevReq_ExitCase_(2018)'!AP$767:AP$791,N('RevReq_ExitCase_(2018)'!$A$767:$A$791=$D39 ))/10^6-SUMPRODUCT(RevReq_BaseCase!AP$767:AP$791,N(RevReq_BaseCase!$A$767:$A$791=$D39 ))/10^6 -> -3.363245249 | AI39: =SUMPRODUCT('RevReq_ExitCase_(2018)'!AQ$767:AQ$791,N('RevReq_ExitCase_(2018)'!$A$767:$A$791=$D39 ))/10^6-SUMPRODUCT(RevReq_BaseCase!AQ$767:AQ$791,N(RevReq_BaseCase!$A$767:$A$791=$D39 ))/10^6 -> -3.403980911 | AJ39: =SUMPRODUCT('RevReq_ExitCase_(2018)'!AR$767:AR$791,N('RevReq_ExitCase_(2018)'!$A$767:$A$791=$D39 ))/10^6-SUMPRODUCT(RevReq_BaseCase!AR$767:AR$791,N(RevReq_BaseCase!$A$767:$A$791=$D39 ))/10^6 -> -3.506536819 | AK39: =SUMPRODUCT('RevReq_ExitCase_(2018)'!AS$767:AS$791,N('RevReq_ExitCase_(2018)'!$A$767:$A$791=$D39 ))/10^6-SUMPRODUCT(RevReq_BaseCase!AS$767:AS$791,N(RevReq_BaseCase!$A$767:$A$791=$D39 ))/10^6 -> -3.519210749 | AL39: =SUMPRODUCT('RevReq_ExitCase_(2018)'!AT$767:AT$791,N('RevReq_ExitCase_(2018)'!$A$767:$A$791=$D39 ))/10^6-SUMPRODUCT(RevReq_BaseCase!AT$767:AT$791,N(RevReq_BaseCase!$A$767:$A$791=$D39 ))/10^6 -> -3.545917418 | AM39: =SUMPRODUCT('RevReq_ExitCase_(2018)'!AU$767:AU$791,N('RevReq_ExitCase_(2018)'!$A$767:$A$791=$D39 ))/10^6-SUMPRODUCT(RevReq_BaseCase!AU$767:AU$791,N(RevReq_BaseCase!$A$767:$A$791=$D39 ))/10^6 -> -3.556709971 | AN39: =SUMPRODUCT('RevReq_ExitCase_(2018)'!AV$767:AV$791,N('RevReq_ExitCase_(2018)'!$A$767:$A$791=$D39 ))/10^6-SUMPRODUCT(RevReq_BaseCase!AV$767:AV$791,N(RevReq_BaseCase!$A$767:$A$791=$D39 ))/10^6 -> -3.558709259 | AO39: =SUMPRODUCT('RevReq_ExitCase_(2018)'!AW$767:AW$791,N('RevReq_ExitCase_(2018)'!$A$767:$A$791=$D39 ))/10^6-SUMPRODUCT(RevReq_BaseCase!AW$767:AW$791,N(RevReq_BaseCase!$A$767:$A$791=$D39 ))/10^6 -> -3.565404898 | AP39: =SUMPRODUCT('RevReq_ExitCase_(2018)'!AX$767:AX$791,N('RevReq_ExitCase_(2018)'!$A$767:$A$791=$D39 ))/10^6-SUMPRODUCT(RevReq_BaseCase!AX$767:AX$791,N(RevReq_BaseCase!$A$767:$A$791=$D39 ))/10^6 -> -3.563030315 | AQ39: =SUMPRODUCT('RevReq_ExitCase_(2018)'!AY$767:AY$791,N('RevReq_ExitCase_(2018)'!$A$767:$A$791=$D39 ))/10^6-SUMPRODUCT(RevReq_BaseCase!AY$767:AY$791,N(RevReq_BaseCase!$A$767:$A$791=$D39 ))/10^6 -> -3.564785452 | AS39: =SUM(W39:AQ39) -> -66.65702189
B40: System Impact(3) | D40: Base | E40: 677.1175168 | G40: 120.7708945 | I40: =SUMPRODUCT('RevReq_ExitCase_(2018)'!Q$163:Q$167,N('RevReq_ExitCase_(2018)'!$A$163:$A$167=$D40 ))/10^6-SUMPRODUCT(RevReq_BaseCase!Q$163:Q$167,N(RevReq_BaseCase!$A$163:$A$167=$D40 ))/10^6 -> 0 | J40: =SUMPRODUCT('RevReq_ExitCase_(2018)'!R$163:R$167,N('RevReq_ExitCase_(2018)'!$A$163:$A$167=$D40 ))/10^6-SUMPRODUCT(RevReq_BaseCase!R$163:R$167,N(RevReq_BaseCase!$A$163:$A$167=$D40 ))/10^6 -> 0 | K40: =SUMPRODUCT('RevReq_ExitCase_(2018)'!S$163:S$167,N('RevReq_ExitCase_(2018)'!$A$163:$A$167=$D40 ))/10^6-SUMPRODUCT(RevReq_BaseCase!S$163:S$167,N(RevReq_BaseCase!$A$163:$A$167=$D40 ))/10^6 -> 0 | L40: =SUMPRODUCT('RevReq_ExitCase_(2018)'!T$163:T$167,N('RevReq_ExitCase_(2018)'!$A$163:$A$167=$D40 ))/10^6-SUMPRODUCT(RevReq_BaseCase!T$163:T$167,N(RevReq_BaseCase!$A$163:$A$167=$D40 ))/10^6 -> 0 | M40: =SUMPRODUCT('RevReq_ExitCase_(2018)'!U$163:U$167,N('RevReq_ExitCase_(2018)'!$A$163:$A$167=$D40 ))/10^6-SUMPRODUCT(RevReq_BaseCase!U$163:U$167,N(RevReq_BaseCase!$A$163:$A$167=$D40 ))/10^6 -> 0 | N40: =SUMPRODUCT('RevReq_ExitCase_(2018)'!V$163:V$167,N('RevReq_ExitCase_(2018)'!$A$163:$A$167=$D40 ))/10^6-SUMPRODUCT(RevReq_BaseCase!V$163:V$167,N(RevReq_BaseCase!$A$163:$A$167=$D40 ))/10^6 -> 0 | O40: =SUMPRODUCT('RevReq_ExitCase_(2018)'!W$163:W$167,N('RevReq_ExitCase_(2018)'!$A$163:$A$167=$D40 ))/10^6-SUMPRODUCT(RevReq_BaseCase!W$163:W$167,N(RevReq_BaseCase!$A$163:$A$167=$D40 ))/10^6 -> 0 | P40: =SUMPRODUCT('RevReq_ExitCase_(2018)'!X$163:X$167,N('RevReq_ExitCase_(2018)'!$A$163:$A$167=$D40 ))/10^6-SUMPRODUCT(RevReq_BaseCase!X$163:X$167,N(RevReq_BaseCase!$A$163:$A$167=$D40 ))/10^6 -> 0 | Q40: =SUMPRODUCT('RevReq_ExitCase_(2018)'!Y$163:Y$167,N('RevReq_ExitCase_(2018)'!$A$163:$A$167=$D40 ))/10^6-SUMPRODUCT(RevReq_BaseCase!Y$163:Y$167,N(RevReq_BaseCase!$A$163:$A$167=$D40 ))/10^6 -> 0 | R40: =SUMPRODUCT('RevReq_ExitCase_(2018)'!Z$163:Z$167,N('RevReq_ExitCase_(2018)'!$A$163:$A$167=$D40 ))/10^6-SUMPRODUCT(RevReq_BaseCase!Z$163:Z$167,N(RevReq_BaseCase!$A$163:$A$167=$D40 ))/10^6 -> 0 | S40: =SUMPRODUCT('RevReq_ExitCase_(2018)'!AA$163:AA$167,N('RevReq_ExitCase_(2018)'!$A$163:$A$167=$D40 ))/10^6-SUMPRODUCT(RevReq_BaseCase!AA$163:AA$167,N(RevReq_BaseCase!$A$163:$A$167=$D40 ))/10^6 -> 0 | T40: =SUMPRODUCT('RevReq_ExitCase_(2018)'!AB$163:AB$167,N('RevReq_ExitCase_(2018)'!$A$163:$A$167=$D40 ))/10^6-SUMPRODUCT(RevReq_BaseCase!AB$163:AB$167,N(RevReq_BaseCase!$A$163:$A$167=$D40 ))/10^6 -> 0 | U40: =SUMPRODUCT('RevReq_ExitCase_(2018)'!AC$163:AC$167,N('RevReq_ExitCase_(2018)'!$A$163:$A$167=$D40 ))/10^6-SUMPRODUCT(RevReq_BaseCase!AC$163:AC$167,N(RevReq_BaseCase!$A$163:$A$167=$D40 ))/10^6 -> 0 | V40: =SUMPRODUCT('RevReq_ExitCase_(2018)'!AD$163:AD$167,N('RevReq_ExitCase_(2018)'!$A$163:$A$167=$D40 ))/10^6-SUMPRODUCT(RevReq_BaseCase!AD$163:AD$167,N(RevReq_BaseCase!$A$163:$A$167=$D40 ))/10^6 -> 0 | W40: =SUMPRODUCT('RevReq_ExitCase_(2018)'!AE$163:AE$167,N('RevReq_ExitCase_(2018)'!$A$163:$A$167=$D40 ))/10^6-SUMPRODUCT(RevReq_BaseCase!AE$163:AE$167,N(RevReq_BaseCase!$A$163:$A$167=$D40 ))/10^6 -> 0 | X40: =SUMPRODUCT('RevReq_ExitCase_(2018)'!AF$163:AF$167,N('RevReq_ExitCase_(2018)'!$A$163:$A$167=$D40 ))/10^6-SUMPRODUCT(RevReq_BaseCase!AF$163:AF$167,N(RevReq_BaseCase!$A$163:$A$167=$D40 ))/10^6 -> 25.80758385 | Y40: =SUMPRODUCT('RevReq_ExitCase_(2018)'!AG$163:AG$167,N('RevReq_ExitCase_(2018)'!$A$163:$A$167=$D40 ))/10^6-SUMPRODUCT(RevReq_BaseCase!AG$163:AG$167,N(RevReq_BaseCase!$A$163:$A$167=$D40 ))/10^6 -> 38.81265911 | Z40: =SUMPRODUCT('RevReq_ExitCase_(2018)'!AH$163:AH$167,N('RevReq_ExitCase_(2018)'!$A$163:$A$167=$D40 ))/10^6-SUMPRODUCT(RevReq_BaseCase!AH$163:AH$167,N(RevReq_BaseCase!$A$163:$A$167=$D40 ))/10^6 -> 37.50875464 | AA40: =SUMPRODUCT('RevReq_ExitCase_(2018)'!AI$163:AI$167,N('RevReq_ExitCase_(2018)'!$A$163:$A$167=$D40 ))/10^6-SUMPRODUCT(RevReq_BaseCase!AI$163:AI$167,N(RevReq_BaseCase!$A$163:$A$167=$D40 ))/10^6 -> 38.16385566 | AB40: =SUMPRODUCT('RevReq_ExitCase_(2018)'!AJ$163:AJ$167,N('RevReq_ExitCase_(2018)'!$A$163:$A$167=$D40 ))/10^6-SUMPRODUCT(RevReq_BaseCase!AJ$163:AJ$167,N(RevReq_BaseCase!$A$163:$A$167=$D40 ))/10^6 -> 36.38904064 | AC40: =SUMPRODUCT('RevReq_ExitCase_(2018)'!AK$163:AK$167,N('RevReq_ExitCase_(2018)'!$A$163:$A$167=$D40 ))/10^6-SUMPRODUCT(RevReq_BaseCase!AK$163:AK$167,N(RevReq_BaseCase!$A$163:$A$167=$D40 ))/10^6 -> 36.21793377 | AD40: =SUMPRODUCT('RevReq_ExitCase_(2018)'!AL$163:AL$167,N('RevReq_ExitCase_(2018)'!$A$163:$A$167=$D40 ))/10^6-SUMPRODUCT(RevReq_BaseCase!AL$163:AL$167,N(RevReq_BaseCase!$A$163:$A$167=$D40 ))/10^6 -> 35.44489899 | AE40: =SUMPRODUCT('RevReq_ExitCase_(2018)'!AM$163:AM$167,N('RevReq_ExitCase_(2018)'!$A$163:$A$167=$D40 ))/10^6-SUMPRODUCT(RevReq_BaseCase!AM$163:AM$167,N(RevReq_BaseCase!$A$163:$A$167=$D40 ))/10^6 -> 35.41990784 | AF40: =SUMPRODUCT('RevReq_ExitCase_(2018)'!AN$163:AN$167,N('RevReq_ExitCase_(2018)'!$A$163:$A$167=$D40 ))/10^6-SUMPRODUCT(RevReq_BaseCase!AN$163:AN$167,N(RevReq_BaseCase!$A$163:$A$167=$D40 ))/10^6 -> 33.72084459 | AG40: =SUMPRODUCT('RevReq_ExitCase_(2018)'!AO$163:AO$167,N('RevReq_ExitCase_(2018)'!$A$163:$A$167=$D40 ))/10^6-SUMPRODUCT(RevReq_BaseCase!AO$163:AO$167,N(RevReq_BaseCase!$A$163:$A$167=$D40 ))/10^6 -> 35.25561783 | AH40: =SUMPRODUCT('RevReq_ExitCase_(2018)'!AP$163:AP$167,N('RevReq_ExitCase_(2018)'!$A$163:$A$167=$D40 ))/10^6-SUMPRODUCT(RevReq_BaseCase!AP$163:AP$167,N(RevReq_BaseCase!$A$163:$A$167=$D40 ))/10^6 -> 34.87988082 | AI40: =SUMPRODUCT('RevReq_ExitCase_(2018)'!AQ$163:AQ$167,N('RevReq_ExitCase_(2018)'!$A$163:$A$167=$D40 ))/10^6-SUMPRODUCT(RevReq_BaseCase!AQ$163:AQ$167,N(RevReq_BaseCase!$A$163:$A$167=$D40 ))/10^6 -> 35.64925309 | AJ40: =SUMPRODUCT('RevReq_ExitCase_(2018)'!AR$163:AR$167,N('RevReq_ExitCase_(2018)'!$A$163:$A$167=$D40 ))/10^6-SUMPRODUCT(RevReq_BaseCase!AR$163:AR$167,N(RevReq_BaseCase!$A$163:$A$167=$D40 ))/10^6 -> 32.58104002 | AK40: =SUMPRODUCT('RevReq_ExitCase_(2018)'!AS$163:AS$167,N('RevReq_ExitCase_(2018)'!$A$163:$A$167=$D40 ))/10^6-SUMPRODUCT(RevReq_BaseCase!AS$163:AS$167,N(RevReq_BaseCase!$A$163:$A$167=$D40 ))/10^6 -> 33.08703757 | AL40: =SUMPRODUCT('RevReq_ExitCase_(2018)'!AT$163:AT$167,N('RevReq_ExitCase_(2018)'!$A$163:$A$167=$D40 ))/10^6-SUMPRODUCT(RevReq_BaseCase!AT$163:AT$167,N(RevReq_BaseCase!$A$163:$A$167=$D40 ))/10^6 -> 31.3632014 | AM40: =SUMPRODUCT('RevReq_ExitCase_(2018)'!AU$163:AU$167,N('RevReq_ExitCase_(2018)'!$A$163:$A$167=$D40 ))/10^6-SUMPRODUCT(RevReq_BaseCase!AU$163:AU$167,N(RevReq_BaseCase!$A$163:$A$167=$D40 ))/10^6 -> 31.3632014 | AN40: =SUMPRODUCT('RevReq_ExitCase_(2018)'!AV$163:AV$167,N('RevReq_ExitCase_(2018)'!$A$163:$A$167=$D40 ))/10^6-SUMPRODUCT(RevReq_BaseCase!AV$163:AV$167,N(RevReq_BaseCase!$A$163:$A$167=$D40 ))/10^6 -> 31.3632014 | AO40: =SUMPRODUCT('RevReq_ExitCase_(2018)'!AW$163:AW$167,N('RevReq_ExitCase_(2018)'!$A$163:$A$167=$D40 ))/10^6-SUMPRODUCT(RevReq_BaseCase!AW$163:AW$167,N(RevReq_BaseCase!$A$163:$A$167=$D40 ))/10^6 -> 31.3632014 | AP40: =SUMPRODUCT('RevReq_ExitCase_(2018)'!AX$163:AX$167,N('RevReq_ExitCase_(2018)'!$A$163:$A$167=$D40 ))/10^6-SUMPRODUCT(RevReq_BaseCase!AX$163:AX$167,N(RevReq_BaseCase!$A$163:$A$167=$D40 ))/10^6 -> 31.3632014 | AQ40: =SUMPRODUCT('RevReq_ExitCase_(2018)'!AY$163:AY$167,N('RevReq_ExitCase_(2018)'!$A$163:$A$167=$D40 ))/10^6-SUMPRODUCT(RevReq_BaseCase!AY$163:AY$167,N(RevReq_BaseCase!$A$163:$A$167=$D40 ))/10^6 -> 31.3632014 | AS40: 677.1175168
B41: Depreciation and Amortization(4) | D41: Base | E41: -102.7601925 | G41: =SUMPRODUCT(I41:AQ41,$I$115:$AQ$115) -> 9.340445898 | I41: =SUMPRODUCT('RevReq_ExitCase_(2018)'!Q$232:Q$256,N('RevReq_ExitCase_(2018)'!$A$232:$A$256=$D41 ))/10^6-SUMPRODUCT(RevReq_BaseCase!Q$232:Q$256,N(RevReq_BaseCase!$A$232:$A$256=$D41 ))/10^6 -> 7.17384913 | J41: =SUMPRODUCT('RevReq_ExitCase_(2018)'!R$232:R$256,N('RevReq_ExitCase_(2018)'!$A$232:$A$256=$D41 ))/10^6-SUMPRODUCT(RevReq_BaseCase!R$232:R$256,N(RevReq_BaseCase!$A$232:$A$256=$D41 ))/10^6 -> 7.140527996 | K41: =SUMPRODUCT('RevReq_ExitCase_(2018)'!S$232:S$256,N('RevReq_ExitCase_(2018)'!$A$232:$A$256=$D41 ))/10^6-SUMPRODUCT(RevReq_BaseCase!S$232:S$256,N(RevReq_BaseCase!$A$232:$A$256=$D41 ))/10^6 -> 7.091935456 | L41: =SUMPRODUCT('RevReq_ExitCase_(2018)'!T$232:T$256,N('RevReq_ExitCase_(2018)'!$A$232:$A$256=$D41 ))/10^6-SUMPRODUCT(RevReq_BaseCase!T$232:T$256,N(RevReq_BaseCase!$A$232:$A$256=$D41 ))/10^6 -> 7.030941983 | M41: =SUMPRODUCT('RevReq_ExitCase_(2018)'!U$232:U$256,N('RevReq_ExitCase_(2018)'!$A$232:$A$256=$D41 ))/10^6-SUMPRODUCT(RevReq_BaseCase!U$232:U$256,N(RevReq_BaseCase!$A$232:$A$256=$D41 ))/10^6 -> 6.965385252 | N41: =SUMPRODUCT('RevReq_ExitCase_(2018)'!V$232:V$256,N('RevReq_ExitCase_(2018)'!$A$232:$A$256=$D41 ))/10^6-SUMPRODUCT(RevReq_BaseCase!V$232:V$256,N(RevReq_BaseCase!$A$232:$A$256=$D41 ))/10^6 -> 6.896830918 | O41: =SUMPRODUCT('RevReq_ExitCase_(2018)'!W$232:W$256,N('RevReq_ExitCase_(2018)'!$A$232:$A$256=$D41 ))/10^6-SUMPRODUCT(RevReq_BaseCase!W$232:W$256,N(RevReq_BaseCase!$A$232:$A$256=$D41 ))/10^6 -> 6.827699559 | P41: =SUMPRODUCT('RevReq_ExitCase_(2018)'!X$232:X$256,N('RevReq_ExitCase_(2018)'!$A$232:$A$256=$D41 ))/10^6-SUMPRODUCT(RevReq_BaseCase!X$232:X$256,N(RevReq_BaseCase!$A$232:$A$256=$D41 ))/10^6 -> 6.675183163 | Q41: =SUMPRODUCT('RevReq_ExitCase_(2018)'!Y$232:Y$256,N('RevReq_ExitCase_(2018)'!$A$232:$A$256=$D41 ))/10^6-SUMPRODUCT(RevReq_BaseCase!Y$232:Y$256,N(RevReq_BaseCase!$A$232:$A$256=$D41 ))/10^6 -> 6.511164366 | R41: =SUMPRODUCT('RevReq_ExitCase_(2018)'!Z$232:Z$256,N('RevReq_ExitCase_(2018)'!$A$232:$A$256=$D41 ))/10^6-SUMPRODUCT(RevReq_BaseCase!Z$232:Z$256,N(RevReq_BaseCase!$A$232:$A$256=$D41 ))/10^6 -> 6.379818421 | S41: =SUMPRODUCT('RevReq_ExitCase_(2018)'!AA$232:AA$256,N('RevReq_ExitCase_(2018)'!$A$232:$A$256=$D41 ))/10^6-SUMPRODUCT(RevReq_BaseCase!AA$232:AA$256,N(RevReq_BaseCase!$A$232:$A$256=$D41 ))/10^6 -> -8.674004681 | T41: =SUMPRODUCT('RevReq_ExitCase_(2018)'!AB$232:AB$256,N('RevReq_ExitCase_(2018)'!$A$232:$A$256=$D41 ))/10^6-SUMPRODUCT(RevReq_BaseCase!AB$232:AB$256,N(RevReq_BaseCase!$A$232:$A$256=$D41 ))/10^6 -> -8.816403633 | U41: =SUMPRODUCT('RevReq_ExitCase_(2018)'!AC$232:AC$256,N('RevReq_ExitCase_(2018)'!$A$232:$A$256=$D41 ))/10^6-SUMPRODUCT(RevReq_BaseCase!AC$232:AC$256,N(RevReq_BaseCase!$A$232:$A$256=$D41 ))/10^6 -> -8.966380418 | V41: =SUMPRODUCT('RevReq_ExitCase_(2018)'!AD$232:AD$256,N('RevReq_ExitCase_(2018)'!$A$232:$A$256=$D41 ))/10^6-SUMPRODUCT(RevReq_BaseCase!AD$232:AD$256,N(RevReq_BaseCase!$A$232:$A$256=$D41 ))/10^6 -> -9.113789071 | W41: =SUMPRODUCT('RevReq_ExitCase_(2018)'!AE$232:AE$256,N('RevReq_ExitCase_(2018)'!$A$232:$A$256=$D41 ))/10^6-SUMPRODUCT(RevReq_BaseCase!AE$232:AE$256,N(RevReq_BaseCase!$A$232:$A$256=$D41 ))/10^6 -> -7.830875294 | X41: =SUMPRODUCT('RevReq_ExitCase_(2018)'!AF$232:AF$256,N('RevReq_ExitCase_(2018)'!$A$232:$A$256=$D41 ))/10^6-SUMPRODUCT(RevReq_BaseCase!AF$232:AF$256,N(RevReq_BaseCase!$A$232:$A$256=$D41 ))/10^6 -> -7.762372595 | Y41: =SUMPRODUCT('RevReq_ExitCase_(2018)'!AG$232:AG$256,N('RevReq_ExitCase_(2018)'!$A$232:$A$256=$D41 ))/10^6-SUMPRODUCT(RevReq_BaseCase!AG$232:AG$256,N(RevReq_BaseCase!$A$232:$A$256=$D41 ))/10^6 -> -7.846850387 | Z41: =SUMPRODUCT('RevReq_ExitCase_(2018)'!AH$232:AH$256,N('RevReq_ExitCase_(2018)'!$A$232:$A$256=$D41 ))/10^6-SUMPRODUCT(RevReq_BaseCase!AH$232:AH$256,N(RevReq_BaseCase!$A$232:$A$256=$D41 ))/10^6 -> -6.791208138 | AA41: =SUMPRODUCT('RevReq_ExitCase_(2018)'!AI$232:AI$256,N('RevReq_ExitCase_(2018)'!$A$232:$A$256=$D41 ))/10^6-SUMPRODUCT(RevReq_BaseCase!AI$232:AI$256,N(RevReq_BaseCase!$A$232:$A$256=$D41 ))/10^6 -> -6.637905737 | AB41: =SUMPRODUCT('RevReq_ExitCase_(2018)'!AJ$232:AJ$256,N('RevReq_ExitCase_(2018)'!$A$232:$A$256=$D41 ))/10^6-SUMPRODUCT(RevReq_BaseCase!AJ$232:AJ$256,N(RevReq_BaseCase!$A$232:$A$256=$D41 ))/10^6 -> -6.069367432 | AC41: =SUMPRODUCT('RevReq_ExitCase_(2018)'!AK$232:AK$256,N('RevReq_ExitCase_(2018)'!$A$232:$A$256=$D41 ))/10^6-SUMPRODUCT(RevReq_BaseCase!AK$232:AK$256,N(RevReq_BaseCase!$A$232:$A$256=$D41 ))/10^6 -> -5.816425375 | AD41: =SUMPRODUCT('RevReq_ExitCase_(2018)'!AL$232:AL$256,N('RevReq_ExitCase_(2018)'!$A$232:$A$256=$D41 ))/10^6-SUMPRODUCT(RevReq_BaseCase!AL$232:AL$256,N(RevReq_BaseCase!$A$232:$A$256=$D41 ))/10^6 -> -5.484717761 | AE41: =SUMPRODUCT('RevReq_ExitCase_(2018)'!AM$232:AM$256,N('RevReq_ExitCase_(2018)'!$A$232:$A$256=$D41 ))/10^6-SUMPRODUCT(RevReq_BaseCase!AM$232:AM$256,N(RevReq_BaseCase!$A$232:$A$256=$D41 ))/10^6 -> -5.273122417 | AF41: =SUMPRODUCT('RevReq_ExitCase_(2018)'!AN$232:AN$256,N('RevReq_ExitCase_(2018)'!$A$232:$A$256=$D41 ))/10^6-SUMPRODUCT(RevReq_BaseCase!AN$232:AN$256,N(RevReq_BaseCase!$A$232:$A$256=$D41 ))/10^6 -> -5.384614178 | AG41: =SUMPRODUCT('RevReq_ExitCase_(2018)'!AO$232:AO$256,N('RevReq_ExitCase_(2018)'!$A$232:$A$256=$D41 ))/10^6-SUMPRODUCT(RevReq_BaseCase!AO$232:AO$256,N(RevReq_BaseCase!$A$232:$A$256=$D41 ))/10^6 -> -5.462244346 | AH41: =SUMPRODUCT('RevReq_ExitCase_(2018)'!AP$232:AP$256,N('RevReq_ExitCase_(2018)'!$A$232:$A$256=$D41 ))/10^6-SUMPRODUCT(RevReq_BaseCase!AP$232:AP$256,N(RevReq_BaseCase!$A$232:$A$256=$D41 ))/10^6 -> -5.578321352 | AI41: =SUMPRODUCT('RevReq_ExitCase_(2018)'!AQ$232:AQ$256,N('RevReq_ExitCase_(2018)'!$A$232:$A$256=$D41 ))/10^6-SUMPRODUCT(RevReq_BaseCase!AQ$232:AQ$256,N(RevReq_BaseCase!$A$232:$A$256=$D41 ))/10^6 -> -5.618579741 | AJ41: =SUMPRODUCT('RevReq_ExitCase_(2018)'!AR$232:AR$256,N('RevReq_ExitCase_(2018)'!$A$232:$A$256=$D41 ))/10^6-SUMPRODUCT(RevReq_BaseCase!AR$232:AR$256,N(RevReq_BaseCase!$A$232:$A$256=$D41 ))/10^6 -> -5.673465501 | AK41: =SUMPRODUCT('RevReq_ExitCase_(2018)'!AS$232:AS$256,N('RevReq_ExitCase_(2018)'!$A$232:$A$256=$D41 ))/10^6-SUMPRODUCT(RevReq_BaseCase!AS$232:AS$256,N(RevReq_BaseCase!$A$232:$A$256=$D41 ))/10^6 -> -5.770825899 | AL41: =SUMPRODUCT('RevReq_ExitCase_(2018)'!AT$232:AT$256,N('RevReq_ExitCase_(2018)'!$A$232:$A$256=$D41 ))/10^6-SUMPRODUCT(RevReq_BaseCase!AT$232:AT$256,N(RevReq_BaseCase!$A$232:$A$256=$D41 ))/10^6 -> -5.716205538 | AM41: =SUMPRODUCT('RevReq_ExitCase_(2018)'!AU$232:AU$256,N('RevReq_ExitCase_(2018)'!$A$232:$A$256=$D41 ))/10^6-SUMPRODUCT(RevReq_BaseCase!AU$232:AU$256,N(RevReq_BaseCase!$A$232:$A$256=$D41 ))/10^6 -> -5.767433785 | AN41: =SUMPRODUCT('RevReq_ExitCase_(2018)'!AV$232:AV$256,N('RevReq_ExitCase_(2018)'!$A$232:$A$256=$D41 ))/10^6-SUMPRODUCT(RevReq_BaseCase!AV$232:AV$256,N(RevReq_BaseCase!$A$232:$A$256=$D41 ))/10^6 -> -5.760775395 | AO41: =SUMPRODUCT('RevReq_ExitCase_(2018)'!AW$232:AW$256,N('RevReq_ExitCase_(2018)'!$A$232:$A$256=$D41 ))/10^6-SUMPRODUCT(RevReq_BaseCase!AW$232:AW$256,N(RevReq_BaseCase!$A$232:$A$256=$D41 ))/10^6 -> -5.787490289 | AP41: =SUMPRODUCT('RevReq_ExitCase_(2018)'!AX$232:AX$256,N('RevReq_ExitCase_(2018)'!$A$232:$A$256=$D41 ))/10^6-SUMPRODUCT(RevReq_BaseCase!AX$232:AX$256,N(RevReq_BaseCase!$A$232:$A$256=$D41 ))/10^6 -> -5.79455058 | AQ41: =SUMPRODUCT('RevReq_ExitCase_(2018)'!AY$232:AY$256,N('RevReq_ExitCase_(2018)'!$A$232:$A$256=$D41 ))/10^6-SUMPRODUCT(RevReq_BaseCase!AY$232:AY$256,N(RevReq_BaseCase!$A$232:$A$256=$D41 ))/10^6 -> -14.05559922 | AS41: -135.882951
B42: Interest Expense(5) | D42: Base | E42: -42.47035386 | G42: =SUMPRODUCT(I42:AQ42,$I$115:$AQ$115) -> -10.83990419 | I42: =SUMPRODUCT('RevReq_ExitCase_(2018)'!Q$409:Q$433,N('RevReq_ExitCase_(2018)'!$A$409:$A$433=$D42 ))/10^6-SUMPRODUCT(RevReq_BaseCase!Q$409:Q$433,N(RevReq_BaseCase!$A$409:$A$433=$D42 ))/10^6 -> -0.1597276348 | J42: =SUMPRODUCT('RevReq_ExitCase_(2018)'!R$409:R$433,N('RevReq_ExitCase_(2018)'!$A$409:$A$433=$D42 ))/10^6-SUMPRODUCT(RevReq_BaseCase!R$409:R$433,N(RevReq_BaseCase!$A$409:$A$433=$D42 ))/10^6 -> 0.172942973 | K42: =SUMPRODUCT('RevReq_ExitCase_(2018)'!S$409:S$433,N('RevReq_ExitCase_(2018)'!$A$409:$A$433=$D42 ))/10^6-SUMPRODUCT(RevReq_BaseCase!S$409:S$433,N(RevReq_BaseCase!$A$409:$A$433=$D42 ))/10^6 -> 0.383653476 | L42: =SUMPRODUCT('RevReq_ExitCase_(2018)'!T$409:T$433,N('RevReq_ExitCase_(2018)'!$A$409:$A$433=$D42 ))/10^6-SUMPRODUCT(RevReq_BaseCase!T$409:T$433,N(RevReq_BaseCase!$A$409:$A$433=$D42 ))/10^6 -> -0.331452873 | M42: =SUMPRODUCT('RevReq_ExitCase_(2018)'!U$409:U$433,N('RevReq_ExitCase_(2018)'!$A$409:$A$433=$D42 ))/10^6-SUMPRODUCT(RevReq_BaseCase!U$409:U$433,N(RevReq_BaseCase!$A$409:$A$433=$D42 ))/10^6 -> -0.3949345285 | N42: =SUMPRODUCT('RevReq_ExitCase_(2018)'!V$409:V$433,N('RevReq_ExitCase_(2018)'!$A$409:$A$433=$D42 ))/10^6-SUMPRODUCT(RevReq_BaseCase!V$409:V$433,N(RevReq_BaseCase!$A$409:$A$433=$D42 ))/10^6 -> -0.5174425757 | O42: =SUMPRODUCT('RevReq_ExitCase_(2018)'!W$409:W$433,N('RevReq_ExitCase_(2018)'!$A$409:$A$433=$D42 ))/10^6-SUMPRODUCT(RevReq_BaseCase!W$409:W$433,N(RevReq_BaseCase!$A$409:$A$433=$D42 ))/10^6 -> -0.6353369255 | P42: =SUMPRODUCT('RevReq_ExitCase_(2018)'!X$409:X$433,N('RevReq_ExitCase_(2018)'!$A$409:$A$433=$D42 ))/10^6-SUMPRODUCT(RevReq_BaseCase!X$409:X$433,N(RevReq_BaseCase!$A$409:$A$433=$D42 ))/10^6 -> -0.8309649262 | Q42: =SUMPRODUCT('RevReq_ExitCase_(2018)'!Y$409:Y$433,N('RevReq_ExitCase_(2018)'!$A$409:$A$433=$D42 ))/10^6-SUMPRODUCT(RevReq_BaseCase!Y$409:Y$433,N(RevReq_BaseCase!$A$409:$A$433=$D42 ))/10^6 -> -1.039828733 | R42: =SUMPRODUCT('RevReq_ExitCase_(2018)'!Z$409:Z$433,N('RevReq_ExitCase_(2018)'!$A$409:$A$433=$D42 ))/10^6-SUMPRODUCT(RevReq_BaseCase!Z$409:Z$433,N(RevReq_BaseCase!$A$409:$A$433=$D42 ))/10^6 -> -1.23434305 | S42: =SUMPRODUCT('RevReq_ExitCase_(2018)'!AA$409:AA$433,N('RevReq_ExitCase_(2018)'!$A$409:$A$433=$D42 ))/10^6-SUMPRODUCT(RevReq_BaseCase!AA$409:AA$433,N(RevReq_BaseCase!$A$409:$A$433=$D42 ))/10^6 -> -1.400767227 | T42: =SUMPRODUCT('RevReq_ExitCase_(2018)'!AB$409:AB$433,N('RevReq_ExitCase_(2018)'!$A$409:$A$433=$D42 ))/10^6-SUMPRODUCT(RevReq_BaseCase!AB$409:AB$433,N(RevReq_BaseCase!$A$409:$A$433=$D42 ))/10^6 -> -1.445164156 | U42: =SUMPRODUCT('RevReq_ExitCase_(2018)'!AC$409:AC$433,N('RevReq_ExitCase_(2018)'!$A$409:$A$433=$D42 ))/10^6-SUMPRODUCT(RevReq_BaseCase!AC$409:AC$433,N(RevReq_BaseCase!$A$409:$A$433=$D42 ))/10^6 -> -1.468882611 | V42: =SUMPRODUCT('RevReq_ExitCase_(2018)'!AD$409:AD$433,N('RevReq_ExitCase_(2018)'!$A$409:$A$433=$D42 ))/10^6-SUMPRODUCT(RevReq_BaseCase!AD$409:AD$433,N(RevReq_BaseCase!$A$409:$A$433=$D42 ))/10^6 -> -1.498107458 | W42: =SUMPRODUCT('RevReq_ExitCase_(2018)'!AE$409:AE$433,N('RevReq_ExitCase_(2018)'!$A$409:$A$433=$D42 ))/10^6-SUMPRODUCT(RevReq_BaseCase!AE$409:AE$433,N(RevReq_BaseCase!$A$409:$A$433=$D42 ))/10^6 -> -1.499640105 | X42: =SUMPRODUCT('RevReq_ExitCase_(2018)'!AF$409:AF$433,N('RevReq_ExitCase_(2018)'!$A$409:$A$433=$D42 ))/10^6-SUMPRODUCT(RevReq_BaseCase!AF$409:AF$433,N(RevReq_BaseCase!$A$409:$A$433=$D42 ))/10^6 -> -1.476579938 | Y42: =SUMPRODUCT('RevReq_ExitCase_(2018)'!AG$409:AG$433,N('RevReq_ExitCase_(2018)'!$A$409:$A$433=$D42 ))/10^6-SUMPRODUCT(RevReq_BaseCase!AG$409:AG$433,N(RevReq_BaseCase!$A$409:$A$433=$D42 ))/10^6 -> -1.454481025 | Z42: =SUMPRODUCT('RevReq_ExitCase_(2018)'!AH$409:AH$433,N('RevReq_ExitCase_(2018)'!$A$409:$A$433=$D42 ))/10^6-SUMPRODUCT(RevReq_BaseCase!AH$409:AH$433,N(RevReq_BaseCase!$A$409:$A$433=$D42 ))/10^6 -> -1.482455025 | AA42: =SUMPRODUCT('RevReq_ExitCase_(2018)'!AI$409:AI$433,N('RevReq_ExitCase_(2018)'!$A$409:$A$433=$D42 ))/10^6-SUMPRODUCT(RevReq_BaseCase!AI$409:AI$433,N(RevReq_BaseCase!$A$409:$A$433=$D42 ))/10^6 -> -1.527948808 | AB42: =SUMPRODUCT('RevReq_ExitCase_(2018)'!AJ$409:AJ$433,N('RevReq_ExitCase_(2018)'!$A$409:$A$433=$D42 ))/10^6-SUMPRODUCT(RevReq_BaseCase!AJ$409:AJ$433,N(RevReq_BaseCase!$A$409:$A$433=$D42 ))/10^6 -> -1.525838412 | AC42: =SUMPRODUCT('RevReq_ExitCase_(2018)'!AK$409:AK$433,N('RevReq_ExitCase_(2018)'!$A$409:$A$433=$D42 ))/10^6-SUMPRODUCT(RevReq_BaseCase!AK$409:AK$433,N(RevReq_BaseCase!$A$409:$A$433=$D42 ))/10^6 -> -1.509748794 | AD42: =SUMPRODUCT('RevReq_ExitCase_(2018)'!AL$409:AL$433,N('RevReq_ExitCase_(2018)'!$A$409:$A$433=$D42 ))/10^6-SUMPRODUCT(RevReq_BaseCase!AL$409:AL$433,N(RevReq_BaseCase!$A$409:$A$433=$D42 ))/10^6 -> -1.502450236 | AE42: =SUMPRODUCT('RevReq_ExitCase_(2018)'!AM$409:AM$433,N('RevReq_ExitCase_(2018)'!$A$409:$A$433=$D42 ))/10^6-SUMPRODUCT(RevReq_BaseCase!AM$409:AM$433,N(RevReq_BaseCase!$A$409:$A$433=$D42 ))/10^6 -> -1.51102751 | AF42: =SUMPRODUCT('RevReq_ExitCase_(2018)'!AN$409:AN$433,N('RevReq_ExitCase_(2018)'!$A$409:$A$433=$D42 ))/10^6-SUMPRODUCT(RevReq_BaseCase!AN$409:AN$433,N(RevReq_BaseCase!$A$409:$A$433=$D42 ))/10^6 -> -1.545963961 | AG42: =SUMPRODUCT('RevReq_ExitCase_(2018)'!AO$409:AO$433,N('RevReq_ExitCase_(2018)'!$A$409:$A$433=$D42 ))/10^6-SUMPRODUCT(RevReq_BaseCase!AO$409:AO$433,N(RevReq_BaseCase!$A$409:$A$433=$D42 ))/10^6 -> -1.588868368 | AH42: =SUMPRODUCT('RevReq_ExitCase_(2018)'!AP$409:AP$433,N('RevReq_ExitCase_(2018)'!$A$409:$A$433=$D42 ))/10^6-SUMPRODUCT(RevReq_BaseCase!AP$409:AP$433,N(RevReq_BaseCase!$A$409:$A$433=$D42 ))/10^6 -> -1.627560939 | AI42: =SUMPRODUCT('RevReq_ExitCase_(2018)'!AQ$409:AQ$433,N('RevReq_ExitCase_(2018)'!$A$409:$A$433=$D42 ))/10^6-SUMPRODUCT(RevReq_BaseCase!AQ$409:AQ$433,N(RevReq_BaseCase!$A$409:$A$433=$D42 ))/10^6 -> -1.633367378 | AJ42: =SUMPRODUCT('RevReq_ExitCase_(2018)'!AR$409:AR$433,N('RevReq_ExitCase_(2018)'!$A$409:$A$433=$D42 ))/10^6-SUMPRODUCT(RevReq_BaseCase!AR$409:AR$433,N(RevReq_BaseCase!$A$409:$A$433=$D42 ))/10^6 -> -1.650771915 | AK42: =SUMPRODUCT('RevReq_ExitCase_(2018)'!AS$409:AS$433,N('RevReq_ExitCase_(2018)'!$A$409:$A$433=$D42 ))/10^6-SUMPRODUCT(RevReq_BaseCase!AS$409:AS$433,N(RevReq_BaseCase!$A$409:$A$433=$D42 ))/10^6 -> -1.654679042 | AL42: =SUMPRODUCT('RevReq_ExitCase_(2018)'!AT$409:AT$433,N('RevReq_ExitCase_(2018)'!$A$409:$A$433=$D42 ))/10^6-SUMPRODUCT(RevReq_BaseCase!AT$409:AT$433,N(RevReq_BaseCase!$A$409:$A$433=$D42 ))/10^6 -> -1.61963788 | AM42: =SUMPRODUCT('RevReq_ExitCase_(2018)'!AU$409:AU$433,N('RevReq_ExitCase_(2018)'!$A$409:$A$433=$D42 ))/10^6-SUMPRODUCT(RevReq_BaseCase!AU$409:AU$433,N(RevReq_BaseCase!$A$409:$A$433=$D42 ))/10^6 -> -1.588173553 | AN42: =SUMPRODUCT('RevReq_ExitCase_(2018)'!AV$409:AV$433,N('RevReq_ExitCase_(2018)'!$A$409:$A$433=$D42 ))/10^6-SUMPRODUCT(RevReq_BaseCase!AV$409:AV$433,N(RevReq_BaseCase!$A$409:$A$433=$D42 ))/10^6 -> -1.546856426 | AO42: =SUMPRODUCT('RevReq_ExitCase_(2018)'!AW$409:AW$433,N('RevReq_ExitCase_(2018)'!$A$409:$A$433=$D42 ))/10^6-SUMPRODUCT(RevReq_BaseCase!AW$409:AW$433,N(RevReq_BaseCase!$A$409:$A$433=$D42 ))/10^6 -> -1.506913416 | AP42: =SUMPRODUCT('RevReq_ExitCase_(2018)'!AX$409:AX$433,N('RevReq_ExitCase_(2018)'!$A$409:$A$433=$D42 ))/10^6-SUMPRODUCT(RevReq_BaseCase!AX$409:AX$433,N(RevReq_BaseCase!$A$409:$A$433=$D42 ))/10^6 -> -1.465923578 | AQ42: =SUMPRODUCT('RevReq_ExitCase_(2018)'!AY$409:AY$433,N('RevReq_ExitCase_(2018)'!$A$409:$A$433=$D42 ))/10^6-SUMPRODUCT(RevReq_BaseCase!AY$409:AY$433,N(RevReq_BaseCase!$A$409:$A$433=$D42 ))/10^6 -> -1.151111305 | AS42: -32.06999761
